Workbook

Sheet S. Table 1
A1: Supplementary Table 1. Bionano optical map statistics
A2: Raw molecules (>150 kbp) | B2: Total length | C2: 1,842.6 Gb
B3: Molecule N50 | C3: 264.4 kb
B4: Molecule coverage | C4: 142x
A5: OGM assembly | B5: No. of contigs | C5: 706
B6: Total length | C6: 10.96 Gb
B7: Contig N50 | C7: 41 Mb

Sheet S. Table 2
A1: Supplementary Table 2. Characteristics of the comparison between V.faba geno me assembly v.1 and v.2
A2: Chr | B2: Size (Gb) | D2: No. of contigs | F2: N50 (Mb) | H2: Max. length (Mb) | J2: No. of gaps
B3: V1 | C3: V2 | D3: V1 | E3: V2 | F3: V1 | G3: V2 | H3: V1 | I3: V2 | J3: V1 | K3: V2
A4: chr1 | B4: 3.37 | C4: 3.52 | D4: 1638 | E4: 81 | F4: 2.7 | G4: 100.8 | H4: 22.2 | I4: 664.8 | J4: 1637 | K4: 80
A5: chr2 | B5: 1.71 | C5: 1.78 | D5: 788 | E5: 42 | F5: 2.9 | G5: 189.4 | H5: 23.5 | I5: 479.9 | J5: 787 | K5: 41
A6: chr3 | B6: 1.63 | C6: 2 | D6: 752 | E6: 45 | F6: 3 | G6: 147.1 | H6: 23.7 | I6: 285.4 | J6: 752 | K6: 44
A7: chr4 | B7: 1.64 | C7: 1.71 | D7: 747 | E7: 49 | F7: 2.9 | G7: 87.2 | H7: 61.3 | I7: 258.6 | J7: 746 | K7: 48
A8: chr5 | B8: 1.36 | C8: 1.42 | D8: 638 | E8: 50 | F8: 2.8 | G8: 88.5 | H8: 71 | I8: 290.5 | J8: 637 | K8: 49
A9: chr6 | B9: 1.52 | C9: 1.58 | D9: 637 | E9: 74 | F9: 3.3 | G9: 52.9 | H9: 31.9 | I9: 153.7 | J9: 636 | K9: 73
A10: Total | B10: 11.23 | C10: 11.73 | D10: 5200 | E10: 341 | J10: 5195 | K10: 335

Sheet S. Table 3
A1: Supplementary Table 3. Summary statistics of Iso-Seq data.
A2: Sample | B2: Numbers of raw reads | C2: Numbers of complete full length reads | D2: Numbers of clustered HQ isoforms | E2: Average length of clustered HQ isoforms | F2: Numbers of clustered LQ isoforms | G2: BioSample Identifier
A3: stem | B3: 2,351,177 | C3: 2,078,658 | D3: 129,635 | E3: 2,202 | F3: 39 | G3: SAMEA115807228
A4: flower, closed petals | B4: 3,722,765 | C4: 3,376,720 | D4: 179,189 | E4: 1,925 | F4: 31 | G4: SAMEA115807230
A5: young leaf | B5: 3,344,050 | C5: 3,157,145 | D5: 107,122 | E5: 1,827 | F5: 6 | G5: SAMEA115807231
A6: mature leaf | B6: 2,209,350 | C6: 2,026,816 | D6: 126,390 | E6: 2,015 | F6: 41 | G6: SAMEA115807235
A7: pod, mid maturation | B7: 4,742,625 | C7: 4,320,666 | D7: 204,466 | E7: 2,107 | F7: 89 | G7: SAMEA115807232
A8: pod, expansion stage | B8: 2,620,795 | C8: 2,435,029 | D8: 113,089 | E8: 1,923 | F8: 29 | G8: SAMEA115807229
A9: embryo, mid maturation | B9: 2,532,635 | C9: 2,274,303 | D9: 108,077 | E9: 1,894 | F9: 42 | G9: SAMEA115807236
A10: whole seed, expansion stage | B10: 2,168,902 | C10: 1,819,040 | D10: 146,051 | E10: 2,297 | F10: 77 | G10: SAMEA115807237
A11: roots, control (no rhizobia) | B11: 2,438,870 | C11: 2,110,718 | D11: 168,994 | E11: 2,035 | F11: 69 | G11: SAMEA115807233
A12: roots, 2 weeks after rhizobia inoculation | B12: 2,069,109 | C12: 1,730,706 | D12: 165,231 | E12: 2,492 | F12: 97 | G12: SAMEA115807234
A13: root nodules, 30 days after rhizobia inoculation | B13: 2,994,916 | C13: 2,626,932 | D13: 152,791 | E13: 2,030 | F13: 60 | G13: SAMEA115807238

Sheet S. Table 4
A1: Supplementary Table 4. Statistics of proteins downloaded from JGI and NCBI
A2: Species | B2: Numbers
A3: Cajanus cajan (pigeon pea) | B3: 28,643
A4: Glycine max (soybean) | B4: 51,431
A5: Lens culinaris (lentil) | B5: 38,624
A6: Medicago truncatula (barrelclover) | B6: 31,571
A7: Pisum sativum (Pea) | B7: 43,677

Sheet S. Table 5
A1: Supplementary Table 5. Summary statistics of annotated gene models in assembly v.2
B2: V1 | C2: V2
A3: Number of genes | B3: 34,144 | C3: 35,107
A4: Average of gene length(bp) | B4: 2,776 | C4: 2,976
A5: Number of transcripts | B5: 37,065 | C5: 55,283
A6: Average of mRNA length(bp) | B6: 1134 | C6: 1153
A7: Average of exon length(bp) | B7: 231 | C7: 252
A8: Average of intron length(bp) | B8: 419 | C8: 462
A9: Average of exons per gene | B9: 5 | C9: 5
A10: Average of introns per gene | B10: 4 | C10: 4
A11: Number of multi exon transcript | B11: 26,166 | C11: 27,901
A12: Percentage of multi exon transcript | B12: 77 | C12: 80
A13: Number of single exon transcript | B13: 7,978 | C13: 7,206
A14: Percentage of single exon transcript | B14: 23 | C14: 20
A15: Percentage of BUSCO complete | B15: 94.5 | C15: 95.2

Sheet S. Table 6
A1: Supplementary Table 6. Summary statistics of seed storage protein (SSP) gene models in assembly v.2
A2: Globulin Storage Protein | B2: No. of genes | C2: GeneID
A3: Unknow Storage Protein cluster | B3: 10 | C3: Vfaba.Hedin2.R2.1g005079.1; Vfaba.Hedin2.R2.1g005080.2; Vfaba.Hedin2.R2.1g005081.1; Vfaba.Hedin2.R2.1g005082.2; Vfaba.Hedin2.R2.1g005084.1; Vfaba.Hedin2.R2.1g005085.2; Vfaba.Hedin2.R2.1g005086.1; Vfaba.Hedin2.R2.1g005087.1; Vfaba.Hedin2.R2.1g005088.1; Vfaba.Hedin2.R2.1g005089.1;
A4: legume A cluster | B4: 7 | C4: Vfaba.Hedin2.R2.5g031004.1; Vfaba.Hedin2.R2.5g031005.1; Vfaba.Hedin2.R2.5g031006.1; Vfaba.Hedin2.R2.5g031007.2; Vfaba.Hedin2.R2.5g031009.2; Vfaba.Hedin2.R2.5g031010.1; Vfaba.Hedin2.R2.5g031011.1;
A5: legume B4 cluster | B5: 5 | C5: Vfaba.Hedin2.R2.3g018663.2; Vfaba.Hedin2.R2.3g018664.1; Vfaba.Hedin2.R2.3g018665.1; Vfaba.Hedin2.R2.3g018666.1; Vfaba.Hedin2.R2.3g018667.1;
A6: legume B3 cluster | B6: 6 | C6: Vfaba.Hedin2.R2.3g018830.1; Vfaba.Hedin2.R2.3g018817.1; Vfaba.Hedin2.R2.3g018815.1; Vfaba.Hedin2.R2.3g018812.3; Vfaba.Hedin2.R2.3g018810.1; Vfaba.Hedin2.R2.3g018807.3;
A7: Vicilin cluster I | B7: 9 | C7: Vfaba.Hedin2.R2.2g011745.1; Vfaba.Hedin2.R2.2g011746.14; Vfaba.Hedin2.R2.2g011747.2; Vfaba.Hedin2.R2.2g011748.10; Vfaba.Hedin2.R2.2g011749.1; Vfaba.Hedin2.R2.2g011750.1; Vfaba.Hedin2.R2.2g011751.3; Vfaba.Hedin2.R2.2g011752.2; Vfaba.Hedin2.R2.2g011753.1;
A8: Vicilin cluster II | B8: 3 | C8: Vfaba.Hedin2.R2.2g011474.1; Vfaba.Hedin2.R2.2g011475.1; Vfaba.Hedin2.R2.2g011476.1;
A9: Other similarity not in clusters | B9: 5 | C9: Vfaba.Hedin2.R2.contig_corrected_v1_2756g037393.2; Vfaba.Hedin2.R2.contig_corrected_v1_3658g037565.1; Vfaba.Hedin2.R2.contig_corrected_v1_3658g037567.1; Vfaba.Hedin2.R2.3g020638.4; Vfaba.Hedin2.R2.3g020639.7;
A10: Total | B10: 45

Sheet S. Table 7
A1: Supplementary Table 7. Proportions of the annotated repeats in assembly v.2
A2: Repeat | B2: Total length | C2: genome % | D2: centromere %
B3: [Mb]
A5: Class I | B5: 10042 | C5: 83.37 | D5: 69.71
A6: LTR
A7: Ty3/gypsy | B7: 9103 | C7: 75.57 | D7: 66.47
A8: Ogre | B8: 8545 | C8: 70.94 | D8: 63.15
A9: Tekay | B9: 212 | C9: 1.76 | D9: 1.2
A10: Athila | B10: 168 | C10: 1.39 | D10: 0.67
A11: Retand | B11: 127 | C11: 1.06 | D11: 1.1
A12: other lineages | B12: 50 | C12: 0.42 | D12: 0.34
A13: Ty1/copia | B13: 875 | C13: 7.27 | D13: 3.06
A14: SIRE | B14: 713 | C14: 5.92 | D14: 2.18
A15: other lineages | B15: 162 | C15: 1.35 | D15: 0.88
A16: LINE | B16: 16 | C16: 0.13 | D16: 0.05
A18: Class II | B18: 120 | C18: 1 | D18: 0.56
A19: EnSpm//CACTA | B19: 68 | C19: 0.57 | D19: 0.26
A20: MuDR/Mutator | B20: 48 | C20: 0.4 | D20: 0.25
A21: other lineages | B21: 4 | C21: 0.03 | D21: 0.05
A23: Tandem repeats | B23: 1106 | C23: 9.18 | D23: 23.57
A24: Satellite DNA | B24: 1019 | C24: 8.46 | D24: 23.28
A25: Simple repeats | B25: 63 | C25: 0.52 | D25: 0.29
A26: 45S rDNA | B26: 21 | C26: 0.17 | D26: 0
A27: 5S_rDNA | B27: 3 | C27: 0.02 | D27: 0
A30: TOTAL: | B30: 11221 | C30: 93.15 | D30: 93.71

Sheet S. Table 8
A1: Supplementary Table 8. Centromere positions and sizes of assembly v.2.
B2: chrom. | C2: CEN | E2: CEN
A3: chromosome | B3: length | C3: from | D3: to | E3: length
A4: chr1 | B4: 3520337347 | C4: 1616480000 | D4: 1622660000 | E4: 6180000
A5: chr2 | B5: 1784076768 | C5: 156400000 | D5: 167300000 | E5: 10900000
A6: chr3 | B6: 1723414376 | C6: 139200000 | D6: 151700000 | E6: 12500000
A7: chr4 | B7: 1713176330 | C7: 83300000 | D7: 94138000 | E7: 10838000
A8: chr5 | B8: 1422372021 | C8: 102980000 | D8: 116250000 | E8: 13270000
A9: chr6 | B9: 1587923182 | C9: 41900000 | D9: 62490000 | E9: 20590000

Sheet S.Table 9
A1: Supplementary Table 9. Distribution of satellite DNA families in the centromeres
A2: Satellite family | C2: FabTR -
C3: 1 | D3: 4 | E3: 5 | F3: 13 | G3: 14 | H3: 15 | I3: 16 | J3: 53 | K3: FokI | L3: TIII15 | M3: TRC_11 | N3: TRC_98 | O3: TRC_102 | P3: TRC_223
A4: 1 | C4: + | E4: + | F4: + | J4: +
A5: 2 | I5: + | K5: +
A6: 3 | L6: (+) | M6: (+)
A7: 4 | D7: + | J7: +
A8: 5 | G8: + | J8: + | M8: (+) | N8: + | O8: + | P8: (+)
A9: 6 | H9: + | K9: +
A14: The centromeric satellites include 14 different satellite families FabTR-*, FokI, TIII15, TRC_11, TRC_98, TRC_102 and TRC_223 repeats.
A15: The symbols “+” and “(+)” indicate the presence of large and small arrays, respectively.

Sheet S. Table 10
A1: Supplementary Table 10. Summary of chromatin accessibility in assembly v.2 as measured by ATAC-seq
A2: Tissue | B2: Genomic region | C2: Number of Accessible regions | D2: Mean accessible region width (bp) | E2: Median accessible region width (bp) | F2: Number of accessible bases | G2: Genomic region size (bp) | H2: Percentage of genomic region accessible | I2: BioSample Identifier
A3: Adult leaf | B3: Gene | C3: 20,688 | D3: 405 | E3: 363 | F3: 5,124,471 | G3: 103,578,343 | H3: 4.95% | I3: SRR31072841, SRR31072840
A4: Adult leaf | B4: Proximal (0-3 kbp) | C4: 21,377 | D4: 345 | E4: 311 | F4: 10,461,588 | G4: 181,028,455 | H4: 5.78% | I4: SRR31072841, SRR31072840
A5: Adult leaf | B5: Distal (3-30kb) | C5: 15,916 | D5: 320 | E5: 281 | F5: 5,169,353 | G5: 1,307,482,510 | H5: 0.40% | I5: SRR31072841, SRR31072840
A6: Adult leaf | B6: Intergenic (>30 kbp) | C6: 63,419 | D6: 295 | E6: 256 | F6: 18,705,583 | G6: 10,159,922,521 | H6: 0.18% | I6: SRR31072841, SRR31072840
A7: Adult leaf | B7: Whole genome | C7: 121,443 | D7: 325 | E7: 282 | F7: 39,460,995 | G7: 11,752,011,829 | H7: 0.34% | I7: SRR31072841, SRR31072840
A8: Seedling | B8: Gene | C8: 22,429 | D8: 398 | E8: 354 | F8: 5,695,464 | G8: 103,578,343 | H8: 5.50% | I8: SRR31072838, SRR31072839
A9: Seedling | B9: Proximal (0-3 kbp) | C9: 21,426 | D9: 338 | E9: 301 | F9: 10,318,540 | G9: 181,028,455 | H9: 5.70% | I9: SRR31072838, SRR31072839
A10: Seedling | B10: Distal (3-30kb) | C10: 13,970 | D10: 325 | E10: 285 | F10: 4,606,385 | G10: 1,307,482,510 | H10: 0.35% | I10: SRR31072838, SRR31072839
A11: Seedling | B11: Intergenic (>30 kbp) | C11: 35,635 | D11: 327 | E11: 281 | F11: 11,648,874 | G11: 10,159,922,521 | H11: 0.11% | I11: SRR31072838, SRR31072839
A12: Seedling | B12: Whole genome | C12: 93,501 | D12: 345 | E12: 301 | F12: 32,269,263 | G12: 11,752,011,829 | H12: 0.27% | I12: SRR31072838, SRR31072839

Sheet S. Table 11
A1: Supplementary Table 11. Summary statistics of whole-genome sequencing in 406 accessions
A2: Sample ID | B2: Panel | C2: Types | D2: No. of raw reads | E2: No. of clean reads | F2: Mapping rate | G2: Mean Depth | H2: BioSample Identifier
A3: P_22-05 | B3: NPZ | C3: Spring | D3: 1,040,211,352 | E3: 1,040,185,018 | F3: 0.987 | G3: 12.58 | H3: SAMEA115550174
A4: MP_22-145 | B4: NPZ | C4: Spring | D4: 896,508,794 | E4: 896,485,996 | F4: 0.985 | G4: 10.81 | H4: SAMEA115550361
A5: P_22-08 | B5: NPZ | C5: Spring | D5: 1,040,033,552 | E5: 1,040,008,070 | F5: 0.987 | G5: 12.58 | H5: SAMEA115550176
A6: P_22-06 | B6: NPZ | C6: Spring | D6: 1,040,188,414 | E6: 1,040,161,974 | F6: 0.986 | G6: 12.58 | H6: SAMEA115550175
A7: MP_22-51 | B7: NPZ | C7: Spring | D7: 876,472,334 | E7: 876,449,988 | F7: 0.985 | G7: 10.58 | H7: SAMEA115550515
A8: MP_22-41 | B8: NPZ | C8: Spring | D8: 1,040,198,532 | E8: 1,040,172,316 | F8: 0.986 | G8: 12.56 | H8: SAMEA115550504
A9: MP_22-18 | B9: NPZ | C9: Spring | D9: 1,040,266,522 | E9: 1,040,239,856 | F9: 0.987 | G9: 12.56 | H9: SAMEA115550443
A10: P_22-01 | B10: NPZ | C10: Spring | D10: 1,040,046,090 | E10: 1,040,020,122 | F10: 0.987 | G10: 12.58 | H10: SAMEA115550170
A11: P_22-02 | B11: NPZ | C11: Spring | D11: 1,040,266,326 | E11: 1,040,241,214 | F11: 0.986 | G11: 12.57 | H11: SAMEA115550171
A12: MP_22-57 | B12: NPZ | C12: Spring | D12: 1,040,066,048 | E12: 1,040,039,922 | F12: 0.986 | G12: 12.56 | H12: SAMEA115550123
A13: MP_22-11 | B13: NPZ | C13: Spring | D13: 1,040,252,026 | E13: 1,040,224,814 | F13: 0.986 | G13: 12.56 | H13: SAMEA115550230
A14: MP_22-139 | B14: NPZ | C14: Spring | D14: 932,362,618 | E14: 932,338,032 | F14: 0.986 | G14: 11.24 | H14: SAMEA115550356
A15: MP_22-93 | B15: NPZ | C15: Spring | D15: 934,781,532 | E15: 934,759,038 | F15: 0.986 | G15: 11.29 | H15: SAMEA115550163
A16: MP_22-128 | B16: NPZ | C16: Spring | D16: 896,084,424 | E16: 896,062,720 | F16: 0.987 | G16: 10.83 | H16: SAMEA115550348
A17: MP_22-13 | B17: NPZ | C17: Spring | D17: 1,040,223,734 | E17: 1,040,198,666 | F17: 0.986 | G17: 12.56 | H17: SAMEA115550350
A18: USJ_22-4 | B18: NPZ | C18: Spring | D18: 956,232,074 | E18: 956,208,902 | F18: 0.986 | G18: 11.54 | H18: SAMEA115550338
A19: MP_22-16 | B19: NPZ | C19: Spring | D19: 1,040,304,832 | E19: 1,040,278,544 | F19: 0.985 | G19: 12.54 | H19: SAMEA115550424
A20: MP_22-26 | B20: NPZ | C20: Spring | D20: 1,040,033,058 | E20: 1,040,006,564 | F20: 0.985 | G20: 12.54 | H20: SAMEA115550455
A21: USJ_22-1 | B21: NPZ | C21: Spring | D21: 1,040,075,214 | E21: 1,040,048,726 | F21: 0.986 | G21: 12.55 | H21: SAMEA115550336
A22: MP_22-15 | B22: NPZ | C22: Spring | D22: 895,638,198 | E22: 895,614,192 | F22: 0.985 | G22: 10.8 | H22: SAMEA115550368
A23: MP_22-144 | B23: NPZ | C23: Spring | D23: 1,017,996,810 | E23: 1,017,971,596 | F23: 0.985 | G23: 12.26 | H23: SAMEA115550360
A24: MP_22-112 | B24: NPZ | C24: Spring | D24: 1,040,088,640 | E24: 1,040,062,792 | F24: 0.985 | G24: 12.55 | H24: SAMEA115550233
A25: MP_22-95 | B25: NPZ | C25: Spring | D25: 1,040,073,266 | E25: 1,040,047,534 | F25: 0.986 | G25: 12.55 | H25: SAMEA115550165
A26: MP_22-91 | B26: NPZ | C26: Spring | D26: 946,994,040 | E26: 946,970,562 | F26: 0.986 | G26: 11.43 | H26: SAMEA115550161
A27: MP_22-7 | B27: NPZ | C27: Spring | D27: 1,040,189,984 | E27: 1,040,164,402 | F27: 0.985 | G27: 12.54 | H27: SAMEA115550137
A28: MP_22-113 | B28: NPZ | C28: Spring | D28: 1,040,098,548 | E28: 1,040,072,134 | F28: 0.986 | G28: 12.56 | H28: SAMEA115550234
A29: P_22-03 | B29: NPZ | C29: Spring | D29: 1,040,084,380 | E29: 1,040,058,746 | F29: 0.986 | G29: 12.56 | H29: SAMEA115550172
A30: MP_22-17 | B30: NPZ | C30: Spring | D30: 1,040,265,134 | E30: 1,040,239,364 | F30: 0.987 | G30: 12.56 | H30: SAMEA115550442
A31: USJ_22-3 | B31: NPZ | C31: Spring | D31: 1,040,192,562 | E31: 1,040,167,454 | F31: 0.985 | G31: 12.54 | H31: SAMEA115550337
A32: MP_22-94 | B32: NPZ | C32: Spring | D32: 1,040,077,716 | E32: 1,040,051,652 | F32: 0.986 | G32: 12.56 | H32: SAMEA115550164
A33: MP_22-97 | B33: NPZ | C33: Spring | D33: 944,493,542 | E33: 944,469,936 | F33: 0.986 | G33: 11.4 | H33: SAMEA115550167
A34: MP_22-61 | B34: NPZ | C34: Spring | D34: 1,040,288,932 | E34: 1,040,263,664 | F34: 0.987 | G34: 12.56 | H34: SAMEA115550128
A35: USJ_22-2 | B35: NPZ | C35: Spring | D35: 957,944,760 | E35: 957,919,358 | F35: 0.985 | G35: 11.53 | H35: SAMEA115550484
A36: MP_22-125 | B36: NPZ | C36: Spring | D36: 906,732,808 | E36: 906,708,970 | F36: 0.986 | G36: 10.94 | H36: SAMEA115550345
A37: MP_22-53 | B37: NPZ | C37: Spring | D37: 1,040,148,618 | E37: 1,040,122,252 | F37: 0.985 | G37: 12.54 | H37: SAMEA115550517
A38: P_22-04 | B38: NPZ | C38: Spring | D38: 1,040,164,362 | E38: 1,040,138,242 | F38: 0.986 | G38: 12.56 | H38: SAMEA115550173
A39: MP_22-140 | B39: NPZ | C39: Spring | D39: 951,158,460 | E39: 951,135,272 | F39: 0.986 | G39: 11.46 | H39: SAMEA115550358
A40: MP_22-1 | B40: NPZ | C40: Spring | D40: 1,023,289,756 | E40: 1,023,264,262 | F40: 0.985 | G40: 12.35 | H40: SAMEA115550218
A41: MP_22-111 | B41: NPZ | C41: Spring | D41: 931,339,324 | E41: 931,313,190 | F41: 0.986 | G41: 11.24 | H41: SAMEA115550232
A42: MP_22-147 | B42: NPZ | C42: Spring | D42: 880,780,800 | E42: 880,757,860 | F42: 0.986 | G42: 10.63 | H42: SAMEA115550363
A43: MP_22-66 | B43: NPZ | C43: Spring | D43: 1,040,279,842 | E43: 1,040,253,742 | F43: 0.986 | G43: 12.55 | H43: SAMEA115550133
A44: MP_22-29 | B44: NPZ | C44: Spring | D44: 1,016,287,744 | E44: 1,016,261,302 | F44: 0.987 | G44: 12.26 | H44: SAMEA115550492
A45: USJ_22-8 | B45: NPZ | C45: Spring | D45: 891,722,508 | E45: 891,699,076 | F45: 0.988 | G45: 10.78 | H45: SAMEA115550489
A46: MP_22-37 | B46: NPZ | C46: Spring | D46: 1,040,066,786 | E46: 1,040,040,396 | F46: 0.986 | G46: 12.55 | H46: SAMEA115550500
A47: MP_22-107 | B47: NPZ | C47: Spring | D47: 938,941,806 | E47: 938,915,906 | F47: 0.986 | G47: 11.33 | H47: SAMEA115550227
A48: MP_22-64 | B48: NPZ | C48: Spring | D48: 1,040,012,574 | E48: 1,039,986,768 | F48: 0.986 | G48: 12.54 | H48: SAMEA115550131
A49: MP_22-123 | B49: NPZ | C49: Spring | D49: 1,040,212,508 | E49: 1,040,186,432 | F49: 0.986 | G49: 12.55 | H49: SAMEA115550343
A50: MP_22-9 | B50: NPZ | C50: Spring | D50: 999,374,604 | E50: 999,348,872 | F50: 0.986 | G50: 12.05 | H50: SAMEA115550159
A51: P_22-09 | B51: NPZ | C51: Spring | D51: 1,040,238,112 | E51: 1,040,212,026 | F51: 0.986 | G51: 12.55 | H51: SAMEA115550177
A52: MP_22-96 | B52: NPZ | C52: Spring | D52: 1,040,093,148 | E52: 1,040,067,478 | F52: 0.986 | G52: 12.55 | H52: SAMEA115550166
A53: MP_22-127 | B53: NPZ | C53: Spring | D53: 910,679,398 | E53: 910,654,852 | F53: 0.986 | G53: 10.99 | H53: SAMEA115550347
A54: MP_22-32 | B54: NPZ | C54: Spring | D54: 939,916,558 | E54: 939,893,182 | F54: 0.987 | G54: 11.35 | H54: SAMEA115550254
A55: MP_22-65 | B55: NPZ | C55: Spring | D55: 1,040,027,768 | E55: 1,040,002,152 | F55: 0.985 | G55: 12.53 | H55: SAMEA115550132
A56: MP_22-63 | B56: NPZ | C56: Spring | D56: 1,040,077,448 | E56: 1,040,051,530 | F56: 0.986 | G56: 12.53 | H56: SAMEA115550130
A57: MP_22-33 | B57: NPZ | C57: Spring | D57: 1,040,276,104 | E57: 1,040,250,228 | F57: 0.986 | G57: 12.55 | H57: SAMEA115550496
A58: P_22-12 | B58: NPZ | C58: Spring | D58: 1,040,033,204 | E58: 1,040,008,324 | F58: 0.986 | G58: 12.55 | H58: SAMEA115550180
A59: USJ_22-7 | B59: NPZ | C59: Spring | D59: 1,040,032,654 | E59: 1,040,006,792 | F59: 0.987 | G59: 12.55 | H59: SAMEA115550488
A60: MP_22-10 | B60: NPZ | C60: Spring | D60: 1,040,035,344 | E60: 1,040,009,916 | F60: 0.986 | G60: 12.53 | H60: SAMEA115550219
A61: USJ_22-5 | B61: NPZ | C61: Spring | D61: 1,040,116,846 | E61: 1,040,091,288 | F61: 0.987 | G61: 12.56 | H61: SAMEA115550486
A62: MP_22-5 | B62: NPZ | C62: Spring | D62: 1,040,007,620 | E62: 1,039,981,868 | F62: 0.986 | G62: 12.53 | H62: SAMEA115550513
A63: P_22-13 | B63: NPZ | C63: Spring | D63: 1,040,315,870 | E63: 1,040,290,258 | F63: 0.986 | G63: 12.55 | H63: SAMEA115550181
A64: MP_22-14 | B64: NPZ | C64: Spring | D64: 909,276,726 | E64: 909,254,650 | F64: 0.986 | G64: 10.96 | H64: SAMEA115550357
A65: MP_22-8 | B65: NPZ | C65: Spring | D65: 1,040,081,746 | E65: 1,040,055,520 | F65: 0.986 | G65: 12.53 | H65: SAMEA115550148
A66: MP_22-40 | B66: NPZ | C66: Spring | D66: 1,040,140,896 | E66: 1,040,115,184 | F66: 0.985 | G66: 12.53 | H66: SAMEA115550503
A67: MP_22-116 | B67: NPZ | C67: Spring | D67: 926,901,776 | E67: 926,878,728 | F67: 0.985 | G67: 11.17 | H67: SAMEA115550237
A68: MP_22-50 | B68: NPZ | C68: Spring | D68: 1,040,086,342 | E68: 1,040,059,912 | F68: 0.985 | G68: 12.52 | H68: SAMEA115550514
A69: MP_22-59 | B69: NPZ | C69: Spring | D69: 944,429,274 | E69: 944,406,526 | F69: 0.985 | G69: 11.37 | H69: SAMEA115550125
A70: MP_22-3 | B70: NPZ | C70: Spring | D70: 1,040,177,176 | E70: 1,040,151,336 | F70: 0.985 | G70: 12.52 | H70: SAMEA115550493
A71: MP_22-103 | B71: NPZ | C71: Spring | D71: 897,279,078 | E71: 897,255,864 | F71: 0.986 | G71: 10.82 | H71: SAMEA115550223
A72: P_22-10 | B72: NPZ | C72: Spring | D72: 1,040,295,416 | E72: 1,040,270,402 | F72: 0.985 | G72: 12.54 | H72: SAMEA115550178
A73: P_22-11 | B73: NPZ | C73: Spring | D73: 1,040,197,980 | E73: 1,040,172,224 | F73: 0.986 | G73: 12.54 | H73: SAMEA115550179
A74: MP_22-142 | B74: NPZ | C74: Spring | D74: 1,011,577,844 | E74: 1,011,552,310 | F74: 0.986 | G74: 12.18 | H74: SAMEA115550359
A75: MP_22-105 | B75: NPZ | C75: Spring | D75: 988,200,712 | E75: 988,174,920 | F75: 0.985 | G75: 11.91 | H75: SAMEA115550225
A76: USJ_22-18 | B76: NPZ | C76: Spring | D76: 1,040,197,656 | E76: 1,040,171,962 | F76: 0.986 | G76: 12.54 | H76: SAMEA115550482
A77: USJ_22-17 | B77: NPZ | C77: Spring | D77: 1,040,173,464 | E77: 1,040,147,270 | F77: 0.987 | G77: 12.54 | H77: SAMEA115550481
A78: MP_22-27 | B78: NPZ | C78: Spring | D78: 1,040,302,286 | E78: 1,040,276,320 | F78: 0.986 | G78: 12.54 | H78: SAMEA115550490
A79: MP_22-62 | B79: NPZ | C79: Spring | D79: 1,040,314,064 | E79: 1,040,288,946 | F79: 0.986 | G79: 12.53 | H79: SAMEA115550129
A80: MP_22-67 | B80: NPZ | C80: Spring | D80: 1,040,289,594 | E80: 1,040,264,422 | F80: 0.986 | G80: 12.54 | H80: SAMEA115550134
A81: MP_22-132 | B81: NPZ | C81: Spring | D81: 903,059,314 | E81: 903,036,296 | F81: 0.986 | G81: 10.88 | H81: SAMEA115550353
A82: MP_22-54 | B82: NPZ | C82: Spring | D82: 1,040,119,524 | E82: 1,040,094,428 | F82: 0.985 | G82: 12.52 | H82: SAMEA115550518
A83: MP_22-108 | B83: NPZ | C83: Spring | D83: 924,927,510 | E83: 924,904,248 | F83: 0.985 | G83: 11.14 | H83: SAMEA115550228
A84: MP_22-30 | B84: NPZ | C84: Spring | D84: 1,040,054,876 | E84: 1,040,028,946 | F84: 0.985 | G84: 12.52 | H84: SAMEA115550494
A85: MP_22-148 | B85: NPZ | C85: Spring | D85: 1,016,683,870 | E85: 1,016,659,084 | F85: 0.986 | G85: 12.25 | H85: SAMEA115550364
A86: MP_22-120 | B86: NPZ | C86: Spring | D86: 1,033,121,378 | E86: 1,033,095,756 | F86: 0.986 | G86: 12.46 | H86: SAMEA115550340
A87: MP_22-149 | B87: NPZ | C87: Spring | D87: 917,446,526 | E87: 917,423,712 | F87: 0.986 | G87: 11.05 | H87: SAMEA115550365
A88: MP_22-34 | B88: NPZ | C88: Spring | D88: 1,040,273,784 | E88: 1,040,248,632 | F88: 0.985 | G88: 12.53 | H88: SAMEA115550497
A89: MP_22-114 | B89: NPZ | C89: Spring | D89: 923,547,422 | E89: 923,523,668 | F89: 0.986 | G89: 11.13 | H89: SAMEA115550235
A90: USJ_22-6 | B90: NPZ | C90: Spring | D90: 1,024,424,708 | E90: 1,024,399,518 | F90: 0.987 | G90: 12.35 | H90: SAMEA115550487
A91: USJ_22-19 | B91: NPZ | C91: Spring | D91: 1,024,764,906 | E91: 1,024,739,260 | F91: 0.987 | G91: 12.36 | H91: SAMEA115550483
A92: MP_22-109 | B92: NPZ | C92: Spring | D92: 1,021,383,430 | E92: 1,021,358,524 | F92: 0.987 | G92: 12.32 | H92: SAMEA115550229
A93: MP_22-136 | B93: NPZ | C93: Spring | D93: 1,011,848,014 | E93: 1,011,822,330 | F93: 0.986 | G93: 12.19 | H93: SAMEA115550355
A94: MP_22-38 | B94: NPZ | C94: Spring | D94: 1,040,242,832 | E94: 1,040,216,996 | F94: 0.985 | G94: 12.52 | H94: SAMEA115550501
A95: MP_22-106 | B95: NPZ | C95: Spring | D95: 919,112,816 | E95: 919,089,724 | F95: 0.986 | G95: 11.08 | H95: SAMEA115550226
A96: MP_22-117 | B96: NPZ | C96: Spring | D96: 930,824,600 | E96: 930,801,406 | F96: 0.986 | G96: 11.22 | H96: SAMEA115550238
A97: MP_22-151 | B97: NPZ | C97: Spring | D97: 1,040,174,970 | E97: 1,040,150,044 | F97: 0.986 | G97: 12.52 | H97: SAMEA115550370
A98: MP_22-4 | B98: NPZ | C98: Spring | D98: 1,040,256,986 | E98: 1,040,231,438 | F98: 0.985 | G98: 12.51 | H98: SAMEA115550502
A99: MP_22-153 | B99: NPZ | C99: Spring | D99: 1,040,230,890 | E99: 1,040,205,088 | F99: 0.986 | G99: 12.53 | H99: SAMEA115550414
A100: USJ_22-20 | B100: NPZ | C100: Spring | D100: 1,040,216,258 | E100: 1,040,190,658 | F100: 0.987 | G100: 12.53 | H100: SAMEA115550485
A101: MP_22-100 | B101: NPZ | C101: Spring | D101: 886,652,754 | E101: 886,630,026 | F101: 0.986 | G101: 10.69 | H101: SAMEA115550220
A102: MP_22-101 | B102: NPZ | C102: Spring | D102: 880,432,050 | E102: 880,410,542 | F102: 0.987 | G102: 10.62 | H102: SAMEA115550221
A103: MP_22-58 | B103: NPZ | C103: Spring | D103: 1,040,158,602 | E103: 1,040,131,876 | F103: 0.983 | G103: 12.49 | H103: SAMEA115550124
A104: MP_22-35 | B104: NPZ | C104: Spring | D104: 1,040,089,618 | E104: 1,040,063,834 | F104: 0.985 | G104: 12.52 | H104: SAMEA115550498
A105: MP_22-60 | B105: NPZ | C105: Spring | D105: 1,040,069,250 | E105: 1,040,043,234 | F105: 0.984 | G105: 12.5 | H105: SAMEA115550127
A106: MP_22-134 | B106: NPZ | C106: Spring | D106: 985,475,034 | E106: 985,450,782 | F106: 0.986 | G106: 11.87 | H106: SAMEA115550354
A107: MP_22-31 | B107: NPZ | C107: Spring | D107: 1,033,478,754 | E107: 1,033,451,530 | F107: 0.985 | G107: 12.44 | H107: SAMEA115550495
A108: MP_22-70 | B108: NPZ | C108: Spring | D108: 1,040,293,100 | E108: 1,040,267,750 | F108: 0.986 | G108: 12.52 | H108: SAMEA115550138
A109: MP_22-12 | B109: NPZ | C109: Spring | D109: 1,040,011,798 | E109: 1,039,986,158 | F109: 0.984 | G109: 12.51 | H109: SAMEA115550339
A110: MP_22-52 | B110: NPZ | C110: Spring | D110: 1,040,085,122 | E110: 1,040,060,018 | F110: 0.984 | G110: 12.5 | H110: SAMEA115550516
A111: MP_22-126 | B111: NPZ | C111: Spring | D111: 1,040,306,840 | E111: 1,040,281,062 | F111: 0.986 | G111: 12.53 | H111: SAMEA115550346
A112: MP_22-92 | B112: NPZ | C112: Spring | D112: 989,674,888 | E112: 989,650,874 | F112: 0.986 | G112: 11.92 | H112: SAMEA115550162
A113: MP_22-129 | B113: NPZ | C113: Spring | D113: 1,040,003,246 | E113: 1,039,977,586 | F113: 0.986 | G113: 12.53 | H113: SAMEA115550349
A114: MP_22-122 | B114: NPZ | C114: Spring | D114: 1,024,959,012 | E114: 1,024,933,424 | F114: 0.985 | G114: 12.33 | H114: SAMEA115550342
A115: MP_22-146 | B115: NPZ | C115: Spring | D115: 1,040,172,804 | E115: 1,040,147,308 | F115: 0.986 | G115: 12.51 | H115: SAMEA115550362
A116: MP_22-152 | B116: NPZ | C116: Spring | D116: 1,040,134,856 | E116: 1,040,109,124 | F116: 0.986 | G116: 12.53 | H116: SAMEA115550413
A117: MP_22-121 | B117: NPZ | C117: Spring | D117: 944,416,746 | E117: 944,393,526 | F117: 0.985 | G117: 11.37 | H117: SAMEA115550341
A118: MP_22-115 | B118: NPZ | C118: Spring | D118: 922,387,614 | E118: 922,364,496 | F118: 0.985 | G118: 11.1 | H118: SAMEA115550236
A119: MP_22-104 | B119: NPZ | C119: Spring | D119: 966,141,028 | E119: 966,116,026 | F119: 0.986 | G119: 11.64 | H119: SAMEA115550224
A120: MP_22-131 | B120: NPZ | C120: Spring | D120: 927,141,252 | E120: 927,118,120 | F120: 0.984 | G120: 11.14 | H120: SAMEA115550352
A121: MP_22-99 | B121: NPZ | C121: Spring | D121: 943,749,810 | E121: 943,726,778 | F121: 0.986 | G121: 11.36 | H121: SAMEA115550169
A122: MP_22-119 | B122: NPZ | C122: Spring | D122: 931,114,284 | E122: 931,091,966 | F122: 0.985 | G122: 11.21 | H122: SAMEA115550240
A123: MP_22-28 | B123: NPZ | C123: Spring | D123: 1,040,308,446 | E123: 1,040,283,060 | F123: 0.986 | G123: 12.52 | H123: SAMEA115550491
A124: MP_22-130 | B124: NPZ | C124: Spring | D124: 1,040,299,088 | E124: 1,040,273,620 | F124: 0.986 | G124: 12.52 | H124: SAMEA115550351
A125: MP_22-118 | B125: NPZ | C125: Spring | D125: 957,100,368 | E125: 957,076,610 | F125: 0.986 | G125: 11.53 | H125: SAMEA115550239
A126: MP_22-161 | B126: NPZ | C126: Spring | D126: 1,040,084,224 | E126: 1,040,058,244 | F126: 0.986 | G126: 12.52 | H126: SAMEA115550427
A127: JLU_22-4 | B127: NPZ | C127: Spring | D127: 1,040,352,050 | E127: 1,040,324,364 | F127: 0.987 | G127: 12.52 | H127: SAMEA115550215
A128: MP_22-150 | B128: NPZ | C128: Spring | D128: 928,556,628 | E128: 928,534,290 | F128: 0.986 | G128: 11.17 | H128: SAMEA115550369
A129: MP_22-133 | B129: NPZ | C129: Spring | D129: 945,424,882 | E129: 945,400,832 | F129: 0.986 | G129: 11.38 | H129: SAMEA115550249
A130: MP_22-56 | B130: NPZ | C130: Spring | D130: 1,040,255,138 | E130: 1,040,229,800 | F130: 0.984 | G130: 12.49 | H130: SAMEA115550122
A131: MP_22-98 | B131: NPZ | C131: Spring | D131: 944,107,706 | E131: 944,084,086 | F131: 0.986 | G131: 11.36 | H131: SAMEA115550168
A132: MP_22-137 | B132: NPZ | C132: Spring | D132: 954,520,896 | E132: 954,496,114 | F132: 0.985 | G132: 11.47 | H132: SAMEA115550250
A133: MP_22-138 | B133: NPZ | C133: Spring | D133: 981,808,920 | E133: 981,784,066 | F133: 0.986 | G133: 11.79 | H133: SAMEA115550251
A134: JLU_22-8 | B134: NPZ | C134: Spring | D134: 895,476,364 | E134: 895,451,850 | F134: 0.986 | G134: 10.75 | H134: SAMEA115550246
A135: MP_22-55 | B135: NPZ | C135: Spring | D135: 990,865,694 | E135: 990,841,186 | F135: 0.983 | G135: 11.88 | H135: SAMEA115550519
A136: MP_22-36 | B136: NPZ | C136: Spring | D136: 961,994,314 | E136: 961,969,742 | F136: 0.985 | G136: 11.55 | H136: SAMEA115550499
A137: MP_22-141 | B137: NPZ | C137: Spring | D137: 982,569,960 | E137: 982,545,582 | F137: 0.985 | G137: 11.79 | H137: SAMEA115550252
A138: JLU_22-6 | B138: NPZ | C138: Spring | D138: 1,040,361,896 | E138: 1,040,334,454 | F138: 0.987 | G138: 12.51 | H138: SAMEA115550217
A139: MP_22-160 | B139: NPZ | C139: Spring | D139: 1,040,261,950 | E139: 1,040,235,796 | F139: 0.987 | G139: 12.51 | H139: SAMEA115550426
A140: JLU_22-7 | B140: NPZ | C140: Spring | D140: 1,040,293,594 | E140: 1,040,265,624 | F140: 0.986 | G140: 12.5 | H140: SAMEA115550245
A141: MP_22-158 | B141: NPZ | C141: Spring | D141: 1,040,023,790 | E141: 1,039,997,788 | F141: 0.986 | G141: 12.49 | H141: SAMEA115550422
A142: MP_22-6 | B142: NPZ | C142: Spring | D142: 967,708,758 | E142: 967,684,224 | F142: 0.983 | G142: 11.58 | H142: SAMEA115550126
A143: MP_22-167 | B143: NPZ | C143: Spring | D143: 1,040,197,150 | E143: 1,040,170,238 | F143: 0.987 | G143: 12.5 | H143: SAMEA115550439
A144: MP_22-124 | B144: NPZ | C144: Spring | D144: 1,040,047,674 | E144: 1,040,021,840 | F144: 0.986 | G144: 12.49 | H144: SAMEA115550344
A145: MP_22-73 | B145: NPZ | C145: Spring | D145: 1,040,259,798 | E145: 1,040,233,708 | F145: 0.986 | G145: 12.49 | H145: SAMEA115550141
A146: MP_22-162 | B146: NPZ | C146: Spring | D146: 1,040,175,460 | E146: 1,040,148,632 | F146: 0.986 | G146: 12.49 | H146: SAMEA115550430
A147: JLU_22-5 | B147: NPZ | C147: Spring | D147: 1,040,566,524 | E147: 1,040,539,962 | F147: 0.987 | G147: 12.49 | H147: SAMEA115550216
A148: MP_22-83 | B148: NPZ | C148: Spring | D148: 972,061,584 | E148: 972,036,504 | F148: 0.986 | G148: 11.65 | H148: SAMEA115550152
A149: MP_22-90 | B149: NPZ | C149: Spring | D149: 925,598,014 | E149: 925,574,354 | F149: 0.983 | G149: 11.06 | H149: SAMEA115550160
A150: MP_22-39 | B150: NPZ | C150: Spring | D150: 918,320,588 | E150: 918,295,696 | F150: 0.982 | G150: 10.96 | H150: SAMEA115550255
A151: MP_22-164 | B151: NPZ | C151: Spring | D151: 1,039,899,968 | E151: 1,039,872,302 | F151: 0.986 | G151: 12.47 | H151: SAMEA115550432
A152: MP_22-156 | B152: NPZ | C152: Spring | D152: 976,377,986 | E152: 976,352,682 | F152: 0.986 | G152: 11.71 | H152: SAMEA115550418
A153: MP_22-78 | B153: NPZ | C153: Spring | D153: 1,040,175,854 | E153: 1,040,149,214 | F153: 0.987 | G153: 12.48 | H153: SAMEA115550146
A154: MP_22-155 | B154: NPZ | C154: Spring | D154: 1,001,308,984 | E154: 1,001,283,508 | F154: 0.986 | G154: 12 | H154: SAMEA115550417
A155: MP_22-86 | B155: NPZ | C155: Spring | D155: 918,009,174 | E155: 917,986,356 | F155: 0.987 | G155: 11.01 | H155: SAMEA115550155
A156: MP_22-84 | B156: NPZ | C156: Spring | D156: 976,417,766 | E156: 976,393,422 | F156: 0.987 | G156: 11.7 | H156: SAMEA115550153
A157: MP_22-72 | B157: NPZ | C157: Spring | D157: 1,040,214,620 | E157: 1,040,188,400 | F157: 0.985 | G157: 12.45 | H157: SAMEA115550140
A158: JLU_22-3 | B158: NPZ | C158: Spring | D158: 1,040,514,920 | E158: 1,040,487,718 | F158: 0.987 | G158: 12.46 | H158: SAMEA115550214
A159: MP_22-85 | B159: NPZ | C159: Spring | D159: 941,235,604 | E159: 941,213,158 | F159: 0.987 | G159: 11.28 | H159: SAMEA115550154
A160: MP_22-87 | B160: NPZ | C160: Spring | D160: 972,107,702 | E160: 972,083,540 | F160: 0.987 | G160: 11.65 | H160: SAMEA115550156
A161: MP_22-88 | B161: NPZ | C161: Spring | D161: 941,014,816 | E161: 940,991,286 | F161: 0.987 | G161: 11.27 | H161: SAMEA115550157
A162: MP_22-154 | B162: NPZ | C162: Spring | D162: 924,335,508 | E162: 924,311,680 | F162: 0.986 | G162: 11.06 | H162: SAMEA115550416
A163: MP_22-102 | B163: NPZ | C163: Spring | D163: 907,338,338 | E163: 907,313,674 | F163: 0.983 | G163: 10.82 | H163: SAMEA115550222
A164: MP_22-81 | B164: NPZ | C164: Spring | D164: 1,040,434,008 | E164: 1,040,406,800 | F164: 0.986 | G164: 12.45 | H164: SAMEA115550150
A165: MP_22-89 | B165: NPZ | C165: Spring | D165: 1,040,067,750 | E165: 1,040,041,476 | F165: 0.987 | G165: 12.45 | H165: SAMEA115550158
A166: JLU_22-2 | B166: NPZ | C166: Spring | D166: 1,040,240,892 | E166: 1,040,213,120 | F166: 0.987 | G166: 12.45 | H166: SAMEA115550213
A167: MP_22-82 | B167: NPZ | C167: Spring | D167: 995,244,512 | E167: 995,218,794 | F167: 0.986 | G167: 11.9 | H167: SAMEA115550151
A168: MP_22-110 | B168: NPZ | C168: Spring | D168: 920,710,826 | E168: 920,688,364 | F168: 0.986 | G168: 11.02 | H168: SAMEA115550231
A169: MP_22-157 | B169: NPZ | C169: Spring | D169: 959,163,516 | E169: 959,139,896 | F169: 0.986 | G169: 11.47 | H169: SAMEA115550419
A170: MP_22-77 | B170: NPZ | C170: Spring | D170: 1,040,069,922 | E170: 1,040,042,786 | F170: 0.986 | G170: 12.42 | H170: SAMEA115550145
A171: MP_22-80 | B171: NPZ | C171: Spring | D171: 1,040,351,218 | E171: 1,040,324,784 | F171: 0.987 | G171: 12.45 | H171: SAMEA115550149
A172: MP_22-76 | B172: NPZ | C172: Spring | D172: 1,040,073,730 | E172: 1,040,047,802 | F172: 0.987 | G172: 12.43 | H172: SAMEA115550144
A173: MP_22-49 | B173: NPZ | C173: Spring | D173: 1,040,429,986 | E173: 1,040,403,502 | F173: 0.986 | G173: 12.43 | H173: SAMEA115550512
A174: JLU_22-1 | B174: NPZ | C174: Spring | D174: 1,040,255,782 | E174: 1,040,228,052 | F174: 0.986 | G174: 12.42 | H174: SAMEA115550212
A175: MP_22-79 | B175: NPZ | C175: Spring | D175: 1,040,181,536 | E175: 1,040,155,214 | F175: 0.987 | G175: 12.43 | H175: SAMEA115550147
A176: MP_22-69 | B176: NPZ | C176: Spring | D176: 1,040,004,542 | E176: 1,039,979,928 | F176: 0.986 | G176: 12.43 | H176: SAMEA115550136
A177: MP_22-71 | B177: NPZ | C177: Spring | D177: 981,201,410 | E177: 981,176,578 | F177: 0.985 | G177: 11.69 | H177: SAMEA115550139
A178: MP_22-135 | B178: NPZ | C178: Spring | D178: 900,110,878 | E178: 900,087,146 | F178: 0.955 | G178: 10.39 | H178: SAMEA115550104
A179: P_22-07 | B179: NPZ | C179: Spring | D179: 921,741,046 | E179: 921,718,820 | F179: 0.982 | G179: 10.93 | H179: SAMEA115550256
A180: MP_22-75 | B180: NPZ | C180: Spring | D180: 1,040,267,736 | E180: 1,040,240,266 | F180: 0.987 | G180: 12.4 | H180: SAMEA115550143
A181: MP_22-47 | B181: NPZ | C181: Spring | D181: 892,131,550 | E181: 892,110,070 | F181: 0.986 | G181: 10.62 | H181: SAMEA115550510
A182: MP_22-74 | B182: NPZ | C182: Spring | D182: 1,040,106,510 | E182: 1,040,079,952 | F182: 0.985 | G182: 12.36 | H182: SAMEA115550142
A183: MP_22-48 | B183: NPZ | C183: Spring | D183: 1,040,039,446 | E183: 1,040,013,100 | F183: 0.986 | G183: 12.36 | H183: SAMEA115550511
A184: MP_22-43 | B184: NPZ | C184: Spring | D184: 1,040,199,706 | E184: 1,040,172,870 | F184: 0.986 | G184: 12.37 | H184: SAMEA115550506
A185: USJ_22-16 | B185: NPZ | C185: Spring | D185: 895,211,536 | E185: 895,188,324 | F185: 0.987 | G185: 10.6 | H185: SAMEA115550121
A186: MP_22-42 | B186: NPZ | C186: Spring | D186: 986,989,740 | E186: 986,964,392 | F186: 0.985 | G186: 11.69 | H186: SAMEA115550505
A187: USJ_22-10 | B187: NPZ | C187: Winter | D187: 906,056,164 | E187: 906,033,514 | F187: 0.987 | G187: 10.72 | H187: SAMEA115550120
A188: USJ_22-15 | B188: NPZ | C188: Spring | D188: 1,040,190,838 | E188: 1,040,164,782 | F188: 0.987 | G188: 12.33 | H188: SAMEA115550480
A189: MP_22-68 | B189: NPZ | C189: Spring | D189: 1,040,280,602 | E189: 1,040,255,070 | F189: 0.986 | G189: 12.32 | H189: SAMEA115550135
A190: MP_22-44 | B190: NPZ | C190: Spring | D190: 1,040,062,092 | E190: 1,040,037,414 | F190: 0.984 | G190: 12.28 | H190: SAMEA115550507
A191: MP_22-45 | B191: NPZ | C191: Spring | D191: 1,038,925,448 | E191: 1,038,900,014 | F191: 0.985 | G191: 12.27 | H191: SAMEA115550508
A192: USJ_22-12 | B192: NPZ | C192: Winter | D192: 941,435,452 | E192: 941,412,996 | F192: 0.986 | G192: 11.13 | H192: SAMEA115550477
A193: USJ_22-13 | B193: NPZ | C193: Spring | D193: 1,036,000,792 | E193: 1,035,973,752 | F193: 0.987 | G193: 12.25 | H193: SAMEA115550478
A194: MP_22-46 | B194: NPZ | C194: Spring | D194: 1,040,136,374 | E194: 1,040,109,942 | F194: 0.985 | G194: 12.28 | H194: SAMEA115550509
A195: MP_22-143 | B195: NPZ | C195: Spring | D195: 936,171,890 | E195: 936,148,644 | F195: 0.986 | G195: 11.04 | H195: SAMEA115550253
A196: USJ_22-11 | B196: NPZ | C196: Winter | D196: 1,040,156,396 | E196: 1,040,129,992 | F196: 0.987 | G196: 12.28 | H196: SAMEA115550476
A197: USJ_22-14 | B197: NPZ | C197: Spring | D197: 1,040,174,078 | E197: 1,040,148,774 | F197: 0.987 | G197: 12.25 | H197: SAMEA115550479
A198: USJ_22-9 | B198: NPZ | C198: Spring | D198: 880,709,958 | E198: 880,688,796 | F198: 0.984 | G198: 10.24 | H198: SAMEA115550092
A199: MP_22-19 | B199: NPZ | C199: Spring | D199: 1,040,173,316 | E199: 1,040,147,228 | F199: 0.987 | G199: 11.53 | H199: SAMEA115550445
A200: MP_22-24 | B200: NPZ | C200: Spring | D200: 1,040,082,198 | E200: 1,040,056,934 | F200: 0.987 | G200: 11.53 | H200: SAMEA115550451
... 208 more rows

Sheet S. Table 12
A1: Supplementary Table 12. Statistics of variants in faba bean.
B2: SNP | C2: INDEL
A3: chr1 | B3: 31,057,052 | C3: 543,817
A4: chr2 | B4: 15,296,170 | C4: 275,280
A5: chr3 | B5: 14,841,283 | C5: 265,393
A6: chr4 | B6: 14,948,844 | C6: 259,561
A7: chr5 | B7: 11,558,029 | C7: 208,034
A8: chr6 | B8: 11,095,836 | C8: 199,307
A9: Total | B9: 98,797,214 | C9: 1,751,392

Sheet S. Table 13
A1: Supplementary Table 13. Genes in XPCLR selection regions
A2: Chromsome | B2: start | C2: end | D2: Ave. score of xpclr | E2: Gene ID | F2: Gene start | G2: Gene end | H2: NCBI NR annoation | I2: Description
A3: chr1 | B3: 59,400,001 | C3: 60,950,000 | D3: 245.93 | E3: Vfaba.Hedin2.R2.1g000195.1 | F3: 59,690,435 | G3: 59,691,094 | H3: XP_050913867.1 uncharacterized protein At5g19025-like [Pisum sativum] &gt;KAI5432087.1 hypothetical protein KIW84_036008 [Pisum sativum] | I3: ribosome biogenesis
A4: chr1 | B4: 59,400,001 | C4: 60,950,000 | D4: 245.93 | E4: Vfaba.Hedin2.R2.1g000197.1 | F4: 60,002,202 | G4: 60,002,986 | H4: AGC78848.1 hypothetical protein [Vicia faba] | I4: NADH-ubiquinone oxidoreductase chain
A5: chr1 | B5: 59,400,001 | C5: 60,950,000 | D5: 245.93 | E5: Vfaba.Hedin2.R2.1g000198.1 | F5: 60,003,115 | G5: 60,003,672 | H5: YP_010235003.1 ribosomal protein L5 [Pisum abyssinicum] &gt;XP_050900750.1 60S ribosomal protein L5, mitochondrial [Pisum sativum] &gt;AGC78847.1 ribosomal protein L5 [Vicia faba] &gt;QTC06369.1 ribosomal protein L5 [Pisum sativum subsp. sativum] &gt;QTC06437.1 ribosomal protein L5 [Pisum sativum subsp. elatius] &gt;KAI5382362.1 60S ribosomal protein L5, variant 2 [Pisum sativum] &gt;QTC06401.1 ribosomal protein L5 [Pisum sativum subsp. sativum] | I5: 60S ribosomal protein L5
A6: chr1 | B6: 59,400,001 | C6: 60,950,000 | D6: 245.93 | E6: Vfaba.Hedin2.R2.1g000199.2 | F6: 60,005,196 | G6: 60,006,440 | H6: YP_009522808.1 apocytochrome b [Styphnolobium japonicum] &gt;AMC32864.1 cytochrome b [Amorpha canescens] &gt;AMC32865.1 cytochrome b [Amorpha fruticosa] &gt;ULT85656.1 apocytochrome b [Pterodon pubescens] &gt;ULT85682.1 apocytochrome b [Pterodon emarginatus] &gt;AXQ37247.1 apocytochrome b [Styphnolobium japonicum] | I6: cytochrome
A7: chr1 | B7: 59,400,001 | C7: 60,950,000 | D7: 245.93 | E7: Vfaba.Hedin2.R2.1g000200.1 | F7: 60,016,878 | G7: 60,017,180 | H7: AGC78958.1 hypothetical protein [Vicia faba] | I7: -
A8: chr1 | B8: 59,400,001 | C8: 60,950,000 | D8: 245.93 | E8: Vfaba.Hedin2.R2.1g000201.1 | F8: 60,017,597 | G8: 60,019,485 | H8: AGC78956.1 hypothetical protein [Vicia faba] | I8: -
A9: chr1 | B9: 59,400,001 | C9: 60,950,000 | D9: 245.93 | E9: Vfaba.Hedin2.R2.1g000202.1 | F9: 60,020,004 | G9: 60,020,408 | H9: AGC78954.1 hypothetical protein [Vicia faba] | I9: Proton-conducting membrane transporter
A10: chr1 | B10: 59,400,001 | C10: 60,950,000 | D10: 245.93 | E10: Vfaba.Hedin2.R2.1g000203.1 | F10: 60,021,626 | G10: 60,022,803 | H10: YP_009237622.1 apocytochrome b [Medicago truncatula] &gt;AMC32883.1 cytochrome b [Medicago sativa] &gt;UKS08110.1 apocytochrome b [Medicago polymorpha] &gt;AML26833.1 apocytochrome b [Medicago truncatula] &gt;UKS08142.1 apocytochrome b [Medicago polymorpha] &gt;UYK52306.1 apocytochrome b [Medicago sativa] | I10: cytochrome
A11: chr1 | B11: 59,400,001 | C11: 60,950,000 | D11: 245.93 | E11: Vfaba.Hedin2.R2.1g000204.1 | F11: 60,428,760 | G11: 60,431,283 | H11: XP_050913868.1 cyclic dof factor 1-like [Pisum sativum] &gt;KAI5432088.1 hypothetical protein KIW84_036009 [Pisum sativum] | I11: Cyclic dof factor
A12: chr1 | B12: 59,400,001 | C12: 60,950,000 | D12: 245.93 | E12: Vfaba.Hedin2.R2.1g000205.1 | F12: 60,581,632 | G12: 60,582,326 | H12: KAI5432090.1 hypothetical protein KIW84_036011 [Pisum sativum] | I12: -
A13: chr1 | B13: 59,400,001 | C13: 60,950,000 | D13: 245.93 | E13: Vfaba.Hedin2.R2.1g000206.1 | F13: 60,593,589 | G13: 60,594,218 | H13: XP_050913870.1 probable calcium-binding protein CML45 [Pisum sativum] &gt;KAI5432092.1 hypothetical protein KIW84_036013 [Pisum sativum] | I13: calcium-binding protein
A14: chr1 | B14: 59,400,001 | C14: 60,950,000 | D14: 245.93 | E14: Vfaba.Hedin2.R2.1g000207.1 | F14: 60,717,536 | G14: 60,718,174 | H14: XP_050913870.1 probable calcium-binding protein CML45 [Pisum sativum] &gt;KAI5432092.1 hypothetical protein KIW84_036013 [Pisum sativum] | I14: calcium-binding protein
A15: chr1 | B15: 59,400,001 | C15: 60,950,000 | D15: 245.93 | E15: Vfaba.Hedin2.R2.1g000208.1 | F15: 60,719,119 | G15: 60,721,224 | H15: XP_050913869.1 pentatricopeptide repeat-containing protein At5g39680 [Pisum sativum] | I15: Pentatricopeptide repeat-containing protein
A16: chr1 | B16: 59,400,001 | C16: 60,950,000 | D16: 245.93 | E16: Vfaba.Hedin2.R2.1g000209.1 | F16: 60,722,505 | G16: 60,725,415 | H16: XP_050913871.1 putative lipoate-protein ligase A isoform X1 [Pisum sativum] &gt;XP_050913872.1 putative lipoate-protein ligase A isoform X1 [Pisum sativum] &gt;KAI5432094.1 hypothetical protein KIW84_036014 [Pisum sativum] | I16: Lipoate-protein ligase
A17: chr1 | B17: 59,400,001 | C17: 60,950,000 | D17: 245.93 | E17: Vfaba.Hedin2.R2.1g000210.1 | F17: 60,726,842 | G17: 60,728,441 | H17: XP_050913875.1 expansin-A10-like [Pisum sativum] &gt;XP_050913876.1 expansin-A10-like [Pisum sativum] | I17: Rare lipoprotein A (RlpA)-like double-psi beta-barrel
A18: chr1 | B18: 103,930,001 | C18: 104,980,000 | D18: 367.29 | E18: Vfaba.Hedin2.R2.1g000345.1 | F18: 104,432,714 | G18: 104,437,106 | H18: XP_050914034.1 truncated transcription factor CAULIFLOWER A-like [Pisum sativum] &gt;KAI5432341.1 hypothetical protein KIW84_036179 [Pisum sativum] | I18: K-box region
A19: chr1 | B19: 103,930,001 | C19: 104,980,000 | D19: 367.29 | E19: Vfaba.Hedin2.R2.1g000346.1 | F19: 104,450,544 | G19: 104,456,292 | H19: XP_050914033.1 RCC1 domain-containing protein RUG3, mitochondrial [Pisum sativum] &gt;KAI5432338.1 hypothetical protein KIW84_036178 [Pisum sativum] | I19: Regulator of chromosome condensation (RCC1) repeat
A20: chr1 | B20: 103,930,001 | C20: 104,980,000 | D20: 367.29 | E20: Vfaba.Hedin2.R2.1g000348.1 | F20: 104,464,896 | G20: 104,467,673 | H20: PNX71286.1 patellin-5, partial [Trifolium pratense] | I20: Patellin-3-like
A21: chr1 | B21: 103,930,001 | C21: 104,980,000 | D21: 367.29 | E21: Vfaba.Hedin2.R2.1g000349.1 | F21: 104,510,170 | G21: 104,512,205 | H21: XP_050914031.1 uncharacterized protein LOC127128698 [Pisum sativum] &gt;KAI5432337.1 hypothetical protein KIW84_036177 [Pisum sativum] | I21: DSBA-like thioredoxin domain
A22: chr1 | B22: 103,930,001 | C22: 104,980,000 | D22: 367.29 | E22: Vfaba.Hedin2.R2.1g000350.1 | F22: 104,513,247 | G22: 104,516,258 | H22: XP_050914030.1 formyltetrahydrofolate deformylase 1, mitochondrial-like [Pisum sativum] &gt;KAI5432335.1 Formyltetrahydrofolate deformylase 1 [Pisum sativum] | I22: Formyltetrahydrofolate
A23: chr1 | B23: 103,930,001 | C23: 104,980,000 | D23: 367.29 | E23: Vfaba.Hedin2.R2.1g000351.1 | F23: 104,690,050 | G23: 104,695,213 | H23: XP_050875495.1 amino-acid permease BAT1 homolog [Pisum sativum] &gt;KAI5404944.1 hypothetical protein KIW84_051921 [Pisum sativum] | I23: Amino-acid permease
A24: chr1 | B24: 103,930,001 | C24: 104,980,000 | D24: 367.29 | E24: Vfaba.Hedin2.R2.1g000347.1 | F24: 104,463,653 | G24: 104,464,526 | H24: XP_050901376.1 uncharacterized protein LOC127108058 [Pisum sativum] &gt;XP_050901377.1 uncharacterized protein LOC127108058 [Pisum sativum] &gt;XP_050901378.1 uncharacterized protein LOC127108058 [Pisum sativum] &gt;XP_050901379.1 uncharacterized protein LOC127108058 [Pisum sativum] &gt;KAI5384708.1 hypothetical protein KIW84_071643 [Pisum sativum] | I24: -
A25: chr1 | B25: 129,270,001 | C25: 130,320,000 | D25: 333.40 | E25: Vfaba.Hedin2.R2.1g000415.1 | F25: 129,419,868 | G25: 129,422,444 | H25: KAI5435668.1 hypothetical protein KIW84_022186 [Pisum sativum] | I25: -
A26: chr1 | B26: 453,170,001 | C26: 454,230,000 | D26: 223.85 | E26: Vfaba.Hedin2.R2.1g001414.2 | F26: 453,332,566 | G26: 453,334,207 | H26: KAI5398604.1 Topless- protein 3 [Pisum sativum] | I26: Topless-related protein
A27: chr1 | B27: 453,170,001 | C27: 454,230,000 | D27: 223.85 | E27: Vfaba.Hedin2.R2.1g001415.1 | F27: 453,334,524 | G27: 453,336,269 | H27: XP_050872675.1 histidinol dehydrogenase, chloroplastic [Pisum sativum] &gt;KAI5446786.1 Histidinol dehydrogenase [Pisum sativum] | I27: Catalyzes the sequential NAD-dependent oxidations of L- histidinol to L-histidinaldehyde and then to L-histidine
A28: chr1 | B28: 453,170,001 | C28: 454,230,000 | D28: 223.85 | E28: Vfaba.Hedin2.R2.1g001416.1 | F28: 453,367,063 | G28: 453,372,419 | H28: XP_050883286.1 uncharacterized protein LOC127086553 [Pisum sativum] &gt;KAI5412323.1 hypothetical protein KIW84_057120 [Pisum sativum] | I28: Smg8_Smg9
A29: chr1 | B29: 453,170,001 | C29: 454,230,000 | D29: 223.85 | E29: Vfaba.Hedin2.R2.1g001417.1 | F29: 453,842,940 | G29: 453,844,194 | H29: XP_050879479.1 transcription factor FER-LIKE IRON DEFICIENCY-INDUCED TRANSCRIPTION FACTOR-like [Pisum sativum] &gt;KAI5412322.1 hypothetical protein KIW84_057119 [Pisum sativum] | I29: Transcription factor FER-LIKE IRON DEFICIENCY-INDUCED TRANSCRIPTION
A30: chr1 | B30: 453,170,001 | C30: 454,230,000 | D30: 223.85 | E30: Vfaba.Hedin2.R2.1g001418.2 | F30: 454,004,901 | G30: 454,007,663 | H30: KAI5412318.1 hypothetical protein KIW84_057118 [Pisum sativum] | I30: Protein UPSTREAM OF FLC isoform X1
A31: chr1 | B31: 713,130,001 | C31: 714,180,000 | D31: 246.86 | E31: Vfaba.Hedin2.R2.1g002150.1 | F31: 713,517,715 | G31: 713,518,467 | H31: XP_050915231.1 dehydration-responsive element-binding protein 1A-like [Pisum sativum] | I31: DNA-binding domain in plant proteins such as APETALA2 and EREBPs
A32: chr1 | B32: 713,130,001 | C32: 714,180,000 | D32: 246.86 | E32: Vfaba.Hedin2.R2.1g002151.2 | F32: 713,528,380 | G32: 713,529,262 | H32: KAG5039698.1 hypothetical protein JHK85_012174 [Glycine max] | I32: -
A33: chr1 | B33: 713,130,001 | C33: 714,180,000 | D33: 246.86 | E33: Vfaba.Hedin2.R2.1g002152.1 | F33: 714,144,249 | G33: 714,144,929 | H33: XP_050915231.1 dehydration-responsive element-binding protein 1A-like [Pisum sativum] | I33: DNA-binding domain in plant proteins such as APETALA2 and EREBPs
A34: chr1 | B34: 713,130,001 | C34: 714,180,000 | D34: 246.86 | E34: Vfaba.Hedin2.R2.1g002153.1 | F34: 714,152,104 | G34: 714,152,784 | H34: XP_050915231.1 dehydration-responsive element-binding protein 1A-like [Pisum sativum] | I34: DNA-binding domain in plant proteins such as APETALA2 and EREBPs
A35: chr1 | B35: 713,130,001 | C35: 714,180,000 | D35: 246.86 | E35: Vfaba.Hedin2.R2.1g002154.1 | F35: 714,153,772 | G35: 714,156,022 | H35: PNY06800.1 hypothetical protein L195_g003278 [Trifolium pratense] | I35: -
A36: chr1 | B36: 787,600,001 | C36: 789,020,000 | D36: 238.11 | E36: Vfaba.Hedin2.R2.1g002340.1 | F36: 787,641,606 | G36: 787,641,923 | H36: GAU26806.1 hypothetical protein TSUD_289110 [Trifolium subterraneum] | I36: VQ motif
A37: chr1 | B37: 787,600,001 | C37: 789,020,000 | D37: 238.11 | E37: Vfaba.Hedin2.R2.1g002342.1 | F37: 788,046,725 | G37: 788,050,162 | H37: CAC24490.1 choline kinase [Pisum sativum] | I37: Choline ethanolamine
A38: chr1 | B38: 787,600,001 | C38: 789,020,000 | D38: 238.11 | E38: Vfaba.Hedin2.R2.1g002343.1 | F38: 788,552,237 | G38: 788,552,599 | H38: XP_050913209.1 uncharacterized protein LOC127127988 [Pisum sativum] | I38: -
A39: chr1 | B39: 787,600,001 | C39: 789,020,000 | D39: 238.11 | E39: Vfaba.Hedin2.R2.1g002344.3 | F39: 788,553,126 | G39: 788,561,071 | H39: XP_050913194.1 DEAD-box ATP-dependent RNA helicase 39 [Pisum sativum] &gt;XP_050913199.1 DEAD-box ATP-dependent RNA helicase 39 [Pisum sativum] &gt;KAI5444097.1 DEAD-box ATP-dependent RNA helicase 39 [Pisum sativum] | I39: DEAD-box ATP-dependent RNA helicase
A40: chr1 | B40: 787,600,001 | C40: 789,020,000 | D40: 238.11 | E40: Vfaba.Hedin2.R2.1g002341.1 | F40: 788,020,780 | G40: 788,024,275 | H40: XP_050913230.1 uncharacterized protein LOC127128011 [Pisum sativum] &gt;KAI5444099.1 hypothetical protein KIW84_012641 [Pisum sativum] | I40: Dehydrogenase reductase SDR family member
A41: chr1 | B41: 864,790,001 | C41: 865,840,000 | D41: 203.47 | E41: Vfaba.Hedin2.R2.1g002589.1 | F41: 864,863,252 | G41: 864,864,112 | H41: XP_050891305.1 G2/mitotic-specific cyclin S13-7-like [Pisum sativum] | I41: Belongs to the cyclin family
A42: chr1 | B42: 864,790,001 | C42: 865,840,000 | D42: 203.47 | E42: Vfaba.Hedin2.R2.1g002591.1 | F42: 865,392,036 | G42: 865,393,790 | H42: XP_050909873.1 pentatricopeptide repeat-containing protein At4g11690 [Pisum sativum] &gt;XP_050909876.1 pentatricopeptide repeat-containing protein At4g11690 [Pisum sativum] &gt;XP_050909882.1 pentatricopeptide repeat-containing protein At4g11690 [Pisum sativum] &gt;KAI5443373.1 hypothetical protein KIW84_012142 [Pisum sativum] | I42: Pentatricopeptide repeat-containing protein
A43: chr1 | B43: 864,790,001 | C43: 865,840,000 | D43: 203.47 | E43: Vfaba.Hedin2.R2.1g002593.1 | F43: 865,618,602 | G43: 865,619,845 | H43: XP_050904230.1 probable inactive receptor-like protein kinase At3g56050 [Pisum sativum] &gt;KAI5434042.1 hypothetical protein KIW84_021052 [Pisum sativum] | I43: receptor-like serine threonine-protein kinase
A44: chr1 | B44: 864,790,001 | C44: 865,840,000 | D44: 203.47 | E44: Vfaba.Hedin2.R2.1g002594.1 | F44: 865,620,295 | G44: 865,621,946 | H44: XP_050875868.1 probable inactive ATP-dependent zinc metalloprotease FTSHI 4, chloroplastic isoform X1 [Pisum sativum] &gt;XP_050875869.1 probable inactive ATP-dependent zinc metalloprotease FTSHI 4, chloroplastic isoform X2 [Pisum sativum] &gt;XP_050875870.1 probable inactive ATP-dependent zinc metalloprotease FTSHI 4, chloroplastic isoform X1 [Pisum sativum] &gt;XP_050875871.1 probable inactive ATP-dependent zinc metalloprotease FTSHI 4, chloroplastic isoform X3 [Pisum sativum] &gt;KAI5405026.1 inactive ATP-dependent zinc metalloprotease FTSHI 4 [Pisum sativum] | I44: ATP-dependent zinc metalloprotease
A45: chr1 | B45: 864,790,001 | C45: 865,840,000 | D45: 203.47 | E45: Vfaba.Hedin2.R2.1g002590.1 | F45: 865,379,282 | G45: 865,389,105 | H45: XP_050909887.1 peptidyl serine alpha-galactosyltransferase-like [Pisum sativum] &gt;KAI5443374.1 Peptidyl serine alpha-galactosyltransferase [Pisum sativum] | I45: -
A46: chr1 | B46: 864,790,001 | C46: 865,840,000 | D46: 203.47 | E46: Vfaba.Hedin2.R2.1g002592.1 | F46: 865,401,282 | G46: 865,405,841 | H46: - | I46: Targeting protein for Xklp2 (TPX2)
A47: chr1 | B47: 1,257,370,001 | C47: 1,258,550,000 | D47: 257.89 | E47: Vfaba.Hedin2.R2.1g003695.2 | F47: 1,258,161,741 | G47: 1,258,165,229 | H47: XP_050896069.1 NF-X1-type zinc finger protein NFXL1-like [Pisum sativum] | I47: NF-X1-type zinc finger protein
A48: chr1 | B48: 1,420,180,001 | C48: 1,421,240,000 | D48: 261.27 | E48: Vfaba.Hedin2.R2.1g003958.1 | F48: 1,420,672,002 | G48: 1,420,672,451 | H48: XP_050904632.1 uncharacterized protein LOC127118439 [Pisum sativum] &gt;KAI5440480.1 hypothetical protein KIW84_010091 [Pisum sativum] | I48: -
A49: chr1 | B49: 1,451,880,001 | C49: 1,452,930,000 | D49: 211.58 | E49: Vfaba.Hedin2.R2.1g004027.1 | F49: 1,452,182,416 | G49: 1,452,183,644 | H49: - | I49: -
A50: chr1 | B50: 1,451,880,001 | C50: 1,452,930,000 | D50: 211.58 | E50: Vfaba.Hedin2.R2.1g004028.1 | F50: 1,452,536,727 | G50: 1,452,537,734 | H50: QWX88133.1 apocytochrome b [Indigofera tinctoria] | I50: cytochrome
A51: chr1 | B51: 1,451,880,001 | C51: 1,452,930,000 | D51: 211.58 | E51: Vfaba.Hedin2.R2.1g004029.1 | F51: 1,452,542,239 | G51: 1,452,543,896 | H51: RHN73589.1 putative NADH:ubiquinone reductase (H(+)-translocating) [Medicago truncatula] | I51: NADH dehydrogenase (quinone) activity
A52: chr1 | B52: 1,451,880,001 | C52: 1,452,930,000 | D52: 211.58 | E52: Vfaba.Hedin2.R2.1g004030.2 | F52: 1,452,545,205 | G52: 1,452,545,765 | H52: AGC78839.1 hypothetical protein [Vicia faba] | I52: -
A53: chr1 | B53: 1,451,880,001 | C53: 1,452,930,000 | D53: 211.58 | E53: Vfaba.Hedin2.R2.1g004032.1 | F53: 1,452,561,325 | G53: 1,452,562,062 | H53: AGC78848.1 hypothetical protein [Vicia faba] | I53: Belongs to the complex I subunit 6 family
A54: chr1 | B54: 1,451,880,001 | C54: 1,452,930,000 | D54: 211.58 | E54: Vfaba.Hedin2.R2.1g004031.1 | F54: 1,452,556,164 | G54: 1,452,556,463 | H54: YP_009532828.1 NADH dehydrogenase subunit 1 [Glycine soja] &gt;YP_010235579.1 NADH dehydrogenase subunit 1 [Ormosia boluoensis] &gt;XP_015947573.1 uncharacterized protein LOC107472573 [Arachis duranensis] &gt;XP_020960292.1 uncharacterized protein LOC107647095 [Arachis ipaensis] &gt;XP_027912245.1 uncharacterized protein LOC114171348 [Vigna unguiculata] &gt;XP_028802056.1 uncharacterized protein LOC114757221 [Prosopis alba] &gt;XP_029152786.1 uncharacterized protein LOC114927343 [Arachis hypogaea] &gt;KAE9584302.1 putative NADH:ubiquinone reductase (H(+)-translocating) [Lupinus albus] &gt;QUO98217.1 NADH dehydrogenase subunit 1 [Dalbergia odorifera] &gt;ULT85668.1 NADH dehydrogenase subunit 1 [Pterodon pubescens] &gt;ULT85701.1 NADH dehydrogenase subunit 1 [Pterodon emarginatus] &gt;AYD72976.1 NADH dehydrogenase subunit 1 [Glycine soja] | I54: NADH dehydrogenase
A55: chr1 | B55: 1,456,420,001 | C55: 1,457,470,000 | D55: 212.17 | E55: Vfaba.Hedin2.R2.1g004043.1 | F55: 1,456,932,502 | G55: 1,456,934,306 | H55: XP_050902880.1 zinc finger protein CONSTANS-LIKE 4 [Pisum sativum] | I55: ZINC FINGER protein
A56: chr1 | B56: 1,456,420,001 | C56: 1,457,470,000 | D56: 212.17 | E56: Vfaba.Hedin2.R2.1g004044.2 | F56: 1,457,230,616 | G56: 1,457,233,501 | H56: XP_050888383.1 filament-like plant protein 4 [Pisum sativum] &gt;XP_050888384.1 filament-like plant protein 4 [Pisum sativum] &gt;KAI5392817.1 hypothetical protein KIW84_060105 [Pisum sativum] | I56: Filament-like plant protein
A57: chr1 | B57: 1,477,920,001 | C57: 1,478,980,000 | D57: 216.56 | E57: Vfaba.Hedin2.R2.1g004107.1 | F57: 1,478,627,279 | G57: 1,478,631,783 | H57: XP_050909242.1 NAC domain-containing protein 21/22-like [Pisum sativum] &gt;KAI5440562.1 hypothetical protein KIW84_010155 [Pisum sativum] | I57: NAC domain-containing protein 21
A58: chr1 | B58: 2,849,780,001 | C58: 2,850,830,000 | D58: 230.05 | E58: Vfaba.Hedin2.R2.1g008372.1 | F58: 2,849,870,266 | G58: 2,849,871,090 | H58: PNX92753.1 DNA mismatch repair protein msh4-like [Trifolium pratense] | I58: DNA mismatch repair protein
A59: chr1 | B59: 2,849,780,001 | C59: 2,850,830,000 | D59: 230.05 | E59: Vfaba.Hedin2.R2.1g008374.1 | F59: 2,850,319,737 | G59: 2,850,322,389 | H59: XP_050907035.1 uncharacterized protein LOC127120598 [Pisum sativum] &gt;XP_050907036.1 uncharacterized protein LOC127120598 [Pisum sativum] &gt;KAI5439680.1 hypothetical protein KIW84_025166 [Pisum sativum] | I59: -
A60: chr1 | B60: 2,849,780,001 | C60: 2,850,830,000 | D60: 230.05 | E60: Vfaba.Hedin2.R2.1g008375.1 | F60: 2,850,491,416 | G60: 2,850,496,411 | H60: XP_050907037.1 phosphatidylserine decarboxylase proenzyme 1, mitochondrial [Pisum sativum] &gt;KAI5439681.1 phosphatidylserine decarboxylase 1 [Pisum sativum] | I60: Catalyzes the formation of phosphatidylethanolamine (PtdEtn) from phosphatidylserine (PtdSer). Plays a central role in phospholipid metabolism and in the interorganelle trafficking of phosphatidylserine
A61: chr1 | B61: 2,849,780,001 | C61: 2,850,830,000 | D61: 230.05 | E61: Vfaba.Hedin2.R2.1g008376.1 | F61: 2,850,561,114 | G61: 2,850,562,882 | H61: XP_050907038.1 VAN3-binding protein [Pisum sativum] &gt;KAI5439683.1 hypothetical protein KIW84_025168 [Pisum sativum] | I61: Auxin canalisation
A62: chr1 | B62: 2,849,780,001 | C62: 2,850,830,000 | D62: 230.05 | E62: Vfaba.Hedin2.R2.1g008377.1 | F62: 2,850,563,057 | G62: 2,850,564,785 | H62: XP_050907040.1 formyltetrahydrofolate deformylase 1, mitochondrial-like [Pisum sativum] &gt;KAI5439685.1 Formyltetrahydrofolate deformylase 1 [Pisum sativum] | I62: Formyltetrahydrofolate
A63: chr1 | B63: 2,849,780,001 | C63: 2,850,830,000 | D63: 230.05 | E63: Vfaba.Hedin2.R2.1g008373.1 | F63: 2,849,878,798 | G63: 2,849,887,160 | H63: XP_050907031.1 DNA mismatch repair protein MSH4 isoform X1 [Pisum sativum] &gt;KAI5439674.1 MutS protein msh4 [Pisum sativum] | I63: DNA mismatch repair protein
A64: chr1 | B64: 3,118,350,001 | C64: 3,119,400,000 | D64: 214.01 | E64: Vfaba.Hedin2.R2.1g009377.1 | F64: 3,118,609,005 | G64: 3,118,609,386 | H64: XP_045793635.1 multiple RNA-binding domain-containing protein 1 [Trifolium pratense] | I64: Multiple RNA-binding domain-containing protein
A65: chr1 | B65: 3,118,350,001 | C65: 3,119,400,000 | D65: 214.01 | E65: Vfaba.Hedin2.R2.1g009378.1 | F65: 3,118,609,931 | G65: 3,118,611,594 | H65: XP_050920625.1 uncharacterized protein LOC127138258 [Pisum sativum] &gt;KAI5446288.1 hypothetical protein KIW84_014215 [Pisum sativum] | I65: YqaJ-like viral recombinase domain
A66: chr1 | B66: 3,118,350,001 | C66: 3,119,400,000 | D66: 214.01 | E66: Vfaba.Hedin2.R2.1g009379.2 | F66: 3,119,110,768 | G66: 3,119,113,791 | H66: XP_050920637.1 galactan beta-1,4-galactosyltransferase GALS3-like [Pisum sativum] &gt;KAI5446294.1 hypothetical protein KIW84_014220 [Pisum sativum] | I66: Glycosyl transferase family 2
A67: chr1 | B67: 3,398,390,001 | C67: 3,399,440,000 | D67: 276.33 | E67: Vfaba.Hedin2.R2.1g010510.1 | F67: 3,398,589,168 | G67: 3,398,590,931 | H67: KAI5447840.1 hypothetical protein KIW84_015333, partial [Pisum sativum] | I67: Transferase family
A68: chr1 | B68: 3,398,390,001 | C68: 3,399,440,000 | D68: 276.33 | E68: Vfaba.Hedin2.R2.1g010511.1 | F68: 3,398,710,865 | G68: 3,398,712,664 | H68: XP_050877396.1 magnesium-chelatase subunit ChlI, chloroplastic [Pisum sativum] &gt;AET86637.1 chloroplast magnesium chelatase I subunit [Pisum sativum] &gt;KAI5447842.1 hypothetical protein KIW84_015334 [Pisum sativum] | I68: Involved in chlorophyll biosynthesis. Catalyzes the insertion of magnesium ion into protoporphyrin IX to yield Mg- protoporphyrin IX
A69: chr1 | B69: 3,398,390,001 | C69: 3,399,440,000 | D69: 276.33 | E69: Vfaba.Hedin2.R2.1g010512.3 | F69: 3,398,731,783 | G69: 3,398,733,275 | H69: XP_050877453.1 nudix hydrolase 15, mitochondrial-like [Pisum sativum] | I69: Nudix hydrolase
A70: chr1 | B70: 3,398,390,001 | C70: 3,399,440,000 | D70: 276.33 | E70: Vfaba.Hedin2.R2.1g010513.1 | F70: 3,399,107,107 | G70: 3,399,108,747 | H70: KEH17387.1 pentatricopeptide (PPR) repeat protein [Medicago truncatula] | I70: Pentatricopeptide repeat-containing protein
A71: chr1 | B71: 3,398,390,001 | C71: 3,399,440,000 | D71: 276.33 | E71: Vfaba.Hedin2.R2.1g010514.1 | F71: 3,399,149,880 | G71: 3,399,152,041 | H71: XP_050877466.1 protein IQ-DOMAIN 9 isoform X2 [Pisum sativum] &gt;KAI5447859.1 hypothetical protein KIW84_015344 [Pisum sativum] | I71: iq-domain
A72: chr1 | B72: 3,408,100,001 | C72: 3,409,150,000 | D72: 255.43 | E72: Vfaba.Hedin2.R2.1g010562.2 | F72: 3,408,193,834 | G72: 3,408,195,831 | H72: GAU23584.1 hypothetical protein TSUD_385720 [Trifolium subterraneum] | I72: disease resistance
A73: chr1 | B73: 3,408,100,001 | C73: 3,409,150,000 | D73: 255.43 | E73: Vfaba.Hedin2.R2.1g010563.1 | F73: 3,408,195,909 | G73: 3,408,196,697 | H73: KAI5447897.1 hypothetical protein KIW84_015372, partial [Pisum sativum] | I73: disease resistance
A74: chr1 | B74: 3,408,100,001 | C74: 3,409,150,000 | D74: 255.43 | E74: Vfaba.Hedin2.R2.1g010565.1 | F74: 3,408,399,154 | G74: 3,408,400,189 | H74: XP_012574020.2 LOW QUALITY PROTEIN: putative disease resistance RPP13-like protein 1 [Cicer arietinum] | I74: disease resistance
A75: chr1 | B75: 3,408,100,001 | C75: 3,409,150,000 | D75: 255.43 | E75: Vfaba.Hedin2.R2.1g010566.2 | F75: 3,408,567,219 | G75: 3,408,570,953 | H75: XP_050877675.1 putative disease resistance RPP13-like protein 1 isoform X2 [Pisum sativum] &gt;XP_050877700.1 putative disease resistance RPP13-like protein 1 isoform X2 [Pisum sativum] | I75: disease resistance
A76: chr1 | B76: 3,408,100,001 | C76: 3,409,150,000 | D76: 255.43 | E76: Vfaba.Hedin2.R2.1g010568.2 | F76: 3,408,882,164 | G76: 3,408,883,348 | H76: XP_050877848.1 serine/threonine-protein kinase-like protein ACR4 [Pisum sativum] &gt;KAI5447922.1 hypothetical protein KIW84_015388 [Pisum sativum] | I76: Serine threonine-protein kinase-like protein
A77: chr1 | B77: 3,408,100,001 | C77: 3,409,150,000 | D77: 255.43 | E77: Vfaba.Hedin2.R2.1g010569.3 | F77: 3,408,927,423 | G77: 3,408,929,373 | H77: XP_050877852.1 uncharacterized protein LOC127081659 [Pisum sativum] &gt;KAI5447924.1 hypothetical protein KIW84_015389 [Pisum sativum] | I77: tRNA (adenine(58)-N(1))-methyltransferase
A78: chr1 | B78: 3,408,100,001 | C78: 3,409,150,000 | D78: 255.43 | E78: Vfaba.Hedin2.R2.1g010570.1 | F78: 3,408,998,745 | G78: 3,409,001,889 | H78: XP_050877857.1 receptor-like protein kinase HSL1 [Pisum sativum] &gt;KAI5447925.1 hypothetical protein KIW84_015390 [Pisum sativum] | I78: Belongs to the protein kinase superfamily. Ser Thr protein kinase family
A79: chr1 | B79: 3,408,100,001 | C79: 3,409,150,000 | D79: 255.43 | E79: Vfaba.Hedin2.R2.1g010564.1 | F79: 3,408,247,645 | G79: 3,408,248,889 | H79: KAI5447899.1 hypothetical protein KIW84_015374 [Pisum sativum] | I79: disease resistance
A80: chr1 | B80: 3,408,100,001 | C80: 3,409,150,000 | D80: 255.43 | E80: Vfaba.Hedin2.R2.1g010567.1 | F80: 3,408,587,405 | G80: 3,408,597,249 | H80: XP_050877833.1 NAC domain-containing protein 73-like [Pisum sativum] &gt;KAI5447920.1 hypothetical protein KIW84_015386 [Pisum sativum] | I80: NAC domain-containing protein
A81: chr1 | B81: 3,418,020,001 | C81: 3,419,100,000 | D81: 336.98 | E81: Vfaba.Hedin2.R2.1g010595.1 | F81: 3,418,030,504 | G81: 3,418,031,835 | H81: XP_050901380.1 guanosine nucleotide diphosphate dissociation inhibitor 1 [Pisum sativum] &gt;KAI5384709.1 Rab GDP dissociation inhibitor alpha [Pisum sativum] | I81: Guanosine nucleotide diphosphate dissociation inhibitor
A82: chr1 | B82: 3,418,020,001 | C82: 3,419,100,000 | D82: 336.98 | E82: Vfaba.Hedin2.R2.1g010596.1 | F82: 3,418,135,034 | G82: 3,418,135,588 | H82: XP_050878175.1 late embryogenesis abundant protein At3g53040-like [Pisum sativum] &gt;KAI5447978.1 hypothetical protein KIW84_015423 [Pisum sativum] | I82: -
A83: chr1 | B83: 3,418,020,001 | C83: 3,419,100,000 | D83: 336.98 | E83: Vfaba.Hedin2.R2.1g010597.1 | F83: 3,418,331,043 | G83: 3,418,331,705 | H83: XP_050878182.1 late embryogenesis abundant protein D-7-like [Pisum sativum] &gt;KAI5447980.1 hypothetical protein KIW84_015424 [Pisum sativum] | I83: -
A84: chr1 | B84: 3,418,020,001 | C84: 3,419,100,000 | D84: 336.98 | E84: Vfaba.Hedin2.R2.1g010598.1 | F84: 3,418,377,898 | G84: 3,418,378,348 | H84: KAI5395618.1 hypothetical protein KIW84_061966 [Pisum sativum] | I84: -
A85: chr1 | B85: 3,418,020,001 | C85: 3,419,100,000 | D85: 336.98 | E85: Vfaba.Hedin2.R2.1g010599.1 | F85: 3,418,380,486 | G85: 3,418,381,778 | H85: XP_050878187.1 embryonic protein DC-8-like [Pisum sativum] | I85: late embryogenesis abundant protein
A86: chr1 | B86: 3,418,020,001 | C86: 3,419,100,000 | D86: 336.98 | E86: Vfaba.Hedin2.R2.1g010601.2 | F86: 3,418,643,750 | G86: 3,418,650,156 | H86: XP_050878222.1 transcriptional corepressor LEUNIG-like isoform X6 [Pisum sativum] | I86: transcriptional co-repressor
A87: chr1 | B87: 3,418,020,001 | C87: 3,419,100,000 | D87: 336.98 | E87: Vfaba.Hedin2.R2.1g010600.1 | F87: 3,418,405,984 | G87: 3,418,407,939 | H87: XP_050878193.1 40S ribosomal protein S6 [Pisum sativum] &gt;KAI5447985.1 40S ribosomal protein S6-B, variant 3 [Pisum sativum] | I87: Belongs to the eukaryotic ribosomal protein eS6 family
A88: chr1 | B88: 3,450,160,001 | C88: 3,451,320,000 | D88: 285.38 | E88: Vfaba.Hedin2.R2.1g010720.1 | F88: 3,450,653,651 | G88: 3,450,656,998 | H88: XP_050879127.1 uncharacterized protein LOC127082938 [Pisum sativum] &gt;KAI5448154.1 hypothetical protein KIW84_015544 [Pisum sativum] | I88: Serine threonine-protein kinase
A89: chr1 | B89: 3,450,160,001 | C89: 3,451,320,000 | D89: 285.38 | E89: Vfaba.Hedin2.R2.1g010719.1 | F89: 3,450,634,162 | G89: 3,450,639,608 | H89: XP_050879116.1 lysine-specific demethylase JMJ28-like [Pisum sativum] &gt;KAI5448156.1 hypothetical protein KIW84_015545 [Pisum sativum] | I89: A domain family that is part of the cupin metalloenzyme superfamily.
A90: chr1 | B90: 3,470,980,001 | C90: 3,474,080,000 | D90: 265.95 | E90: Vfaba.Hedin2.R2.1g010848.1 | F90: 3,471,167,659 | G90: 3,471,170,223 | H90: XP_050918278.1 uncharacterized protein LOC127135669 [Pisum sativum] &gt;KAI5422477.1 hypothetical protein KIW84_045789 [Pisum sativum] | I90: DNA recombination
A91: chr1 | B91: 3,470,980,001 | C91: 3,474,080,000 | D91: 265.95 | E91: Vfaba.Hedin2.R2.1g010849.2 | F91: 3,471,192,918 | G91: 3,471,194,150 | H91: XP_050880652.1 E3 ubiquitin-protein ligase RING1-like [Pisum sativum] &gt;KAI5448350.1 hypothetical protein KIW84_015683 [Pisum sativum] | I91: RING-H2 finger protein
A92: chr1 | B92: 3,470,980,001 | C92: 3,474,080,000 | D92: 265.95 | E92: Vfaba.Hedin2.R2.1g010850.1 | F92: 3,471,198,259 | G92: 3,471,199,479 | H92: XP_050880662.1 E3 ubiquitin-protein ligase RING1-like [Pisum sativum] &gt;KAI5448351.1 hypothetical protein KIW84_015684 [Pisum sativum] | I92: RING-H2 finger protein
A93: chr1 | B93: 3,470,980,001 | C93: 3,474,080,000 | D93: 265.95 | E93: Vfaba.Hedin2.R2.1g010851.2 | F93: 3,471,217,622 | G93: 3,471,221,908 | H93: XP_050880682.1 uncharacterized protein LOC127084303 [Pisum sativum] &gt;KAI5448352.1 hypothetical protein KIW84_015685 [Pisum sativum] | I93: Ubiquinol-cytochrome-c reductase complex assembly factor
A94: chr1 | B94: 3,470,980,001 | C94: 3,474,080,000 | D94: 265.95 | E94: Vfaba.Hedin2.R2.1g010852.3 | F94: 3,471,224,052 | G94: 3,471,226,583 | H94: XP_050880671.1 root phototropism protein 3-like [Pisum sativum] &gt;KAI5448353.1 26S proteasome regulatory subunit 6B [Pisum sativum] | I94: Belongs to the NPH3 family
A95: chr1 | B95: 3,470,980,001 | C95: 3,474,080,000 | D95: 265.95 | E95: Vfaba.Hedin2.R2.1g010853.1 | F95: 3,471,537,208 | G95: 3,471,539,568 | H95: XP_050880693.1 transcription factor bHLH143-like [Pisum sativum] &gt;KAI5448355.1 hypothetical protein KIW84_015687 [Pisum sativum] | I95: Transcription factor bHLH143-like
A96: chr1 | B96: 3,470,980,001 | C96: 3,474,080,000 | D96: 265.95 | E96: Vfaba.Hedin2.R2.1g010856.1 | F96: 3,472,177,554 | G96: 3,472,178,183 | H96: XP_050880715.1 uncharacterized protein LOC127084330 [Pisum sativum] &gt;KAI5448361.1 hypothetical protein KIW84_015692 [Pisum sativum] | I96: -
A97: chr1 | B97: 3,470,980,001 | C97: 3,474,080,000 | D97: 265.95 | E97: Vfaba.Hedin2.R2.1g010857.1 | F97: 3,472,179,380 | G97: 3,472,179,727 | H97: XP_050880741.1 protein PELPK2-like [Pisum sativum] &gt;KAI5448362.1 hypothetical protein KIW84_015693 [Pisum sativum] | I97: RNA-binding protein 12-like
A98: chr1 | B98: 3,470,980,001 | C98: 3,474,080,000 | D98: 265.95 | E98: Vfaba.Hedin2.R2.1g010860.1 | F98: 3,472,278,810 | G98: 3,472,281,280 | H98: XP_050880751.1 beta carbonic anhydrase 5, chloroplastic-like [Pisum sativum] &gt;KAI5448364.1 hypothetical protein KIW84_015695 [Pisum sativum] | I98: Reversible hydration of carbon dioxide
A99: chr1 | B99: 3,470,980,001 | C99: 3,474,080,000 | D99: 265.95 | E99: Vfaba.Hedin2.R2.1g010861.1 | F99: 3,472,416,285 | G99: 3,472,418,059 | H99: KAI5448366.1 hypothetical protein KIW84_015696 [Pisum sativum] | I99: DnaJ molecular chaperone homology domain
A100: chr1 | B100: 3,470,980,001 | C100: 3,474,080,000 | D100: 265.95 | E100: Vfaba.Hedin2.R2.1g010862.2 | F100: 3,472,460,253 | G100: 3,472,463,974 | H100: XP_050910849.1 dolichyl-diphosphooligosaccharide--protein glycosyltransferase subunit 2-like [Pisum sativum] &gt;KAI5426425.1 hypothetical protein KIW84_032010 [Pisum sativum] | I100: Dolichyl-diphosphooligosaccharide--protein glycosyltransferase subunit
A101: chr1 | B101: 3,470,980,001 | C101: 3,474,080,000 | D101: 265.95 | E101: Vfaba.Hedin2.R2.1g010863.1 | F101: 3,472,874,593 | G101: 3,472,876,433 | H101: KAI5446955.1 hypothetical protein KIW84_014703 [Pisum sativum] | I101: -
A102: chr1 | B102: 3,470,980,001 | C102: 3,474,080,000 | D102: 265.95 | E102: Vfaba.Hedin2.R2.1g010866.1 | F102: 3,473,564,842 | G102: 3,473,565,310 | H102: KAI5441161.1 hypothetical protein KIW84_010573 [Pisum sativum] | I102: GRF zinc finger
A103: chr1 | B103: 3,470,980,001 | C103: 3,474,080,000 | D103: 265.95 | E103: Vfaba.Hedin2.R2.1g010867.1 | F103: 3,473,629,541 | G103: 3,473,631,880 | H103: XP_050880829.1 bifunctional riboflavin biosynthesis protein RIBA 1, chloroplastic-like [Pisum sativum] &gt;KAI5448380.1 Bifunctional riboflavin biosynthesis protein RIBA 1 [Pisum sativum] | I103: riboflavin biosynthesis protein
A104: chr1 | B104: 3,470,980,001 | C104: 3,474,080,000 | D104: 265.95 | E104: Vfaba.Hedin2.R2.1g010868.1 | F104: 3,473,905,286 | G104: 3,473,907,625 | H104: XP_050880829.1 bifunctional riboflavin biosynthesis protein RIBA 1, chloroplastic-like [Pisum sativum] &gt;KAI5448380.1 Bifunctional riboflavin biosynthesis protein RIBA 1 [Pisum sativum] | I104: riboflavin biosynthesis protein
A105: chr1 | B105: 3,470,980,001 | C105: 3,474,080,000 | D105: 265.95 | E105: Vfaba.Hedin2.R2.1g010855.1 | F105: 3,472,162,166 | G105: 3,472,162,882 | H105: O04287.1 RecName: Full=Peptidyl-prolyl cis-trans isomerase FKBP12; Short=PPIase FKBP12; AltName: Full=12 kDa FK506-binding protein; Short=12 kDa FKBP; AltName: Full=FK506-binding protein 12; Short=VfFKBP12; AltName: Full=FKBP-12; AltName: Full=Immunophilin FKBP12; AltName: Full=Rotamase [Vicia faba] &gt;AAB57848.1 immunophilin [Vicia faba] | I105: Peptidyl-prolyl cis-trans isomerase
A106: chr1 | B106: 3,470,980,001 | C106: 3,474,080,000 | D106: 265.95 | E106: Vfaba.Hedin2.R2.1g010858.1 | F106: 3,472,244,015 | G106: 3,472,247,171 | H106: XP_050920636.1 uncharacterized protein LOC127138269 [Pisum sativum] &gt;KAI5414402.1 hypothetical protein KIW84_040053 [Pisum sativum] | I106: Serine aminopeptidase, S33
A107: chr1 | B107: 3,470,980,001 | C107: 3,474,080,000 | D107: 265.95 | E107: Vfaba.Hedin2.R2.1g010864.2 | F107: 3,472,877,140 | G107: 3,472,886,800 | H107: XP_050880774.1 probable ubiquitin-like-specific protease 2B isoform X1 [Pisum sativum] &gt;KAI5448369.1 hypothetical protein KIW84_015697 [Pisum sativum] | I107: ubiquitin-like-specific protease
A108: chr1 | B108: 3,480,880,001 | C108: 3,482,010,000 | D108: 331.14 | E108: Vfaba.Hedin2.R2.1g010908.2 | F108: 3,481,246,550 | G108: 3,481,247,598 | H108: XP_050881259.1 chlorophyll a-b binding protein CP24 10A, chloroplastic [Pisum sativum] &gt;KAI5448445.1 Chlorophyll a-b binding protein CP24 10A [Pisum sativum] | I108: The light-harvesting complex (LHC) functions as a light receptor, it captures and delivers excitation energy to photosystems with which it is closely associated
A109: chr1 | B109: 3,480,880,001 | C109: 3,482,010,000 | D109: 331.14 | E109: Vfaba.Hedin2.R2.1g010909.2 | F109: 3,481,408,574 | G109: 3,481,413,971 | H109: RHN71635.1 putative protein-serine/threonine phosphatase [Medicago truncatula] | I109: phosphatase 2c
A110: chr1 | B110: 3,480,880,001 | C110: 3,482,010,000 | D110: 331.14 | E110: Vfaba.Hedin2.R2.1g010910.1 | F110: 3,481,539,516 | G110: 3,481,540,631 | H110: XP_050881274.1 non-specific lipid transfer protein GPI-anchored 31-like [Pisum sativum] &gt;KAI5448448.1 hypothetical protein KIW84_015746 [Pisum sativum] | I110: Belongs to the plant LTP family
A111: chr1 | B111: 3,480,880,001 | C111: 3,482,010,000 | D111: 331.14 | E111: Vfaba.Hedin2.R2.1g010911.1 | F111: 3,481,543,854 | G111: 3,481,544,831 | H111: XP_048624405.1 glutathione S-transferase T3-like [Brassica napus] | I111: -
A112: chr1 | B112: 3,480,880,001 | C112: 3,482,010,000 | D112: 331.14 | E112: Vfaba.Hedin2.R2.1g010912.1 | F112: 3,481,600,117 | G112: 3,481,604,159 | H112: XP_050918414.1 uncharacterized protein LOC127135822 [Pisum sativum] | I112: -
A113: chr2 | B113: 978,560,001 | C113: 979,760,000 | D113: 230.34 | E113: Vfaba.Hedin2.R2.2g014529.1 | F113: 978,964,417 | G113: 978,966,001 | H113: - | I113: -
A114: chr2 | B114: 978,560,001 | C114: 979,760,000 | D114: 230.34 | E114: Vfaba.Hedin2.R2.2g014530.2 | F114: 979,021,555 | G114: 979,025,212 | H114: XP_050875297.1 phosphatidylinositol 4-phosphate 5-kinase 1-like [Pisum sativum] &gt;KAI5404864.1 Phosphatidylinositol 4-phosphate 5-kinase 1 [Pisum sativum] | I114: phosphatidylinositol 4-phosphate 5-kinase
A115: chr2 | B115: 978,560,001 | C115: 979,760,000 | D115: 230.34 | E115: Vfaba.Hedin2.R2.2g014533.1 | F115: 979,573,229 | G115: 979,576,646 | H115: XP_050875291.1 ferrochelatase-2, chloroplastic-like [Pisum sativum] &gt;KAI5404858.1 Ferrochelatase-2 [Pisum sativum] | I115: Catalyzes the ferrous insertion into protoporphyrin IX
A116: chr2 | B116: 978,560,001 | C116: 979,760,000 | D116: 230.34 | E116: Vfaba.Hedin2.R2.2g014534.1 | F116: 979,597,624 | G116: 979,598,247 | H116: XP_050888580.1 agamous-like MADS-box protein AGL62 [Pisum sativum] | I116: Agamous-like MADS-box protein
A117: chr2 | B117: 978,560,001 | C117: 979,760,000 | D117: 230.34 | E117: Vfaba.Hedin2.R2.2g014531.2 | F117: 979,319,246 | G117: 979,322,732 | H117: KAI5404861.1 Oxysterol-binding protein- protein 1C [Pisum sativum] | I117: Oxysterol-binding protein-related protein
A118: chr2 | B118: 978,560,001 | C118: 979,760,000 | D118: 230.34 | E118: Vfaba.Hedin2.R2.2g014532.1 | F118: 979,561,363 | G118: 979,566,604 | H118: - | I118: Target of Myb protein
A119: chr2 | B119: 1,196,620,001 | C119: 1,197,840,000 | D119: 298.87 | E119: Vfaba.Hedin2.R2.2g015203.1 | F119: 1,197,369,617 | G119: 1,197,372,009 | H119: XP_050884642.1 homeobox protein knotted-1-like 3 isoform X5 [Pisum sativum] &gt;KAI5403799.1 hypothetical protein KIW84_051088 [Pisum sativum] | I119: Homeobox protein knotted-1-like
A120: chr2 | B120: 1,197,860,001 | C120: 1,199,810,000 | D120: 250.36 | E120: Vfaba.Hedin2.R2.2g015205.3 | F120: 1,198,076,493 | G120: 1,198,077,149 | H120: XP_050884634.1 flotillin-like protein 1 [Pisum sativum] &gt;KAI5403790.1 Flotillin-like protein 1 [Pisum sativum] | I120: Flotillin-like protein
A121: chr2 | B121: 1,197,860,001 | C121: 1,199,810,000 | D121: 250.36 | E121: Vfaba.Hedin2.R2.2g015208.1 | F121: 1,199,517,992 | G121: 1,199,518,890 | H121: XP_050884634.1 flotillin-like protein 1 [Pisum sativum] &gt;KAI5403790.1 Flotillin-like protein 1 [Pisum sativum] | I121: Flotillin-like protein
A122: chr2 | B122: 1,197,860,001 | C122: 1,199,810,000 | D122: 250.36 | E122: Vfaba.Hedin2.R2.2g015209.2 | F122: 1,199,541,486 | G122: 1,199,543,107 | H122: KAI5403792.1 Flotillin-like protein 4, partial [Pisum sativum] | I122: Flotillin-like protein
A123: chr2 | B123: 1,197,860,001 | C123: 1,199,810,000 | D123: 250.36 | E123: Vfaba.Hedin2.R2.2g015211.1 | F123: 1,199,788,282 | G123: 1,199,788,665 | H123: KAI5393269.1 hypothetical protein KIW84_060402 [Pisum sativum] | I123: QWRF motif-containing protein
A124: chr2 | B124: 1,197,860,001 | C124: 1,199,810,000 | D124: 250.36 | E124: Vfaba.Hedin2.R2.2g015204.1 | F124: 1,198,056,547 | G124: 1,198,075,047 | H124: XP_050884630.1 uncharacterized protein LOC127087742 [Pisum sativum] &gt;XP_050884632.1 uncharacterized protein LOC127087742 [Pisum sativum] &gt;KAI5403795.1 hypothetical protein KIW84_051087 [Pisum sativum] | I124: Neurochondrin
A125: chr2 | B125: 1,197,860,001 | C125: 1,199,810,000 | D125: 250.36 | E125: Vfaba.Hedin2.R2.2g015210.1 | F125: 1,199,652,243 | G125: 1,199,654,885 | H125: XP_050884628.1 uncharacterized protein LOC127087740 [Pisum sativum] &gt;KAI5403788.1 hypothetical protein KIW84_051081 [Pisum sativum] | I125: -
A126: chr2 | B126: 1,197,860,001 | C126: 1,199,810,000 | D126: 250.36 | E126: Vfaba.Hedin2.R2.2g015206.1 | F126: 1,198,390,552 | G126: 1,198,392,177 | H126: KAI5403792.1 Flotillin-like protein 4, partial [Pisum sativum] | I126: Flotillin-like protein
A127: chr2 | B127: 1,211,910,001 | C127: 1,213,070,000 | D127: 232.11 | E127: Vfaba.Hedin2.R2.2g015266.3 | F127: 1,212,551,681 | G127: 1,212,554,619 | H127: XP_050884335.1 phospholipase D alpha 1-like [Pisum sativum] | I127: Hydrolyzes glycerol-phospholipids at the terminal phosphodiesteric bond
A128: chr2 | B128: 1,211,910,001 | C128: 1,213,070,000 | D128: 232.11 | E128: Vfaba.Hedin2.R2.2g015267.2 | F128: 1,212,884,922 | G128: 1,212,888,499 | H128: XP_050884287.1 phospholipase D alpha 1-like [Pisum sativum] &gt;KAI5403715.1 Phospholipase D [Pisum sativum] | I128: Hydrolyzes glycerol-phospholipids at the terminal phosphodiesteric bond
A129: chr2 | B129: 1,211,910,001 | C129: 1,213,070,000 | D129: 232.11 | E129: Vfaba.Hedin2.R2.2g015265.1 | F129: 1,212,398,740 | G129: 1,212,399,844 | H129: XP_050884336.1 uncharacterized protein LOC127087496 isoform X1 [Pisum sativum] &gt;XP_050884337.1 uncharacterized protein LOC127087496 isoform X1 [Pisum sativum] &gt;KAI5403719.1 hypothetical protein KIW84_051040 [Pisum sativum] | I129: Protein of unknown function (DUF4050)
A130: chr3 | B130: 237,600,001 | C130: 239,090,000 | D130: 327.96 | E130: Vfaba.Hedin2.R2.3g018215.1 | F130: 237,905,439 | G130: 237,906,520 | H130: XP_050887743.1 probable xyloglucan endotransglucosylase/hydrolase protein 32 [Pisum sativum] &gt;KAI5395691.1 putative xyloglucan endotransglucosylase/hydrolase protein 32 [Pisum sativum] | I130: Catalyzes xyloglucan endohydrolysis (XEH) and or endotransglycosylation (XET). Cleaves and religates xyloglucan polymers, an essential constituent of the primary cell wall, and thereby participates in cell wall construction of growing tissues
A131: chr3 | B131: 237,600,001 | C131: 239,090,000 | D131: 327.96 | E131: Vfaba.Hedin2.R2.3g018218.1 | F131: 238,783,699 | G131: 238,784,766 | H131: QSD99722.1 MYB family transcription factor [Melilotus albus] | I131: SANT SWI3, ADA2, N-CoR and TFIIIB'' DNA-binding domains
A132: chr3 | B132: 237,600,001 | C132: 239,090,000 | D132: 327.96 | E132: Vfaba.Hedin2.R2.3g018216.1 | F132: 238,581,620 | G132: 238,584,174 | H132: XP_050891318.1 ACT domain-containing protein ACR10 [Pisum sativum] &gt;KAI5395694.1 ACT domain-containing protein acr10 [Pisum sativum] | I132: ACT domain-containing protein
A133: chr3 | B133: 237,600,001 | C133: 239,090,000 | D133: 327.96 | E133: Vfaba.Hedin2.R2.3g018217.1 | F133: 238,643,487 | G133: 238,651,077 | H133: XP_050891319.1 serine/threonine protein phosphatase 2A 57 kDa regulatory subunit B&apos; beta isoform-like [Pisum sativum] &gt;KAI5395699.1 hypothetical protein KIW84_062033 [Pisum sativum] | I133: The B regulatory subunit might modulate substrate selectivity and catalytic activity, and also might direct the localization of the catalytic enzyme to a particular subcellular compartment
A134: chr3 | B134: 299,620,001 | C134: 300,860,000 | D134: 243.56 | E134: Vfaba.Hedin2.R2.3g018381.2 | F134: 300,362,486 | G134: 300,365,530 | H134: KAI5395908.1 IQ domain-containing protein iqm3, partial [Pisum sativum] | I134: -
A135: chr3 | B135: 299,620,001 | C135: 300,860,000 | D135: 243.56 | E135: Vfaba.Hedin2.R2.3g018380.1 | F135: 299,814,329 | G135: 299,834,107 | H135: XP_050886595.1 uncharacterized protein LOC127091903 [Pisum sativum] &gt;KAI5395909.1 hypothetical protein KIW84_062193 [Pisum sativum] | I135: WD40 repeats
A136: chr3 | B136: 304,640,001 | C136: 305,690,000 | D136: 321.46 | E136: Vfaba.Hedin2.R2.3g018394.1 | F136: 304,666,919 | G136: 304,668,698 | H136: XP_050891079.1 GDSL esterase/lipase At5g03610-like [Pisum sativum] &gt;XP_050891102.1 GDSL esterase/lipase At5g03610-like [Pisum sativum] &gt;KAI5395913.1 hypothetical protein KIW84_062197 [Pisum sativum] &gt;KAI5395914.1 hypothetical protein KIW84_062198 [Pisum sativum] | I136: GDSL esterase lipase
A137: chr3 | B137: 304,640,001 | C137: 305,690,000 | D137: 321.46 | E137: Vfaba.Hedin2.R2.3g018395.1 | F137: 304,800,437 | G137: 304,800,793 | H137: XP_050891909.1 uncharacterized protein LOC127097459 [Pisum sativum] &gt;KAI5395915.1 hypothetical protein KIW84_062199 [Pisum sativum] | I137: Peptidoglycan-binding LysM domain-containing protein
A138: chr3 | B138: 304,640,001 | C138: 305,690,000 | D138: 321.46 | E138: Vfaba.Hedin2.R2.3g018397.1 | F138: 304,847,966 | G138: 304,854,487 | H138: XP_050886841.1 transcription initiation factor TFIID subunit 12 [Pisum sativum] &gt;KAI5395916.1 hypothetical protein KIW84_062200 [Pisum sativum] | I138: Transcription initiation factor TFIID subunit
A139: chr3 | B139: 304,640,001 | C139: 305,690,000 | D139: 321.46 | E139: Vfaba.Hedin2.R2.3g018396.1 | F139: 304,802,785 | G139: 304,809,710 | H139: XP_050886841.1 transcription initiation factor TFIID subunit 12 [Pisum sativum] &gt;KAI5395916.1 hypothetical protein KIW84_062200 [Pisum sativum] | I139: Transcription initiation factor TFIID subunit
A140: chr3 | B140: 473,720,001 | C140: 474,770,000 | D140: 200.94 | E140: Vfaba.Hedin2.R2.3g019010.2 | F140: 474,246,467 | G140: 474,247,778 | H140: XP_050888394.1 uncharacterized protein LOC127093493 [Pisum sativum] &gt;KAI5397785.1 hypothetical protein KIW84_063561 [Pisum sativum] &gt;KAI5397786.1 hypothetical protein KIW84_063561 [Pisum sativum] | I140: PDDEXK-like family of unknown function
A141: chr3 | B141: 689,080,001 | C141: 690,130,000 | D141: 250.23 | E141: Vfaba.Hedin2.R2.3g019760.1 | F141: 689,939,215 | G141: 689,943,987 | H141: XP_050885673.1 chaperonin CPN60-2, mitochondrial [Pisum sativum] &gt;KAI5399340.1 hypothetical protein KIW84_064628 [Pisum sativum] | I141: Belongs to the chaperonin (HSP60) family
A142: chr3 | B142: 689,080,001 | C142: 690,130,000 | D142: 250.23 | E142: Vfaba.Hedin2.R2.3g019761.1 | F142: 690,035,594 | G142: 690,035,959 | H142: XP_050885674.1 probable glutathione S-transferase [Pisum sativum] &gt;KAI5399341.1 hypothetical protein KIW84_064629 [Pisum sativum] | I142: Belongs to the GST superfamily
A143: chr3 | B143: 1,492,710,001 | C143: 1,493,760,000 | D143: 228.19 | E143: Vfaba.Hedin2.R2.3g022042.1 | F143: 1,493,550,393 | G143: 1,493,551,891 | H143: XP_050899412.1 protein IQ-DOMAIN 11 [Pisum sativum] &gt;KAI5389689.1 hypothetical protein KIW84_075112 [Pisum sativum] | I143: Protein of unknown function (DUF4005)
A144: chr3 | B144: 1,492,710,001 | C144: 1,493,760,000 | D144: 228.19 | E144: Vfaba.Hedin2.R2.3g022044.1 | F144: 1,493,682,393 | G144: 1,493,686,300 | H144: XP_050892656.1 NADP-dependent glyceraldehyde-3-phosphate dehydrogenase-like isoform X1 [Pisum sativum] &gt;KAI5393726.1 hypothetical protein KIW84_060732 [Pisum sativum] | I144: Belongs to the aldehyde dehydrogenase family
A145: chr3 | B145: 1,492,710,001 | C145: 1,493,760,000 | D145: 228.19 | E145: Vfaba.Hedin2.R2.3g022041.1 | F145: 1,493,121,161 | G145: 1,493,123,091 | H145: XP_050892659.1 U-box domain-containing protein 45-like [Pisum sativum] | I145: U-box domain-containing protein
A146: chr3 | B146: 1,492,710,001 | C146: 1,493,760,000 | D146: 228.19 | E146: Vfaba.Hedin2.R2.3g022043.1 | F146: 1,493,678,637 | G146: 1,493,680,730 | H146: XP_050892658.1 pentatricopeptide repeat-containing protein At5g27110 [Pisum sativum] | I146: Pentatricopeptide repeat-containing protein
A147: chr3 | B147: 1,492,710,001 | C147: 1,493,760,000 | D147: 228.19 | E147: Vfaba.Hedin2.R2.3g022040.3 | F147: 1,492,768,576 | G147: 1,492,781,862 | H147: XP_050891253.1 CHD3-type chromatin-remodeling factor PICKLE isoform X3 [Pisum sativum] | I147: CHD3-type chromatin-remodeling factor
A148: chr3 | B148: 1,521,980,001 | C148: 1,523,030,000 | D148: 273.78 | E148: Vfaba.Hedin2.R2.3g022140.1 | F148: 1,522,209,736 | G148: 1,522,211,841 | H148: XP_050886822.1 protein phosphatase 2C 53-like isoform X1 [Pisum sativum] &gt;XP_050886823.1 protein phosphatase 2C 53-like isoform X1 [Pisum sativum] &gt;XP_050886824.1 protein phosphatase 2C 53-like isoform X1 [Pisum sativum] &gt;XP_050886825.1 protein phosphatase 2C 53-like isoform X1 [Pisum sativum] &gt;XP_050886826.1 protein phosphatase 2C 53-like isoform X1 [Pisum sativum] &gt;XP_050886827.1 protein phosphatase 2C 53-like isoform X1 [Pisum sativum] &gt;XP_050886828.1 protein phosphatase 2C 53-like isoform X1 [Pisum sativum] &gt;XP_050886829.1 protein phosphatase 2C 53-like isoform X1 [Pisum sativum] &gt;XP_050886830.1 protein phosphatase 2C 53-like isoform X1 [Pisum sativum] &gt;XP_050886831.1 protein phosphatase 2C 53-like isoform X1 [Pisum sativum] &gt;XP_050886832.1 protein phosphatase 2C 53-like isoform X1 [Pisum sativum] &gt;KAI5393578.1 hypothetical protein KIW84_060631 [Pisum sativum] | I148: phosphatase 2C
A149: chr3 | B149: 1,521,980,001 | C149: 1,523,030,000 | D149: 273.78 | E149: Vfaba.Hedin2.R2.3g022142.1 | F149: 1,522,484,557 | G149: 1,522,485,230 | H149: XP_050886506.1 probable WRKY transcription factor 50 [Pisum sativum] &gt;KAI5393576.1 hypothetical protein KIW84_060629 [Pisum sativum] | I149: WRKY transcription factor
A150: chr3 | B150: 1,521,980,001 | C150: 1,523,030,000 | D150: 273.78 | E150: Vfaba.Hedin2.R2.3g022143.1 | F150: 1,522,593,004 | G150: 1,522,593,863 | H150: XP_050886505.1 probable WRKY transcription factor 50 [Pisum sativum] &gt;KAI5393575.1 hypothetical protein KIW84_060628 [Pisum sativum] | I150: WRKY transcription factor
A151: chr3 | B151: 1,521,980,001 | C151: 1,523,030,000 | D151: 273.78 | E151: Vfaba.Hedin2.R2.3g022144.1 | F151: 1,522,925,845 | G151: 1,522,927,157 | H151: KAI5393574.1 variant 4, Serine carboxypeptidase-like 27 [Pisum sativum] | I151: Belongs to the peptidase S10 family
A152: chr3 | B152: 1,521,980,001 | C152: 1,523,030,000 | D152: 273.78 | E152: Vfaba.Hedin2.R2.3g022145.1 | F152: 1,522,946,462 | G152: 1,522,947,774 | H152: KAI5393574.1 variant 4, Serine carboxypeptidase-like 27 [Pisum sativum] | I152: Belongs to the peptidase S10 family
A153: chr3 | B153: 1,521,980,001 | C153: 1,523,030,000 | D153: 273.78 | E153: Vfaba.Hedin2.R2.3g022141.1 | F153: 1,522,481,042 | G153: 1,522,484,172 | H153: XP_050886504.1 protein PLASTID MOVEMENT IMPAIRED 1-RELATED 1 [Pisum sativum] &gt;KAI5393577.1 hypothetical protein KIW84_060630 [Pisum sativum] | I153: N-terminal C2 in EEIG1 and EHBP1 proteins
A154: chr3 | B154: 1,613,320,001 | C154: 1,614,400,000 | D154: 281.30 | E154: Vfaba.Hedin2.R2.3g022416.1 | F154: 1,613,338,964 | G154: 1,613,344,041 | H154: PNY13860.1 auxin response factor 6-like protein, partial [Trifolium pratense] | I154: Auxin response factors (ARFs) are transcriptional factors that bind specifically to the DNA sequence 5'-TGTCTC-3' found in the auxin-responsive promoter elements (AuxREs)
A155: chr3 | B155: 1,613,320,001 | C155: 1,614,400,000 | D155: 281.30 | E155: Vfaba.Hedin2.R2.3g022417.1 | F155: 1,613,557,138 | G155: 1,613,561,390 | H155: - | I155: -
A156: chr3 | B156: 1,613,320,001 | C156: 1,614,400,000 | D156: 281.30 | E156: Vfaba.Hedin2.R2.3g022418.1 | F156: 1,614,278,024 | G156: 1,614,279,201 | H156: XP_050891709.1 WUSCHEL-related homeobox 4 [Pisum sativum] &gt;KAI5393191.1 hypothetical protein KIW84_060352 [Pisum sativum] | I156: WUSCHEL-related homeobox
A157: chr3 | B157: 1,613,320,001 | C157: 1,614,400,000 | D157: 281.30 | E157: Vfaba.Hedin2.R2.3g022419.2 | F157: 1,614,351,916 | G157: 1,614,353,344 | H157: XP_050887078.1 fructokinase-1 [Pisum sativum] &gt;KAI5394998.1 hypothetical protein KIW84_061560 [Pisum sativum] | I157: pfkB family carbohydrate kinase
A158: chr4 | B158: 136,780,001 | C158: 138,220,000 | D158: 268.03 | E158: Vfaba.Hedin2.R2.4g023278.1 | F158: 136,951,786 | G158: 136,952,635 | H158: XP_050877088.1 uncharacterized protein LOC127080840 [Pisum sativum] &gt;KAI5405295.1 hypothetical protein KIW84_052173 [Pisum sativum] | I158: RNA-binding protein
A159: chr4 | B159: 136,780,001 | C159: 138,220,000 | D159: 268.03 | E159: Vfaba.Hedin2.R2.4g023280.1 | F159: 136,957,040 | G159: 136,959,266 | H159: KAF3962193.1 hypothetical protein CMV_013268 [Castanea mollissima] | I159: Encoded by
A160: chr4 | B160: 136,780,001 | C160: 138,220,000 | D160: 268.03 | E160: Vfaba.Hedin2.R2.4g023281.1 | F160: 136,959,309 | G160: 136,959,880 | H160: ABK93277.1 unknown [Populus trichocarpa] | I160: Homeobox-leucine zipper protein
A161: chr4 | B161: 136,780,001 | C161: 138,220,000 | D161: 268.03 | E161: Vfaba.Hedin2.R2.4g023282.1 | F161: 136,965,698 | G161: 136,968,968 | H161: XP_050872948.1 type I inositol polyphosphate 5-phosphatase 10 isoform X1 [Pisum sativum] &gt;KAI5420785.1 hypothetical protein KIW84_044568 [Pisum sativum] | I161: Type I inositol 1,4,5-trisphosphate 5-phosphatase
A162: chr4 | B162: 136,780,001 | C162: 138,220,000 | D162: 268.03 | E162: Vfaba.Hedin2.R2.4g023283.1 | F162: 137,691,765 | G162: 137,695,332 | H162: XP_050872952.1 SUN domain-containing protein 2-like [Pisum sativum] &gt;KAI5420794.1 hypothetical protein KIW84_044572 [Pisum sativum] | I162: SUN domain-containing protein
A163: chr4 | B163: 136,780,001 | C163: 138,220,000 | D163: 268.03 | E163: Vfaba.Hedin2.R2.4g023284.1 | F163: 138,003,207 | G163: 138,005,129 | H163: AES97908.1 transmembrane protein, putative [Medicago truncatula] | I163: Thioredoxin-like protein
A164: chr4 | B164: 136,780,001 | C164: 138,220,000 | D164: 268.03 | E164: Vfaba.Hedin2.R2.4g023277.2 | F164: 136,898,855 | G164: 136,937,757 | H164: XP_050877088.1 uncharacterized protein LOC127080840 [Pisum sativum] &gt;KAI5405295.1 hypothetical protein KIW84_052173 [Pisum sativum] | I164: RNA-binding protein
A165: chr4 | B165: 136,780,001 | C165: 138,220,000 | D165: 268.03 | E165: Vfaba.Hedin2.R2.4g023279.3 | F165: 136,953,205 | G165: 136,956,268 | H165: XP_050877087.1 protein ENHANCED DISEASE RESISTANCE 4-like [Pisum sativum] &gt;KAI5405296.1 hypothetical protein KIW84_052174 [Pisum sativum] | I165: Probable zinc-ribbon domain
A166: chr4 | B166: 212,260,001 | C166: 213,310,000 | D166: 236.79 | E166: Vfaba.Hedin2.R2.4g023557.1 | F166: 212,771,958 | G166: 212,772,293 | H166: XP_045810689.1 uncharacterized protein LOC123905094 [Trifolium pratense] | I166: Ribonuclease H protein
A167: chr4 | B167: 212,260,001 | C167: 213,310,000 | D167: 236.79 | E167: Vfaba.Hedin2.R2.4g023558.1 | F167: 212,772,749 | G167: 212,773,339 | H167: XP_050873211.1 probable calcium-binding protein CML23 [Pisum sativum] &gt;KAI5421368.1 hypothetical protein KIW84_044981 [Pisum sativum] | I167: calcium-binding protein
A168: chr4 | B168: 212,260,001 | C168: 213,310,000 | D168: 236.79 | E168: Vfaba.Hedin2.R2.4g023559.1 | F168: 212,773,818 | G168: 212,776,848 | H168: - | I168: -
A169: chr4 | B169: 212,260,001 | C169: 213,310,000 | D169: 236.79 | E169: Vfaba.Hedin2.R2.4g023560.1 | F169: 212,827,040 | G169: 212,844,770 | H169: XP_050873210.1 brefeldin A-inhibited guanine nucleotide-exchange protein 2-like [Pisum sativum] &gt;KAI5421364.1 Brefeldin A-inhibited guanine nucleotide-exchange protein 2 [Pisum sativum] | I169: Brefeldin A-inhibited guanine nucleotide-exchange protein
A170: chr4 | B170: 1,272,300,001 | C170: 1,274,810,000 | D170: 271.66 | E170: Vfaba.Hedin2.R2.4g026675.1 | F170: 1,272,591,761 | G170: 1,272,592,774 | H170: XP_050905502.1 40S ribosomal protein SA-like [Pisum sativum] &gt;KAI5436964.1 40S ribosomal protein SA [Pisum sativum] | I170: Required for the assembly and or stability of the 40S ribosomal subunit. Required for the processing of the 20S rRNA- precursor to mature 18S rRNA in a late step of the maturation of 40S ribosomal subunits
A171: chr4 | B171: 1,272,300,001 | C171: 1,274,810,000 | D171: 271.66 | E171: Vfaba.Hedin2.R2.4g026676.1 | F171: 1,272,605,802 | G171: 1,272,606,258 | H171: - | I171: -
A172: chr4 | B172: 1,272,300,001 | C172: 1,274,810,000 | D172: 271.66 | E172: Vfaba.Hedin2.R2.4g026678.1 | F172: 1,274,286,896 | G172: 1,274,287,462 | H172: KEH15532.1 no-apical-meristem-associated carboxy-terminal domain protein [Medicago truncatula] | I172: No-apical-meristem-associated carboxy-terminal domain protein
A173: chr4 | B173: 1,272,300,001 | C173: 1,274,810,000 | D173: 271.66 | E173: Vfaba.Hedin2.R2.4g026679.1 | F173: 1,274,430,364 | G173: 1,274,433,255 | H173: XP_050870671.1 axial regulator YABBY 5 [Pisum sativum] &gt;KAI5416223.1 Axial regulator YABBY 5 [Pisum sativum] | I173: Axial regulator YABBY
A174: chr5 | B174: 324,040,001 | C174: 325,100,000 | D174: 235.17 | E174: Vfaba.Hedin2.R2.5g029273.1 | F174: 324,232,040 | G174: 324,232,492 | H174: XP_050914452.1 copper transporter 6-like [Pisum sativum] &gt;KAI5429733.1 hypothetical protein KIW84_034350 [Pisum sativum] | I174: copper transporter
A175: chr5 | B175: 324,040,001 | C175: 325,100,000 | D175: 235.17 | E175: Vfaba.Hedin2.R2.5g029275.1 | F175: 324,402,245 | G175: 324,402,763 | H175: XP_050902257.1 18.1 kDa class I heat shock protein-like [Pisum sativum] &gt;XP_050902258.1 18.1 kDa class I heat shock protein-like [Pisum sativum] &gt;XP_050902259.1 18.1 kDa class I heat shock protein-like [Pisum sativum] &gt;XP_050902260.1 18.1 kDa class I heat shock protein-like [Pisum sativum] &gt;XP_050902261.1 18.1 kDa class I heat shock protein-like [Pisum sativum] &gt;XP_050902262.1 18.1 kDa class I heat shock protein-like [Pisum sativum] &gt;XP_050902263.1 18.1 kDa class I heat shock protein-like [Pisum sativum] &gt;XP_050902264.1 18.1 kDa class I heat shock protein-like [Pisum sativum] &gt;XP_050902265.1 18.1 kDa class I heat shock protein-like [Pisum sativum] &gt;XP_050902266.1 18.1 kDa class I heat shock protein-like [Pisum sativum] &gt;XP_050902267.1 18.1 kDa class I heat shock protein-like [Pisum sativum] &gt;XP_050902268.1 18.1 kDa class I heat shock protein-like [Pisum sativum] &gt;XP_050902269.1 18.1 kDa class I heat shock protein-like [Pisum sativum] &gt;XP_050902270.1 18.1 kDa class I heat shock protein-like [Pisum sativum] &gt;XP_050902271.1 18.1 kDa class I heat shock protein-like [Pisum sativum] &gt;XP_050902273.1 18.1 kDa class I heat shock protein-like [Pisum sativum] &gt;XP_050902274.1 18.1 kDa class I heat shock protein-like [Pisum sativum] &gt;XP_050902275.1 18.1 kDa class I heat shock protein-like [Pisum sativum] &gt;XP_050902276.1 18.1 kDa class I heat shock protein-like [Pisum sativum] &gt;XP_050902277.1 18.1 kDa class I heat shock protein-like [Pisum sativum] &gt;XP_050902278.1 18.1 kDa class I heat shock protein-like [Pisum sativum] &gt;XP_050902279.1 18.1 kDa class I heat shock protein-like [Pisum sativum] &gt;XP_050902280.1 18.1 kDa class I heat shock protein-like [Pisum sativum] &gt;XP_050902281.1 18.1 kDa class I heat shock protein-like [Pisum sativum] &gt;XP_050902282.1 18.1 kDa class I heat shock protein-like [Pisum sativum] &gt;XP_050902285.1 18.1 kDa class I heat shock protein-like [Pisum sativum] &gt;XP_050902286.1 18.1 kDa class I heat shock protein-like [Pisum sativum] &gt;XP_050902287.1 18.1 kDa class I heat shock protein-like [Pisum sativum] &gt;XP_050902288.1 18.1 kDa class I heat shock protein-like [Pisum sativum] &gt;XP_050902289.1 18.1 kDa class I heat shock protein-like [Pisum sativum] &gt;XP_050902290.1 18.1 kDa class I heat shock protein-like [Pisum sativum] &gt;XP_050916085.1 18.1 kDa class I heat shock protein-like [Pisum sativum] &gt;XP_050916086.1 18.1 kDa class I heat shock protein-like [Pisum sativum] &gt;XP_050916087.1 18.1 kDa class I heat shock protein-like [Pisum sativum] &gt;XP_050916088.1 18.1 kDa class I heat shock protein-like [Pisum sativum] &gt;XP_050916089.1 18.1 kDa class I heat shock protein-like [Pisum sativum] &gt;XP_050916090.1 18.1 kDa class I heat shock protein-like [Pisum sativum] &gt;XP_050916092.1 18.1 kDa class I heat shock protein-like [Pisum sativum] &gt;XP_050916093.1 18.1 kDa class I heat shock protein-like [Pisum sativum] | I175: Belongs to the small heat shock protein (HSP20) family
A176: chr5 | B176: 324,040,001 | C176: 325,100,000 | D176: 235.17 | E176: Vfaba.Hedin2.R2.5g029276.1 | F176: 324,406,729 | G176: 324,412,802 | H176: - | I176: -
A177: chr5 | B177: 324,040,001 | C177: 325,100,000 | D177: 235.17 | E177: Vfaba.Hedin2.R2.5g029278.1 | F177: 324,624,063 | G177: 324,626,787 | H177: XP_050912722.1 uncharacterized protein LOC127127557 [Pisum sativum] &gt;KAI5429736.1 hypothetical protein KIW84_034353 [Pisum sativum] | I177: Domain of unknown function (DUF3527)
A178: chr5 | B178: 324,040,001 | C178: 325,100,000 | D178: 235.17 | E178: Vfaba.Hedin2.R2.5g029279.1 | F178: 324,852,041 | G178: 324,855,027 | H178: XP_050912724.1 phosphatidylinositol:ceramide inositolphosphotransferase 1-like [Pisum sativum] &gt;KAI5429737.1 Phosphatidylinositol:ceramide inositolphosphotransferase 1 [Pisum sativum] | I178: phosphatidylinositol ceramide inositolphosphotransferase
A179: chr5 | B179: 324,040,001 | C179: 325,100,000 | D179: 235.17 | E179: Vfaba.Hedin2.R2.5g029274.1 | F179: 324,337,341 | G179: 324,342,075 | H179: XP_050895034.1 outer envelope protein 61 [Pisum sativum] &gt;KAI5390175.1 hypothetical protein KIW84_075479 [Pisum sativum] | I179: Outer envelope protein 61
A180: chr5 | B180: 554,950,001 | C180: 556,610,000 | D180: 250.77 | E180: Vfaba.Hedin2.R2.5g030101.1 | F180: 555,405,676 | G180: 555,407,257 | H180: XP_050911672.1 S-adenosyl-L-methionine:benzoic acid/salicylic acid carboxyl methyltransferase 1-like [Pisum sativum] &gt;KAI5427945.1 hypothetical protein KIW84_033098 [Pisum sativum] | I180: synthase
A181: chr5 | B181: 554,950,001 | C181: 556,610,000 | D181: 250.77 | E181: Vfaba.Hedin2.R2.5g030102.1 | F181: 555,439,054 | G181: 555,440,643 | H181: XP_050911672.1 S-adenosyl-L-methionine:benzoic acid/salicylic acid carboxyl methyltransferase 1-like [Pisum sativum] &gt;KAI5427945.1 hypothetical protein KIW84_033098 [Pisum sativum] | I181: synthase
A182: chr5 | B182: 554,950,001 | C182: 556,610,000 | D182: 250.77 | E182: Vfaba.Hedin2.R2.5g030103.1 | F182: 555,519,040 | G182: 555,524,678 | H182: XP_050911672.1 S-adenosyl-L-methionine:benzoic acid/salicylic acid carboxyl methyltransferase 1-like [Pisum sativum] &gt;KAI5427945.1 hypothetical protein KIW84_033098 [Pisum sativum] | I182: synthase
A183: chr5 | B183: 554,950,001 | C183: 556,610,000 | D183: 250.77 | E183: Vfaba.Hedin2.R2.5g030104.2 | F183: 555,786,087 | G183: 555,793,509 | H183: KAI5388673.1 hypothetical protein KIW84_074370 [Pisum sativum] | I183: -
A184: chr5 | B184: 554,950,001 | C184: 556,610,000 | D184: 250.77 | E184: Vfaba.Hedin2.R2.5g030105.1 | F184: 555,794,981 | G184: 555,796,555 | H184: XP_050911672.1 S-adenosyl-L-methionine:benzoic acid/salicylic acid carboxyl methyltransferase 1-like [Pisum sativum] &gt;KAI5427945.1 hypothetical protein KIW84_033098 [Pisum sativum] | I184: synthase
A185: chr5 | B185: 554,950,001 | C185: 556,610,000 | D185: 250.77 | E185: Vfaba.Hedin2.R2.5g030106.1 | F185: 556,227,775 | G185: 556,228,689 | H185: XP_050914381.1 ethylene-responsive transcription factor LEP-like [Pisum sativum] | I185: DNA-binding domain in plant proteins such as APETALA2 and EREBPs
A186: chr5 | B186: 735,560,001 | C186: 736,740,000 | D186: 250.71 | E186: Vfaba.Hedin2.R2.5g030471.1 | F186: 736,226,371 | G186: 736,227,937 | H186: XP_050911306.1 uncharacterized protein LOC127126420 [Pisum sativum] &gt;KAI5427290.1 hypothetical protein KIW84_032632 [Pisum sativum] | I186: Ganglioside-induced differentiation-associated protein
A187: chr5 | B187: 735,560,001 | C187: 736,740,000 | D187: 250.71 | E187: Vfaba.Hedin2.R2.5g030472.1 | F187: 736,402,658 | G187: 736,405,214 | H187: XP_050911307.1 very-long-chain aldehyde decarbonylase CER1-like [Pisum sativum] &gt;KAI5427291.1 hypothetical protein KIW84_032633 [Pisum sativum] | I187: Belongs to the sterol desaturase family
A188: chr5 | B188: 735,560,001 | C188: 736,740,000 | D188: 250.71 | E188: Vfaba.Hedin2.R2.5g030473.1 | F188: 736,637,325 | G188: 736,640,348 | H188: - | I188: -
A189: chr5 | B189: 737,580,001 | C189: 738,650,000 | D189: 337.67 | E189: Vfaba.Hedin2.R2.5g030475.2 | F189: 737,596,118 | G189: 737,598,605 | H189: XP_050911669.1 very-long-chain aldehyde decarbonylase CER1-like [Pisum sativum] &gt;KAI5427941.1 Very-long-chain aldehyde decarbonylase cer1 [Pisum sativum] | I189: Belongs to the sterol desaturase family
A190: chr5 | B190: 737,580,001 | C190: 738,650,000 | D190: 337.67 | E190: Vfaba.Hedin2.R2.5g030477.1 | F190: 738,494,699 | G190: 738,495,347 | H190: - | I190: -
A191: chr5 | B191: 750,780,001 | C191: 751,830,000 | D191: 240.81 | E191: Vfaba.Hedin2.R2.5g030531.1 | F191: 751,384,393 | G191: 751,385,489 | H191: XP_050896081.1 uncharacterized protein LOC127102793 [Pisum sativum] | I191: -
A192: chr5 | B192: 750,780,001 | C192: 751,830,000 | D192: 240.81 | E192: Vfaba.Hedin2.R2.5g030533.1 | F192: 751,390,117 | G192: 751,397,088 | H192: XP_050911265.1 GTP-binding protein BRASSINAZOLE INSENSITIVE PALE GREEN 2, chloroplastic [Pisum sativum] &gt;KAI5427186.1 GTP-binding protein BRASSINAZOLE INSENSITIVE PALE GREEN 2 [Pisum sativum] | I192: 50S ribosome-binding GTPase
A193: chr5 | B193: 750,780,001 | C193: 751,830,000 | D193: 240.81 | E193: Vfaba.Hedin2.R2.5g030535.1 | F193: 751,742,589 | G193: 751,743,128 | H193: - | I193: -
A194: chr5 | B194: 750,780,001 | C194: 751,830,000 | D194: 240.81 | E194: Vfaba.Hedin2.R2.5g030530.1 | F194: 751,367,236 | G194: 751,370,396 | H194: XP_050911266.1 protein EARLY RESPONSIVE TO DEHYDRATION 15 [Pisum sativum] &gt;KAI5427188.1 Protein EARLY RESPONSIVE TO DEHYDRATION 15 [Pisum sativum] | I194: Protein EARLY RESPONSIVE TO DEHYDRATION
A195: chr5 | B195: 750,780,001 | C195: 751,830,000 | D195: 240.81 | E195: Vfaba.Hedin2.R2.5g030534.1 | F195: 751,469,576 | G195: 751,485,717 | H195: XP_050911263.1 uncharacterized protein LOC127126386 isoform X1 [Pisum sativum] &gt;KAI5427183.1 hypothetical protein KIW84_032560 [Pisum sativum] | I195: breast cancer carboxy-terminal domain
A196: chr5 | B196: 750,780,001 | C196: 751,830,000 | D196: 240.81 | E196: Vfaba.Hedin2.R2.5g030536.2 | F196: 751,744,383 | G196: 751,748,489 | H196: XP_050911262.1 TMV resistance protein N-like [Pisum sativum] | I196: Leucine Rich Repeat
A197: chr5 | B197: 755,000,001 | C197: 756,730,000 | D197: 264.29 | E197: Vfaba.Hedin2.R2.5g030549.1 | F197: 755,509,250 | G197: 755,509,991 | H197: XP_050905394.1 putative germin-like protein 2-1 [Pisum sativum] &gt;KAI5442325.1 hypothetical protein KIW84_011407 [Pisum sativum] | I197: Germin-like protein subfamily 1 member
A198: chr5 | B198: 755,000,001 | C198: 756,730,000 | D198: 264.29 | E198: Vfaba.Hedin2.R2.5g030550.1 | F198: 755,819,724 | G198: 755,821,304 | H198: - | I198: -
A199: chr5 | B199: 755,000,001 | C199: 756,730,000 | D199: 264.29 | E199: Vfaba.Hedin2.R2.5g030551.1 | F199: 756,245,566 | G199: 756,247,892 | H199: XP_050911243.1 cytokinin dehydrogenase 1-like [Pisum sativum] &gt;KAI5427156.1 Cytokinin dehydrogenase 1 [Pisum sativum] | I199: Cytokinin dehydrogenase
A200: chr5 | B200: 755,000,001 | C200: 756,730,000 | D200: 264.29 | E200: Vfaba.Hedin2.R2.5g030552.1 | F200: 756,248,332 | G200: 756,249,693 | H200: XP_050911244.1 uncharacterized protein LOC127126367 [Pisum sativum] &gt;XP_050911245.1 uncharacterized protein LOC127126367 [Pisum sativum] &gt;KAI5427155.1 hypothetical protein KIW84_032538 [Pisum sativum] | I200: -
... 30 more rows

Sheet S. Table 14
A1: Supplementary Table 14. GO annotation and KEGG annotation of 228 selected genes
A2: ONTOLOGY | B2: GOID | C2: Description | D2: GeneRatio | E2: BgRatio | F2: pvalue | G2: p.adjust | H2: qvalue | I2: geneID | J2: Count
A3: MF | B3: GO:0016830 | C3: carbon-carbon lyase activity | D3: 0.05063291139 | E3: 231/19745 | F3: 0.01384523782 | G3: 0.2229083289 | H3: 0.2054924771 | I3: Vfaba.Hedin2.R2.1g008375.1/Vfaba.Hedin2.R2.1g010867.1/Vfaba.Hedin2.R2.1g010868.1/Vfaba.Hedin2.R2.6g033336.1 | J3: 4
A4: BP | B4: GO:0009877 | C4: nodulation | D4: 0.04255319149 | E4: 46/22885 | F4: 3.82E-05 | G4: 0.02766908291 | H4: 0.02559013549 | I4: Vfaba.Hedin2.R2.2g015205.3/Vfaba.Hedin2.R2.2g015208.1/Vfaba.Hedin2.R2.2g015209.2/Vfaba.Hedin2.R2.2g015206.1 | J4: 4
A5: BP | B5: GO:0045143 | C5: homologous chromosome segregation | D5: 0.03191489362 | E5: 54/22885 | F5: 0.001430339282 | G5: 0.2073991959 | H5: 0.1918160259 | I5: Vfaba.Hedin2.R2.1g008372.1/Vfaba.Hedin2.R2.1g008373.1/Vfaba.Hedin2.R2.4g023283.1 | J5: 3
A6: BP | B6: GO:0009631 | C6: cold acclimation | D6: 0.03191489362 | E6: 66/22885 | F6: 0.002546740531 | G6: 0.2307983606 | H6: 0.2134570682 | I6: Vfaba.Hedin2.R2.1g002150.1/Vfaba.Hedin2.R2.1g002152.1/Vfaba.Hedin2.R2.1g002153.1 | J6: 3
A7: BP | B7: GO:0061077 | C7: chaperone-mediated protein folding | D7: 0.03191489362 | E7: 82/22885 | F7: 0.00470141967 | G7: 0.2845031674 | H7: 0.2631267044 | I7: Vfaba.Hedin2.R2.1g010855.1/Vfaba.Hedin2.R2.3g019760.1/Vfaba.Hedin2.R2.5g030554.1 | J7: 3
A8: MF | B8: GO:0003935 | C8: GTP cyclohydrolase II activity | D8: 0.0253164557 | E8: 13/19745 | F8: 0.00119813186 | G8: 0.1387884292 | H8: 0.1279448743 | I8: Vfaba.Hedin2.R2.1g010867.1/Vfaba.Hedin2.R2.1g010868.1 | J8: 2
A9: MF | B9: GO:0004630 | C9: phospholipase D activity | D9: 0.0253164557 | E9: 32/19745 | F9: 0.007253269571 | G9: 0.1903773452 | H9: 0.1755031426 | I9: Vfaba.Hedin2.R2.2g015266.3/Vfaba.Hedin2.R2.2g015267.2 | J9: 2
A10: MF | B10: GO:0031072 | C10: heat shock protein binding | D10: 0.0253164557 | E10: 39/19745 | F10: 0.01064221184 | G10: 0.1903773452 | H10: 0.1755031426 | I10: Vfaba.Hedin2.R2.5g030554.1/Vfaba.Hedin2.R2.5g030767.1 | J10: 2
A11: CC | B11: GO:0070461 | C11: SAGA-type complex | D11: 0.02352941176 | E11: 14/22783 | F11: 0.001215855648 | G11: 0.02522900469 | H11: 0.02143745484 | I11: Vfaba.Hedin2.R2.3g018397.1/Vfaba.Hedin2.R2.3g018396.1 | J11: 2
A12: CC | B12: GO:0034708 | C12: methyltransferase complex | D12: 0.02352941176 | E12: 45/22783 | F12: 0.01227376635 | G12: 0.1131914008 | H12: 0.09618039132 | I12: Vfaba.Hedin2.R2.1g010569.3/Vfaba.Hedin2.R2.5g030534.1 | J12: 2
A13: CC | B13: GO:0036477 | C13: somatodendritic compartment | D13: 0.02352941176 | E13: 59/22783 | F13: 0.02051204246 | G13: 0.1309615019 | H13: 0.1112799065 | I13: Vfaba.Hedin2.R2.1g010595.1/Vfaba.Hedin2.R2.4g023560.1 | J13: 2
A14: BP | B14: GO:0006656 | C14: phosphatidylcholine biosynthetic process | D14: 0.02127659574 | E14: 10/22885 | F14: 0.0007352339649 | G14: 0.2073991959 | H14: 0.1918160259 | I14: Vfaba.Hedin2.R2.1g002342.1/Vfaba.Hedin2.R2.1g008375.1 | J14: 2
A15: BP | B15: GO:0046653 | C15: tetrahydrofolate metabolic process | D15: 0.02127659574 | E15: 12/22885 | F15: 0.001072585227 | G15: 0.2073991959 | H15: 0.1918160259 | I15: Vfaba.Hedin2.R2.1g000350.1/Vfaba.Hedin2.R2.1g008377.1 | J15: 2
A16: BP | B16: GO:0006298 | C16: mismatch repair | D16: 0.02127659574 | E16: 25/22885 | F16: 0.004709017943 | G16: 0.2845031674 | H16: 0.2631267044 | I16: Vfaba.Hedin2.R2.1g008372.1/Vfaba.Hedin2.R2.1g008373.1 | J16: 2
A17: CC | B17: GO:0043209 | C17: myelin sheath | D17: 0.01176470588 | E17: 12/22783 | F17: 0.04387325788 | G17: 0.2275925253 | H17: 0.1933887025 | I17: Vfaba.Hedin2.R2.1g010595.1 | J17: 1
A18: CC | B18: GO:0043527 | C18: tRNA methyltransferase complex | D18: 0.01176470588 | E18: 12/22783 | F18: 0.04387325788 | G18: 0.2275925253 | H18: 0.1933887025 | I18: Vfaba.Hedin2.R2.1g010569.3 | J18: 1
A20: KEGG_A_class | B20: KEGG_B_class | C20: Description | D20: Count | E20: BG | F20: pvalue | G20: qvalue | H20: ID | I20: geneID | J20: K_IDs
A21: Metabolism | B21: Energy metabolism | C21: Oxidative phosphorylation | D21: 6 | E21: 372 | F21: 0.008805206 | G21: 0.1414356 | H21: ko00190 | I21: Vfaba.Hedin2.R2.1g000197.1;Vfaba.Hedin2.R2.1g000199.2;Vfaba.Hedin2.R2.1g000203.1;Vfaba.Hedin2.R2.1g004028.1;Vfaba.Hedin2.R2.1g004031.1;Vfaba.Hedin2.R2.1g004032.1 | J21: K03884+K00412+K00412+K00412+K03878+K03884
A22: Metabolism | B22: Lipid metabolism | C22: Glycerophospholipid metabolism | D22: 5 | E22: 250 | F22: 0.006988004 | G22: 0.1414356 | H22: ko00564 | I22: Vfaba.Hedin2.R2.1g002342.1;Vfaba.Hedin2.R2.1g008375.1;Vfaba.Hedin2.R2.2g015266.3;Vfaba.Hedin2.R2.2g015267.2;Vfaba.Hedin2.R2.3g022043.1 | J22: K14156+K01613+K01115+K01115+K00968
A23: Cellular Processes | B23: Transport and catabolism | C23: Endocytosis | D23: 5 | E23: 439 | F23: 0.05996377 | G23: 0.3027916 | H23: ko04144 | I23: Vfaba.Hedin2.R2.1g010862.2;Vfaba.Hedin2.R2.2g014530.2;Vfaba.Hedin2.R2.2g015266.3;Vfaba.Hedin2.R2.2g015267.2;Vfaba.Hedin2.R2.4g023560.1 | J23: K12486+K00889+K01115+K01115+K18442
A24: Environmental Information Processing | B24: Signal transduction | C24: Phosphatidylinositol signaling system | D24: 4 | E24: 186 | F24: 0.01229875 | G24: 0.1414356 | H24: ko04070 | I24: Vfaba.Hedin2.R2.1g000206.1;Vfaba.Hedin2.R2.1g000207.1;Vfaba.Hedin2.R2.2g014530.2;Vfaba.Hedin2.R2.4g023282.1 | J24: K02183+K02183+K00889+K20279
A25: Metabolism | B25: Lipid metabolism | C25: alpha-Linolenic acid metabolism | D25: 4 | E25: 236 | F25: 0.02690568 | G25: 0.1833006 | H25: ko00592 | I25: Vfaba.Hedin2.R2.5g030101.1;Vfaba.Hedin2.R2.5g030102.1;Vfaba.Hedin2.R2.5g030103.1;Vfaba.Hedin2.R2.5g030105.1 | J25: K08241+K08241+K08241+K08241
A26: Metabolism | B26: Metabolism of cofactors and vitamins | C26: One carbon pool by folate | D26: 2 | E26: 34 | F26: 0.01162722 | G26: 0.1414356 | H26: ko00670 | I26: Vfaba.Hedin2.R2.1g000350.1;Vfaba.Hedin2.R2.1g008377.1 | J26: K01433+K01433
A27: Metabolism | B27: Lipid metabolism | C27: Cutin, suberine and wax biosynthesis | D27: 2 | E27: 53 | F27: 0.02694274 | G27: 0.1833006 | H27: ko00073 | I27: Vfaba.Hedin2.R2.5g030472.1;Vfaba.Hedin2.R2.5g030475.2 | J27: K15404+K15404
A28: Metabolism | B28: Lipid metabolism | C28: Ether lipid metabolism | D28: 2 | E28: 66 | F28: 0.04030806 | G28: 0.2317713 | H28: ko00565 | I28: Vfaba.Hedin2.R2.2g015266.3;Vfaba.Hedin2.R2.2g015267.2 | J28: K01115+K01115
A29: Genetic Information Processing | B29: Transcription | C29: Basal transcription factors | D29: 2 | E29: 93 | F29: 0.0740765 | G29: 0.3027916 | H29: ko03022 | I29: Vfaba.Hedin2.R2.3g018396.1;Vfaba.Hedin2.R2.3g018397.1 | J29: K03126+K03126
A30: Metabolism | B30: Metabolism of cofactors and vitamins | C30: Porphyrin metabolism | D30: 2 | E30: 106 | F30: 0.09266711 | G30: 0.327899 | H30: ko00860 | I30: Vfaba.Hedin2.R2.1g010511.1;Vfaba.Hedin2.R2.2g014533.1 | J30: K03405+K01772
A31: Metabolism | B31: Metabolism of cofactors and vitamins | C31: Riboflavin metabolism | D31: 2 | E31: 87 | F31: 0.06596167 | G31: 0.3027916 | H31: ko00740 | I31: Vfaba.Hedin2.R2.1g010867.1;Vfaba.Hedin2.R2.1g010868.1 | J31: K14652+K14652
A32: Metabolism | B32: Metabolism of other amino acids | C32: Phosphonate and phosphinate metabolism | D32: 1 | E32: 17 | F32: 0.0789891 | G32: 0.3027916 | H32: ko00440 | I32: Vfaba.Hedin2.R2.3g022043.1 | J32: K00968

Sheet S. Table 15
A1: Supplementary Table 15. 31 Indel markers designed for Low VC
A2: rs# | B2: alleles | C2: chrom | D2: pos | E2: 29H_180804 | F2: Arrisot_1_EP1-1-1-1 | G2: Banner_1_EP1-1-1-4 | H2: Bourdon_1EP5-1-1-1-1 | I2: Bulldog_1-4_EP3-1-1-1-2 | J2: CoteD_Or_1-1-3-1-2-1-1-2-2-3-1 | K2: Hiverna_2-5_EP1-1-8-1-3-3-2 | L2: L79_79_1_EP4-1-1-3 | M2: L977_88_S1wn-10-2 | N2: L979_S1_1_1sn_EP10-1-1-1 | O2: S_002 | P2: S_004 | Q2: S_005 | R2: S_008 | S2: S_009 | T2: S_010 | U2: S_012 | V2: S_013 | W2: S_015 | X2: S_016 | Y2: S_019 | Z2: S_020 | AA2: S_021 | AB2: S_022 | AC2: S_025 | AD2: S_027 | AE2: S_028 | AF2: S_029 | AG2: S_030 | AH2: S_033 | AI2: S_034 | AJ2: S_035 | AK2: S_038 | AL2: S_039 | AM2: S_040 | AN2: S_043 | AO2: S_045 | AP2: S_046 | AQ2: S_048 | AR2: S_050 | AS2: S_052 | AT2: S_054 | AU2: S_055 | AV2: S_059 | AW2: S_060 | AX2: S_062 | AY2: S_064 | AZ2: S_065 | BA2: S_066 | BB2: S_067 | BC2: S_069 | BD2: S_070 | BE2: S_072 | BF2: S_076 | BG2: S_077 | BH2: S_079 | BI2: S_081 | BJ2: S_082 | BK2: S_083 | BL2: S_084 | BM2: S_085 | BN2: S_093 | BO2: S_097 | BP2: S_100 | BQ2: S_102 | BR2: S_104 | BS2: S_108 | BT2: S_111 | BU2: S_115 | BV2: S_116 | BW2: S_119 | BX2: S_120 | BY2: S_122 | BZ2: S_123 | CA2: S_125 | CB2: S_126 | CC2: S_129 | CD2: S_131 | CE2: S_132 | CF2: S_133 | CG2: S_134 | CH2: S_142 | CI2: S_145 | CJ2: S_147 | CK2: S_150 | CL2: S_151 | CM2: S_153 | CN2: S_158 | CO2: S_160 | CP2: S_163 | CQ2: S_165 | CR2: S_166 | CS2: S_167 | CT2: S_168 | CU2: S_169 | CV2: S_170 | CW2: S_172 | CX2: S_173 | CY2: S_174 | CZ2: S_175 | DA2: S_176 | DB2: S_177 | DC2: S_181 | DD2: S_182 | DE2: S_185 | DF2: S_186 | DG2: S_189 | DH2: S_190 | DI2: S_191 | DJ2: S_192 | DK2: S_194 | DL2: S_195 | DM2: S_196 | DN2: S_197 | DO2: S_198 | DP2: S_199 | DQ2: S_201 | DR2: S_202 | DS2: S_209 | DT2: S_210 | DU2: S_213 | DV2: S_217 | DW2: S_218 | DX2: S_220 | DY2: S_221 | DZ2: S_226 | EA2: S_227 | EB2: S_231 | EC2: S_232 | ED2: S_233 | EE2: S_235 | EF2: S_236 | EG2: S_238 | EH2: S_240 | EI2: S_241 | EJ2: S_242 | EK2: S_243 | EL2: S_245 | EM2: S_246 | EN2: S_249 | EO2: S_252 | EP2: S_253 | EQ2: S_254 | ER2: S_258 | ES2: S_259 | ET2: S_264 | EU2: S_265 | EV2: S_267 | EW2: S_268 | EX2: S_269 | EY2: S_271 | EZ2: S_272 | FA2: S_274 | FB2: S_275 | FC2: S_277 | FD2: S_279 | FE2: S_280 | FF2: S_281 | FG2: S_282 | FH2: S_284 | FI2: S_285 | FJ2: S_286 | FK2: S_287 | FL2: S_289 | FM2: S_290 | FN2: S_291 | FO2: S_295 | FP2: S_298 | FQ2: S_299 | FR2: S_300 | FS2: S_301 | FT2: S_302 | FU2: S_303 | FV2: S_304 | FW2: S_307 | FX2: S_308 | FY2: S_309 | FZ2: S_310 | GA2: S_312 | GB2: S_314 | GC2: S_315 | GD2: S_319 | GE2: S_322 | GF2: S_326 | GG2: S_328 | GH2: S_329 | GI2: S_330 | GJ2: S_331 | GK2: WAB-EP02-Fam_S1_157 | GL2: WAB-EP02-Fam_S1_159 | GM2: WAB98_98-4 | GN2: WAB_EP98_21 | GO2: WAB_EP98_267 | GP2: WAB_EP98_98-3 | GQ2: Webo_1-1-1 | GR2: Wibo_1_-42370 | GS2: JLU_22-1 | GT2: JLU_22-2 | GU2: JLU_22-3 | GV2: JLU_22-4 | GW2: JLU_22-5 | GX2: JLU_22-6 | GY2: JLU_22-7 | GZ2: JLU_22-8 | HA2: MP_22-1 | HB2: MP_22-10 | HC2: MP_22-100 | HD2: MP_22-101 | HE2: MP_22-102 | HF2: MP_22-103 | HG2: MP_22-104 | HH2: MP_22-105 | HI2: MP_22-106 | HJ2: MP_22-107 | HK2: MP_22-108 | HL2: MP_22-109 | HM2: MP_22-11 | HN2: MP_22-110 | HO2: MP_22-111 | HP2: MP_22-112 | HQ2: MP_22-113 | HR2: MP_22-114 | HS2: MP_22-115 | HT2: MP_22-116 | HU2: MP_22-117 | HV2: MP_22-118 | HW2: MP_22-119 | HX2: MP_22-12 | HY2: MP_22-120 | HZ2: MP_22-121 | IA2: MP_22-122 | IB2: MP_22-123 | IC2: MP_22-124 | ID2: MP_22-125 | IE2: MP_22-126 | IF2: MP_22-127 | IG2: MP_22-128 | IH2: MP_22-129 | II2: MP_22-13 | IJ2: MP_22-130 | IK2: MP_22-131 | IL2: MP_22-132 | IM2: MP_22-133 | IN2: MP_22-134 | IO2: MP_22-135 | IP2: MP_22-136 | IQ2: MP_22-137 | IR2: MP_22-138 | IS2: MP_22-139 | IT2: MP_22-14 | IU2: MP_22-140 | IV2: MP_22-141 | IW2: MP_22-142 | IX2: MP_22-143 | IY2: MP_22-144 | IZ2: MP_22-145 | JA2: MP_22-146 | JB2: MP_22-147 | JC2: MP_22-148 | JD2: MP_22-149 | JE2: MP_22-15 | JF2: MP_22-150 | JG2: MP_22-151 | JH2: MP_22-152 | JI2: MP_22-153 | JJ2: MP_22-154 | JK2: MP_22-155 | JL2: MP_22-156 | JM2: MP_22-157 | JN2: MP_22-158 | JO2: MP_22-159 | JP2: MP_22-16 | JQ2: MP_22-160 | JR2: MP_22-161 | JS2: MP_22-162 | JT2: MP_22-163 | JU2: MP_22-164 | JV2: MP_22-165 | JW2: MP_22-166 | JX2: MP_22-167 | JY2: MP_22-168 | JZ2: MP_22-169 | KA2: MP_22-17 | KB2: MP_22-18 | KC2: MP_22-19 | KD2: MP_22-2 | KE2: MP_22-20 | KF2: MP_22-21 | KG2: MP_22-22 | KH2: MP_22-23 | KI2: MP_22-24 | KJ2: MP_22-25 | KK2: MP_22-26 | KL2: MP_22-27 | KM2: MP_22-28 | KN2: MP_22-29 | KO2: MP_22-3 | KP2: MP_22-30 | KQ2: MP_22-31 | KR2: MP_22-32 | KS2: MP_22-33 | KT2: MP_22-34 | KU2: MP_22-35 | KV2: MP_22-36 | KW2: MP_22-37 | KX2: MP_22-38 | KY2: MP_22-39 | KZ2: MP_22-4 | LA2: MP_22-40 | LB2: MP_22-41 | LC2: MP_22-42 | LD2: MP_22-43 | LE2: MP_22-44 | LF2: MP_22-45 | LG2: MP_22-46 | LH2: MP_22-47 | LI2: MP_22-48 | LJ2: MP_22-49 | LK2: MP_22-5 | LL2: MP_22-50 | LM2: MP_22-51 | LN2: MP_22-52 | LO2: MP_22-53 | LP2: MP_22-54 | LQ2: MP_22-55 | LR2: MP_22-56 | LS2: MP_22-57 | LT2: MP_22-58 | LU2: MP_22-59 | LV2: MP_22-6 | LW2: MP_22-60 | LX2: MP_22-61 | LY2: MP_22-62 | LZ2: MP_22-63 | MA2: MP_22-64 | MB2: MP_22-65 | MC2: MP_22-66 | MD2: MP_22-67 | ME2: MP_22-68 | MF2: MP_22-69 | MG2: MP_22-7 | MH2: MP_22-70 | MI2: MP_22-71 | MJ2: MP_22-72 | MK2: MP_22-73 | ML2: MP_22-74 | MM2: MP_22-75 | MN2: MP_22-76 | MO2: MP_22-77 | MP2: MP_22-78 | MQ2: MP_22-79 | MR2: MP_22-8 | MS2: MP_22-80 | MT2: MP_22-81 | MU2: MP_22-82 | MV2: MP_22-83 | MW2: MP_22-84 | MX2: MP_22-85 | MY2: MP_22-86 | MZ2: MP_22-87 | NA2: MP_22-88 | NB2: MP_22-89 | NC2: MP_22-9 | ND2: MP_22-90 | NE2: MP_22-91 | NF2: MP_22-92 | NG2: MP_22-93 | NH2: MP_22-94 | NI2: MP_22-95 | NJ2: MP_22-96 | NK2: MP_22-97 | NL2: MP_22-98 | NM2: MP_22-99 | NN2: P_22-01 | NO2: P_22-02 | NP2: P_22-03 | NQ2: P_22-04 | NR2: P_22-05 | NS2: P_22-06 | NT2: P_22-07 | NU2: P_22-08 | NV2: P_22-09 | NW2: P_22-10 | NX2: P_22-11 | NY2: P_22-12 | NZ2: P_22-13 | OA2: USJ_22-1 | OB2: USJ_22-10 | OC2: USJ_22-11 | OD2: USJ_22-12 | OE2: USJ_22-13 | OF2: USJ_22-14 | OG2: USJ_22-15 | OH2: USJ_22-16 | OI2: USJ_22-17 | OJ2: USJ_22-18 | OK2: USJ_22-19 | OL2: USJ_22-2 | OM2: USJ_22-20 | ON2: USJ_22-3 | OO2: USJ_22-4 | OP2: USJ_22-5 | OQ2: USJ_22-6 | OR2: USJ_22-7 | OS2: USJ_22-8 | OT2: USJ_22-9
A3: S2_1471200345 | B3: CCA/C | C3: chr1 | D3: 3471200345 | E3: 0 | F3: 0 | G3: 0 | H3: 0 | I3: 0 | J3: 0 | K3: 0 | L3: 0 | M3: 0 | N3: 0 | O3: 0 | P3: 0 | Q3: 0 | R3: 0 | S3: 0 | T3: 0 | U3: 0 | V3: 0 | W3: -1 | X3: 0 | Y3: 2 | Z3: 0 | AA3: 0 | AB3: 0 | AC3: 0 | AD3: 0 | AE3: 0 | AF3: 0 | AG3: 0 | AH3: 0 | AI3: 0 | AJ3: 0 | AK3: 0 | AL3: 0 | AM3: 0 | AN3: 0 | AO3: 0 | AP3: 0 | AQ3: 0 | AR3: 0 | AS3: 0 | AT3: 0 | AU3: 0 | AV3: 0 | AW3: 0 | AX3: 0 | AY3: 0 | AZ3: 0 | BA3: 0 | BB3: 0 | BC3: 0 | BD3: 0 | BE3: 0 | BF3: 0 | BG3: 0 | BH3: 0 | BI3: 0 | BJ3: 0 | BK3: 0 | BL3: 0 | BM3: 0 | BN3: 2 | BO3: 0 | BP3: 0 | BQ3: 0 | BR3: 0 | BS3: 0 | BT3: 0 | BU3: 0 | BV3: 0 | BW3: 0 | BX3: 0 | BY3: 0 | BZ3: 0 | CA3: 0 | CB3: 0 | CC3: 0 | CD3: 0 | CE3: 0 | CF3: 0 | CG3: 0 | CH3: 0 | CI3: 0 | CJ3: 0 | CK3: 0 | CL3: 0 | CM3: 0 | CN3: 0 | CO3: 0 | CP3: 0 | CQ3: 0 | CR3: 0 | CS3: 0 | CT3: 0 | CU3: 0 | CV3: 0 | CW3: 0 | CX3: 0 | CY3: 0 | CZ3: 0 | DA3: 0 | DB3: 0 | DC3: 0 | DD3: 0 | DE3: 0 | DF3: 0 | DG3: 0 | DH3: 0 | DI3: 0 | DJ3: 0 | DK3: 0 | DL3: 0 | DM3: 0 | DN3: 0 | DO3: 0 | DP3: 0 | DQ3: 2 | DR3: 0 | DS3: 0 | DT3: 0 | DU3: 0 | DV3: 0 | DW3: 0 | DX3: 0 | DY3: 0 | DZ3: 0 | EA3: 0 | EB3: 0 | EC3: 0 | ED3: 0 | EE3: 0 | EF3: 0 | EG3: 0 | EH3: 0 | EI3: 0 | EJ3: 0 | EK3: 0 | EL3: 0 | EM3: 0 | EN3: 0 | EO3: 0 | EP3: 0 | EQ3: 0 | ER3: 0 | ES3: 0 | ET3: 0 | EU3: 0 | EV3: 0 | EW3: 0 | EX3: 0 | EY3: 0 | EZ3: 0 | FA3: 0 | FB3: 0 | FC3: 0 | FD3: 0 | FE3: 0 | FF3: 0 | FG3: 0 | FH3: 0 | FI3: 0 | FJ3: 0 | FK3: 0 | FL3: 0 | FM3: 0 | FN3: 0 | FO3: 0 | FP3: 0 | FQ3: 0 | FR3: 0 | FS3: 0 | FT3: 0 | FU3: 0 | FV3: 0 | FW3: 0 | FX3: 0 | FY3: 0 | FZ3: 0 | GA3: 0 | GB3: 0 | GC3: 0 | GD3: 0 | GE3: 0 | GF3: 0 | GG3: 0 | GH3: 0 | GI3: 0 | GJ3: 0 | GK3: 0 | GL3: 0 | GM3: 0 | GN3: 0 | GO3: 0 | GP3: 0 | GQ3: 0 | GR3: 0 | GS3: -1 | GT3: 2 | GU3: 2 | GV3: 2 | GW3: 1 | GX3: 1 | GY3: 1 | GZ3: 0 | HA3: 0 | HB3: 1 | HC3: 2 | HD3: -1 | HE3: 1 | HF3: -1 | HG3: 2 | HH3: 2 | HI3: 0 | HJ3: 2 | HK3: 2 | HL3: 1 | HM3: 0 | HN3: 2 | HO3: 2 | HP3: 2 | HQ3: 2 | HR3: 0 | HS3: 0 | HT3: 1 | HU3: 2 | HV3: 2 | HW3: 2 | HX3: 0 | HY3: 2 | HZ3: 2 | IA3: 2 | IB3: 2 | IC3: 2 | ID3: 2 | IE3: 2 | IF3: 2 | IG3: 2 | IH3: 1 | II3: 0 | IJ3: 0 | IK3: 0 | IL3: 0 | IM3: 0 | IN3: 0 | IO3: 0 | IP3: 0 | IQ3: 0 | IR3: 2 | IS3: 0 | IT3: 0 | IU3: 0 | IV3: 0 | IW3: 0 | IX3: 0 | IY3: 2 | IZ3: 1 | JA3: 0 | JB3: 2 | JC3: 2 | JD3: 0 | JE3: 0 | JF3: 2 | JG3: 2 | JH3: 0 | JI3: 2 | JJ3: 1 | JK3: 0 | JL3: 0 | JM3: 0 | JN3: 0 | JO3: 0 | JP3: 0 | JQ3: 2 | JR3: 0 | JS3: 0 | JT3: 2 | JU3: 0 | JV3: 1 | JW3: 0 | JX3: -1 | JY3: 0 | JZ3: 0 | KA3: 0 | KB3: 0 | KC3: 0 | KD3: 0 | KE3: 0 | KF3: 0 | KG3: 0 | KH3: 0 | KI3: 0 | KJ3: 0 | KK3: 0 | KL3: 0 | KM3: 0 | KN3: 0 | KO3: 0 | KP3: 0 | KQ3: 0 | KR3: 0 | KS3: 0 | KT3: 0 | KU3: 0 | KV3: 0 | KW3: 0 | KX3: 0 | KY3: 0 | KZ3: 0 | LA3: 0 | LB3: 0 | LC3: 0 | LD3: 0 | LE3: 0 | LF3: 0 | LG3: 0 | LH3: 0 | LI3: 0 | LJ3: 0 | LK3: 0 | LL3: 0 | LM3: 0 | LN3: 0 | LO3: 0 | LP3: 0 | LQ3: 0 | LR3: 0 | LS3: 0 | LT3: 0 | LU3: 0 | LV3: 0 | LW3: 0 | LX3: 0 | LY3: 0 | LZ3: 0 | MA3: 0 | MB3: 0 | MC3: 0 | MD3: 0 | ME3: 0 | MF3: 0 | MG3: 0 | MH3: 0 | MI3: 0 | MJ3: 0 | MK3: 0 | ML3: 0 | MM3: 2 | MN3: 0 | MO3: 2 | MP3: -1 | MQ3: 0 | MR3: 0 | MS3: 0 | MT3: 0 | MU3: 0 | MV3: 0 | MW3: 2 | MX3: 0 | MY3: 0 | MZ3: 0 | NA3: 0 | NB3: 0 | NC3: 0 | ND3: 0 | NE3: 2 | NF3: 0 | NG3: 0 | NH3: 0 | NI3: 0 | NJ3: 1 | NK3: 0 | NL3: 2 | NM3: 2 | NN3: 2 | NO3: 2 | NP3: 0 | NQ3: 2 | NR3: 2 | NS3: 1 | NT3: 0 | NU3: 0 | NV3: 0 | NW3: 0 | NX3: 0 | NY3: 0 | NZ3: 0 | OA3: 0 | OB3: 0 | OC3: 0 | OD3: 0 | OE3: 0 | OF3: 0 | OG3: 1 | OH3: 0 | OI3: 0 | OJ3: 0 | OK3: 0 | OL3: 0 | OM3: 2 | ON3: 0 | OO3: 0 | OP3: 0 | OQ3: 0 | OR3: 0 | OS3: 0 | OT3: 0
A4: S2_1471218227 | B4: TC/T | C4: chr1 | D4: 3471218227 | E4: 0 | F4: 0 | G4: 0 | H4: 0 | I4: 0 | J4: 0 | K4: 0 | L4: 0 | M4: 0 | N4: 0 | O4: 0 | P4: 0 | Q4: 0 | R4: 0 | S4: 0 | T4: 0 | U4: 0 | V4: 0 | W4: 0 | X4: 0 | Y4: 0 | Z4: 0 | AA4: 0 | AB4: 0 | AC4: 0 | AD4: 0 | AE4: 0 | AF4: 0 | AG4: 0 | AH4: 0 | AI4: 0 | AJ4: 0 | AK4: 0 | AL4: 0 | AM4: 0 | AN4: 0 | AO4: 0 | AP4: 0 | AQ4: 0 | AR4: 0 | AS4: 0 | AT4: 0 | AU4: 0 | AV4: 0 | AW4: 0 | AX4: 0 | AY4: 0 | AZ4: 0 | BA4: 0 | BB4: 0 | BC4: 0 | BD4: 0 | BE4: 0 | BF4: 0 | BG4: 0 | BH4: 0 | BI4: 0 | BJ4: 0 | BK4: 0 | BL4: 0 | BM4: 0 | BN4: 0 | BO4: 0 | BP4: 0 | BQ4: 0 | BR4: 0 | BS4: 0 | BT4: 0 | BU4: 0 | BV4: 0 | BW4: 0 | BX4: 0 | BY4: 0 | BZ4: 0 | CA4: 0 | CB4: 0 | CC4: 0 | CD4: 0 | CE4: 0 | CF4: 0 | CG4: 0 | CH4: 0 | CI4: 0 | CJ4: 0 | CK4: 0 | CL4: 0 | CM4: 0 | CN4: 0 | CO4: 0 | CP4: 0 | CQ4: 0 | CR4: 0 | CS4: 0 | CT4: 0 | CU4: 0 | CV4: 0 | CW4: 0 | CX4: 0 | CY4: 0 | CZ4: 0 | DA4: 0 | DB4: 0 | DC4: 0 | DD4: 0 | DE4: 0 | DF4: 0 | DG4: 0 | DH4: 0 | DI4: 0 | DJ4: 0 | DK4: 0 | DL4: 0 | DM4: 0 | DN4: 0 | DO4: 0 | DP4: 0 | DQ4: 0 | DR4: 0 | DS4: 0 | DT4: 0 | DU4: 0 | DV4: 0 | DW4: 0 | DX4: 0 | DY4: 0 | DZ4: 0 | EA4: 0 | EB4: 0 | EC4: 0 | ED4: 0 | EE4: 0 | EF4: 0 | EG4: 0 | EH4: 0 | EI4: 0 | EJ4: 0 | EK4: 0 | EL4: 0 | EM4: 0 | EN4: 0 | EO4: 0 | EP4: 0 | EQ4: 0 | ER4: 0 | ES4: 0 | ET4: 0 | EU4: 0 | EV4: 0 | EW4: 0 | EX4: 0 | EY4: 0 | EZ4: 0 | FA4: 0 | FB4: 0 | FC4: 0 | FD4: 0 | FE4: 0 | FF4: 0 | FG4: 0 | FH4: 0 | FI4: 0 | FJ4: 0 | FK4: 0 | FL4: 0 | FM4: 0 | FN4: 0 | FO4: 0 | FP4: 0 | FQ4: 0 | FR4: 0 | FS4: 0 | FT4: 0 | FU4: 0 | FV4: 0 | FW4: 0 | FX4: 0 | FY4: 0 | FZ4: 0 | GA4: 0 | GB4: 0 | GC4: 0 | GD4: 0 | GE4: 0 | GF4: 0 | GG4: 0 | GH4: 0 | GI4: 0 | GJ4: 0 | GK4: 0 | GL4: 0 | GM4: 0 | GN4: 0 | GO4: 0 | GP4: 0 | GQ4: 0 | GR4: 0 | GS4: 1 | GT4: 1 | GU4: 1 | GV4: 1 | GW4: 0 | GX4: 1 | GY4: 0 | GZ4: 0 | HA4: 0 | HB4: 0 | HC4: 0 | HD4: 1 | HE4: 0 | HF4: 0 | HG4: 2 | HH4: 1 | HI4: 1 | HJ4: 1 | HK4: -1 | HL4: 1 | HM4: 0 | HN4: 1 | HO4: 2 | HP4: 1 | HQ4: 2 | HR4: 0 | HS4: 0 | HT4: 0 | HU4: 1 | HV4: 2 | HW4: 2 | HX4: 0 | HY4: 2 | HZ4: 0 | IA4: 2 | IB4: 2 | IC4: -1 | ID4: -1 | IE4: 2 | IF4: 1 | IG4: -1 | IH4: -1 | II4: 0 | IJ4: 0 | IK4: 0 | IL4: 0 | IM4: 0 | IN4: 0 | IO4: 0 | IP4: 0 | IQ4: 0 | IR4: 1 | IS4: 0 | IT4: 0 | IU4: 0 | IV4: 0 | IW4: 0 | IX4: 0 | IY4: 1 | IZ4: 1 | JA4: 0 | JB4: 1 | JC4: 2 | JD4: 0 | JE4: 0 | JF4: 2 | JG4: 2 | JH4: 0 | JI4: 1 | JJ4: 0 | JK4: 0 | JL4: 0 | JM4: 0 | JN4: 0 | JO4: 0 | JP4: 0 | JQ4: -1 | JR4: 0 | JS4: 0 | JT4: 1 | JU4: 0 | JV4: 0 | JW4: 0 | JX4: 2 | JY4: 0 | JZ4: 0 | KA4: 0 | KB4: 0 | KC4: 0 | KD4: 0 | KE4: 0 | KF4: 0 | KG4: 0 | KH4: 0 | KI4: 0 | KJ4: 0 | KK4: 0 | KL4: 0 | KM4: 0 | KN4: 0 | KO4: 0 | KP4: 0 | KQ4: 0 | KR4: 0 | KS4: 0 | KT4: 0 | KU4: 0 | KV4: 0 | KW4: 0 | KX4: 0 | KY4: 0 | KZ4: 0 | LA4: 0 | LB4: 0 | LC4: 0 | LD4: 0 | LE4: 0 | LF4: 0 | LG4: 0 | LH4: 0 | LI4: 0 | LJ4: 0 | LK4: 0 | LL4: 0 | LM4: 0 | LN4: 0 | LO4: 0 | LP4: 0 | LQ4: 0 | LR4: 0 | LS4: 0 | LT4: 0 | LU4: 0 | LV4: 0 | LW4: 0 | LX4: 0 | LY4: 0 | LZ4: 0 | MA4: 0 | MB4: 0 | MC4: 0 | MD4: 0 | ME4: 0 | MF4: 0 | MG4: 0 | MH4: 0 | MI4: 0 | MJ4: 0 | MK4: 0 | ML4: 0 | MM4: 1 | MN4: 0 | MO4: 2 | MP4: 1 | MQ4: 0 | MR4: 0 | MS4: 0 | MT4: 0 | MU4: 0 | MV4: 0 | MW4: 1 | MX4: 0 | MY4: 0 | MZ4: 0 | NA4: 0 | NB4: 0 | NC4: 0 | ND4: 0 | NE4: 2 | NF4: 0 | NG4: 0 | NH4: 0 | NI4: 0 | NJ4: 1 | NK4: 0 | NL4: 1 | NM4: 1 | NN4: 2 | NO4: 1 | NP4: 0 | NQ4: 1 | NR4: -1 | NS4: 1 | NT4: 0 | NU4: 0 | NV4: 0 | NW4: 0 | NX4: 0 | NY4: 0 | NZ4: 0 | OA4: 0 | OB4: 0 | OC4: 0 | OD4: 0 | OE4: 0 | OF4: 0 | OG4: 0 | OH4: 0 | OI4: 0 | OJ4: 0 | OK4: 0 | OL4: 0 | OM4: -1 | ON4: 0 | OO4: 0 | OP4: 0 | OQ4: 0 | OR4: 0 | OS4: 0 | OT4: 0
A5: S2_1471219336 | B5: TA/T | C5: chr1 | D5: 3471219336 | E5: 0 | F5: 0 | G5: 0 | H5: 0 | I5: 0 | J5: 0 | K5: 0 | L5: 0 | M5: 0 | N5: 0 | O5: 0 | P5: 0 | Q5: 0 | R5: 0 | S5: 0 | T5: 0 | U5: 0 | V5: 0 | W5: 0 | X5: 0 | Y5: 0 | Z5: 0 | AA5: 0 | AB5: 0 | AC5: 0 | AD5: 0 | AE5: 0 | AF5: 0 | AG5: 0 | AH5: 0 | AI5: 0 | AJ5: 0 | AK5: 0 | AL5: 0 | AM5: 0 | AN5: 0 | AO5: 0 | AP5: 0 | AQ5: 0 | AR5: 0 | AS5: 0 | AT5: 0 | AU5: 0 | AV5: 0 | AW5: 0 | AX5: 0 | AY5: 0 | AZ5: 0 | BA5: 0 | BB5: 0 | BC5: 0 | BD5: 0 | BE5: 0 | BF5: 0 | BG5: 0 | BH5: 0 | BI5: 0 | BJ5: 0 | BK5: 0 | BL5: 0 | BM5: 0 | BN5: 0 | BO5: 0 | BP5: 0 | BQ5: 0 | BR5: 0 | BS5: 0 | BT5: 0 | BU5: 0 | BV5: 0 | BW5: 0 | BX5: 0 | BY5: 0 | BZ5: 0 | CA5: 0 | CB5: 0 | CC5: 0 | CD5: 0 | CE5: 0 | CF5: 0 | CG5: 0 | CH5: 0 | CI5: 0 | CJ5: 0 | CK5: 0 | CL5: 0 | CM5: 0 | CN5: 0 | CO5: 0 | CP5: 0 | CQ5: 0 | CR5: 0 | CS5: 0 | CT5: 0 | CU5: 0 | CV5: 0 | CW5: 0 | CX5: 0 | CY5: 0 | CZ5: 0 | DA5: 0 | DB5: 0 | DC5: 0 | DD5: 0 | DE5: 0 | DF5: 0 | DG5: 0 | DH5: 0 | DI5: 0 | DJ5: 0 | DK5: 0 | DL5: 0 | DM5: 0 | DN5: 0 | DO5: 0 | DP5: 0 | DQ5: 0 | DR5: 0 | DS5: 0 | DT5: 0 | DU5: 0 | DV5: 0 | DW5: 0 | DX5: 0 | DY5: 0 | DZ5: 0 | EA5: 0 | EB5: 0 | EC5: 0 | ED5: 0 | EE5: 0 | EF5: 0 | EG5: 0 | EH5: 0 | EI5: 0 | EJ5: 0 | EK5: 0 | EL5: 0 | EM5: 0 | EN5: 0 | EO5: 0 | EP5: 0 | EQ5: 0 | ER5: 0 | ES5: 0 | ET5: 0 | EU5: 0 | EV5: 0 | EW5: 0 | EX5: 0 | EY5: 0 | EZ5: 0 | FA5: 0 | FB5: 0 | FC5: 0 | FD5: 0 | FE5: 0 | FF5: 0 | FG5: 0 | FH5: 0 | FI5: 0 | FJ5: 0 | FK5: 0 | FL5: 0 | FM5: 0 | FN5: 0 | FO5: 0 | FP5: 0 | FQ5: 0 | FR5: 0 | FS5: 0 | FT5: 0 | FU5: 0 | FV5: 0 | FW5: 0 | FX5: 0 | FY5: 0 | FZ5: 0 | GA5: 0 | GB5: 0 | GC5: 0 | GD5: 0 | GE5: 0 | GF5: 0 | GG5: 0 | GH5: 0 | GI5: 0 | GJ5: 0 | GK5: 0 | GL5: 0 | GM5: 0 | GN5: 0 | GO5: 0 | GP5: 0 | GQ5: 0 | GR5: 0 | GS5: 2 | GT5: 2 | GU5: 2 | GV5: 2 | GW5: 1 | GX5: 1 | GY5: 1 | GZ5: 0 | HA5: 0 | HB5: 1 | HC5: 1 | HD5: 1 | HE5: -1 | HF5: -1 | HG5: 2 | HH5: 2 | HI5: 0 | HJ5: 2 | HK5: -1 | HL5: -1 | HM5: 0 | HN5: 2 | HO5: 2 | HP5: 2 | HQ5: 2 | HR5: 0 | HS5: 0 | HT5: 1 | HU5: 2 | HV5: 2 | HW5: 2 | HX5: 0 | HY5: -1 | HZ5: 1 | IA5: 2 | IB5: -1 | IC5: -1 | ID5: 1 | IE5: 2 | IF5: 1 | IG5: 2 | IH5: 1 | II5: 0 | IJ5: 0 | IK5: 0 | IL5: 0 | IM5: 0 | IN5: 0 | IO5: 0 | IP5: 0 | IQ5: 0 | IR5: 2 | IS5: 0 | IT5: 0 | IU5: 0 | IV5: 0 | IW5: 0 | IX5: 0 | IY5: 2 | IZ5: 2 | JA5: 0 | JB5: 2 | JC5: 2 | JD5: 0 | JE5: 0 | JF5: 1 | JG5: -1 | JH5: 0 | JI5: 2 | JJ5: -1 | JK5: 0 | JL5: 0 | JM5: 0 | JN5: 0 | JO5: 0 | JP5: 0 | JQ5: 2 | JR5: 0 | JS5: 0 | JT5: 2 | JU5: 0 | JV5: 0 | JW5: 0 | JX5: 2 | JY5: 0 | JZ5: 0 | KA5: 0 | KB5: 0 | KC5: 0 | KD5: 0 | KE5: 0 | KF5: 0 | KG5: 0 | KH5: 0 | KI5: 0 | KJ5: 0 | KK5: 0 | KL5: 0 | KM5: 0 | KN5: 0 | KO5: 0 | KP5: 0 | KQ5: 0 | KR5: 0 | KS5: 0 | KT5: 0 | KU5: 0 | KV5: 0 | KW5: 0 | KX5: 0 | KY5: 0 | KZ5: 0 | LA5: 0 | LB5: 0 | LC5: 0 | LD5: 0 | LE5: 0 | LF5: 0 | LG5: 0 | LH5: 0 | LI5: 0 | LJ5: 0 | LK5: 0 | LL5: 0 | LM5: 0 | LN5: 0 | LO5: 0 | LP5: 0 | LQ5: 0 | LR5: 0 | LS5: 0 | LT5: 0 | LU5: 0 | LV5: 0 | LW5: 0 | LX5: 0 | LY5: 0 | LZ5: 0 | MA5: 0 | MB5: 0 | MC5: 0 | MD5: 0 | ME5: 0 | MF5: 0 | MG5: 0 | MH5: 0 | MI5: 0 | MJ5: 0 | MK5: 0 | ML5: 0 | MM5: 2 | MN5: 0 | MO5: 2 | MP5: 2 | MQ5: 0 | MR5: 0 | MS5: 0 | MT5: 1 | MU5: 0 | MV5: 0 | MW5: 2 | MX5: 0 | MY5: 0 | MZ5: 0 | NA5: 0 | NB5: 0 | NC5: 0 | ND5: 0 | NE5: 2 | NF5: 0 | NG5: 0 | NH5: 0 | NI5: 0 | NJ5: 1 | NK5: 0 | NL5: 2 | NM5: 2 | NN5: 2 | NO5: 2 | NP5: 0 | NQ5: 2 | NR5: 2 | NS5: 1 | NT5: 0 | NU5: 0 | NV5: 0 | NW5: 0 | NX5: 0 | NY5: 0 | NZ5: 0 | OA5: 0 | OB5: 0 | OC5: 0 | OD5: 0 | OE5: 0 | OF5: 0 | OG5: 0 | OH5: 0 | OI5: 0 | OJ5: 0 | OK5: 0 | OL5: 0 | OM5: 2 | ON5: 0 | OO5: 0 | OP5: 0 | OQ5: 0 | OR5: 0 | OS5: 0 | OT5: 0
A6: S2_1471219725 | B6: CTTTTTTT/CTTTTTTTT | C6: chr1 | D6: 3471219725 | E6: 0 | F6: 0 | G6: 0 | H6: 0 | I6: 0 | J6: 0 | K6: 0 | L6: 0 | M6: 0 | N6: 0 | O6: 0 | P6: 0 | Q6: 0 | R6: 0 | S6: 0 | T6: 0 | U6: 0 | V6: 0 | W6: 0 | X6: 0 | Y6: 0 | Z6: 0 | AA6: 0 | AB6: 0 | AC6: 0 | AD6: 0 | AE6: 0 | AF6: 0 | AG6: 0 | AH6: 0 | AI6: 0 | AJ6: 0 | AK6: 0 | AL6: 0 | AM6: 0 | AN6: 0 | AO6: 0 | AP6: 0 | AQ6: 0 | AR6: 0 | AS6: 0 | AT6: 0 | AU6: 0 | AV6: 0 | AW6: 0 | AX6: 0 | AY6: 0 | AZ6: 0 | BA6: 0 | BB6: 0 | BC6: 0 | BD6: 0 | BE6: 0 | BF6: 0 | BG6: 0 | BH6: 0 | BI6: 0 | BJ6: 0 | BK6: 0 | BL6: 0 | BM6: 0 | BN6: 0 | BO6: 0 | BP6: 0 | BQ6: 0 | BR6: 0 | BS6: 0 | BT6: 0 | BU6: 0 | BV6: 0 | BW6: 0 | BX6: 0 | BY6: 0 | BZ6: 0 | CA6: 0 | CB6: 0 | CC6: 0 | CD6: 0 | CE6: 0 | CF6: 0 | CG6: 0 | CH6: 0 | CI6: 0 | CJ6: 0 | CK6: 0 | CL6: 0 | CM6: 0 | CN6: 0 | CO6: 0 | CP6: 0 | CQ6: 0 | CR6: 0 | CS6: 0 | CT6: 0 | CU6: 0 | CV6: 0 | CW6: 0 | CX6: 0 | CY6: 0 | CZ6: 0 | DA6: 0 | DB6: 0 | DC6: 0 | DD6: 0 | DE6: 0 | DF6: 0 | DG6: 0 | DH6: 0 | DI6: 0 | DJ6: 0 | DK6: 0 | DL6: 0 | DM6: 0 | DN6: 0 | DO6: 0 | DP6: 0 | DQ6: 0 | DR6: 0 | DS6: 0 | DT6: 0 | DU6: 0 | DV6: 0 | DW6: 0 | DX6: 0 | DY6: 0 | DZ6: 0 | EA6: 0 | EB6: 0 | EC6: 0 | ED6: 0 | EE6: 0 | EF6: 0 | EG6: 0 | EH6: 0 | EI6: 0 | EJ6: 0 | EK6: 0 | EL6: 0 | EM6: 0 | EN6: 0 | EO6: 0 | EP6: 0 | EQ6: 0 | ER6: 0 | ES6: 0 | ET6: 0 | EU6: 0 | EV6: 0 | EW6: 0 | EX6: 0 | EY6: 0 | EZ6: 0 | FA6: 0 | FB6: 0 | FC6: 0 | FD6: 0 | FE6: 0 | FF6: 0 | FG6: 0 | FH6: 0 | FI6: 0 | FJ6: 0 | FK6: 0 | FL6: 0 | FM6: 0 | FN6: 0 | FO6: 0 | FP6: 0 | FQ6: 0 | FR6: 0 | FS6: 0 | FT6: 0 | FU6: 0 | FV6: 0 | FW6: 0 | FX6: 0 | FY6: 0 | FZ6: 0 | GA6: 0 | GB6: 0 | GC6: 0 | GD6: 0 | GE6: 0 | GF6: 0 | GG6: 0 | GH6: 0 | GI6: 0 | GJ6: 0 | GK6: 0 | GL6: 0 | GM6: 0 | GN6: 0 | GO6: 0 | GP6: 0 | GQ6: 0 | GR6: 0 | GS6: 2 | GT6: 2 | GU6: -1 | GV6: 2 | GW6: 1 | GX6: 1 | GY6: 0 | GZ6: 0 | HA6: 0 | HB6: 1 | HC6: 0 | HD6: -1 | HE6: -1 | HF6: 1 | HG6: 2 | HH6: 2 | HI6: 1 | HJ6: 2 | HK6: 2 | HL6: -1 | HM6: 0 | HN6: 1 | HO6: 2 | HP6: 2 | HQ6: 2 | HR6: 0 | HS6: 0 | HT6: 1 | HU6: 2 | HV6: 2 | HW6: 2 | HX6: 0 | HY6: 2 | HZ6: 1 | IA6: 2 | IB6: 2 | IC6: 2 | ID6: 2 | IE6: 2 | IF6: 2 | IG6: 1 | IH6: 1 | II6: 0 | IJ6: 0 | IK6: 0 | IL6: 0 | IM6: 0 | IN6: 0 | IO6: 0 | IP6: 0 | IQ6: 0 | IR6: 2 | IS6: 0 | IT6: 0 | IU6: 0 | IV6: 0 | IW6: 0 | IX6: 0 | IY6: 2 | IZ6: 2 | JA6: 0 | JB6: 1 | JC6: 2 | JD6: 0 | JE6: 0 | JF6: -1 | JG6: -1 | JH6: 0 | JI6: 2 | JJ6: 1 | JK6: 0 | JL6: 0 | JM6: 0 | JN6: 0 | JO6: 0 | JP6: 0 | JQ6: 2 | JR6: 0 | JS6: 0 | JT6: 2 | JU6: 0 | JV6: 1 | JW6: 0 | JX6: 2 | JY6: 0 | JZ6: 0 | KA6: 0 | KB6: 0 | KC6: 0 | KD6: 0 | KE6: 0 | KF6: 0 | KG6: 0 | KH6: 0 | KI6: 0 | KJ6: 0 | KK6: 0 | KL6: 0 | KM6: 0 | KN6: 0 | KO6: 0 | KP6: 0 | KQ6: 0 | KR6: 0 | KS6: 0 | KT6: 0 | KU6: 0 | KV6: 0 | KW6: 0 | KX6: 0 | KY6: 0 | KZ6: 0 | LA6: 0 | LB6: 0 | LC6: 0 | LD6: 0 | LE6: 0 | LF6: 0 | LG6: 0 | LH6: 0 | LI6: 0 | LJ6: 0 | LK6: 0 | LL6: 0 | LM6: 0 | LN6: 0 | LO6: 0 | LP6: 0 | LQ6: 0 | LR6: 0 | LS6: 0 | LT6: 0 | LU6: 0 | LV6: 0 | LW6: 0 | LX6: 0 | LY6: 0 | LZ6: 0 | MA6: 0 | MB6: 0 | MC6: 0 | MD6: 0 | ME6: 0 | MF6: 0 | MG6: 0 | MH6: 0 | MI6: 0 | MJ6: 0 | MK6: 0 | ML6: 0 | MM6: 2 | MN6: 0 | MO6: 1 | MP6: 2 | MQ6: 0 | MR6: 0 | MS6: 0 | MT6: 1 | MU6: 0 | MV6: 0 | MW6: 1 | MX6: 0 | MY6: 0 | MZ6: 0 | NA6: 0 | NB6: 0 | NC6: 0 | ND6: 0 | NE6: 2 | NF6: 0 | NG6: 0 | NH6: 0 | NI6: 0 | NJ6: 1 | NK6: 0 | NL6: 2 | NM6: 2 | NN6: 2 | NO6: 1 | NP6: 0 | NQ6: 2 | NR6: 2 | NS6: 1 | NT6: 0 | NU6: 0 | NV6: 0 | NW6: 0 | NX6: 0 | NY6: 0 | NZ6: 0 | OA6: 0 | OB6: 0 | OC6: 0 | OD6: 0 | OE6: 0 | OF6: 0 | OG6: 0 | OH6: 0 | OI6: 0 | OJ6: 0 | OK6: 0 | OL6: 0 | OM6: -1 | ON6: 0 | OO6: 0 | OP6: 0 | OQ6: 0 | OR6: 0 | OS6: 0 | OT6: 0
A7: S2_1471222147 | B7: TAAAAAAAA/TAAAAAAAAA | C7: chr1 | D7: 3471222147 | E7: 0 | F7: 0 | G7: 0 | H7: 1 | I7: 0 | J7: 0 | K7: 0 | L7: 0 | M7: 0 | N7: 0 | O7: 0 | P7: 0 | Q7: 0 | R7: 0 | S7: 0 | T7: 0 | U7: 0 | V7: 0 | W7: 1 | X7: 0 | Y7: 2 | Z7: 0 | AA7: 0 | AB7: 2 | AC7: 0 | AD7: 0 | AE7: 0 | AF7: 0 | AG7: 0 | AH7: 0 | AI7: 0 | AJ7: 0 | AK7: 0 | AL7: 0 | AM7: 0 | AN7: 0 | AO7: 0 | AP7: 0 | AQ7: 0 | AR7: 0 | AS7: 0 | AT7: 0 | AU7: 0 | AV7: 0 | AW7: 0 | AX7: 0 | AY7: 0 | AZ7: 0 | BA7: 0 | BB7: 0 | BC7: 2 | BD7: 0 | BE7: 0 | BF7: 0 | BG7: 0 | BH7: 0 | BI7: 0 | BJ7: 0 | BK7: 0 | BL7: 0 | BM7: 0 | BN7: 2 | BO7: 0 | BP7: 0 | BQ7: 0 | BR7: 0 | BS7: 0 | BT7: 0 | BU7: 0 | BV7: 0 | BW7: 0 | BX7: 0 | BY7: 0 | BZ7: 0 | CA7: 0 | CB7: 0 | CC7: 0 | CD7: 1 | CE7: 0 | CF7: 2 | CG7: 0 | CH7: 0 | CI7: 0 | CJ7: 0 | CK7: 0 | CL7: 0 | CM7: 0 | CN7: 0 | CO7: 0 | CP7: 0 | CQ7: 0 | CR7: 0 | CS7: 0 | CT7: 0 | CU7: 0 | CV7: 0 | CW7: 0 | CX7: 0 | CY7: 0 | CZ7: 0 | DA7: 2 | DB7: 0 | DC7: 0 | DD7: 0 | DE7: 0 | DF7: 0 | DG7: 0 | DH7: 0 | DI7: 0 | DJ7: 0 | DK7: 0 | DL7: 0 | DM7: 0 | DN7: 0 | DO7: 0 | DP7: 0 | DQ7: 2 | DR7: 2 | DS7: 0 | DT7: 0 | DU7: 0 | DV7: 0 | DW7: 0 | DX7: 0 | DY7: 0 | DZ7: 0 | EA7: 0 | EB7: 2 | EC7: 0 | ED7: 0 | EE7: 0 | EF7: 0 | EG7: 0 | EH7: 0 | EI7: 0 | EJ7: 0 | EK7: 0 | EL7: 0 | EM7: 0 | EN7: 0 | EO7: 0 | EP7: 0 | EQ7: 0 | ER7: 0 | ES7: 0 | ET7: 0 | EU7: 0 | EV7: 0 | EW7: 0 | EX7: 0 | EY7: 0 | EZ7: 0 | FA7: 0 | FB7: 0 | FC7: 2 | FD7: 0 | FE7: 0 | FF7: 0 | FG7: 0 | FH7: 0 | FI7: 0 | FJ7: 0 | FK7: 0 | FL7: 0 | FM7: 2 | FN7: 0 | FO7: 0 | FP7: 0 | FQ7: 0 | FR7: 0 | FS7: -1 | FT7: 2 | FU7: 0 | FV7: 0 | FW7: 0 | FX7: 0 | FY7: 0 | FZ7: 0 | GA7: 0 | GB7: 0 | GC7: 2 | GD7: 0 | GE7: 0 | GF7: 0 | GG7: 0 | GH7: 0 | GI7: 0 | GJ7: 0 | GK7: 0 | GL7: 0 | GM7: 0 | GN7: 0 | GO7: 0 | GP7: 0 | GQ7: 0 | GR7: 0 | GS7: -1 | GT7: 2 | GU7: 2 | GV7: 2 | GW7: 1 | GX7: 1 | GY7: 1 | GZ7: 0 | HA7: 0 | HB7: 1 | HC7: 1 | HD7: 1 | HE7: 1 | HF7: 1 | HG7: -1 | HH7: 2 | HI7: 1 | HJ7: 2 | HK7: 2 | HL7: 2 | HM7: 0 | HN7: 2 | HO7: 2 | HP7: -1 | HQ7: 2 | HR7: 0 | HS7: 0 | HT7: -1 | HU7: -1 | HV7: -1 | HW7: 2 | HX7: 0 | HY7: 2 | HZ7: 1 | IA7: 2 | IB7: 2 | IC7: 2 | ID7: 2 | IE7: -1 | IF7: 2 | IG7: -1 | IH7: 1 | II7: 0 | IJ7: 0 | IK7: 0 | IL7: 0 | IM7: 0 | IN7: 0 | IO7: 0 | IP7: 0 | IQ7: 0 | IR7: 2 | IS7: 0 | IT7: 0 | IU7: 0 | IV7: 0 | IW7: 0 | IX7: 0 | IY7: 2 | IZ7: 2 | JA7: 0 | JB7: 2 | JC7: -1 | JD7: 0 | JE7: 0 | JF7: 2 | JG7: 2 | JH7: 0 | JI7: -1 | JJ7: 1 | JK7: 0 | JL7: 0 | JM7: 0 | JN7: 0 | JO7: 0 | JP7: 0 | JQ7: 2 | JR7: 0 | JS7: 0 | JT7: -1 | JU7: 0 | JV7: 1 | JW7: 0 | JX7: -1 | JY7: 0 | JZ7: 0 | KA7: 0 | KB7: 0 | KC7: 0 | KD7: 0 | KE7: 0 | KF7: 0 | KG7: 0 | KH7: 0 | KI7: 0 | KJ7: 0 | KK7: 0 | KL7: 0 | KM7: 0 | KN7: 0 | KO7: 0 | KP7: 0 | KQ7: 0 | KR7: 0 | KS7: 0 | KT7: 0 | KU7: 0 | KV7: 0 | KW7: 0 | KX7: 0 | KY7: 0 | KZ7: 0 | LA7: 0 | LB7: 0 | LC7: 0 | LD7: 0 | LE7: 0 | LF7: 0 | LG7: 0 | LH7: 0 | LI7: 0 | LJ7: 0 | LK7: 0 | LL7: 0 | LM7: 0 | LN7: 0 | LO7: 0 | LP7: 0 | LQ7: 0 | LR7: 0 | LS7: 0 | LT7: 0 | LU7: 0 | LV7: 0 | LW7: 0 | LX7: 0 | LY7: 0 | LZ7: 0 | MA7: 0 | MB7: 0 | MC7: 0 | MD7: 0 | ME7: 0 | MF7: 0 | MG7: 0 | MH7: 0 | MI7: 0 | MJ7: 0 | MK7: 0 | ML7: 0 | MM7: 1 | MN7: 0 | MO7: 2 | MP7: -1 | MQ7: 0 | MR7: 0 | MS7: 0 | MT7: 1 | MU7: 0 | MV7: 0 | MW7: 2 | MX7: 0 | MY7: 0 | MZ7: 0 | NA7: 0 | NB7: 0 | NC7: 0 | ND7: 0 | NE7: 2 | NF7: 0 | NG7: 0 | NH7: 0 | NI7: 0 | NJ7: 1 | NK7: 0 | NL7: 2 | NM7: -1 | NN7: 2 | NO7: 2 | NP7: 0 | NQ7: 2 | NR7: 2 | NS7: 1 | NT7: 0 | NU7: 0 | NV7: 0 | NW7: 0 | NX7: 0 | NY7: 0 | NZ7: 0 | OA7: 0 | OB7: 0 | OC7: 0 | OD7: 0 | OE7: 0 | OF7: 0 | OG7: 1 | OH7: 0 | OI7: 0 | OJ7: 0 | OK7: 0 | OL7: 0 | OM7: -1 | ON7: 0 | OO7: 0 | OP7: 0 | OQ7: 0 | OR7: 0 | OS7: 0 | OT7: 0
A8: S2_1471222362 | B8: GTAAAATAATTTTACATTATCAGTACATATAAA/GTAAA | C8: chr1 | D8: 3471222362 | E8: 0 | F8: 0 | G8: 0 | H8: 0 | I8: -1 | J8: -1 | K8: 0 | L8: 2 | M8: 0 | N8: 0 | O8: 2 | P8: -1 | Q8: 0 | R8: 0 | S8: 0 | T8: 0 | U8: 0 | V8: 0 | W8: 0 | X8: 0 | Y8: 0 | Z8: -1 | AA8: 0 | AB8: 0 | AC8: 0 | AD8: 0 | AE8: 0 | AF8: 0 | AG8: 0 | AH8: 0 | AI8: 0 | AJ8: 0 | AK8: 0 | AL8: 0 | AM8: 0 | AN8: 0 | AO8: 0 | AP8: 0 | AQ8: 0 | AR8: 0 | AS8: 0 | AT8: 0 | AU8: -1 | AV8: 0 | AW8: -1 | AX8: -1 | AY8: -1 | AZ8: 0 | BA8: 0 | BB8: 0 | BC8: 0 | BD8: 2 | BE8: 0 | BF8: 0 | BG8: 0 | BH8: 0 | BI8: 0 | BJ8: 0 | BK8: 0 | BL8: 0 | BM8: 0 | BN8: 0 | BO8: 0 | BP8: 0 | BQ8: 0 | BR8: 0 | BS8: 2 | BT8: 0 | BU8: 0 | BV8: 0 | BW8: 0 | BX8: 0 | BY8: 0 | BZ8: 0 | CA8: 0 | CB8: 0 | CC8: 0 | CD8: 0 | CE8: 0 | CF8: 0 | CG8: 0 | CH8: 0 | CI8: 0 | CJ8: 0 | CK8: -1 | CL8: 2 | CM8: 0 | CN8: 0 | CO8: 0 | CP8: -1 | CQ8: 0 | CR8: -1 | CS8: 0 | CT8: 0 | CU8: 0 | CV8: 0 | CW8: 0 | CX8: 0 | CY8: 0 | CZ8: 0 | DA8: 0 | DB8: 2 | DC8: 0 | DD8: 0 | DE8: 0 | DF8: 0 | DG8: 0 | DH8: 0 | DI8: 0 | DJ8: 0 | DK8: 0 | DL8: 0 | DM8: -1 | DN8: 2 | DO8: 0 | DP8: 0 | DQ8: 0 | DR8: 0 | DS8: 0 | DT8: 0 | DU8: 0 | DV8: -1 | DW8: 0 | DX8: 0 | DY8: 0 | DZ8: 0 | EA8: 2 | EB8: 0 | EC8: 0 | ED8: 0 | EE8: 0 | EF8: 0 | EG8: 0 | EH8: 0 | EI8: 0 | EJ8: 2 | EK8: 0 | EL8: 0 | EM8: 0 | EN8: 0 | EO8: 0 | EP8: -1 | EQ8: 0 | ER8: 0 | ES8: 0 | ET8: 0 | EU8: 0 | EV8: 0 | EW8: 0 | EX8: 0 | EY8: 0 | EZ8: 0 | FA8: 0 | FB8: 0 | FC8: 0 | FD8: 0 | FE8: 0 | FF8: 0 | FG8: 0 | FH8: 0 | FI8: 0 | FJ8: 0 | FK8: 0 | FL8: 0 | FM8: 0 | FN8: 0 | FO8: 0 | FP8: 0 | FQ8: 0 | FR8: -1 | FS8: 0 | FT8: 0 | FU8: 0 | FV8: 2 | FW8: 0 | FX8: 0 | FY8: 0 | FZ8: -1 | GA8: 0 | GB8: 0 | GC8: 0 | GD8: 0 | GE8: 0 | GF8: 0 | GG8: 0 | GH8: 0 | GI8: 0 | GJ8: 0 | GK8: 0 | GL8: 0 | GM8: 0 | GN8: 0 | GO8: 0 | GP8: 0 | GQ8: -1 | GR8: 2 | GS8: -1 | GT8: 2 | GU8: -1 | GV8: -1 | GW8: 0 | GX8: 0 | GY8: 1 | GZ8: 0 | HA8: 0 | HB8: 1 | HC8: -1 | HD8: 0 | HE8: 1 | HF8: 0 | HG8: 2 | HH8: 2 | HI8: 0 | HJ8: 2 | HK8: 2 | HL8: -1 | HM8: 0 | HN8: -1 | HO8: 2 | HP8: 2 | HQ8: 2 | HR8: 0 | HS8: 0 | HT8: 0 | HU8: 2 | HV8: 2 | HW8: 2 | HX8: 0 | HY8: 2 | HZ8: 0 | IA8: 2 | IB8: 2 | IC8: 2 | ID8: 2 | IE8: 1 | IF8: 2 | IG8: -1 | IH8: 0 | II8: 0 | IJ8: 0 | IK8: 0 | IL8: 0 | IM8: 0 | IN8: 0 | IO8: 0 | IP8: 0 | IQ8: 0 | IR8: 2 | IS8: 0 | IT8: 0 | IU8: 0 | IV8: 0 | IW8: 0 | IX8: 0 | IY8: 2 | IZ8: 2 | JA8: 0 | JB8: 2 | JC8: 2 | JD8: 0 | JE8: 0 | JF8: 2 | JG8: 2 | JH8: 0 | JI8: 2 | JJ8: 1 | JK8: 0 | JL8: 0 | JM8: 0 | JN8: 0 | JO8: 0 | JP8: 0 | JQ8: -1 | JR8: 0 | JS8: 0 | JT8: 2 | JU8: 0 | JV8: 0 | JW8: 0 | JX8: 2 | JY8: 0 | JZ8: 0 | KA8: 0 | KB8: 0 | KC8: 0 | KD8: 0 | KE8: 0 | KF8: 0 | KG8: 0 | KH8: 0 | KI8: 0 | KJ8: 0 | KK8: 0 | KL8: 0 | KM8: 0 | KN8: 0 | KO8: 0 | KP8: 0 | KQ8: 0 | KR8: 0 | KS8: 0 | KT8: 0 | KU8: 0 | KV8: 0 | KW8: 0 | KX8: 0 | KY8: 0 | KZ8: 0 | LA8: 0 | LB8: 0 | LC8: 0 | LD8: 0 | LE8: 0 | LF8: 0 | LG8: 0 | LH8: 0 | LI8: 0 | LJ8: 0 | LK8: 0 | LL8: 0 | LM8: 0 | LN8: 0 | LO8: 0 | LP8: 0 | LQ8: 0 | LR8: 0 | LS8: 0 | LT8: 0 | LU8: 0 | LV8: 0 | LW8: 0 | LX8: 0 | LY8: 0 | LZ8: 0 | MA8: 0 | MB8: 0 | MC8: 0 | MD8: 0 | ME8: 0 | MF8: 0 | MG8: 0 | MH8: 0 | MI8: 0 | MJ8: 0 | MK8: 0 | ML8: 0 | MM8: 2 | MN8: 0 | MO8: -1 | MP8: -1 | MQ8: 0 | MR8: 0 | MS8: 0 | MT8: 0 | MU8: 0 | MV8: 0 | MW8: 2 | MX8: 0 | MY8: 0 | MZ8: 0 | NA8: 0 | NB8: 0 | NC8: 0 | ND8: 0 | NE8: 2 | NF8: 0 | NG8: 0 | NH8: 0 | NI8: 0 | NJ8: 0 | NK8: 0 | NL8: 2 | NM8: 2 | NN8: 2 | NO8: -1 | NP8: 0 | NQ8: 2 | NR8: 2 | NS8: 0 | NT8: 0 | NU8: 0 | NV8: 0 | NW8: 0 | NX8: 0 | NY8: 0 | NZ8: 0 | OA8: 0 | OB8: 0 | OC8: 0 | OD8: 0 | OE8: 0 | OF8: 0 | OG8: 0 | OH8: 0 | OI8: 0 | OJ8: 0 | OK8: 0 | OL8: 0 | OM8: 2 | ON8: 0 | OO8: 0 | OP8: 0 | OQ8: 0 | OR8: 0 | OS8: 0 | OT8: 0
A9: S2_1471222767 | B9: AGGGGGG/AGGGGGGG | C9: chr1 | D9: 3471222767 | E9: 0 | F9: 0 | G9: 0 | H9: 0 | I9: 0 | J9: 0 | K9: 0 | L9: 0 | M9: 0 | N9: 0 | O9: 0 | P9: 0 | Q9: 0 | R9: 0 | S9: 0 | T9: 0 | U9: 0 | V9: 0 | W9: 0 | X9: 0 | Y9: 0 | Z9: 0 | AA9: 0 | AB9: 0 | AC9: 0 | AD9: 0 | AE9: 0 | AF9: 0 | AG9: 0 | AH9: 0 | AI9: 0 | AJ9: 0 | AK9: 0 | AL9: 0 | AM9: 0 | AN9: 0 | AO9: 0 | AP9: 0 | AQ9: 0 | AR9: 0 | AS9: 0 | AT9: 0 | AU9: 0 | AV9: 0 | AW9: 0 | AX9: 0 | AY9: 0 | AZ9: 0 | BA9: 0 | BB9: 0 | BC9: 0 | BD9: 0 | BE9: 0 | BF9: 0 | BG9: 0 | BH9: 0 | BI9: 0 | BJ9: 0 | BK9: 0 | BL9: 0 | BM9: 0 | BN9: 0 | BO9: 0 | BP9: 0 | BQ9: 0 | BR9: 0 | BS9: 0 | BT9: 0 | BU9: 0 | BV9: 0 | BW9: 0 | BX9: 0 | BY9: 0 | BZ9: 0 | CA9: 0 | CB9: 0 | CC9: 0 | CD9: 0 | CE9: 0 | CF9: 0 | CG9: 0 | CH9: 0 | CI9: 0 | CJ9: 0 | CK9: 0 | CL9: 0 | CM9: 0 | CN9: 0 | CO9: 0 | CP9: 0 | CQ9: 0 | CR9: 0 | CS9: 0 | CT9: 0 | CU9: 0 | CV9: 0 | CW9: 0 | CX9: 0 | CY9: 0 | CZ9: 0 | DA9: 0 | DB9: 0 | DC9: 0 | DD9: 0 | DE9: 0 | DF9: 0 | DG9: 0 | DH9: 0 | DI9: 0 | DJ9: 0 | DK9: 0 | DL9: 0 | DM9: 0 | DN9: 0 | DO9: 0 | DP9: 0 | DQ9: 0 | DR9: 0 | DS9: 0 | DT9: 0 | DU9: 0 | DV9: 0 | DW9: 0 | DX9: 0 | DY9: 0 | DZ9: 0 | EA9: 0 | EB9: 0 | EC9: 0 | ED9: 0 | EE9: 0 | EF9: 0 | EG9: 0 | EH9: 0 | EI9: 0 | EJ9: 0 | EK9: 0 | EL9: 0 | EM9: 0 | EN9: 0 | EO9: 0 | EP9: 0 | EQ9: 0 | ER9: 0 | ES9: 0 | ET9: 0 | EU9: 0 | EV9: 0 | EW9: 0 | EX9: 0 | EY9: 0 | EZ9: 0 | FA9: 0 | FB9: 0 | FC9: 0 | FD9: 0 | FE9: 0 | FF9: 0 | FG9: 0 | FH9: 0 | FI9: 0 | FJ9: 0 | FK9: 0 | FL9: 0 | FM9: 0 | FN9: 0 | FO9: 0 | FP9: 0 | FQ9: 0 | FR9: 0 | FS9: 0 | FT9: 0 | FU9: 0 | FV9: 0 | FW9: 0 | FX9: 0 | FY9: 0 | FZ9: 0 | GA9: 0 | GB9: 0 | GC9: 0 | GD9: 0 | GE9: 0 | GF9: 0 | GG9: 0 | GH9: 1 | GI9: 0 | GJ9: 0 | GK9: 0 | GL9: 0 | GM9: 0 | GN9: 0 | GO9: 0 | GP9: 0 | GQ9: 0 | GR9: 0 | GS9: 1 | GT9: -1 | GU9: 2 | GV9: 2 | GW9: 1 | GX9: 1 | GY9: 1 | GZ9: 0 | HA9: 0 | HB9: -1 | HC9: 0 | HD9: 1 | HE9: -1 | HF9: 1 | HG9: 1 | HH9: 2 | HI9: 0 | HJ9: 2 | HK9: 2 | HL9: 2 | HM9: 0 | HN9: 2 | HO9: -1 | HP9: 1 | HQ9: 2 | HR9: 0 | HS9: 0 | HT9: 0 | HU9: 2 | HV9: 2 | HW9: 2 | HX9: 0 | HY9: 2 | HZ9: -1 | IA9: 2 | IB9: 2 | IC9: 2 | ID9: -1 | IE9: 2 | IF9: 1 | IG9: 2 | IH9: 1 | II9: 0 | IJ9: 0 | IK9: 0 | IL9: 0 | IM9: 0 | IN9: 0 | IO9: 0 | IP9: 0 | IQ9: 0 | IR9: 2 | IS9: 0 | IT9: 0 | IU9: 0 | IV9: 0 | IW9: 0 | IX9: 1 | IY9: 2 | IZ9: 1 | JA9: -1 | JB9: 1 | JC9: -1 | JD9: 0 | JE9: 0 | JF9: -1 | JG9: 1 | JH9: 2 | JI9: 2 | JJ9: 1 | JK9: 0 | JL9: 0 | JM9: -1 | JN9: 0 | JO9: 0 | JP9: 0 | JQ9: 2 | JR9: 0 | JS9: 0 | JT9: 2 | JU9: 0 | JV9: 1 | JW9: 0 | JX9: -1 | JY9: 0 | JZ9: 0 | KA9: 0 | KB9: 0 | KC9: 0 | KD9: 0 | KE9: 0 | KF9: 0 | KG9: 0 | KH9: 0 | KI9: 0 | KJ9: 0 | KK9: 0 | KL9: 0 | KM9: 0 | KN9: 0 | KO9: 0 | KP9: 0 | KQ9: 0 | KR9: 0 | KS9: 0 | KT9: 0 | KU9: 0 | KV9: 0 | KW9: 0 | KX9: 0 | KY9: 0 | KZ9: 0 | LA9: 0 | LB9: 0 | LC9: 0 | LD9: 0 | LE9: 0 | LF9: 0 | LG9: 0 | LH9: 0 | LI9: 0 | LJ9: 0 | LK9: 0 | LL9: 0 | LM9: 0 | LN9: 0 | LO9: 0 | LP9: 0 | LQ9: 0 | LR9: 0 | LS9: 0 | LT9: 0 | LU9: 0 | LV9: 0 | LW9: 0 | LX9: 0 | LY9: 0 | LZ9: 0 | MA9: 0 | MB9: 0 | MC9: 0 | MD9: 0 | ME9: 0 | MF9: 0 | MG9: 0 | MH9: 0 | MI9: 0 | MJ9: 1 | MK9: 1 | ML9: 1 | MM9: 2 | MN9: 0 | MO9: 1 | MP9: 1 | MQ9: 0 | MR9: 0 | MS9: 0 | MT9: -1 | MU9: 0 | MV9: 0 | MW9: 1 | MX9: 0 | MY9: 0 | MZ9: 0 | NA9: 0 | NB9: 0 | NC9: 0 | ND9: 0 | NE9: -1 | NF9: 2 | NG9: 0 | NH9: 0 | NI9: 0 | NJ9: -1 | NK9: 0 | NL9: -1 | NM9: 2 | NN9: 2 | NO9: 2 | NP9: 0 | NQ9: -1 | NR9: 2 | NS9: -1 | NT9: 0 | NU9: 0 | NV9: 0 | NW9: 0 | NX9: 0 | NY9: 0 | NZ9: 0 | OA9: 0 | OB9: 0 | OC9: 0 | OD9: 0 | OE9: 0 | OF9: 1 | OG9: 0 | OH9: 0 | OI9: 0 | OJ9: 1 | OK9: 1 | OL9: 1 | OM9: 2 | ON9: -1 | OO9: 0 | OP9: 0 | OQ9: 0 | OR9: 0 | OS9: 0 | OT9: 0
A10: S2_1471223692 | B10: CTTATCA/CTTATCAGTTATCA | C10: chr1 | D10: 3471223692 | E10: 0 | F10: 0 | G10: 0 | H10: 1 | I10: 0 | J10: 0 | K10: 0 | L10: 0 | M10: 0 | N10: 0 | O10: 0 | P10: 0 | Q10: 0 | R10: 0 | S10: 0 | T10: 0 | U10: 0 | V10: 0 | W10: 1 | X10: 0 | Y10: 1 | Z10: 0 | AA10: 0 | AB10: -1 | AC10: 0 | AD10: 0 | AE10: 0 | AF10: 0 | AG10: 1 | AH10: 0 | AI10: 0 | AJ10: 0 | AK10: 0 | AL10: 0 | AM10: 0 | AN10: 0 | AO10: 0 | AP10: 0 | AQ10: 0 | AR10: 0 | AS10: 0 | AT10: 0 | AU10: 0 | AV10: 0 | AW10: 0 | AX10: 0 | AY10: 0 | AZ10: 0 | BA10: 0 | BB10: 0 | BC10: 1 | BD10: 0 | BE10: 0 | BF10: 0 | BG10: 0 | BH10: 0 | BI10: 0 | BJ10: 0 | BK10: 0 | BL10: 0 | BM10: 0 | BN10: 0 | BO10: 0 | BP10: 0 | BQ10: 0 | BR10: 0 | BS10: 0 | BT10: 0 | BU10: 0 | BV10: 0 | BW10: 0 | BX10: 0 | BY10: 0 | BZ10: 0 | CA10: 0 | CB10: 0 | CC10: 0 | CD10: 1 | CE10: 0 | CF10: -1 | CG10: 0 | CH10: 0 | CI10: 0 | CJ10: 0 | CK10: 0 | CL10: 0 | CM10: 0 | CN10: 0 | CO10: 0 | CP10: 0 | CQ10: 0 | CR10: 0 | CS10: 0 | CT10: 0 | CU10: 0 | CV10: 0 | CW10: 0 | CX10: 0 | CY10: 0 | CZ10: 0 | DA10: 1 | DB10: 0 | DC10: 0 | DD10: 0 | DE10: 0 | DF10: 0 | DG10: 0 | DH10: 0 | DI10: 0 | DJ10: 0 | DK10: 0 | DL10: 0 | DM10: 0 | DN10: 0 | DO10: 0 | DP10: 0 | DQ10: -1 | DR10: 1 | DS10: 0 | DT10: 0 | DU10: 0 | DV10: 0 | DW10: 0 | DX10: 0 | DY10: 0 | DZ10: 0 | EA10: 0 | EB10: 0 | EC10: 0 | ED10: 0 | EE10: 0 | EF10: 0 | EG10: 0 | EH10: 0 | EI10: 0 | EJ10: 0 | EK10: 0 | EL10: 0 | EM10: 0 | EN10: 1 | EO10: 0 | EP10: 0 | EQ10: 0 | ER10: 0 | ES10: 0 | ET10: 0 | EU10: 0 | EV10: 0 | EW10: 0 | EX10: 0 | EY10: 0 | EZ10: 0 | FA10: 0 | FB10: 0 | FC10: 1 | FD10: 0 | FE10: 0 | FF10: 0 | FG10: 0 | FH10: 0 | FI10: 0 | FJ10: 1 | FK10: 0 | FL10: 0 | FM10: -1 | FN10: 0 | FO10: 0 | FP10: 0 | FQ10: 0 | FR10: 0 | FS10: 1 | FT10: -1 | FU10: 0 | FV10: 0 | FW10: 0 | FX10: 0 | FY10: 0 | FZ10: 0 | GA10: 0 | GB10: 0 | GC10: 0 | GD10: 0 | GE10: -1 | GF10: 0 | GG10: 0 | GH10: 0 | GI10: 0 | GJ10: 0 | GK10: 0 | GL10: 0 | GM10: 0 | GN10: 0 | GO10: 0 | GP10: 0 | GQ10: 0 | GR10: 0 | GS10: 2 | GT10: 1 | GU10: 1 | GV10: -1 | GW10: 1 | GX10: 1 | GY10: 1 | GZ10: 0 | HA10: 0 | HB10: 1 | HC10: 1 | HD10: 1 | HE10: 1 | HF10: 1 | HG10: 2 | HH10: 1 | HI10: 1 | HJ10: 2 | HK10: 2 | HL10: -1 | HM10: 0 | HN10: -1 | HO10: 1 | HP10: -1 | HQ10: 2 | HR10: 0 | HS10: 0 | HT10: 1 | HU10: -1 | HV10: -1 | HW10: -1 | HX10: 0 | HY10: 2 | HZ10: 2 | IA10: 2 | IB10: 2 | IC10: 2 | ID10: -1 | IE10: 2 | IF10: 2 | IG10: 2 | IH10: 1 | II10: 0 | IJ10: 0 | IK10: 0 | IL10: 0 | IM10: 0 | IN10: 0 | IO10: 0 | IP10: 0 | IQ10: 0 | IR10: 2 | IS10: 0 | IT10: 0 | IU10: 0 | IV10: 0 | IW10: 0 | IX10: 0 | IY10: 2 | IZ10: 2 | JA10: 0 | JB10: -1 | JC10: 2 | JD10: 0 | JE10: 0 | JF10: 1 | JG10: -1 | JH10: 0 | JI10: 2 | JJ10: -1 | JK10: 0 | JL10: 0 | JM10: 0 | JN10: 0 | JO10: 0 | JP10: 0 | JQ10: -1 | JR10: 0 | JS10: 0 | JT10: 1 | JU10: 0 | JV10: 1 | JW10: 0 | JX10: 1 | JY10: 0 | JZ10: 0 | KA10: 0 | KB10: 0 | KC10: 0 | KD10: 0 | KE10: 0 | KF10: 0 | KG10: 0 | KH10: 0 | KI10: 0 | KJ10: 0 | KK10: 0 | KL10: 0 | KM10: 0 | KN10: 0 | KO10: 0 | KP10: 0 | KQ10: 0 | KR10: 0 | KS10: 0 | KT10: 0 | KU10: 0 | KV10: 0 | KW10: 0 | KX10: 0 | KY10: 0 | KZ10: 0 | LA10: 0 | LB10: 0 | LC10: 0 | LD10: 0 | LE10: 0 | LF10: 0 | LG10: 0 | LH10: 0 | LI10: 0 | LJ10: 0 | LK10: 0 | LL10: 0 | LM10: 0 | LN10: 0 | LO10: 0 | LP10: 0 | LQ10: 0 | LR10: 0 | LS10: 0 | LT10: 0 | LU10: 0 | LV10: 0 | LW10: 0 | LX10: 0 | LY10: 0 | LZ10: 0 | MA10: 0 | MB10: 0 | MC10: 0 | MD10: 0 | ME10: 0 | MF10: 0 | MG10: 0 | MH10: 0 | MI10: 0 | MJ10: 0 | MK10: 0 | ML10: 0 | MM10: 2 | MN10: 0 | MO10: 1 | MP10: -1 | MQ10: 0 | MR10: 0 | MS10: 0 | MT10: 2 | MU10: 0 | MV10: 0 | MW10: 1 | MX10: 0 | MY10: 0 | MZ10: 0 | NA10: 0 | NB10: 0 | NC10: 0 | ND10: 0 | NE10: 2 | NF10: 0 | NG10: 0 | NH10: 1 | NI10: 0 | NJ10: 1 | NK10: 0 | NL10: 1 | NM10: 2 | NN10: -1 | NO10: 2 | NP10: 0 | NQ10: 2 | NR10: -1 | NS10: 1 | NT10: 0 | NU10: 0 | NV10: 0 | NW10: 0 | NX10: 0 | NY10: 0 | NZ10: 0 | OA10: 0 | OB10: 0 | OC10: -1 | OD10: 0 | OE10: -1 | OF10: 0 | OG10: 1 | OH10: 0 | OI10: 0 | OJ10: 0 | OK10: 0 | OL10: 0 | OM10: 2 | ON10: 0 | OO10: 0 | OP10: 0 | OQ10: 0 | OR10: 0 | OS10: 0 | OT10: 0
A11: S2_1471227437 | B11: TAAAAA/TAAAA | C11: chr1 | D11: 3471227437 | E11: 0 | F11: 0 | G11: 0 | H11: 0 | I11: 0 | J11: 0 | K11: 0 | L11: 0 | M11: 0 | N11: 0 | O11: 0 | P11: 0 | Q11: 0 | R11: 0 | S11: 0 | T11: 0 | U11: 0 | V11: 0 | W11: 0 | X11: 0 | Y11: 0 | Z11: 0 | AA11: 0 | AB11: 0 | AC11: 0 | AD11: 0 | AE11: 0 | AF11: 0 | AG11: 0 | AH11: 0 | AI11: 0 | AJ11: 0 | AK11: 0 | AL11: 0 | AM11: 0 | AN11: 0 | AO11: 0 | AP11: 0 | AQ11: 0 | AR11: 0 | AS11: 0 | AT11: 0 | AU11: 0 | AV11: 0 | AW11: 0 | AX11: 0 | AY11: 0 | AZ11: 0 | BA11: 0 | BB11: 0 | BC11: 0 | BD11: 0 | BE11: 0 | BF11: 0 | BG11: 0 | BH11: 0 | BI11: 0 | BJ11: 0 | BK11: 0 | BL11: 0 | BM11: 0 | BN11: 0 | BO11: 0 | BP11: 0 | BQ11: 0 | BR11: 0 | BS11: 0 | BT11: 0 | BU11: 0 | BV11: 0 | BW11: 0 | BX11: 0 | BY11: 0 | BZ11: 0 | CA11: 0 | CB11: 0 | CC11: 0 | CD11: 0 | CE11: 0 | CF11: 0 | CG11: 0 | CH11: 0 | CI11: 0 | CJ11: 0 | CK11: 0 | CL11: 0 | CM11: 0 | CN11: 0 | CO11: 0 | CP11: 0 | CQ11: 0 | CR11: 0 | CS11: 0 | CT11: 0 | CU11: 0 | CV11: 0 | CW11: 0 | CX11: 0 | CY11: 0 | CZ11: 0 | DA11: 0 | DB11: 0 | DC11: 0 | DD11: 0 | DE11: 0 | DF11: 0 | DG11: 0 | DH11: 0 | DI11: 0 | DJ11: 0 | DK11: 0 | DL11: 0 | DM11: 0 | DN11: 0 | DO11: 0 | DP11: 0 | DQ11: 0 | DR11: 0 | DS11: 0 | DT11: 0 | DU11: 0 | DV11: 0 | DW11: 0 | DX11: 0 | DY11: 0 | DZ11: 0 | EA11: 0 | EB11: 0 | EC11: 0 | ED11: 0 | EE11: 0 | EF11: 0 | EG11: 0 | EH11: 0 | EI11: 0 | EJ11: 0 | EK11: 0 | EL11: 0 | EM11: 0 | EN11: 0 | EO11: 0 | EP11: 0 | EQ11: 0 | ER11: 0 | ES11: 0 | ET11: 0 | EU11: 0 | EV11: 0 | EW11: 0 | EX11: 0 | EY11: 0 | EZ11: 0 | FA11: 0 | FB11: 0 | FC11: 0 | FD11: 0 | FE11: 0 | FF11: 0 | FG11: 0 | FH11: 0 | FI11: 0 | FJ11: 0 | FK11: 0 | FL11: 0 | FM11: 0 | FN11: 0 | FO11: 0 | FP11: 0 | FQ11: 0 | FR11: 0 | FS11: 0 | FT11: 0 | FU11: 0 | FV11: 0 | FW11: 0 | FX11: 0 | FY11: 0 | FZ11: 0 | GA11: 0 | GB11: 0 | GC11: 0 | GD11: 0 | GE11: 0 | GF11: 0 | GG11: 0 | GH11: 0 | GI11: 0 | GJ11: 0 | GK11: 0 | GL11: 0 | GM11: 0 | GN11: 0 | GO11: 0 | GP11: 0 | GQ11: 0 | GR11: 0 | GS11: 2 | GT11: -1 | GU11: 2 | GV11: -1 | GW11: 1 | GX11: 1 | GY11: 1 | GZ11: 0 | HA11: 0 | HB11: 1 | HC11: -1 | HD11: -1 | HE11: 0 | HF11: 1 | HG11: 2 | HH11: 2 | HI11: 1 | HJ11: 2 | HK11: 2 | HL11: 2 | HM11: 0 | HN11: 2 | HO11: 2 | HP11: 2 | HQ11: 2 | HR11: 0 | HS11: 0 | HT11: 1 | HU11: 2 | HV11: 2 | HW11: 2 | HX11: 0 | HY11: 2 | HZ11: 1 | IA11: 2 | IB11: 2 | IC11: 2 | ID11: -1 | IE11: -1 | IF11: 2 | IG11: 2 | IH11: 1 | II11: 0 | IJ11: 0 | IK11: 0 | IL11: 0 | IM11: 0 | IN11: 0 | IO11: 0 | IP11: 0 | IQ11: 0 | IR11: 2 | IS11: 0 | IT11: 0 | IU11: 0 | IV11: 0 | IW11: 0 | IX11: 0 | IY11: 2 | IZ11: 2 | JA11: 0 | JB11: 2 | JC11: 2 | JD11: 0 | JE11: 0 | JF11: -1 | JG11: 2 | JH11: 0 | JI11: -1 | JJ11: 0 | JK11: 0 | JL11: 0 | JM11: 0 | JN11: 0 | JO11: 0 | JP11: 0 | JQ11: 2 | JR11: 0 | JS11: 0 | JT11: 2 | JU11: 0 | JV11: 1 | JW11: 0 | JX11: 2 | JY11: 0 | JZ11: 0 | KA11: 0 | KB11: 0 | KC11: 0 | KD11: 0 | KE11: 0 | KF11: 0 | KG11: 0 | KH11: 0 | KI11: 0 | KJ11: 0 | KK11: 0 | KL11: 0 | KM11: 0 | KN11: 0 | KO11: 0 | KP11: 0 | KQ11: 0 | KR11: 0 | KS11: 0 | KT11: 0 | KU11: 0 | KV11: 0 | KW11: 0 | KX11: 0 | KY11: 0 | KZ11: 0 | LA11: 0 | LB11: 0 | LC11: 0 | LD11: 0 | LE11: 0 | LF11: 0 | LG11: 0 | LH11: 0 | LI11: 0 | LJ11: 0 | LK11: 0 | LL11: 0 | LM11: 0 | LN11: 0 | LO11: 0 | LP11: 0 | LQ11: 0 | LR11: 0 | LS11: 0 | LT11: 0 | LU11: 0 | LV11: 0 | LW11: 0 | LX11: 0 | LY11: 0 | LZ11: 0 | MA11: 0 | MB11: 0 | MC11: 0 | MD11: 0 | ME11: 0 | MF11: 0 | MG11: 0 | MH11: 0 | MI11: 0 | MJ11: 0 | MK11: 0 | ML11: 0 | MM11: -1 | MN11: 0 | MO11: 2 | MP11: 2 | MQ11: 0 | MR11: 0 | MS11: 0 | MT11: 1 | MU11: 0 | MV11: 0 | MW11: 2 | MX11: 0 | MY11: 0 | MZ11: 0 | NA11: 0 | NB11: 0 | NC11: 0 | ND11: 0 | NE11: 2 | NF11: 0 | NG11: 0 | NH11: 0 | NI11: 0 | NJ11: 1 | NK11: 0 | NL11: 2 | NM11: 2 | NN11: 2 | NO11: 2 | NP11: 0 | NQ11: 2 | NR11: 2 | NS11: 1 | NT11: 0 | NU11: 0 | NV11: 0 | NW11: 0 | NX11: 0 | NY11: 0 | NZ11: 0 | OA11: 0 | OB11: 0 | OC11: 0 | OD11: 0 | OE11: 0 | OF11: 0 | OG11: 1 | OH11: 0 | OI11: 0 | OJ11: 0 | OK11: 0 | OL11: 0 | OM11: -1 | ON11: 0 | OO11: 0 | OP11: 0 | OQ11: 0 | OR11: 0 | OS11: 0 | OT11: 0
A12: S2_1473591915 | B12: AT/ATTT | C12: chr1 | D12: 3473591915 | E12: 0 | F12: 0 | G12: 0 | H12: 0 | I12: 1 | J12: 2 | K12: 0 | L12: 2 | M12: 0 | N12: 0 | O12: 0 | P12: 2 | Q12: 0 | R12: -1 | S12: 0 | T12: 0 | U12: 0 | V12: 0 | W12: 0 | X12: 0 | Y12: 0 | Z12: 0 | AA12: 0 | AB12: 0 | AC12: 0 | AD12: 0 | AE12: 0 | AF12: 0 | AG12: 2 | AH12: 0 | AI12: 2 | AJ12: 0 | AK12: 0 | AL12: 2 | AM12: 0 | AN12: 0 | AO12: 0 | AP12: 0 | AQ12: 0 | AR12: 0 | AS12: 0 | AT12: 0 | AU12: 0 | AV12: 0 | AW12: 0 | AX12: 0 | AY12: 0 | AZ12: 0 | BA12: 0 | BB12: 0 | BC12: 0 | BD12: 2 | BE12: 0 | BF12: 0 | BG12: 0 | BH12: 0 | BI12: 0 | BJ12: 0 | BK12: 0 | BL12: 2 | BM12: 0 | BN12: 0 | BO12: 0 | BP12: 0 | BQ12: 0 | BR12: 0 | BS12: 2 | BT12: 0 | BU12: 0 | BV12: 0 | BW12: 0 | BX12: 0 | BY12: 0 | BZ12: 0 | CA12: 0 | CB12: 0 | CC12: 0 | CD12: 0 | CE12: 0 | CF12: 0 | CG12: 0 | CH12: 0 | CI12: 0 | CJ12: 0 | CK12: 0 | CL12: 2 | CM12: 0 | CN12: 0 | CO12: 0 | CP12: 0 | CQ12: 0 | CR12: 0 | CS12: 0 | CT12: 0 | CU12: 0 | CV12: 0 | CW12: 2 | CX12: 0 | CY12: 0 | CZ12: 0 | DA12: 0 | DB12: 2 | DC12: 0 | DD12: 0 | DE12: 0 | DF12: 0 | DG12: 0 | DH12: 0 | DI12: 0 | DJ12: 0 | DK12: 0 | DL12: 0 | DM12: 0 | DN12: 2 | DO12: 0 | DP12: 0 | DQ12: 0 | DR12: 0 | DS12: 0 | DT12: 0 | DU12: 0 | DV12: 0 | DW12: 1 | DX12: 0 | DY12: 0 | DZ12: 0 | EA12: 2 | EB12: 0 | EC12: 0 | ED12: 0 | EE12: 0 | EF12: 0 | EG12: 0 | EH12: 0 | EI12: 0 | EJ12: 2 | EK12: 0 | EL12: 0 | EM12: 0 | EN12: 2 | EO12: 0 | EP12: 2 | EQ12: 0 | ER12: 0 | ES12: 0 | ET12: 0 | EU12: 2 | EV12: 0 | EW12: 0 | EX12: 0 | EY12: 2 | EZ12: 0 | FA12: 0 | FB12: 0 | FC12: 0 | FD12: 0 | FE12: 0 | FF12: 0 | FG12: 0 | FH12: 0 | FI12: 0 | FJ12: 2 | FK12: 0 | FL12: 0 | FM12: 0 | FN12: 0 | FO12: 0 | FP12: 0 | FQ12: 0 | FR12: 0 | FS12: 0 | FT12: 0 | FU12: 0 | FV12: 2 | FW12: 0 | FX12: 0 | FY12: 0 | FZ12: 0 | GA12: 0 | GB12: 0 | GC12: 0 | GD12: 0 | GE12: 0 | GF12: 0 | GG12: 0 | GH12: 0 | GI12: 2 | GJ12: 0 | GK12: 0 | GL12: 0 | GM12: 0 | GN12: 0 | GO12: 0 | GP12: -1 | GQ12: 0 | GR12: 2 | GS12: 2 | GT12: 2 | GU12: 2 | GV12: 2 | GW12: 1 | GX12: 1 | GY12: 2 | GZ12: 0 | HA12: 0 | HB12: 0 | HC12: 1 | HD12: 1 | HE12: 1 | HF12: 2 | HG12: 2 | HH12: 2 | HI12: 1 | HJ12: -1 | HK12: 2 | HL12: -1 | HM12: 0 | HN12: 2 | HO12: 2 | HP12: 2 | HQ12: 2 | HR12: 2 | HS12: 0 | HT12: 1 | HU12: 2 | HV12: 2 | HW12: 2 | HX12: 0 | HY12: 2 | HZ12: 1 | IA12: 2 | IB12: 2 | IC12: 2 | ID12: 2 | IE12: 2 | IF12: 2 | IG12: -1 | IH12: 1 | II12: 0 | IJ12: 2 | IK12: 2 | IL12: 2 | IM12: 0 | IN12: 2 | IO12: 1 | IP12: 2 | IQ12: 2 | IR12: 2 | IS12: 2 | IT12: 0 | IU12: 1 | IV12: -1 | IW12: 0 | IX12: 0 | IY12: 2 | IZ12: 2 | JA12: 0 | JB12: 2 | JC12: 2 | JD12: 2 | JE12: 0 | JF12: 1 | JG12: 2 | JH12: 0 | JI12: 2 | JJ12: -1 | JK12: 2 | JL12: 2 | JM12: 2 | JN12: 1 | JO12: 2 | JP12: 0 | JQ12: 2 | JR12: 0 | JS12: 2 | JT12: 2 | JU12: 2 | JV12: 0 | JW12: 0 | JX12: 2 | JY12: 0 | JZ12: 0 | KA12: 0 | KB12: 0 | KC12: 0 | KD12: 0 | KE12: 0 | KF12: 0 | KG12: 0 | KH12: 0 | KI12: 0 | KJ12: 0 | KK12: 0 | KL12: 0 | KM12: 0 | KN12: 0 | KO12: 0 | KP12: 0 | KQ12: 0 | KR12: 0 | KS12: 0 | KT12: 0 | KU12: 0 | KV12: 0 | KW12: 0 | KX12: 0 | KY12: 0 | KZ12: 0 | LA12: 0 | LB12: 0 | LC12: 0 | LD12: 0 | LE12: 0 | LF12: 0 | LG12: 0 | LH12: 0 | LI12: 0 | LJ12: 0 | LK12: 0 | LL12: 0 | LM12: 0 | LN12: 0 | LO12: 0 | LP12: 0 | LQ12: 0 | LR12: 0 | LS12: 0 | LT12: 0 | LU12: 0 | LV12: 0 | LW12: 0 | LX12: 0 | LY12: 0 | LZ12: 0 | MA12: 0 | MB12: 0 | MC12: 0 | MD12: 0 | ME12: 0 | MF12: 0 | MG12: 0 | MH12: 0 | MI12: 0 | MJ12: 0 | MK12: 0 | ML12: 0 | MM12: -1 | MN12: 0 | MO12: 2 | MP12: 2 | MQ12: 2 | MR12: 0 | MS12: 0 | MT12: 1 | MU12: 2 | MV12: 0 | MW12: 2 | MX12: 0 | MY12: 0 | MZ12: 0 | NA12: 0 | NB12: 0 | NC12: 0 | ND12: 0 | NE12: 2 | NF12: 0 | NG12: 0 | NH12: 0 | NI12: 0 | NJ12: 1 | NK12: 0 | NL12: 2 | NM12: 2 | NN12: 2 | NO12: 2 | NP12: 0 | NQ12: 2 | NR12: 2 | NS12: 1 | NT12: 0 | NU12: 0 | NV12: 0 | NW12: 0 | NX12: 0 | NY12: 0 | NZ12: 0 | OA12: 0 | OB12: 0 | OC12: 0 | OD12: 0 | OE12: 0 | OF12: 0 | OG12: 0 | OH12: 1 | OI12: 0 | OJ12: 0 | OK12: 0 | OL12: 0 | OM12: 2 | ON12: 0 | OO12: 0 | OP12: 0 | OQ12: 0 | OR12: 0 | OS12: 0 | OT12: 0
A13: S2_1473592100 | B13: TAAAA/TAAA | C13: chr1 | D13: 3473592100 | E13: 0 | F13: 0 | G13: 0 | H13: 0 | I13: 2 | J13: 2 | K13: 0 | L13: 2 | M13: 0 | N13: 0 | O13: 0 | P13: 0 | Q13: 0 | R13: 0 | S13: 0 | T13: 0 | U13: 0 | V13: 0 | W13: 0 | X13: 0 | Y13: 0 | Z13: 2 | AA13: 0 | AB13: 2 | AC13: 0 | AD13: 0 | AE13: 0 | AF13: 0 | AG13: 0 | AH13: 0 | AI13: 1 | AJ13: 0 | AK13: 0 | AL13: 2 | AM13: 0 | AN13: 0 | AO13: 0 | AP13: 0 | AQ13: 0 | AR13: 0 | AS13: 0 | AT13: 0 | AU13: 0 | AV13: 0 | AW13: 0 | AX13: 0 | AY13: 0 | AZ13: 0 | BA13: 0 | BB13: 0 | BC13: 2 | BD13: 2 | BE13: 0 | BF13: 0 | BG13: 0 | BH13: 0 | BI13: 0 | BJ13: 0 | BK13: 0 | BL13: 2 | BM13: 0 | BN13: 0 | BO13: 0 | BP13: 0 | BQ13: 0 | BR13: 0 | BS13: 2 | BT13: 0 | BU13: 0 | BV13: 0 | BW13: 0 | BX13: 0 | BY13: 0 | BZ13: 0 | CA13: 0 | CB13: 0 | CC13: 0 | CD13: 0 | CE13: 0 | CF13: 0 | CG13: 0 | CH13: 0 | CI13: 0 | CJ13: 0 | CK13: 0 | CL13: 2 | CM13: 0 | CN13: 0 | CO13: 0 | CP13: 0 | CQ13: 0 | CR13: 0 | CS13: 0 | CT13: 0 | CU13: 0 | CV13: 0 | CW13: 0 | CX13: 0 | CY13: 0 | CZ13: 0 | DA13: 1 | DB13: 2 | DC13: 0 | DD13: 0 | DE13: 0 | DF13: 0 | DG13: 0 | DH13: 0 | DI13: 0 | DJ13: 0 | DK13: 0 | DL13: 0 | DM13: 0 | DN13: -1 | DO13: 0 | DP13: 0 | DQ13: 0 | DR13: 0 | DS13: 0 | DT13: 0 | DU13: 0 | DV13: 0 | DW13: 1 | DX13: 0 | DY13: 0 | DZ13: 0 | EA13: 2 | EB13: 0 | EC13: 0 | ED13: 0 | EE13: 0 | EF13: 0 | EG13: 0 | EH13: 0 | EI13: 0 | EJ13: 2 | EK13: 0 | EL13: 0 | EM13: 0 | EN13: 0 | EO13: 0 | EP13: 2 | EQ13: 0 | ER13: 0 | ES13: 0 | ET13: 0 | EU13: 2 | EV13: 0 | EW13: 0 | EX13: 0 | EY13: 2 | EZ13: 0 | FA13: 0 | FB13: 0 | FC13: 0 | FD13: -1 | FE13: 0 | FF13: -1 | FG13: 0 | FH13: 0 | FI13: 0 | FJ13: 0 | FK13: 0 | FL13: 0 | FM13: 0 | FN13: 0 | FO13: 0 | FP13: 0 | FQ13: 0 | FR13: 0 | FS13: 0 | FT13: 0 | FU13: 0 | FV13: 2 | FW13: 0 | FX13: 0 | FY13: 0 | FZ13: 0 | GA13: 0 | GB13: 0 | GC13: 2 | GD13: 0 | GE13: 0 | GF13: 0 | GG13: 0 | GH13: 0 | GI13: 0 | GJ13: 0 | GK13: 0 | GL13: 0 | GM13: 0 | GN13: 0 | GO13: 0 | GP13: 0 | GQ13: 0 | GR13: 2 | GS13: 2 | GT13: 2 | GU13: 2 | GV13: 2 | GW13: 1 | GX13: -1 | GY13: 0 | GZ13: 0 | HA13: 0 | HB13: 0 | HC13: 1 | HD13: 1 | HE13: -1 | HF13: 2 | HG13: 2 | HH13: 2 | HI13: 0 | HJ13: 2 | HK13: 2 | HL13: 2 | HM13: 0 | HN13: 2 | HO13: 2 | HP13: 2 | HQ13: 2 | HR13: -1 | HS13: 0 | HT13: -1 | HU13: -1 | HV13: 2 | HW13: 2 | HX13: 0 | HY13: -1 | HZ13: 0 | IA13: 2 | IB13: 2 | IC13: -1 | ID13: -1 | IE13: 2 | IF13: 2 | IG13: 2 | IH13: 1 | II13: 0 | IJ13: -1 | IK13: 2 | IL13: 2 | IM13: 0 | IN13: 2 | IO13: 0 | IP13: 2 | IQ13: 1 | IR13: 2 | IS13: -1 | IT13: 0 | IU13: 1 | IV13: 1 | IW13: 0 | IX13: 0 | IY13: 2 | IZ13: 2 | JA13: 0 | JB13: -1 | JC13: -1 | JD13: 2 | JE13: 0 | JF13: 2 | JG13: 2 | JH13: 0 | JI13: -1 | JJ13: 0 | JK13: 2 | JL13: -1 | JM13: -1 | JN13: 0 | JO13: 2 | JP13: 0 | JQ13: -1 | JR13: 0 | JS13: -1 | JT13: 1 | JU13: 2 | JV13: 0 | JW13: 0 | JX13: 1 | JY13: 0 | JZ13: 0 | KA13: 0 | KB13: 0 | KC13: 0 | KD13: 0 | KE13: 0 | KF13: 0 | KG13: 0 | KH13: 0 | KI13: 0 | KJ13: 0 | KK13: 0 | KL13: 0 | KM13: 0 | KN13: 0 | KO13: 0 | KP13: 0 | KQ13: 0 | KR13: 0 | KS13: 0 | KT13: 0 | KU13: 0 | KV13: 0 | KW13: 0 | KX13: 0 | KY13: 0 | KZ13: 0 | LA13: 0 | LB13: 0 | LC13: 0 | LD13: 0 | LE13: 0 | LF13: 0 | LG13: 0 | LH13: 0 | LI13: 0 | LJ13: 0 | LK13: 0 | LL13: 0 | LM13: 0 | LN13: 0 | LO13: 0 | LP13: 0 | LQ13: 0 | LR13: 0 | LS13: 0 | LT13: 0 | LU13: -1 | LV13: 0 | LW13: 0 | LX13: 0 | LY13: 0 | LZ13: 0 | MA13: 0 | MB13: 0 | MC13: 0 | MD13: 0 | ME13: 0 | MF13: 0 | MG13: 0 | MH13: 0 | MI13: 0 | MJ13: 0 | MK13: 0 | ML13: 0 | MM13: 1 | MN13: 0 | MO13: 2 | MP13: 2 | MQ13: -1 | MR13: 0 | MS13: 0 | MT13: 1 | MU13: 0 | MV13: 0 | MW13: 2 | MX13: 0 | MY13: 0 | MZ13: 0 | NA13: 0 | NB13: 0 | NC13: 0 | ND13: 0 | NE13: 2 | NF13: 0 | NG13: 0 | NH13: 0 | NI13: 0 | NJ13: -1 | NK13: 0 | NL13: 0 | NM13: 2 | NN13: 2 | NO13: 2 | NP13: 0 | NQ13: 2 | NR13: 2 | NS13: 0 | NT13: 0 | NU13: 0 | NV13: 0 | NW13: 0 | NX13: 0 | NY13: 0 | NZ13: 0 | OA13: 0 | OB13: 0 | OC13: 0 | OD13: 0 | OE13: 0 | OF13: 0 | OG13: 0 | OH13: 0 | OI13: 0 | OJ13: 2 | OK13: 1 | OL13: -1 | OM13: 0 | ON13: 0 | OO13: 0 | OP13: 0 | OQ13: 0 | OR13: 0 | OS13: 0 | OT13: 0
A14: S2_1473613601 | B14: TGAAGAAGAAGAA/TGAAGAAGAA | C14: chr1 | D14: 3473613601 | E14: 0 | F14: 0 | G14: 0 | H14: 0 | I14: 0 | J14: 0 | K14: 0 | L14: 0 | M14: 0 | N14: 0 | O14: 0 | P14: 2 | Q14: 0 | R14: 0 | S14: 0 | T14: 0 | U14: 0 | V14: 0 | W14: 1 | X14: 0 | Y14: 2 | Z14: 0 | AA14: 0 | AB14: 0 | AC14: 0 | AD14: 0 | AE14: 0 | AF14: 0 | AG14: 0 | AH14: 0 | AI14: -1 | AJ14: 0 | AK14: 0 | AL14: 0 | AM14: 0 | AN14: 0 | AO14: 0 | AP14: 0 | AQ14: 0 | AR14: 0 | AS14: 0 | AT14: 0 | AU14: 0 | AV14: 0 | AW14: 0 | AX14: 0 | AY14: 0 | AZ14: 0 | BA14: 0 | BB14: 0 | BC14: 0 | BD14: 0 | BE14: 0 | BF14: 0 | BG14: 0 | BH14: 0 | BI14: 0 | BJ14: 0 | BK14: 0 | BL14: 2 | BM14: 0 | BN14: -1 | BO14: 0 | BP14: 0 | BQ14: 0 | BR14: 0 | BS14: 0 | BT14: 0 | BU14: 0 | BV14: 0 | BW14: 0 | BX14: 0 | BY14: 0 | BZ14: 0 | CA14: 0 | CB14: 0 | CC14: 0 | CD14: 0 | CE14: 0 | CF14: 0 | CG14: 0 | CH14: 0 | CI14: 0 | CJ14: 0 | CK14: 0 | CL14: 0 | CM14: 0 | CN14: 0 | CO14: 0 | CP14: 0 | CQ14: 0 | CR14: 0 | CS14: 0 | CT14: 0 | CU14: 0 | CV14: 0 | CW14: 0 | CX14: 0 | CY14: 0 | CZ14: 0 | DA14: 0 | DB14: 2 | DC14: 0 | DD14: 0 | DE14: 0 | DF14: 0 | DG14: 0 | DH14: 0 | DI14: 0 | DJ14: 0 | DK14: 0 | DL14: 0 | DM14: 0 | DN14: 0 | DO14: 0 | DP14: 0 | DQ14: 1 | DR14: 0 | DS14: 0 | DT14: 0 | DU14: 0 | DV14: 0 | DW14: 0 | DX14: 0 | DY14: 0 | DZ14: 0 | EA14: 0 | EB14: 0 | EC14: 0 | ED14: 0 | EE14: 0 | EF14: 0 | EG14: 0 | EH14: 0 | EI14: 0 | EJ14: 0 | EK14: 0 | EL14: 0 | EM14: 0 | EN14: 0 | EO14: 0 | EP14: 0 | EQ14: 0 | ER14: 0 | ES14: 0 | ET14: 0 | EU14: 0 | EV14: 0 | EW14: 0 | EX14: 0 | EY14: 0 | EZ14: 0 | FA14: 0 | FB14: 0 | FC14: 0 | FD14: 0 | FE14: 0 | FF14: 0 | FG14: 0 | FH14: 0 | FI14: 0 | FJ14: 0 | FK14: 0 | FL14: 0 | FM14: 0 | FN14: 0 | FO14: 0 | FP14: 0 | FQ14: 0 | FR14: 0 | FS14: 0 | FT14: 0 | FU14: 0 | FV14: 0 | FW14: 0 | FX14: 0 | FY14: 0 | FZ14: 0 | GA14: 0 | GB14: 0 | GC14: 0 | GD14: 0 | GE14: 0 | GF14: 0 | GG14: 0 | GH14: 0 | GI14: 0 | GJ14: 0 | GK14: 0 | GL14: 0 | GM14: 0 | GN14: 0 | GO14: 0 | GP14: 0 | GQ14: 0 | GR14: 0 | GS14: 2 | GT14: 2 | GU14: 2 | GV14: 2 | GW14: -1 | GX14: 1 | GY14: 1 | GZ14: 0 | HA14: 0 | HB14: 0 | HC14: -1 | HD14: 1 | HE14: 1 | HF14: 2 | HG14: 2 | HH14: 2 | HI14: 1 | HJ14: 2 | HK14: 2 | HL14: 2 | HM14: 0 | HN14: 2 | HO14: 2 | HP14: 2 | HQ14: 2 | HR14: 2 | HS14: 0 | HT14: 1 | HU14: 2 | HV14: 2 | HW14: 2 | HX14: 0 | HY14: 2 | HZ14: 1 | IA14: 2 | IB14: 2 | IC14: 2 | ID14: 2 | IE14: 1 | IF14: 2 | IG14: 2 | IH14: 1 | II14: 0 | IJ14: -1 | IK14: 2 | IL14: 2 | IM14: 0 | IN14: 2 | IO14: -1 | IP14: 2 | IQ14: 2 | IR14: -1 | IS14: -1 | IT14: 0 | IU14: 1 | IV14: 2 | IW14: 0 | IX14: 0 | IY14: 2 | IZ14: 2 | JA14: 0 | JB14: 2 | JC14: 1 | JD14: 2 | JE14: 0 | JF14: 1 | JG14: 2 | JH14: 0 | JI14: 2 | JJ14: 1 | JK14: 2 | JL14: 2 | JM14: 2 | JN14: 1 | JO14: 2 | JP14: 0 | JQ14: 2 | JR14: 0 | JS14: 2 | JT14: 2 | JU14: 2 | JV14: 1 | JW14: 0 | JX14: 2 | JY14: 0 | JZ14: 0 | KA14: 0 | KB14: 0 | KC14: 0 | KD14: 0 | KE14: 0 | KF14: 0 | KG14: 0 | KH14: 0 | KI14: 0 | KJ14: 0 | KK14: 0 | KL14: 0 | KM14: 0 | KN14: 0 | KO14: 0 | KP14: 0 | KQ14: 0 | KR14: 0 | KS14: 0 | KT14: 0 | KU14: 0 | KV14: 0 | KW14: 0 | KX14: 0 | KY14: 0 | KZ14: 0 | LA14: 0 | LB14: 0 | LC14: 0 | LD14: 0 | LE14: 0 | LF14: 0 | LG14: 0 | LH14: 0 | LI14: 0 | LJ14: 0 | LK14: 0 | LL14: 0 | LM14: 0 | LN14: 0 | LO14: 0 | LP14: 0 | LQ14: 0 | LR14: 0 | LS14: 0 | LT14: 0 | LU14: 0 | LV14: 0 | LW14: 0 | LX14: 0 | LY14: 0 | LZ14: 0 | MA14: 0 | MB14: 0 | MC14: 0 | MD14: 0 | ME14: 0 | MF14: 0 | MG14: 0 | MH14: 0 | MI14: 0 | MJ14: 0 | MK14: 0 | ML14: 0 | MM14: 2 | MN14: 0 | MO14: 2 | MP14: 2 | MQ14: 2 | MR14: 0 | MS14: 0 | MT14: 0 | MU14: 0 | MV14: 0 | MW14: -1 | MX14: 0 | MY14: 0 | MZ14: 0 | NA14: 0 | NB14: 0 | NC14: 0 | ND14: 0 | NE14: 2 | NF14: 0 | NG14: 0 | NH14: 0 | NI14: 0 | NJ14: 1 | NK14: 0 | NL14: 2 | NM14: 2 | NN14: 2 | NO14: 2 | NP14: 0 | NQ14: 2 | NR14: 2 | NS14: -1 | NT14: 0 | NU14: 0 | NV14: 0 | NW14: 0 | NX14: 0 | NY14: 0 | NZ14: 0 | OA14: 0 | OB14: 0 | OC14: 0 | OD14: 0 | OE14: 0 | OF14: 0 | OG14: 0 | OH14: 1 | OI14: 0 | OJ14: 0 | OK14: 0 | OL14: 0 | OM14: 0 | ON14: 0 | OO14: 0 | OP14: 0 | OQ14: 0 | OR14: 0 | OS14: 0 | OT14: 0
A15: S2_1473737248 | B15: GAAAAAAAA/GAAAAAAA | C15: chr1 | D15: 3473737248 | E15: 0 | F15: -1 | G15: 0 | H15: 0 | I15: 0 | J15: 0 | K15: 0 | L15: 0 | M15: 0 | N15: 0 | O15: 0 | P15: 2 | Q15: 0 | R15: 0 | S15: 0 | T15: 0 | U15: 0 | V15: 0 | W15: 0 | X15: 0 | Y15: 0 | Z15: 0 | AA15: 0 | AB15: 0 | AC15: 0 | AD15: 0 | AE15: 0 | AF15: 0 | AG15: 0 | AH15: 0 | AI15: -1 | AJ15: 0 | AK15: 0 | AL15: 0 | AM15: 0 | AN15: 0 | AO15: 0 | AP15: 0 | AQ15: 0 | AR15: 0 | AS15: 0 | AT15: 0 | AU15: 0 | AV15: 0 | AW15: 0 | AX15: 0 | AY15: 0 | AZ15: 0 | BA15: 0 | BB15: 0 | BC15: 0 | BD15: 0 | BE15: 0 | BF15: 0 | BG15: 0 | BH15: 0 | BI15: 0 | BJ15: 0 | BK15: 0 | BL15: 2 | BM15: 0 | BN15: 0 | BO15: 0 | BP15: 0 | BQ15: 0 | BR15: 0 | BS15: 0 | BT15: 0 | BU15: 0 | BV15: 0 | BW15: 0 | BX15: 0 | BY15: 0 | BZ15: -1 | CA15: 0 | CB15: 0 | CC15: 0 | CD15: 0 | CE15: 0 | CF15: 0 | CG15: 0 | CH15: 0 | CI15: 0 | CJ15: 0 | CK15: 0 | CL15: 0 | CM15: 0 | CN15: 0 | CO15: 0 | CP15: 0 | CQ15: 0 | CR15: 0 | CS15: 0 | CT15: 0 | CU15: 0 | CV15: 0 | CW15: 0 | CX15: 0 | CY15: 0 | CZ15: 0 | DA15: 0 | DB15: 2 | DC15: 0 | DD15: 0 | DE15: 0 | DF15: 0 | DG15: 0 | DH15: 0 | DI15: 0 | DJ15: 0 | DK15: 0 | DL15: 0 | DM15: 0 | DN15: 0 | DO15: 0 | DP15: 0 | DQ15: 0 | DR15: 0 | DS15: 0 | DT15: 0 | DU15: 0 | DV15: 0 | DW15: 0 | DX15: 0 | DY15: 0 | DZ15: 0 | EA15: 0 | EB15: 0 | EC15: 0 | ED15: 0 | EE15: 0 | EF15: 0 | EG15: 0 | EH15: 0 | EI15: 0 | EJ15: 0 | EK15: 0 | EL15: 0 | EM15: 0 | EN15: 0 | EO15: 0 | EP15: 0 | EQ15: 0 | ER15: 0 | ES15: 0 | ET15: 0 | EU15: 0 | EV15: 0 | EW15: 0 | EX15: 0 | EY15: 0 | EZ15: 0 | FA15: 0 | FB15: 0 | FC15: 0 | FD15: 0 | FE15: 0 | FF15: 0 | FG15: 0 | FH15: 0 | FI15: 0 | FJ15: 0 | FK15: 0 | FL15: 0 | FM15: 0 | FN15: -1 | FO15: 0 | FP15: 0 | FQ15: 0 | FR15: 0 | FS15: 0 | FT15: 0 | FU15: 0 | FV15: 0 | FW15: 0 | FX15: 0 | FY15: 0 | FZ15: 0 | GA15: 0 | GB15: 0 | GC15: 0 | GD15: 0 | GE15: 0 | GF15: 0 | GG15: 0 | GH15: 0 | GI15: 0 | GJ15: 0 | GK15: 0 | GL15: 0 | GM15: 0 | GN15: 0 | GO15: 0 | GP15: 0 | GQ15: 0 | GR15: 0 | GS15: 1 | GT15: 2 | GU15: 2 | GV15: 2 | GW15: -1 | GX15: 0 | GY15: 0 | GZ15: 0 | HA15: 0 | HB15: 0 | HC15: 1 | HD15: 1 | HE15: 1 | HF15: 2 | HG15: 2 | HH15: 2 | HI15: 0 | HJ15: 2 | HK15: -1 | HL15: 2 | HM15: 0 | HN15: 1 | HO15: 2 | HP15: 2 | HQ15: 2 | HR15: 2 | HS15: 0 | HT15: -1 | HU15: 2 | HV15: 2 | HW15: 2 | HX15: 0 | HY15: 2 | HZ15: 0 | IA15: 2 | IB15: 2 | IC15: 1 | ID15: 2 | IE15: 2 | IF15: 2 | IG15: 2 | IH15: -1 | II15: 0 | IJ15: 2 | IK15: 2 | IL15: 2 | IM15: 0 | IN15: 2 | IO15: 1 | IP15: 2 | IQ15: 2 | IR15: 2 | IS15: 2 | IT15: 0 | IU15: -1 | IV15: 2 | IW15: 0 | IX15: 0 | IY15: 2 | IZ15: 1 | JA15: 0 | JB15: 2 | JC15: 2 | JD15: 2 | JE15: 0 | JF15: 2 | JG15: -1 | JH15: 0 | JI15: -1 | JJ15: 1 | JK15: 1 | JL15: 2 | JM15: 2 | JN15: -1 | JO15: 2 | JP15: 0 | JQ15: -1 | JR15: 0 | JS15: 2 | JT15: 2 | JU15: 2 | JV15: 1 | JW15: 0 | JX15: 2 | JY15: 0 | JZ15: 0 | KA15: 0 | KB15: 0 | KC15: 0 | KD15: 0 | KE15: 0 | KF15: 0 | KG15: 0 | KH15: 0 | KI15: 0 | KJ15: 0 | KK15: 0 | KL15: 0 | KM15: 0 | KN15: 0 | KO15: 0 | KP15: 0 | KQ15: 0 | KR15: 0 | KS15: 0 | KT15: 0 | KU15: 0 | KV15: 0 | KW15: 0 | KX15: 0 | KY15: 0 | KZ15: 0 | LA15: 0 | LB15: 0 | LC15: 0 | LD15: 0 | LE15: 0 | LF15: 0 | LG15: 0 | LH15: 0 | LI15: 0 | LJ15: 0 | LK15: 0 | LL15: 0 | LM15: 0 | LN15: 0 | LO15: 0 | LP15: 0 | LQ15: 0 | LR15: 0 | LS15: 0 | LT15: 0 | LU15: 0 | LV15: 0 | LW15: 0 | LX15: 0 | LY15: 0 | LZ15: 0 | MA15: 0 | MB15: 0 | MC15: 0 | MD15: 0 | ME15: 0 | MF15: 0 | MG15: 0 | MH15: 0 | MI15: 0 | MJ15: 0 | MK15: 0 | ML15: 0 | MM15: -1 | MN15: 0 | MO15: 2 | MP15: -1 | MQ15: 2 | MR15: 0 | MS15: 0 | MT15: 1 | MU15: 0 | MV15: 0 | MW15: -1 | MX15: 0 | MY15: 0 | MZ15: 0 | NA15: 0 | NB15: 0 | NC15: 0 | ND15: 0 | NE15: 2 | NF15: 0 | NG15: 0 | NH15: 0 | NI15: 0 | NJ15: 1 | NK15: 0 | NL15: 1 | NM15: 1 | NN15: 2 | NO15: 2 | NP15: 0 | NQ15: 2 | NR15: 2 | NS15: 1 | NT15: 0 | NU15: 0 | NV15: 0 | NW15: 0 | NX15: 0 | NY15: 0 | NZ15: 0 | OA15: 0 | OB15: -1 | OC15: 0 | OD15: 0 | OE15: 0 | OF15: 0 | OG15: 0 | OH15: 0 | OI15: 0 | OJ15: 0 | OK15: 0 | OL15: 0 | OM15: 0 | ON15: 0 | OO15: 0 | OP15: 0 | OQ15: 0 | OR15: 0 | OS15: 0 | OT15: 0
A16: S2_1473747089 | B16: TA/T | C16: chr1 | D16: 3473747089 | E16: 0 | F16: -1 | G16: 0 | H16: 0 | I16: 0 | J16: 0 | K16: 0 | L16: 0 | M16: 0 | N16: 0 | O16: 0 | P16: 2 | Q16: 0 | R16: 0 | S16: 0 | T16: 0 | U16: 0 | V16: 0 | W16: 0 | X16: 0 | Y16: 0 | Z16: 0 | AA16: 0 | AB16: 0 | AC16: 0 | AD16: 0 | AE16: 0 | AF16: 0 | AG16: 0 | AH16: 0 | AI16: 2 | AJ16: 0 | AK16: 0 | AL16: 0 | AM16: 0 | AN16: 0 | AO16: 0 | AP16: 0 | AQ16: 0 | AR16: 0 | AS16: 0 | AT16: 0 | AU16: 0 | AV16: 0 | AW16: 0 | AX16: 0 | AY16: 0 | AZ16: 0 | BA16: 0 | BB16: 0 | BC16: 0 | BD16: 0 | BE16: 0 | BF16: 0 | BG16: 0 | BH16: 0 | BI16: 0 | BJ16: 0 | BK16: 0 | BL16: 2 | BM16: 0 | BN16: 0 | BO16: 0 | BP16: 0 | BQ16: 0 | BR16: 0 | BS16: 0 | BT16: 0 | BU16: 0 | BV16: 0 | BW16: 0 | BX16: 0 | BY16: 0 | BZ16: -1 | CA16: 0 | CB16: 0 | CC16: 0 | CD16: 0 | CE16: 0 | CF16: 0 | CG16: 0 | CH16: 0 | CI16: 0 | CJ16: 0 | CK16: 0 | CL16: 0 | CM16: 0 | CN16: 0 | CO16: 0 | CP16: 0 | CQ16: 0 | CR16: 0 | CS16: 0 | CT16: 0 | CU16: 0 | CV16: 0 | CW16: 0 | CX16: 0 | CY16: 0 | CZ16: 0 | DA16: 0 | DB16: -1 | DC16: 0 | DD16: 0 | DE16: 0 | DF16: 0 | DG16: 0 | DH16: 0 | DI16: 0 | DJ16: 0 | DK16: 0 | DL16: 0 | DM16: 0 | DN16: 0 | DO16: 0 | DP16: 0 | DQ16: 0 | DR16: 0 | DS16: 0 | DT16: 0 | DU16: 0 | DV16: 0 | DW16: 0 | DX16: 0 | DY16: 0 | DZ16: 0 | EA16: 0 | EB16: 0 | EC16: 0 | ED16: 0 | EE16: 0 | EF16: 0 | EG16: 0 | EH16: 0 | EI16: 0 | EJ16: 0 | EK16: 0 | EL16: 0 | EM16: 0 | EN16: 0 | EO16: 0 | EP16: 0 | EQ16: 0 | ER16: 0 | ES16: 0 | ET16: 0 | EU16: 0 | EV16: 0 | EW16: 0 | EX16: 0 | EY16: 0 | EZ16: 0 | FA16: 0 | FB16: 0 | FC16: 0 | FD16: 0 | FE16: 0 | FF16: 0 | FG16: 0 | FH16: 0 | FI16: 0 | FJ16: 0 | FK16: 0 | FL16: 0 | FM16: 0 | FN16: -1 | FO16: 0 | FP16: 0 | FQ16: 0 | FR16: 0 | FS16: 0 | FT16: 0 | FU16: 0 | FV16: 0 | FW16: 0 | FX16: 0 | FY16: 0 | FZ16: 0 | GA16: 0 | GB16: 0 | GC16: 0 | GD16: 0 | GE16: 0 | GF16: 0 | GG16: 0 | GH16: 0 | GI16: 0 | GJ16: 0 | GK16: 0 | GL16: 0 | GM16: 0 | GN16: 0 | GO16: 0 | GP16: 0 | GQ16: 0 | GR16: 0 | GS16: 2 | GT16: 2 | GU16: 2 | GV16: 2 | GW16: -1 | GX16: 1 | GY16: 2 | GZ16: -1 | HA16: 0 | HB16: 0 | HC16: 1 | HD16: -1 | HE16: 1 | HF16: 2 | HG16: 2 | HH16: 2 | HI16: 0 | HJ16: 2 | HK16: 1 | HL16: 2 | HM16: 0 | HN16: 2 | HO16: 2 | HP16: 2 | HQ16: 2 | HR16: 2 | HS16: 0 | HT16: 0 | HU16: 2 | HV16: 2 | HW16: 2 | HX16: 0 | HY16: 2 | HZ16: 2 | IA16: 2 | IB16: 2 | IC16: 2 | ID16: -1 | IE16: 2 | IF16: 2 | IG16: 2 | IH16: -1 | II16: 0 | IJ16: 2 | IK16: 2 | IL16: 2 | IM16: 0 | IN16: 2 | IO16: 2 | IP16: 2 | IQ16: 2 | IR16: 2 | IS16: -1 | IT16: 0 | IU16: 2 | IV16: 2 | IW16: 0 | IX16: 0 | IY16: 2 | IZ16: 2 | JA16: 0 | JB16: 2 | JC16: 2 | JD16: 2 | JE16: 0 | JF16: 2 | JG16: 2 | JH16: 0 | JI16: 2 | JJ16: 1 | JK16: 2 | JL16: 2 | JM16: 2 | JN16: -1 | JO16: 2 | JP16: 0 | JQ16: 2 | JR16: 0 | JS16: 2 | JT16: 2 | JU16: 2 | JV16: 2 | JW16: 0 | JX16: 2 | JY16: 0 | JZ16: 0 | KA16: 0 | KB16: 0 | KC16: 0 | KD16: 0 | KE16: 0 | KF16: 0 | KG16: 0 | KH16: 0 | KI16: 0 | KJ16: 0 | KK16: 0 | KL16: 0 | KM16: 0 | KN16: 0 | KO16: 0 | KP16: 0 | KQ16: 0 | KR16: 0 | KS16: 0 | KT16: 0 | KU16: 0 | KV16: 0 | KW16: 0 | KX16: 0 | KY16: -1 | KZ16: 0 | LA16: 0 | LB16: 0 | LC16: 0 | LD16: 0 | LE16: 0 | LF16: 0 | LG16: 0 | LH16: 0 | LI16: 0 | LJ16: 0 | LK16: 0 | LL16: 0 | LM16: 0 | LN16: 0 | LO16: 0 | LP16: 0 | LQ16: 0 | LR16: 0 | LS16: 0 | LT16: 0 | LU16: 0 | LV16: 0 | LW16: 0 | LX16: 0 | LY16: 0 | LZ16: 0 | MA16: 0 | MB16: 0 | MC16: 0 | MD16: 0 | ME16: 0 | MF16: 0 | MG16: 0 | MH16: -1 | MI16: 0 | MJ16: 0 | MK16: 0 | ML16: 0 | MM16: 2 | MN16: 0 | MO16: -1 | MP16: 2 | MQ16: 2 | MR16: 0 | MS16: 0 | MT16: 1 | MU16: 0 | MV16: 0 | MW16: 2 | MX16: 0 | MY16: 0 | MZ16: 0 | NA16: 0 | NB16: 0 | NC16: 0 | ND16: -1 | NE16: 2 | NF16: 0 | NG16: 0 | NH16: 0 | NI16: 0 | NJ16: 0 | NK16: 0 | NL16: 2 | NM16: 2 | NN16: 2 | NO16: 2 | NP16: 0 | NQ16: 2 | NR16: 2 | NS16: 0 | NT16: -1 | NU16: 0 | NV16: 0 | NW16: 0 | NX16: 0 | NY16: 0 | NZ16: 0 | OA16: 0 | OB16: -1 | OC16: 0 | OD16: 0 | OE16: 0 | OF16: 0 | OG16: 0 | OH16: 0 | OI16: 0 | OJ16: 0 | OK16: 0 | OL16: 0 | OM16: 0 | ON16: 0 | OO16: 0 | OP16: 0 | OQ16: 0 | OR16: 0 | OS16: 0 | OT16: 0
A17: S2_1474052914 | B17: AT/A | C17: chr1 | D17: 3474052914 | E17: 0 | F17: 0 | G17: 0 | H17: 0 | I17: 0 | J17: 0 | K17: 0 | L17: 0 | M17: 0 | N17: 0 | O17: 0 | P17: 2 | Q17: 0 | R17: 0 | S17: -1 | T17: 0 | U17: 0 | V17: 0 | W17: 0 | X17: 0 | Y17: 0 | Z17: 0 | AA17: 0 | AB17: -1 | AC17: 0 | AD17: -1 | AE17: 0 | AF17: 0 | AG17: 0 | AH17: 0 | AI17: 2 | AJ17: 0 | AK17: -1 | AL17: 0 | AM17: 0 | AN17: 0 | AO17: 0 | AP17: 0 | AQ17: 0 | AR17: 0 | AS17: 0 | AT17: -1 | AU17: 0 | AV17: 0 | AW17: 0 | AX17: 0 | AY17: 0 | AZ17: 0 | BA17: 0 | BB17: 0 | BC17: -1 | BD17: 0 | BE17: 0 | BF17: 0 | BG17: 0 | BH17: 0 | BI17: 0 | BJ17: 0 | BK17: -1 | BL17: 2 | BM17: -1 | BN17: 0 | BO17: 0 | BP17: -1 | BQ17: 0 | BR17: 0 | BS17: 0 | BT17: 0 | BU17: 0 | BV17: 0 | BW17: 0 | BX17: 0 | BY17: 0 | BZ17: 0 | CA17: 0 | CB17: 0 | CC17: 0 | CD17: 0 | CE17: -1 | CF17: -1 | CG17: -1 | CH17: 0 | CI17: 0 | CJ17: -1 | CK17: -1 | CL17: 0 | CM17: 0 | CN17: -1 | CO17: 0 | CP17: 0 | CQ17: 0 | CR17: 0 | CS17: -1 | CT17: 0 | CU17: 0 | CV17: 0 | CW17: 0 | CX17: 0 | CY17: 0 | CZ17: 0 | DA17: 0 | DB17: -1 | DC17: -1 | DD17: -1 | DE17: 0 | DF17: 0 | DG17: 0 | DH17: 0 | DI17: 0 | DJ17: 0 | DK17: 0 | DL17: -1 | DM17: -1 | DN17: 0 | DO17: 0 | DP17: 0 | DQ17: 0 | DR17: 0 | DS17: 0 | DT17: 0 | DU17: 0 | DV17: 0 | DW17: 0 | DX17: 0 | DY17: 0 | DZ17: 0 | EA17: 0 | EB17: 0 | EC17: 0 | ED17: -1 | EE17: 0 | EF17: 0 | EG17: 0 | EH17: 0 | EI17: 0 | EJ17: 0 | EK17: 0 | EL17: 0 | EM17: 0 | EN17: 0 | EO17: 0 | EP17: 0 | EQ17: 0 | ER17: -1 | ES17: 0 | ET17: 0 | EU17: 0 | EV17: 0 | EW17: 0 | EX17: 0 | EY17: 0 | EZ17: 0 | FA17: 0 | FB17: 0 | FC17: -1 | FD17: 0 | FE17: 0 | FF17: 0 | FG17: 0 | FH17: 0 | FI17: 0 | FJ17: -1 | FK17: 0 | FL17: 0 | FM17: 0 | FN17: 0 | FO17: 0 | FP17: 0 | FQ17: 0 | FR17: 0 | FS17: -1 | FT17: 0 | FU17: 0 | FV17: 0 | FW17: 0 | FX17: 0 | FY17: 0 | FZ17: 0 | GA17: 0 | GB17: 0 | GC17: -1 | GD17: 0 | GE17: 0 | GF17: 0 | GG17: 0 | GH17: 0 | GI17: 0 | GJ17: 0 | GK17: 0 | GL17: 0 | GM17: 0 | GN17: 0 | GO17: 0 | GP17: 0 | GQ17: 0 | GR17: 0 | GS17: 2 | GT17: 2 | GU17: 2 | GV17: 2 | GW17: -1 | GX17: -1 | GY17: 1 | GZ17: 0 | HA17: 0 | HB17: 0 | HC17: 1 | HD17: -1 | HE17: -1 | HF17: 2 | HG17: 2 | HH17: 2 | HI17: 0 | HJ17: 2 | HK17: 2 | HL17: 2 | HM17: 0 | HN17: 2 | HO17: 2 | HP17: 2 | HQ17: 2 | HR17: 2 | HS17: 0 | HT17: 1 | HU17: 2 | HV17: 2 | HW17: 2 | HX17: 0 | HY17: 2 | HZ17: 1 | IA17: 2 | IB17: 2 | IC17: 2 | ID17: 2 | IE17: 2 | IF17: 2 | IG17: 2 | IH17: 1 | II17: 0 | IJ17: 2 | IK17: 2 | IL17: -1 | IM17: 0 | IN17: 2 | IO17: 1 | IP17: 2 | IQ17: 2 | IR17: 2 | IS17: 2 | IT17: 0 | IU17: 1 | IV17: 2 | IW17: 0 | IX17: 0 | IY17: -1 | IZ17: -1 | JA17: 0 | JB17: 2 | JC17: 2 | JD17: 2 | JE17: 0 | JF17: 2 | JG17: 2 | JH17: 0 | JI17: 2 | JJ17: 1 | JK17: 2 | JL17: -1 | JM17: 2 | JN17: -1 | JO17: -1 | JP17: 0 | JQ17: -1 | JR17: 0 | JS17: 2 | JT17: 2 | JU17: 2 | JV17: -1 | JW17: 0 | JX17: 2 | JY17: 0 | JZ17: 0 | KA17: 0 | KB17: 0 | KC17: 0 | KD17: 0 | KE17: 0 | KF17: 0 | KG17: 0 | KH17: 0 | KI17: 0 | KJ17: 0 | KK17: 0 | KL17: 0 | KM17: 0 | KN17: 0 | KO17: 0 | KP17: 0 | KQ17: 0 | KR17: 0 | KS17: 0 | KT17: 0 | KU17: 0 | KV17: -1 | KW17: 0 | KX17: 0 | KY17: 0 | KZ17: 0 | LA17: 0 | LB17: 0 | LC17: 0 | LD17: 0 | LE17: 0 | LF17: 0 | LG17: 0 | LH17: 0 | LI17: 0 | LJ17: 0 | LK17: 0 | LL17: 0 | LM17: 0 | LN17: 0 | LO17: 0 | LP17: 0 | LQ17: 0 | LR17: 0 | LS17: 0 | LT17: 0 | LU17: 0 | LV17: 0 | LW17: 0 | LX17: 0 | LY17: 0 | LZ17: 0 | MA17: 0 | MB17: 0 | MC17: 0 | MD17: 0 | ME17: 0 | MF17: 0 | MG17: 0 | MH17: 0 | MI17: 0 | MJ17: 0 | MK17: 0 | ML17: 0 | MM17: 2 | MN17: 0 | MO17: 2 | MP17: 2 | MQ17: 2 | MR17: 0 | MS17: 0 | MT17: 2 | MU17: 0 | MV17: 0 | MW17: 2 | MX17: 0 | MY17: 0 | MZ17: 0 | NA17: 0 | NB17: 0 | NC17: 0 | ND17: 0 | NE17: 2 | NF17: 0 | NG17: 0 | NH17: 0 | NI17: 0 | NJ17: 1 | NK17: 0 | NL17: 2 | NM17: 2 | NN17: 2 | NO17: 2 | NP17: 0 | NQ17: 2 | NR17: 2 | NS17: 1 | NT17: 0 | NU17: 0 | NV17: 0 | NW17: 0 | NX17: 0 | NY17: 0 | NZ17: 0 | OA17: 0 | OB17: 1 | OC17: 0 | OD17: 0 | OE17: 0 | OF17: 0 | OG17: 0 | OH17: 0 | OI17: 0 | OJ17: 0 | OK17: 0 | OL17: 0 | OM17: 0 | ON17: 0 | OO17: 0 | OP17: 0 | OQ17: 0 | OR17: 0 | OS17: 0 | OT17: 0
A18: S2_1474060422 | B18: ATTTTTTTTT/ATTTTTTTTTT | C18: chr1 | D18: 3474060422 | E18: 0 | F18: 0 | G18: 0 | H18: 0 | I18: 0 | J18: 0 | K18: 0 | L18: 0 | M18: 0 | N18: 0 | O18: 0 | P18: -1 | Q18: 0 | R18: 0 | S18: -1 | T18: 0 | U18: 0 | V18: 0 | W18: -1 | X18: 0 | Y18: 1 | Z18: 0 | AA18: 0 | AB18: 0 | AC18: 0 | AD18: -1 | AE18: 0 | AF18: 0 | AG18: 0 | AH18: 0 | AI18: -1 | AJ18: 0 | AK18: -1 | AL18: -1 | AM18: 0 | AN18: 0 | AO18: 0 | AP18: 0 | AQ18: 0 | AR18: 0 | AS18: 0 | AT18: 0 | AU18: 0 | AV18: 2 | AW18: 2 | AX18: 0 | AY18: 0 | AZ18: 0 | BA18: 0 | BB18: 2 | BC18: 0 | BD18: 0 | BE18: 0 | BF18: 0 | BG18: 0 | BH18: 0 | BI18: 0 | BJ18: 0 | BK18: -1 | BL18: 2 | BM18: -1 | BN18: 1 | BO18: -1 | BP18: -1 | BQ18: 0 | BR18: 0 | BS18: 0 | BT18: 0 | BU18: 0 | BV18: 0 | BW18: 2 | BX18: 0 | BY18: 0 | BZ18: 0 | CA18: 0 | CB18: 0 | CC18: 0 | CD18: 0 | CE18: 0 | CF18: 0 | CG18: -1 | CH18: 0 | CI18: 0 | CJ18: -1 | CK18: -1 | CL18: 0 | CM18: 2 | CN18: 0 | CO18: 0 | CP18: 0 | CQ18: 2 | CR18: 0 | CS18: 0 | CT18: 0 | CU18: 0 | CV18: 0 | CW18: 0 | CX18: 0 | CY18: 0 | CZ18: 0 | DA18: 0 | DB18: 2 | DC18: 0 | DD18: -1 | DE18: 2 | DF18: -1 | DG18: 0 | DH18: 0 | DI18: 0 | DJ18: 0 | DK18: 0 | DL18: -1 | DM18: 0 | DN18: 0 | DO18: 0 | DP18: 0 | DQ18: 1 | DR18: 0 | DS18: 0 | DT18: 2 | DU18: 0 | DV18: 0 | DW18: 0 | DX18: 0 | DY18: 0 | DZ18: 0 | EA18: 0 | EB18: 0 | EC18: 0 | ED18: -1 | EE18: 0 | EF18: 0 | EG18: 0 | EH18: 2 | EI18: 0 | EJ18: 0 | EK18: 0 | EL18: 0 | EM18: 2 | EN18: 0 | EO18: 0 | EP18: 0 | EQ18: 0 | ER18: 0 | ES18: 0 | ET18: 0 | EU18: 0 | EV18: 0 | EW18: 0 | EX18: 0 | EY18: 0 | EZ18: 0 | FA18: 0 | FB18: 0 | FC18: 0 | FD18: 0 | FE18: 0 | FF18: 0 | FG18: 0 | FH18: 0 | FI18: 0 | FJ18: 0 | FK18: 0 | FL18: 0 | FM18: 2 | FN18: 0 | FO18: 0 | FP18: 1 | FQ18: 0 | FR18: 0 | FS18: 0 | FT18: 0 | FU18: 0 | FV18: 0 | FW18: 0 | FX18: 0 | FY18: 0 | FZ18: 0 | GA18: 0 | GB18: 0 | GC18: 0 | GD18: 0 | GE18: 0 | GF18: 0 | GG18: 0 | GH18: 0 | GI18: 0 | GJ18: 0 | GK18: 0 | GL18: 0 | GM18: 0 | GN18: 0 | GO18: 0 | GP18: 0 | GQ18: 1 | GR18: 0 | GS18: 2 | GT18: 2 | GU18: 2 | GV18: 2 | GW18: 1 | GX18: 0 | GY18: 0 | GZ18: 0 | HA18: 0 | HB18: 0 | HC18: 1 | HD18: 0 | HE18: 0 | HF18: 1 | HG18: 2 | HH18: 1 | HI18: 0 | HJ18: 2 | HK18: 2 | HL18: 2 | HM18: 0 | HN18: 1 | HO18: 2 | HP18: 2 | HQ18: 2 | HR18: 2 | HS18: 0 | HT18: 1 | HU18: 2 | HV18: 2 | HW18: 2 | HX18: 0 | HY18: 1 | HZ18: 0 | IA18: 1 | IB18: 2 | IC18: -1 | ID18: 2 | IE18: 2 | IF18: 1 | IG18: -1 | IH18: 0 | II18: 0 | IJ18: -1 | IK18: 2 | IL18: 2 | IM18: 0 | IN18: 1 | IO18: 0 | IP18: -1 | IQ18: 2 | IR18: -1 | IS18: 2 | IT18: 0 | IU18: -1 | IV18: -1 | IW18: 0 | IX18: 2 | IY18: 2 | IZ18: 2 | JA18: 1 | JB18: 1 | JC18: 2 | JD18: 2 | JE18: 0 | JF18: 2 | JG18: 2 | JH18: 1 | JI18: 2 | JJ18: 2 | JK18: 2 | JL18: 2 | JM18: 2 | JN18: 0 | JO18: 2 | JP18: 0 | JQ18: -1 | JR18: 0 | JS18: 2 | JT18: 2 | JU18: 1 | JV18: 0 | JW18: 0 | JX18: 2 | JY18: 0 | JZ18: 0 | KA18: 0 | KB18: 0 | KC18: 0 | KD18: -1 | KE18: 0 | KF18: 0 | KG18: 0 | KH18: 0 | KI18: 0 | KJ18: 0 | KK18: 0 | KL18: 0 | KM18: 0 | KN18: 0 | KO18: 0 | KP18: 0 | KQ18: 0 | KR18: 0 | KS18: 0 | KT18: 0 | KU18: 0 | KV18: 0 | KW18: 0 | KX18: 0 | KY18: 0 | KZ18: 0 | LA18: 0 | LB18: 0 | LC18: 0 | LD18: 0 | LE18: 0 | LF18: 0 | LG18: 0 | LH18: 0 | LI18: 0 | LJ18: 0 | LK18: 0 | LL18: 0 | LM18: 0 | LN18: 0 | LO18: 0 | LP18: 0 | LQ18: 0 | LR18: 0 | LS18: 0 | LT18: 0 | LU18: 0 | LV18: 0 | LW18: 0 | LX18: 0 | LY18: 0 | LZ18: 0 | MA18: 0 | MB18: 0 | MC18: 0 | MD18: 0 | ME18: 0 | MF18: 0 | MG18: 0 | MH18: 0 | MI18: 0 | MJ18: 0 | MK18: 0 | ML18: 0 | MM18: 2 | MN18: 0 | MO18: 1 | MP18: 2 | MQ18: 2 | MR18: 0 | MS18: 0 | MT18: -1 | MU18: 0 | MV18: 0 | MW18: 2 | MX18: 0 | MY18: 0 | MZ18: 0 | NA18: 0 | NB18: 0 | NC18: 0 | ND18: 0 | NE18: -1 | NF18: 2 | NG18: 0 | NH18: 0 | NI18: 0 | NJ18: 0 | NK18: 0 | NL18: 1 | NM18: 2 | NN18: 2 | NO18: 2 | NP18: 0 | NQ18: 2 | NR18: 2 | NS18: -1 | NT18: 0 | NU18: 0 | NV18: 0 | NW18: 0 | NX18: 0 | NY18: 0 | NZ18: 0 | OA18: 0 | OB18: -1 | OC18: 0 | OD18: 0 | OE18: 0 | OF18: 0 | OG18: 0 | OH18: 0 | OI18: 0 | OJ18: 0 | OK18: 0 | OL18: 0 | OM18: 0 | ON18: 1 | OO18: 0 | OP18: 0 | OQ18: 0 | OR18: 0 | OS18: 0 | OT18: 0
A19: S2_1474076104 | B19: CAAA/CAAAA | C19: chr1 | D19: 3474076104 | E19: 0 | F19: 0 | G19: 0 | H19: 0 | I19: 0 | J19: 0 | K19: 0 | L19: 0 | M19: 0 | N19: 0 | O19: 0 | P19: 2 | Q19: 0 | R19: 0 | S19: 0 | T19: -1 | U19: 0 | V19: 0 | W19: 0 | X19: 0 | Y19: 0 | Z19: 0 | AA19: 0 | AB19: 0 | AC19: 0 | AD19: 0 | AE19: -1 | AF19: 0 | AG19: 0 | AH19: 0 | AI19: 2 | AJ19: 0 | AK19: 0 | AL19: 0 | AM19: -1 | AN19: 0 | AO19: 0 | AP19: 0 | AQ19: 0 | AR19: 0 | AS19: -1 | AT19: 0 | AU19: 0 | AV19: 0 | AW19: 0 | AX19: 0 | AY19: 0 | AZ19: 0 | BA19: -1 | BB19: 0 | BC19: -1 | BD19: 0 | BE19: 0 | BF19: 0 | BG19: 0 | BH19: 0 | BI19: 0 | BJ19: 0 | BK19: 0 | BL19: 2 | BM19: 0 | BN19: 0 | BO19: 0 | BP19: 0 | BQ19: 0 | BR19: 0 | BS19: 0 | BT19: -1 | BU19: 0 | BV19: 0 | BW19: 0 | BX19: 0 | BY19: 0 | BZ19: 0 | CA19: 0 | CB19: 0 | CC19: -1 | CD19: 0 | CE19: 0 | CF19: 0 | CG19: 0 | CH19: 0 | CI19: -1 | CJ19: 0 | CK19: 0 | CL19: 0 | CM19: 0 | CN19: 0 | CO19: 0 | CP19: 0 | CQ19: 0 | CR19: 0 | CS19: 0 | CT19: 0 | CU19: 0 | CV19: 0 | CW19: -1 | CX19: -1 | CY19: 0 | CZ19: 0 | DA19: 0 | DB19: -1 | DC19: 0 | DD19: 0 | DE19: 0 | DF19: 0 | DG19: 0 | DH19: 0 | DI19: 0 | DJ19: 0 | DK19: 0 | DL19: 0 | DM19: 0 | DN19: 0 | DO19: 0 | DP19: 0 | DQ19: 0 | DR19: 0 | DS19: 0 | DT19: 0 | DU19: -1 | DV19: 0 | DW19: 0 | DX19: 0 | DY19: -1 | DZ19: 0 | EA19: 0 | EB19: 0 | EC19: 0 | ED19: 0 | EE19: 0 | EF19: 0 | EG19: 0 | EH19: 0 | EI19: 0 | EJ19: 0 | EK19: -1 | EL19: 0 | EM19: 0 | EN19: 0 | EO19: 0 | EP19: 0 | EQ19: 0 | ER19: 0 | ES19: 0 | ET19: 0 | EU19: 0 | EV19: 0 | EW19: 0 | EX19: 0 | EY19: 0 | EZ19: 0 | FA19: 0 | FB19: 0 | FC19: 0 | FD19: -1 | FE19: -1 | FF19: 0 | FG19: 0 | FH19: 0 | FI19: 0 | FJ19: 0 | FK19: 0 | FL19: 0 | FM19: 0 | FN19: 0 | FO19: 0 | FP19: 0 | FQ19: 0 | FR19: 0 | FS19: 0 | FT19: 0 | FU19: 0 | FV19: 0 | FW19: -1 | FX19: 0 | FY19: 0 | FZ19: 0 | GA19: 0 | GB19: 0 | GC19: 0 | GD19: 0 | GE19: 0 | GF19: -1 | GG19: -1 | GH19: 0 | GI19: 0 | GJ19: 0 | GK19: 0 | GL19: 0 | GM19: 0 | GN19: 0 | GO19: 0 | GP19: 0 | GQ19: 0 | GR19: 0 | GS19: -1 | GT19: 2 | GU19: -1 | GV19: -1 | GW19: 1 | GX19: 0 | GY19: 0 | GZ19: 0 | HA19: 0 | HB19: 0 | HC19: 1 | HD19: 0 | HE19: 0 | HF19: 1 | HG19: 2 | HH19: 1 | HI19: 0 | HJ19: -1 | HK19: 2 | HL19: 1 | HM19: 0 | HN19: 2 | HO19: 2 | HP19: 2 | HQ19: 2 | HR19: 2 | HS19: 0 | HT19: 0 | HU19: 2 | HV19: 2 | HW19: -1 | HX19: 0 | HY19: 2 | HZ19: 0 | IA19: 2 | IB19: -1 | IC19: 2 | ID19: -1 | IE19: 2 | IF19: 2 | IG19: 1 | IH19: 0 | II19: 0 | IJ19: 2 | IK19: 2 | IL19: 2 | IM19: 0 | IN19: 2 | IO19: 0 | IP19: 2 | IQ19: 2 | IR19: 1 | IS19: 2 | IT19: 0 | IU19: -1 | IV19: 2 | IW19: 0 | IX19: 0 | IY19: -1 | IZ19: 2 | JA19: 0 | JB19: -1 | JC19: -1 | JD19: 2 | JE19: 0 | JF19: 2 | JG19: 2 | JH19: 0 | JI19: 2 | JJ19: 1 | JK19: 2 | JL19: 2 | JM19: -1 | JN19: 1 | JO19: 2 | JP19: 0 | JQ19: 2 | JR19: -1 | JS19: 2 | JT19: -1 | JU19: 2 | JV19: 0 | JW19: 0 | JX19: 1 | JY19: 0 | JZ19: 0 | KA19: 0 | KB19: 0 | KC19: 0 | KD19: 0 | KE19: 0 | KF19: 0 | KG19: 0 | KH19: 0 | KI19: 0 | KJ19: 0 | KK19: 0 | KL19: 0 | KM19: 0 | KN19: 0 | KO19: 0 | KP19: 0 | KQ19: 0 | KR19: 0 | KS19: 0 | KT19: 0 | KU19: 0 | KV19: 0 | KW19: 0 | KX19: 0 | KY19: 0 | KZ19: 0 | LA19: 0 | LB19: 0 | LC19: 0 | LD19: 0 | LE19: 0 | LF19: 0 | LG19: 0 | LH19: 0 | LI19: 0 | LJ19: 0 | LK19: 0 | LL19: 0 | LM19: 0 | LN19: 0 | LO19: 0 | LP19: 0 | LQ19: 0 | LR19: 0 | LS19: 0 | LT19: 0 | LU19: 0 | LV19: 0 | LW19: 0 | LX19: 0 | LY19: 0 | LZ19: 0 | MA19: 0 | MB19: 0 | MC19: 0 | MD19: 0 | ME19: 0 | MF19: 0 | MG19: 0 | MH19: 0 | MI19: 0 | MJ19: 0 | MK19: 0 | ML19: 0 | MM19: 2 | MN19: -1 | MO19: 2 | MP19: 1 | MQ19: 2 | MR19: 0 | MS19: 0 | MT19: 2 | MU19: 0 | MV19: 0 | MW19: 1 | MX19: 0 | MY19: 0 | MZ19: 0 | NA19: 0 | NB19: 0 | NC19: 0 | ND19: 0 | NE19: -1 | NF19: 0 | NG19: 0 | NH19: 0 | NI19: 0 | NJ19: 0 | NK19: 0 | NL19: -1 | NM19: 2 | NN19: 2 | NO19: 2 | NP19: 0 | NQ19: 2 | NR19: 2 | NS19: 0 | NT19: 0 | NU19: 0 | NV19: 0 | NW19: 0 | NX19: 0 | NY19: 0 | NZ19: 0 | OA19: 0 | OB19: 0 | OC19: 0 | OD19: 0 | OE19: 0 | OF19: -1 | OG19: 0 | OH19: 0 | OI19: 0 | OJ19: 0 | OK19: 0 | OL19: 0 | OM19: 0 | ON19: 0 | OO19: 0 | OP19: 0 | OQ19: 0 | OR19: 0 | OS19: 0 | OT19: 0
A20: S2_1474386665 | B20: TAAA/TAAAA | C20: chr1 | D20: 3474386665 | E20: 0 | F20: 0 | G20: 0 | H20: 0 | I20: 0 | J20: 0 | K20: 0 | L20: 0 | M20: 0 | N20: 0 | O20: 0 | P20: 2 | Q20: 0 | R20: 0 | S20: -1 | T20: 0 | U20: 0 | V20: 0 | W20: 0 | X20: 0 | Y20: 0 | Z20: 0 | AA20: 0 | AB20: 0 | AC20: 0 | AD20: -1 | AE20: 0 | AF20: 0 | AG20: 0 | AH20: 0 | AI20: 2 | AJ20: 0 | AK20: -1 | AL20: 0 | AM20: 0 | AN20: 0 | AO20: 0 | AP20: 0 | AQ20: 0 | AR20: 0 | AS20: 0 | AT20: 0 | AU20: 0 | AV20: 0 | AW20: 0 | AX20: 0 | AY20: 0 | AZ20: 0 | BA20: 0 | BB20: 0 | BC20: 0 | BD20: 0 | BE20: 0 | BF20: 0 | BG20: 0 | BH20: 0 | BI20: 0 | BJ20: 0 | BK20: -1 | BL20: 2 | BM20: -1 | BN20: 0 | BO20: 0 | BP20: -1 | BQ20: 0 | BR20: 0 | BS20: 0 | BT20: 0 | BU20: 0 | BV20: 0 | BW20: 0 | BX20: 0 | BY20: 0 | BZ20: 0 | CA20: 0 | CB20: 0 | CC20: 0 | CD20: 0 | CE20: 0 | CF20: 0 | CG20: -1 | CH20: 0 | CI20: 0 | CJ20: -1 | CK20: -1 | CL20: 0 | CM20: 0 | CN20: 0 | CO20: 0 | CP20: 0 | CQ20: 0 | CR20: 0 | CS20: 0 | CT20: 0 | CU20: 0 | CV20: 0 | CW20: 0 | CX20: 0 | CY20: 0 | CZ20: 0 | DA20: 0 | DB20: 1 | DC20: 0 | DD20: -1 | DE20: 0 | DF20: 0 | DG20: 0 | DH20: 0 | DI20: 0 | DJ20: 0 | DK20: 0 | DL20: -1 | DM20: 0 | DN20: 0 | DO20: 0 | DP20: 0 | DQ20: 0 | DR20: 0 | DS20: 0 | DT20: 0 | DU20: 0 | DV20: 0 | DW20: 0 | DX20: 0 | DY20: 0 | DZ20: 0 | EA20: 0 | EB20: 0 | EC20: -1 | ED20: -1 | EE20: 0 | EF20: 0 | EG20: 0 | EH20: 0 | EI20: 0 | EJ20: 0 | EK20: 0 | EL20: 0 | EM20: 0 | EN20: 0 | EO20: 0 | EP20: 0 | EQ20: 0 | ER20: -1 | ES20: 0 | ET20: 0 | EU20: 0 | EV20: 0 | EW20: 0 | EX20: 0 | EY20: 0 | EZ20: 0 | FA20: 0 | FB20: 0 | FC20: 0 | FD20: 0 | FE20: 0 | FF20: 0 | FG20: 0 | FH20: 0 | FI20: 0 | FJ20: 0 | FK20: 0 | FL20: 0 | FM20: 0 | FN20: 0 | FO20: 0 | FP20: 0 | FQ20: 0 | FR20: 0 | FS20: 0 | FT20: 0 | FU20: 0 | FV20: 0 | FW20: 0 | FX20: 0 | FY20: 0 | FZ20: 0 | GA20: 0 | GB20: 0 | GC20: 0 | GD20: 0 | GE20: 0 | GF20: 0 | GG20: 0 | GH20: 0 | GI20: 0 | GJ20: 0 | GK20: 0 | GL20: 0 | GM20: 0 | GN20: 0 | GO20: 0 | GP20: 0 | GQ20: 0 | GR20: 0 | GS20: 2 | GT20: 2 | GU20: 2 | GV20: 2 | GW20: 0 | GX20: 0 | GY20: 0 | GZ20: 0 | HA20: 0 | HB20: 0 | HC20: 1 | HD20: 0 | HE20: 0 | HF20: 2 | HG20: 2 | HH20: 2 | HI20: 1 | HJ20: 1 | HK20: 2 | HL20: 2 | HM20: 0 | HN20: 1 | HO20: 2 | HP20: 2 | HQ20: 2 | HR20: 2 | HS20: 0 | HT20: 0 | HU20: -1 | HV20: -1 | HW20: 2 | HX20: 0 | HY20: 2 | HZ20: 0 | IA20: 2 | IB20: 2 | IC20: -1 | ID20: 2 | IE20: 2 | IF20: 2 | IG20: 2 | IH20: 0 | II20: 0 | IJ20: 2 | IK20: 2 | IL20: 2 | IM20: 0 | IN20: 2 | IO20: 0 | IP20: 2 | IQ20: 2 | IR20: 2 | IS20: 2 | IT20: 0 | IU20: 0 | IV20: 2 | IW20: 0 | IX20: 0 | IY20: 2 | IZ20: 2 | JA20: 0 | JB20: 2 | JC20: 2 | JD20: 2 | JE20: 0 | JF20: 2 | JG20: -1 | JH20: 0 | JI20: 2 | JJ20: -1 | JK20: 2 | JL20: 2 | JM20: 2 | JN20: 1 | JO20: 2 | JP20: 0 | JQ20: 2 | JR20: 0 | JS20: 2 | JT20: 2 | JU20: 2 | JV20: 1 | JW20: 0 | JX20: 2 | JY20: 0 | JZ20: 0 | KA20: 0 | KB20: 0 | KC20: 0 | KD20: 0 | KE20: 0 | KF20: 0 | KG20: 0 | KH20: 0 | KI20: 0 | KJ20: 0 | KK20: 0 | KL20: 0 | KM20: 0 | KN20: 0 | KO20: 0 | KP20: 0 | KQ20: 0 | KR20: 0 | KS20: 0 | KT20: 0 | KU20: 0 | KV20: 0 | KW20: 0 | KX20: 0 | KY20: 0 | KZ20: 0 | LA20: 0 | LB20: 0 | LC20: 0 | LD20: 0 | LE20: 0 | LF20: 0 | LG20: 0 | LH20: 0 | LI20: 0 | LJ20: 0 | LK20: 0 | LL20: 0 | LM20: 0 | LN20: 0 | LO20: 0 | LP20: 0 | LQ20: 0 | LR20: 0 | LS20: 0 | LT20: 0 | LU20: 0 | LV20: 0 | LW20: 0 | LX20: 0 | LY20: 0 | LZ20: 0 | MA20: 0 | MB20: 0 | MC20: 0 | MD20: 0 | ME20: 0 | MF20: 0 | MG20: 0 | MH20: 0 | MI20: 0 | MJ20: 0 | MK20: 0 | ML20: 0 | MM20: 1 | MN20: 0 | MO20: 2 | MP20: 2 | MQ20: -1 | MR20: 0 | MS20: 0 | MT20: 1 | MU20: 0 | MV20: 0 | MW20: 2 | MX20: 0 | MY20: 0 | MZ20: 0 | NA20: 0 | NB20: 0 | NC20: 0 | ND20: 0 | NE20: 2 | NF20: 0 | NG20: 0 | NH20: 0 | NI20: 0 | NJ20: 0 | NK20: 0 | NL20: 2 | NM20: 2 | NN20: 2 | NO20: 2 | NP20: 0 | NQ20: 2 | NR20: 2 | NS20: 1 | NT20: 0 | NU20: 0 | NV20: 0 | NW20: 0 | NX20: 0 | NY20: 0 | NZ20: 0 | OA20: 0 | OB20: 0 | OC20: -1 | OD20: 0 | OE20: 0 | OF20: 0 | OG20: 0 | OH20: 0 | OI20: 0 | OJ20: 0 | OK20: 0 | OL20: 0 | OM20: 0 | ON20: 0 | OO20: 0 | OP20: 0 | OQ20: 0 | OR20: 0 | OS20: 0 | OT20: 0
A21: S2_1474395695 | B21: CTTT/CTTTT | C21: chr1 | D21: 3474395695 | E21: 0 | F21: 0 | G21: 0 | H21: 0 | I21: 0 | J21: 0 | K21: 0 | L21: 0 | M21: 0 | N21: 0 | O21: 0 | P21: -1 | Q21: 0 | R21: 0 | S21: -1 | T21: 0 | U21: 0 | V21: 0 | W21: 0 | X21: 0 | Y21: 0 | Z21: 0 | AA21: 0 | AB21: 0 | AC21: 0 | AD21: -1 | AE21: 0 | AF21: 0 | AG21: 0 | AH21: 0 | AI21: 1 | AJ21: 0 | AK21: -1 | AL21: 0 | AM21: 0 | AN21: 0 | AO21: 0 | AP21: 0 | AQ21: 0 | AR21: 0 | AS21: 0 | AT21: 0 | AU21: 0 | AV21: 0 | AW21: 0 | AX21: 0 | AY21: 0 | AZ21: 0 | BA21: 0 | BB21: 0 | BC21: 0 | BD21: 0 | BE21: 0 | BF21: 0 | BG21: 0 | BH21: 0 | BI21: 0 | BJ21: 0 | BK21: -1 | BL21: 1 | BM21: -1 | BN21: 0 | BO21: 0 | BP21: -1 | BQ21: 0 | BR21: 0 | BS21: 0 | BT21: 0 | BU21: 0 | BV21: 0 | BW21: 0 | BX21: 0 | BY21: 0 | BZ21: 0 | CA21: 0 | CB21: 0 | CC21: 0 | CD21: 0 | CE21: 0 | CF21: 0 | CG21: -1 | CH21: 0 | CI21: 0 | CJ21: -1 | CK21: -1 | CL21: 0 | CM21: 0 | CN21: 0 | CO21: 0 | CP21: 0 | CQ21: 0 | CR21: 0 | CS21: 0 | CT21: 0 | CU21: 0 | CV21: 0 | CW21: 0 | CX21: 0 | CY21: 0 | CZ21: 0 | DA21: 0 | DB21: 2 | DC21: 0 | DD21: -1 | DE21: 0 | DF21: 0 | DG21: 0 | DH21: 0 | DI21: 0 | DJ21: 0 | DK21: 0 | DL21: -1 | DM21: 0 | DN21: 0 | DO21: 0 | DP21: 0 | DQ21: 0 | DR21: 0 | DS21: 0 | DT21: 0 | DU21: 0 | DV21: 0 | DW21: 0 | DX21: 0 | DY21: 0 | DZ21: 0 | EA21: 0 | EB21: 0 | EC21: 0 | ED21: -1 | EE21: 0 | EF21: 0 | EG21: 0 | EH21: 0 | EI21: 0 | EJ21: 0 | EK21: 0 | EL21: 0 | EM21: 0 | EN21: 0 | EO21: 0 | EP21: 0 | EQ21: 0 | ER21: -1 | ES21: 0 | ET21: 0 | EU21: 0 | EV21: 0 | EW21: 0 | EX21: 0 | EY21: 0 | EZ21: 0 | FA21: 0 | FB21: 0 | FC21: 0 | FD21: 0 | FE21: 0 | FF21: 0 | FG21: 0 | FH21: 0 | FI21: 0 | FJ21: 0 | FK21: 0 | FL21: 0 | FM21: 0 | FN21: 0 | FO21: 0 | FP21: 0 | FQ21: 0 | FR21: 0 | FS21: 0 | FT21: 0 | FU21: 0 | FV21: 0 | FW21: 0 | FX21: 0 | FY21: 0 | FZ21: 0 | GA21: 0 | GB21: 0 | GC21: 0 | GD21: 0 | GE21: 0 | GF21: 0 | GG21: 0 | GH21: 0 | GI21: 0 | GJ21: 0 | GK21: 0 | GL21: 0 | GM21: 0 | GN21: 0 | GO21: 0 | GP21: 0 | GQ21: 0 | GR21: 0 | GS21: 2 | GT21: 2 | GU21: -1 | GV21: 1 | GW21: 0 | GX21: 0 | GY21: -1 | GZ21: 0 | HA21: 0 | HB21: 0 | HC21: 1 | HD21: 1 | HE21: 1 | HF21: 1 | HG21: -1 | HH21: 1 | HI21: 0 | HJ21: -1 | HK21: 1 | HL21: -1 | HM21: 0 | HN21: -1 | HO21: -1 | HP21: 1 | HQ21: 1 | HR21: 1 | HS21: 0 | HT21: -1 | HU21: -1 | HV21: -1 | HW21: 2 | HX21: 0 | HY21: 2 | HZ21: -1 | IA21: -1 | IB21: 1 | IC21: -1 | ID21: 1 | IE21: 1 | IF21: 2 | IG21: 2 | IH21: 0 | II21: 0 | IJ21: -1 | IK21: -1 | IL21: 2 | IM21: 0 | IN21: 2 | IO21: 1 | IP21: -1 | IQ21: 1 | IR21: 2 | IS21: 1 | IT21: 0 | IU21: 1 | IV21: 1 | IW21: 0 | IX21: 0 | IY21: -1 | IZ21: 2 | JA21: 0 | JB21: 2 | JC21: -1 | JD21: 1 | JE21: 0 | JF21: -1 | JG21: 2 | JH21: 0 | JI21: -1 | JJ21: 1 | JK21: 2 | JL21: 1 | JM21: 2 | JN21: 1 | JO21: 1 | JP21: 0 | JQ21: -1 | JR21: 0 | JS21: 1 | JT21: -1 | JU21: 1 | JV21: -1 | JW21: 0 | JX21: 1 | JY21: 0 | JZ21: 0 | KA21: 0 | KB21: 0 | KC21: 0 | KD21: 0 | KE21: -1 | KF21: 0 | KG21: 0 | KH21: 0 | KI21: 0 | KJ21: 0 | KK21: 0 | KL21: 0 | KM21: 0 | KN21: 0 | KO21: 0 | KP21: 0 | KQ21: 0 | KR21: 0 | KS21: 0 | KT21: 0 | KU21: 0 | KV21: 0 | KW21: 0 | KX21: 0 | KY21: 0 | KZ21: 0 | LA21: 0 | LB21: 0 | LC21: 0 | LD21: 0 | LE21: 0 | LF21: 0 | LG21: 0 | LH21: 0 | LI21: 0 | LJ21: 0 | LK21: 0 | LL21: 0 | LM21: 0 | LN21: 0 | LO21: 0 | LP21: 0 | LQ21: 0 | LR21: 0 | LS21: 0 | LT21: 0 | LU21: 0 | LV21: 0 | LW21: 0 | LX21: 0 | LY21: 0 | LZ21: 0 | MA21: 0 | MB21: 0 | MC21: 0 | MD21: 0 | ME21: 0 | MF21: 0 | MG21: 0 | MH21: 0 | MI21: 0 | MJ21: 0 | MK21: 0 | ML21: 0 | MM21: 2 | MN21: 0 | MO21: 2 | MP21: 2 | MQ21: 1 | MR21: 0 | MS21: 0 | MT21: 0 | MU21: 0 | MV21: 0 | MW21: 2 | MX21: 0 | MY21: 0 | MZ21: 0 | NA21: 0 | NB21: 0 | NC21: 0 | ND21: 0 | NE21: 1 | NF21: 0 | NG21: 0 | NH21: 0 | NI21: 0 | NJ21: 1 | NK21: 0 | NL21: 1 | NM21: 1 | NN21: -1 | NO21: -1 | NP21: 0 | NQ21: 1 | NR21: 2 | NS21: 0 | NT21: 0 | NU21: 0 | NV21: 0 | NW21: 0 | NX21: 0 | NY21: 0 | NZ21: 0 | OA21: 0 | OB21: 0 | OC21: 0 | OD21: 0 | OE21: 0 | OF21: 0 | OG21: 0 | OH21: 0 | OI21: 0 | OJ21: 0 | OK21: 0 | OL21: 0 | OM21: 0 | ON21: 0 | OO21: 0 | OP21: 0 | OQ21: 0 | OR21: 0 | OS21: 0 | OT21: 0
A22: S2_1474398239 | B22: AT/A | C22: chr1 | D22: 3474398239 | E22: 0 | F22: 0 | G22: 0 | H22: 0 | I22: 0 | J22: 0 | K22: 0 | L22: 0 | M22: 0 | N22: 0 | O22: 0 | P22: 2 | Q22: 0 | R22: 0 | S22: -1 | T22: 0 | U22: 0 | V22: 0 | W22: 0 | X22: 0 | Y22: 0 | Z22: 0 | AA22: 0 | AB22: 0 | AC22: 0 | AD22: -1 | AE22: 0 | AF22: 0 | AG22: 0 | AH22: 0 | AI22: 2 | AJ22: 0 | AK22: -1 | AL22: 0 | AM22: 0 | AN22: 0 | AO22: 0 | AP22: 0 | AQ22: 0 | AR22: 0 | AS22: 0 | AT22: 0 | AU22: 0 | AV22: 0 | AW22: 0 | AX22: 0 | AY22: 0 | AZ22: 0 | BA22: 0 | BB22: 0 | BC22: 0 | BD22: 0 | BE22: 0 | BF22: 0 | BG22: 0 | BH22: 0 | BI22: 0 | BJ22: 0 | BK22: -1 | BL22: -1 | BM22: -1 | BN22: 0 | BO22: 0 | BP22: -1 | BQ22: 0 | BR22: 0 | BS22: 0 | BT22: 0 | BU22: 0 | BV22: 0 | BW22: 0 | BX22: 0 | BY22: 0 | BZ22: 0 | CA22: 0 | CB22: 0 | CC22: 0 | CD22: 0 | CE22: 0 | CF22: 0 | CG22: -1 | CH22: 0 | CI22: 0 | CJ22: -1 | CK22: -1 | CL22: 0 | CM22: 0 | CN22: 0 | CO22: 0 | CP22: 0 | CQ22: 0 | CR22: 0 | CS22: 0 | CT22: 0 | CU22: 0 | CV22: 0 | CW22: 0 | CX22: 0 | CY22: 0 | CZ22: 0 | DA22: 0 | DB22: 2 | DC22: 0 | DD22: -1 | DE22: 0 | DF22: 0 | DG22: 0 | DH22: 0 | DI22: 0 | DJ22: 0 | DK22: 0 | DL22: -1 | DM22: 0 | DN22: 0 | DO22: 0 | DP22: 0 | DQ22: 0 | DR22: 0 | DS22: 0 | DT22: 0 | DU22: 0 | DV22: 0 | DW22: 0 | DX22: 0 | DY22: 0 | DZ22: 0 | EA22: 0 | EB22: 0 | EC22: 0 | ED22: -1 | EE22: 0 | EF22: 0 | EG22: 0 | EH22: 0 | EI22: 0 | EJ22: 0 | EK22: 0 | EL22: 0 | EM22: 0 | EN22: 0 | EO22: 0 | EP22: 0 | EQ22: 0 | ER22: -1 | ES22: 0 | ET22: 0 | EU22: 0 | EV22: 0 | EW22: 0 | EX22: 0 | EY22: 0 | EZ22: 0 | FA22: 0 | FB22: 0 | FC22: 0 | FD22: 0 | FE22: 0 | FF22: 0 | FG22: 0 | FH22: 0 | FI22: 0 | FJ22: 0 | FK22: 0 | FL22: 0 | FM22: 0 | FN22: 0 | FO22: 0 | FP22: 0 | FQ22: 0 | FR22: 0 | FS22: 0 | FT22: 0 | FU22: 0 | FV22: 0 | FW22: 0 | FX22: 0 | FY22: 0 | FZ22: 0 | GA22: 0 | GB22: 0 | GC22: 0 | GD22: 0 | GE22: 0 | GF22: 0 | GG22: 0 | GH22: 0 | GI22: 0 | GJ22: 0 | GK22: 0 | GL22: 0 | GM22: 0 | GN22: 0 | GO22: 0 | GP22: 0 | GQ22: 0 | GR22: 0 | GS22: 2 | GT22: 2 | GU22: 2 | GV22: 1 | GW22: 0 | GX22: 1 | GY22: 0 | GZ22: 0 | HA22: 0 | HB22: 0 | HC22: -1 | HD22: -1 | HE22: 0 | HF22: 2 | HG22: 2 | HH22: 2 | HI22: 0 | HJ22: 2 | HK22: 2 | HL22: 2 | HM22: 0 | HN22: 2 | HO22: 2 | HP22: 2 | HQ22: 2 | HR22: 2 | HS22: 0 | HT22: 0 | HU22: 2 | HV22: 2 | HW22: 2 | HX22: 0 | HY22: 2 | HZ22: 0 | IA22: 1 | IB22: 2 | IC22: 2 | ID22: 2 | IE22: 2 | IF22: 2 | IG22: 2 | IH22: -1 | II22: 0 | IJ22: 2 | IK22: 2 | IL22: 2 | IM22: 0 | IN22: 2 | IO22: 0 | IP22: 2 | IQ22: 2 | IR22: -1 | IS22: 2 | IT22: 0 | IU22: -1 | IV22: 2 | IW22: 0 | IX22: 0 | IY22: 2 | IZ22: 2 | JA22: 0 | JB22: 2 | JC22: 2 | JD22: 2 | JE22: 0 | JF22: 2 | JG22: 2 | JH22: 0 | JI22: 2 | JJ22: -1 | JK22: 2 | JL22: 2 | JM22: 2 | JN22: 1 | JO22: 2 | JP22: 0 | JQ22: 2 | JR22: 0 | JS22: 2 | JT22: 2 | JU22: 2 | JV22: 1 | JW22: 0 | JX22: -1 | JY22: 0 | JZ22: 0 | KA22: 0 | KB22: 0 | KC22: 0 | KD22: 0 | KE22: 0 | KF22: 0 | KG22: 0 | KH22: 0 | KI22: 0 | KJ22: 0 | KK22: 0 | KL22: 0 | KM22: 0 | KN22: 0 | KO22: 0 | KP22: 0 | KQ22: 0 | KR22: 0 | KS22: 0 | KT22: 0 | KU22: 0 | KV22: 0 | KW22: 0 | KX22: 0 | KY22: 0 | KZ22: 0 | LA22: 0 | LB22: 0 | LC22: 0 | LD22: 0 | LE22: 0 | LF22: 0 | LG22: 0 | LH22: 0 | LI22: 0 | LJ22: 0 | LK22: 0 | LL22: 0 | LM22: 0 | LN22: 0 | LO22: 0 | LP22: 0 | LQ22: 0 | LR22: 0 | LS22: 0 | LT22: 0 | LU22: 0 | LV22: 0 | LW22: 0 | LX22: 0 | LY22: 0 | LZ22: 0 | MA22: 0 | MB22: 0 | MC22: 0 | MD22: 0 | ME22: 0 | MF22: 0 | MG22: 0 | MH22: 0 | MI22: 0 | MJ22: 0 | MK22: 0 | ML22: 0 | MM22: 2 | MN22: 0 | MO22: 2 | MP22: 2 | MQ22: 2 | MR22: 0 | MS22: 0 | MT22: 0 | MU22: 0 | MV22: 0 | MW22: 2 | MX22: 0 | MY22: 0 | MZ22: 0 | NA22: 0 | NB22: 0 | NC22: 0 | ND22: 0 | NE22: 2 | NF22: 0 | NG22: 0 | NH22: 0 | NI22: 0 | NJ22: 0 | NK22: 0 | NL22: 2 | NM22: 2 | NN22: 2 | NO22: 2 | NP22: 0 | NQ22: 2 | NR22: 2 | NS22: 1 | NT22: 0 | NU22: 0 | NV22: 0 | NW22: 0 | NX22: 0 | NY22: 0 | NZ22: 0 | OA22: 0 | OB22: 1 | OC22: 0 | OD22: 0 | OE22: 0 | OF22: 0 | OG22: 0 | OH22: 0 | OI22: 0 | OJ22: 0 | OK22: 0 | OL22: 0 | OM22: 0 | ON22: 0 | OO22: 0 | OP22: 0 | OQ22: 0 | OR22: 0 | OS22: 0 | OT22: 0
A23: S2_1474400576 | B23: AGGACCATTTCCAATGGA/AGGA | C23: chr1 | D23: 3474400576 | E23: 0 | F23: 0 | G23: 0 | H23: 0 | I23: 0 | J23: 0 | K23: 0 | L23: 0 | M23: 0 | N23: 0 | O23: 0 | P23: -1 | Q23: 0 | R23: 0 | S23: -1 | T23: 0 | U23: 0 | V23: 0 | W23: 0 | X23: 0 | Y23: 0 | Z23: 0 | AA23: 0 | AB23: 0 | AC23: 0 | AD23: -1 | AE23: 0 | AF23: 0 | AG23: 0 | AH23: 0 | AI23: 2 | AJ23: 0 | AK23: -1 | AL23: 0 | AM23: 0 | AN23: 0 | AO23: 0 | AP23: 0 | AQ23: 0 | AR23: 0 | AS23: 0 | AT23: 0 | AU23: 0 | AV23: 0 | AW23: 0 | AX23: 0 | AY23: 0 | AZ23: 0 | BA23: 0 | BB23: 0 | BC23: 0 | BD23: 0 | BE23: 0 | BF23: 0 | BG23: 0 | BH23: 0 | BI23: 0 | BJ23: 0 | BK23: -1 | BL23: -1 | BM23: -1 | BN23: 0 | BO23: 0 | BP23: -1 | BQ23: 0 | BR23: 0 | BS23: 0 | BT23: 0 | BU23: 0 | BV23: 0 | BW23: 0 | BX23: 0 | BY23: 0 | BZ23: 0 | CA23: 0 | CB23: 0 | CC23: 0 | CD23: 0 | CE23: 0 | CF23: 0 | CG23: -1 | CH23: 0 | CI23: 0 | CJ23: -1 | CK23: -1 | CL23: 0 | CM23: 0 | CN23: 0 | CO23: 0 | CP23: 0 | CQ23: 0 | CR23: 0 | CS23: 0 | CT23: 0 | CU23: 0 | CV23: 0 | CW23: 0 | CX23: 0 | CY23: 0 | CZ23: 0 | DA23: 0 | DB23: -1 | DC23: 0 | DD23: -1 | DE23: 0 | DF23: 0 | DG23: 0 | DH23: 0 | DI23: 0 | DJ23: 0 | DK23: 0 | DL23: -1 | DM23: 0 | DN23: 0 | DO23: 0 | DP23: 0 | DQ23: 0 | DR23: 0 | DS23: 0 | DT23: 0 | DU23: 0 | DV23: 0 | DW23: 0 | DX23: 0 | DY23: 0 | DZ23: 0 | EA23: 0 | EB23: 0 | EC23: 0 | ED23: -1 | EE23: 0 | EF23: 0 | EG23: 0 | EH23: 0 | EI23: 0 | EJ23: 0 | EK23: 0 | EL23: 0 | EM23: 0 | EN23: 0 | EO23: 0 | EP23: 0 | EQ23: 0 | ER23: -1 | ES23: 0 | ET23: 0 | EU23: 0 | EV23: 0 | EW23: 0 | EX23: 0 | EY23: 0 | EZ23: 0 | FA23: 0 | FB23: 0 | FC23: 0 | FD23: 0 | FE23: 0 | FF23: 0 | FG23: 0 | FH23: 0 | FI23: 0 | FJ23: 0 | FK23: 0 | FL23: 0 | FM23: 0 | FN23: 0 | FO23: 0 | FP23: 0 | FQ23: 0 | FR23: 0 | FS23: 0 | FT23: 0 | FU23: 0 | FV23: 0 | FW23: 0 | FX23: 0 | FY23: 0 | FZ23: 0 | GA23: 0 | GB23: 0 | GC23: 0 | GD23: 0 | GE23: 0 | GF23: 0 | GG23: 0 | GH23: 0 | GI23: 0 | GJ23: 0 | GK23: 0 | GL23: 0 | GM23: 0 | GN23: 0 | GO23: 0 | GP23: 0 | GQ23: 0 | GR23: 0 | GS23: 2 | GT23: 2 | GU23: 1 | GV23: 2 | GW23: 1 | GX23: 0 | GY23: -1 | GZ23: 0 | HA23: 0 | HB23: 0 | HC23: -1 | HD23: 0 | HE23: 1 | HF23: -1 | HG23: 2 | HH23: 2 | HI23: 1 | HJ23: 2 | HK23: 2 | HL23: 2 | HM23: 0 | HN23: 2 | HO23: 2 | HP23: 2 | HQ23: -1 | HR23: 2 | HS23: 0 | HT23: -1 | HU23: 2 | HV23: 2 | HW23: -1 | HX23: 0 | HY23: 2 | HZ23: 1 | IA23: -1 | IB23: 2 | IC23: 2 | ID23: 2 | IE23: 2 | IF23: 1 | IG23: 2 | IH23: 1 | II23: 0 | IJ23: 2 | IK23: 2 | IL23: 1 | IM23: 0 | IN23: 2 | IO23: 1 | IP23: 2 | IQ23: 1 | IR23: 2 | IS23: 2 | IT23: 0 | IU23: 0 | IV23: 2 | IW23: 0 | IX23: 0 | IY23: 2 | IZ23: 2 | JA23: 0 | JB23: 2 | JC23: 2 | JD23: 2 | JE23: 0 | JF23: 2 | JG23: -1 | JH23: 0 | JI23: 1 | JJ23: 1 | JK23: -1 | JL23: 2 | JM23: 2 | JN23: 1 | JO23: 2 | JP23: 0 | JQ23: 2 | JR23: 0 | JS23: 2 | JT23: 1 | JU23: 2 | JV23: -1 | JW23: 0 | JX23: 2 | JY23: 0 | JZ23: 0 | KA23: 0 | KB23: 0 | KC23: 0 | KD23: -1 | KE23: 0 | KF23: 0 | KG23: 0 | KH23: 0 | KI23: 0 | KJ23: 0 | KK23: 0 | KL23: 0 | KM23: 0 | KN23: 0 | KO23: 0 | KP23: 0 | KQ23: 0 | KR23: 0 | KS23: 0 | KT23: 0 | KU23: 0 | KV23: 0 | KW23: 0 | KX23: 0 | KY23: 0 | KZ23: 0 | LA23: 0 | LB23: 0 | LC23: 0 | LD23: 0 | LE23: 0 | LF23: 0 | LG23: 0 | LH23: 0 | LI23: 0 | LJ23: 0 | LK23: 0 | LL23: 0 | LM23: 0 | LN23: 0 | LO23: 0 | LP23: 0 | LQ23: 0 | LR23: 0 | LS23: 0 | LT23: 0 | LU23: 0 | LV23: 0 | LW23: 0 | LX23: 0 | LY23: 0 | LZ23: 0 | MA23: 0 | MB23: 0 | MC23: 0 | MD23: 0 | ME23: 0 | MF23: 0 | MG23: 0 | MH23: 0 | MI23: 0 | MJ23: 0 | MK23: 0 | ML23: 0 | MM23: -1 | MN23: 0 | MO23: 2 | MP23: -1 | MQ23: 2 | MR23: 0 | MS23: 0 | MT23: 1 | MU23: 0 | MV23: 0 | MW23: 2 | MX23: 0 | MY23: 0 | MZ23: 0 | NA23: 0 | NB23: 0 | NC23: 0 | ND23: 0 | NE23: -1 | NF23: 0 | NG23: 0 | NH23: 0 | NI23: 0 | NJ23: 0 | NK23: 0 | NL23: 2 | NM23: -1 | NN23: 2 | NO23: 2 | NP23: 0 | NQ23: 2 | NR23: 2 | NS23: 1 | NT23: 0 | NU23: 0 | NV23: 0 | NW23: 0 | NX23: 0 | NY23: 0 | NZ23: 0 | OA23: 0 | OB23: -1 | OC23: 0 | OD23: 0 | OE23: 0 | OF23: 0 | OG23: 0 | OH23: 0 | OI23: 0 | OJ23: 0 | OK23: 0 | OL23: 0 | OM23: 0 | ON23: 0 | OO23: 0 | OP23: 0 | OQ23: 0 | OR23: 0 | OS23: 0 | OT23: 0
A24: S2_1474401085 | B24: CAAAA/CAAA | C24: chr1 | D24: 3474401085 | E24: 0 | F24: 0 | G24: 0 | H24: 0 | I24: 0 | J24: 0 | K24: 0 | L24: 0 | M24: 0 | N24: 0 | O24: 0 | P24: -1 | Q24: 0 | R24: 0 | S24: -1 | T24: 0 | U24: 0 | V24: 0 | W24: 0 | X24: 0 | Y24: 0 | Z24: 0 | AA24: 0 | AB24: 0 | AC24: 0 | AD24: -1 | AE24: 0 | AF24: 0 | AG24: 0 | AH24: 0 | AI24: 2 | AJ24: 0 | AK24: -1 | AL24: 0 | AM24: 0 | AN24: 0 | AO24: 0 | AP24: 0 | AQ24: 0 | AR24: 0 | AS24: 0 | AT24: 0 | AU24: 0 | AV24: 0 | AW24: 0 | AX24: 0 | AY24: 0 | AZ24: 0 | BA24: 0 | BB24: 0 | BC24: 0 | BD24: 0 | BE24: 0 | BF24: 0 | BG24: 0 | BH24: 0 | BI24: 0 | BJ24: 0 | BK24: -1 | BL24: 2 | BM24: -1 | BN24: 0 | BO24: 0 | BP24: -1 | BQ24: 0 | BR24: 0 | BS24: 0 | BT24: 0 | BU24: 0 | BV24: 0 | BW24: 0 | BX24: 0 | BY24: 0 | BZ24: 0 | CA24: 0 | CB24: 0 | CC24: 0 | CD24: 0 | CE24: 0 | CF24: 0 | CG24: -1 | CH24: 0 | CI24: 0 | CJ24: -1 | CK24: -1 | CL24: 0 | CM24: 0 | CN24: 0 | CO24: 0 | CP24: 0 | CQ24: 0 | CR24: 0 | CS24: 0 | CT24: 0 | CU24: 0 | CV24: 0 | CW24: 0 | CX24: 0 | CY24: 0 | CZ24: 0 | DA24: 0 | DB24: 1 | DC24: 0 | DD24: -1 | DE24: 0 | DF24: 0 | DG24: 0 | DH24: 0 | DI24: 0 | DJ24: 0 | DK24: 0 | DL24: -1 | DM24: 0 | DN24: 0 | DO24: 0 | DP24: 0 | DQ24: 0 | DR24: 0 | DS24: 0 | DT24: 0 | DU24: 0 | DV24: 0 | DW24: 0 | DX24: 0 | DY24: 0 | DZ24: 0 | EA24: 0 | EB24: 0 | EC24: 0 | ED24: -1 | EE24: 0 | EF24: 0 | EG24: 0 | EH24: 0 | EI24: 0 | EJ24: 0 | EK24: 0 | EL24: 0 | EM24: 0 | EN24: 0 | EO24: 0 | EP24: 0 | EQ24: 0 | ER24: -1 | ES24: 0 | ET24: 0 | EU24: 0 | EV24: 0 | EW24: 0 | EX24: 0 | EY24: 0 | EZ24: 0 | FA24: 0 | FB24: 0 | FC24: 0 | FD24: 0 | FE24: 0 | FF24: 0 | FG24: 0 | FH24: 0 | FI24: 0 | FJ24: 0 | FK24: 0 | FL24: 0 | FM24: 0 | FN24: 0 | FO24: 0 | FP24: 0 | FQ24: 0 | FR24: 0 | FS24: 0 | FT24: 0 | FU24: 0 | FV24: 0 | FW24: 0 | FX24: 0 | FY24: 0 | FZ24: 0 | GA24: 0 | GB24: 0 | GC24: 0 | GD24: 0 | GE24: 0 | GF24: 0 | GG24: 0 | GH24: 0 | GI24: 0 | GJ24: 0 | GK24: 0 | GL24: 0 | GM24: 0 | GN24: 0 | GO24: 0 | GP24: 0 | GQ24: 0 | GR24: 0 | GS24: 2 | GT24: 2 | GU24: -1 | GV24: 2 | GW24: 1 | GX24: 0 | GY24: 0 | GZ24: 0 | HA24: 0 | HB24: 0 | HC24: 1 | HD24: -1 | HE24: 0 | HF24: 1 | HG24: 2 | HH24: 2 | HI24: 1 | HJ24: 1 | HK24: 2 | HL24: 2 | HM24: 0 | HN24: -1 | HO24: 2 | HP24: 2 | HQ24: 2 | HR24: 2 | HS24: 0 | HT24: 1 | HU24: 2 | HV24: 2 | HW24: -1 | HX24: 0 | HY24: 2 | HZ24: 0 | IA24: 2 | IB24: 2 | IC24: -1 | ID24: 2 | IE24: 2 | IF24: 2 | IG24: 2 | IH24: -1 | II24: 0 | IJ24: 2 | IK24: 2 | IL24: 1 | IM24: 0 | IN24: 2 | IO24: -1 | IP24: -1 | IQ24: 2 | IR24: 1 | IS24: -1 | IT24: 0 | IU24: 1 | IV24: 1 | IW24: 0 | IX24: 0 | IY24: 2 | IZ24: 1 | JA24: 0 | JB24: 2 | JC24: 2 | JD24: 2 | JE24: 0 | JF24: 2 | JG24: 2 | JH24: 0 | JI24: 2 | JJ24: 1 | JK24: 2 | JL24: 2 | JM24: 2 | JN24: 1 | JO24: 2 | JP24: 0 | JQ24: 2 | JR24: 0 | JS24: 2 | JT24: 2 | JU24: 2 | JV24: -1 | JW24: 0 | JX24: 2 | JY24: 0 | JZ24: 0 | KA24: 0 | KB24: 0 | KC24: 0 | KD24: 0 | KE24: 0 | KF24: 0 | KG24: 0 | KH24: 0 | KI24: 0 | KJ24: 0 | KK24: 0 | KL24: 0 | KM24: 0 | KN24: 0 | KO24: 0 | KP24: 0 | KQ24: 0 | KR24: 0 | KS24: 0 | KT24: 0 | KU24: 0 | KV24: 0 | KW24: 0 | KX24: 0 | KY24: 0 | KZ24: 0 | LA24: 0 | LB24: 0 | LC24: 0 | LD24: 0 | LE24: 0 | LF24: 0 | LG24: 0 | LH24: 0 | LI24: 0 | LJ24: 0 | LK24: 0 | LL24: 0 | LM24: 0 | LN24: 0 | LO24: 0 | LP24: 0 | LQ24: 0 | LR24: 0 | LS24: 0 | LT24: 0 | LU24: 0 | LV24: 0 | LW24: 0 | LX24: 0 | LY24: 0 | LZ24: 0 | MA24: 0 | MB24: 0 | MC24: 0 | MD24: 0 | ME24: 0 | MF24: 0 | MG24: 0 | MH24: 0 | MI24: 0 | MJ24: 0 | MK24: 0 | ML24: 0 | MM24: 2 | MN24: 0 | MO24: 2 | MP24: 2 | MQ24: 2 | MR24: 0 | MS24: 0 | MT24: 1 | MU24: 0 | MV24: 0 | MW24: 2 | MX24: 0 | MY24: 0 | MZ24: 0 | NA24: 0 | NB24: 0 | NC24: 0 | ND24: 0 | NE24: 2 | NF24: 0 | NG24: 0 | NH24: 0 | NI24: 0 | NJ24: -1 | NK24: 0 | NL24: 2 | NM24: 2 | NN24: 2 | NO24: 2 | NP24: 0 | NQ24: 2 | NR24: 2 | NS24: 0 | NT24: 0 | NU24: 0 | NV24: 0 | NW24: 0 | NX24: 0 | NY24: 0 | NZ24: 0 | OA24: 0 | OB24: 1 | OC24: 0 | OD24: 0 | OE24: 0 | OF24: 0 | OG24: 0 | OH24: 0 | OI24: 0 | OJ24: 0 | OK24: 0 | OL24: 0 | OM24: 0 | ON24: 0 | OO24: 0 | OP24: 0 | OQ24: 0 | OR24: 0 | OS24: 0 | OT24: 0
A25: S2_1474448133 | B25: AGGGGGG/AGGGGG | C25: chr1 | D25: 3474448133 | E25: 0 | F25: 0 | G25: 0 | H25: 0 | I25: 1 | J25: -1 | K25: 0 | L25: 2 | M25: 0 | N25: 0 | O25: 1 | P25: 2 | Q25: 0 | R25: 0 | S25: 1 | T25: 0 | U25: 0 | V25: 0 | W25: 0 | X25: 0 | Y25: 0 | Z25: 0 | AA25: 0 | AB25: 0 | AC25: 0 | AD25: -1 | AE25: 0 | AF25: 0 | AG25: 0 | AH25: 0 | AI25: -1 | AJ25: 0 | AK25: -1 | AL25: -1 | AM25: 0 | AN25: 0 | AO25: 0 | AP25: 0 | AQ25: 0 | AR25: 0 | AS25: 0 | AT25: 0 | AU25: 0 | AV25: 0 | AW25: 0 | AX25: 1 | AY25: 0 | AZ25: 0 | BA25: 0 | BB25: 0 | BC25: 0 | BD25: 2 | BE25: 0 | BF25: 0 | BG25: 0 | BH25: 0 | BI25: 0 | BJ25: 0 | BK25: -1 | BL25: -1 | BM25: -1 | BN25: 0 | BO25: 0 | BP25: 1 | BQ25: 0 | BR25: 0 | BS25: 2 | BT25: 0 | BU25: 0 | BV25: 0 | BW25: 0 | BX25: 0 | BY25: 0 | BZ25: 0 | CA25: 0 | CB25: 0 | CC25: 0 | CD25: 0 | CE25: 0 | CF25: 0 | CG25: -1 | CH25: 0 | CI25: 0 | CJ25: -1 | CK25: 1 | CL25: 2 | CM25: 0 | CN25: 0 | CO25: 0 | CP25: 1 | CQ25: 0 | CR25: 0 | CS25: 0 | CT25: 0 | CU25: 0 | CV25: 0 | CW25: 0 | CX25: 0 | CY25: 0 | CZ25: 0 | DA25: 0 | DB25: 1 | DC25: 0 | DD25: -1 | DE25: 0 | DF25: 0 | DG25: 0 | DH25: 0 | DI25: 0 | DJ25: 0 | DK25: 0 | DL25: 1 | DM25: 0 | DN25: 2 | DO25: 0 | DP25: 0 | DQ25: 0 | DR25: 0 | DS25: 0 | DT25: 0 | DU25: 0 | DV25: 0 | DW25: 1 | DX25: 0 | DY25: 0 | DZ25: 0 | EA25: 2 | EB25: 0 | EC25: 0 | ED25: 1 | EE25: 0 | EF25: 0 | EG25: 0 | EH25: 0 | EI25: 0 | EJ25: 2 | EK25: 0 | EL25: 0 | EM25: 0 | EN25: 0 | EO25: 0 | EP25: 2 | EQ25: 0 | ER25: 1 | ES25: 0 | ET25: 0 | EU25: -1 | EV25: 0 | EW25: 0 | EX25: 0 | EY25: -1 | EZ25: 0 | FA25: 0 | FB25: 0 | FC25: 0 | FD25: 0 | FE25: 0 | FF25: 0 | FG25: 0 | FH25: 0 | FI25: 0 | FJ25: 0 | FK25: 0 | FL25: 0 | FM25: 0 | FN25: 0 | FO25: 0 | FP25: 0 | FQ25: 0 | FR25: 0 | FS25: 0 | FT25: 0 | FU25: 0 | FV25: 2 | FW25: 0 | FX25: 0 | FY25: 0 | FZ25: 0 | GA25: 0 | GB25: 0 | GC25: 0 | GD25: 0 | GE25: 0 | GF25: 0 | GG25: 0 | GH25: 0 | GI25: 0 | GJ25: 0 | GK25: 0 | GL25: 0 | GM25: 0 | GN25: 0 | GO25: 0 | GP25: 0 | GQ25: 0 | GR25: 2 | GS25: 1 | GT25: 1 | GU25: 2 | GV25: 2 | GW25: 0 | GX25: 0 | GY25: 0 | GZ25: 0 | HA25: 0 | HB25: 0 | HC25: -1 | HD25: 0 | HE25: 0 | HF25: 2 | HG25: 2 | HH25: 2 | HI25: -1 | HJ25: -1 | HK25: 2 | HL25: 2 | HM25: 0 | HN25: -1 | HO25: 1 | HP25: 1 | HQ25: 1 | HR25: 2 | HS25: 0 | HT25: 1 | HU25: 2 | HV25: 1 | HW25: 2 | HX25: 0 | HY25: 2 | HZ25: -1 | IA25: -1 | IB25: 2 | IC25: 2 | ID25: 2 | IE25: -1 | IF25: 2 | IG25: 2 | IH25: 0 | II25: 0 | IJ25: -1 | IK25: 2 | IL25: 2 | IM25: 0 | IN25: -1 | IO25: 1 | IP25: 2 | IQ25: 1 | IR25: 2 | IS25: 2 | IT25: 0 | IU25: 0 | IV25: 1 | IW25: 0 | IX25: 0 | IY25: 1 | IZ25: 2 | JA25: 0 | JB25: -1 | JC25: 2 | JD25: 2 | JE25: 0 | JF25: 1 | JG25: 2 | JH25: 0 | JI25: -1 | JJ25: -1 | JK25: 2 | JL25: 2 | JM25: -1 | JN25: 1 | JO25: 1 | JP25: 0 | JQ25: -1 | JR25: 0 | JS25: 2 | JT25: -1 | JU25: 2 | JV25: 0 | JW25: 0 | JX25: 2 | JY25: 0 | JZ25: 0 | KA25: 0 | KB25: 0 | KC25: 0 | KD25: 0 | KE25: -1 | KF25: 0 | KG25: 0 | KH25: 0 | KI25: 0 | KJ25: 0 | KK25: 0 | KL25: 0 | KM25: 0 | KN25: 0 | KO25: 0 | KP25: 0 | KQ25: 0 | KR25: 0 | KS25: 0 | KT25: 0 | KU25: 0 | KV25: 0 | KW25: 0 | KX25: 0 | KY25: 0 | KZ25: 0 | LA25: 0 | LB25: 0 | LC25: 0 | LD25: 0 | LE25: 0 | LF25: 0 | LG25: 0 | LH25: 0 | LI25: 0 | LJ25: 0 | LK25: 0 | LL25: 0 | LM25: 0 | LN25: 0 | LO25: 0 | LP25: 0 | LQ25: 0 | LR25: 0 | LS25: 0 | LT25: 0 | LU25: 0 | LV25: 0 | LW25: 0 | LX25: 0 | LY25: 0 | LZ25: 0 | MA25: 0 | MB25: 0 | MC25: 0 | MD25: 0 | ME25: 0 | MF25: 0 | MG25: 0 | MH25: 0 | MI25: 0 | MJ25: 0 | MK25: 0 | ML25: 0 | MM25: 2 | MN25: 0 | MO25: 2 | MP25: 2 | MQ25: 2 | MR25: 0 | MS25: 0 | MT25: -1 | MU25: 0 | MV25: 0 | MW25: 2 | MX25: 0 | MY25: 0 | MZ25: 0 | NA25: 0 | NB25: 0 | NC25: 0 | ND25: 0 | NE25: -1 | NF25: 0 | NG25: 0 | NH25: 0 | NI25: 0 | NJ25: 0 | NK25: 0 | NL25: -1 | NM25: -1 | NN25: 2 | NO25: 2 | NP25: 0 | NQ25: 2 | NR25: -1 | NS25: 0 | NT25: 0 | NU25: 0 | NV25: 0 | NW25: 0 | NX25: 0 | NY25: 0 | NZ25: 0 | OA25: 0 | OB25: 1 | OC25: 0 | OD25: 0 | OE25: 0 | OF25: 0 | OG25: 1 | OH25: 0 | OI25: 0 | OJ25: 0 | OK25: 0 | OL25: 0 | OM25: 0 | ON25: 0 | OO25: 0 | OP25: 0 | OQ25: 0 | OR25: 0 | OS25: 0 | OT25: 0
A26: S2_1474449309 | B26: CAAAAAA/CAAAAAAA | C26: chr1 | D26: 3474449309 | E26: 0 | F26: 0 | G26: 0 | H26: -1 | I26: 0 | J26: 0 | K26: 0 | L26: 0 | M26: 0 | N26: 0 | O26: 0 | P26: 2 | Q26: 0 | R26: 0 | S26: 0 | T26: 0 | U26: 0 | V26: 0 | W26: 0 | X26: 0 | Y26: 0 | Z26: 0 | AA26: 0 | AB26: 0 | AC26: 0 | AD26: 0 | AE26: 0 | AF26: 0 | AG26: 0 | AH26: 0 | AI26: 2 | AJ26: 0 | AK26: 0 | AL26: 0 | AM26: 0 | AN26: 0 | AO26: 0 | AP26: 0 | AQ26: 0 | AR26: 0 | AS26: 0 | AT26: 0 | AU26: 0 | AV26: 0 | AW26: 0 | AX26: 0 | AY26: 0 | AZ26: 0 | BA26: 0 | BB26: 0 | BC26: 0 | BD26: 0 | BE26: 0 | BF26: 0 | BG26: 0 | BH26: 0 | BI26: 0 | BJ26: 0 | BK26: 0 | BL26: 2 | BM26: 0 | BN26: 0 | BO26: 0 | BP26: 0 | BQ26: 0 | BR26: 0 | BS26: 0 | BT26: 0 | BU26: 0 | BV26: 0 | BW26: 0 | BX26: 0 | BY26: 0 | BZ26: 0 | CA26: 0 | CB26: 0 | CC26: 0 | CD26: 0 | CE26: 0 | CF26: 0 | CG26: 0 | CH26: 0 | CI26: 0 | CJ26: 0 | CK26: 0 | CL26: 0 | CM26: 0 | CN26: 0 | CO26: 0 | CP26: 0 | CQ26: 0 | CR26: 0 | CS26: 0 | CT26: 0 | CU26: 0 | CV26: 0 | CW26: 0 | CX26: 0 | CY26: 0 | CZ26: 0 | DA26: 0 | DB26: 2 | DC26: 0 | DD26: 0 | DE26: 0 | DF26: 0 | DG26: 0 | DH26: 0 | DI26: 0 | DJ26: 0 | DK26: 0 | DL26: 0 | DM26: 0 | DN26: 0 | DO26: 0 | DP26: 0 | DQ26: 0 | DR26: 0 | DS26: 0 | DT26: 0 | DU26: 0 | DV26: 0 | DW26: 0 | DX26: 0 | DY26: 0 | DZ26: 0 | EA26: 0 | EB26: 0 | EC26: 0 | ED26: 0 | EE26: 0 | EF26: 0 | EG26: 0 | EH26: 0 | EI26: 0 | EJ26: 0 | EK26: 0 | EL26: 0 | EM26: 0 | EN26: 0 | EO26: 0 | EP26: 0 | EQ26: -1 | ER26: 0 | ES26: 0 | ET26: 0 | EU26: 0 | EV26: 0 | EW26: 0 | EX26: -1 | EY26: 0 | EZ26: 0 | FA26: 0 | FB26: 0 | FC26: 0 | FD26: 0 | FE26: 0 | FF26: 0 | FG26: 0 | FH26: 0 | FI26: 0 | FJ26: 0 | FK26: 0 | FL26: 0 | FM26: 0 | FN26: 0 | FO26: 0 | FP26: 0 | FQ26: 0 | FR26: 0 | FS26: 0 | FT26: 0 | FU26: 0 | FV26: 0 | FW26: 0 | FX26: 0 | FY26: 0 | FZ26: 0 | GA26: 0 | GB26: 0 | GC26: 0 | GD26: 0 | GE26: 0 | GF26: 0 | GG26: 0 | GH26: 0 | GI26: 0 | GJ26: 0 | GK26: 0 | GL26: 0 | GM26: 0 | GN26: 0 | GO26: 0 | GP26: 0 | GQ26: 0 | GR26: 0 | GS26: 2 | GT26: 2 | GU26: 2 | GV26: 2 | GW26: 0 | GX26: -1 | GY26: 1 | GZ26: 0 | HA26: 0 | HB26: 0 | HC26: 0 | HD26: -1 | HE26: 1 | HF26: 2 | HG26: 2 | HH26: 2 | HI26: 1 | HJ26: 2 | HK26: 1 | HL26: -1 | HM26: 0 | HN26: -1 | HO26: 2 | HP26: 1 | HQ26: 2 | HR26: 2 | HS26: 0 | HT26: 1 | HU26: 2 | HV26: 2 | HW26: 2 | HX26: 0 | HY26: 2 | HZ26: -1 | IA26: -1 | IB26: 2 | IC26: 2 | ID26: 2 | IE26: 2 | IF26: 2 | IG26: 2 | IH26: -1 | II26: 0 | IJ26: 2 | IK26: 2 | IL26: 2 | IM26: 0 | IN26: 2 | IO26: 1 | IP26: 2 | IQ26: 2 | IR26: 2 | IS26: 2 | IT26: 0 | IU26: 1 | IV26: 2 | IW26: 0 | IX26: 0 | IY26: -1 | IZ26: 2 | JA26: 0 | JB26: 2 | JC26: 1 | JD26: 2 | JE26: 0 | JF26: 2 | JG26: 2 | JH26: 0 | JI26: 2 | JJ26: 1 | JK26: 2 | JL26: 2 | JM26: 2 | JN26: -1 | JO26: 2 | JP26: 0 | JQ26: 2 | JR26: 0 | JS26: 2 | JT26: 2 | JU26: 2 | JV26: 0 | JW26: 0 | JX26: 2 | JY26: 0 | JZ26: 0 | KA26: 0 | KB26: 0 | KC26: 0 | KD26: 0 | KE26: 0 | KF26: 0 | KG26: 0 | KH26: 0 | KI26: 0 | KJ26: 0 | KK26: 0 | KL26: 0 | KM26: 0 | KN26: 0 | KO26: 0 | KP26: 0 | KQ26: 0 | KR26: 0 | KS26: 0 | KT26: 0 | KU26: 0 | KV26: 0 | KW26: 0 | KX26: 0 | KY26: 0 | KZ26: 0 | LA26: 0 | LB26: 0 | LC26: 0 | LD26: 0 | LE26: 0 | LF26: 0 | LG26: 0 | LH26: 0 | LI26: 0 | LJ26: 0 | LK26: 0 | LL26: 0 | LM26: 0 | LN26: 0 | LO26: 0 | LP26: 0 | LQ26: 0 | LR26: 0 | LS26: 0 | LT26: 0 | LU26: 0 | LV26: 0 | LW26: 0 | LX26: 0 | LY26: 0 | LZ26: 0 | MA26: 0 | MB26: 0 | MC26: 0 | MD26: 0 | ME26: 0 | MF26: 0 | MG26: 0 | MH26: 0 | MI26: 0 | MJ26: 0 | MK26: 0 | ML26: 0 | MM26: 1 | MN26: 0 | MO26: 2 | MP26: 2 | MQ26: 2 | MR26: 0 | MS26: 0 | MT26: 2 | MU26: 0 | MV26: 0 | MW26: 2 | MX26: 0 | MY26: 0 | MZ26: 0 | NA26: 0 | NB26: 0 | NC26: 0 | ND26: 0 | NE26: 2 | NF26: 0 | NG26: 0 | NH26: 0 | NI26: 0 | NJ26: 0 | NK26: 0 | NL26: 2 | NM26: -1 | NN26: 2 | NO26: 2 | NP26: 0 | NQ26: 2 | NR26: 2 | NS26: 0 | NT26: 0 | NU26: 0 | NV26: 0 | NW26: 0 | NX26: 0 | NY26: 0 | NZ26: 0 | OA26: 0 | OB26: 1 | OC26: 0 | OD26: 0 | OE26: 0 | OF26: 0 | OG26: 0 | OH26: 0 | OI26: 0 | OJ26: 0 | OK26: 0 | OL26: 0 | OM26: 0 | ON26: 0 | OO26: 0 | OP26: 0 | OQ26: 0 | OR26: 0 | OS26: 0 | OT26: 0
A27: S2_1474468797 | B27: TC/T | C27: chr1 | D27: 3474468797 | E27: 0 | F27: 0 | G27: 0 | H27: 0 | I27: 0 | J27: 0 | K27: 0 | L27: 0 | M27: 0 | N27: 0 | O27: 0 | P27: 2 | Q27: 0 | R27: 0 | S27: 0 | T27: 0 | U27: 0 | V27: 0 | W27: 0 | X27: 0 | Y27: 0 | Z27: 0 | AA27: 0 | AB27: 0 | AC27: 0 | AD27: 0 | AE27: 0 | AF27: 0 | AG27: 0 | AH27: 0 | AI27: 1 | AJ27: 0 | AK27: 0 | AL27: 0 | AM27: 0 | AN27: 0 | AO27: 0 | AP27: 0 | AQ27: 0 | AR27: 0 | AS27: 0 | AT27: 0 | AU27: 0 | AV27: 0 | AW27: 0 | AX27: 0 | AY27: 0 | AZ27: 0 | BA27: 0 | BB27: 0 | BC27: 0 | BD27: 0 | BE27: 0 | BF27: 0 | BG27: 0 | BH27: 0 | BI27: 0 | BJ27: 0 | BK27: 0 | BL27: 2 | BM27: 0 | BN27: 0 | BO27: 0 | BP27: 0 | BQ27: 0 | BR27: 0 | BS27: 0 | BT27: 0 | BU27: 0 | BV27: 0 | BW27: 0 | BX27: 0 | BY27: 0 | BZ27: 0 | CA27: 0 | CB27: 0 | CC27: 0 | CD27: 0 | CE27: 0 | CF27: 0 | CG27: 0 | CH27: 0 | CI27: 0 | CJ27: 0 | CK27: 0 | CL27: 0 | CM27: 0 | CN27: 0 | CO27: 0 | CP27: 0 | CQ27: 0 | CR27: 0 | CS27: 0 | CT27: 0 | CU27: 0 | CV27: 0 | CW27: 0 | CX27: 0 | CY27: 0 | CZ27: 0 | DA27: 0 | DB27: -1 | DC27: 0 | DD27: 0 | DE27: 0 | DF27: 0 | DG27: 0 | DH27: 0 | DI27: 0 | DJ27: 0 | DK27: 0 | DL27: 0 | DM27: 0 | DN27: 0 | DO27: 0 | DP27: 0 | DQ27: 0 | DR27: 0 | DS27: 0 | DT27: 0 | DU27: 0 | DV27: 0 | DW27: 0 | DX27: 0 | DY27: 0 | DZ27: 0 | EA27: 0 | EB27: 0 | EC27: 0 | ED27: 0 | EE27: 0 | EF27: 0 | EG27: 0 | EH27: 0 | EI27: 0 | EJ27: 0 | EK27: 0 | EL27: 0 | EM27: 0 | EN27: 0 | EO27: 0 | EP27: 0 | EQ27: 0 | ER27: 0 | ES27: 0 | ET27: 0 | EU27: 0 | EV27: 0 | EW27: 0 | EX27: 0 | EY27: 0 | EZ27: 0 | FA27: 0 | FB27: 0 | FC27: 0 | FD27: 0 | FE27: 0 | FF27: 0 | FG27: 0 | FH27: 0 | FI27: 0 | FJ27: 0 | FK27: 0 | FL27: 0 | FM27: 0 | FN27: 0 | FO27: 0 | FP27: 0 | FQ27: 0 | FR27: 0 | FS27: 0 | FT27: 0 | FU27: 0 | FV27: 0 | FW27: 0 | FX27: 0 | FY27: 0 | FZ27: 0 | GA27: 0 | GB27: 0 | GC27: 0 | GD27: 0 | GE27: 0 | GF27: 0 | GG27: 0 | GH27: 0 | GI27: 0 | GJ27: 0 | GK27: 0 | GL27: 0 | GM27: 0 | GN27: 0 | GO27: 0 | GP27: 0 | GQ27: 0 | GR27: 0 | GS27: 2 | GT27: 2 | GU27: -1 | GV27: 2 | GW27: -1 | GX27: 1 | GY27: -1 | GZ27: 0 | HA27: 0 | HB27: 0 | HC27: -1 | HD27: 1 | HE27: 0 | HF27: 2 | HG27: 2 | HH27: 1 | HI27: 0 | HJ27: 1 | HK27: 2 | HL27: 2 | HM27: 0 | HN27: -1 | HO27: 2 | HP27: -1 | HQ27: 2 | HR27: 2 | HS27: 0 | HT27: 1 | HU27: -1 | HV27: 2 | HW27: 2 | HX27: 0 | HY27: 2 | HZ27: 1 | IA27: 2 | IB27: -1 | IC27: 2 | ID27: 2 | IE27: 2 | IF27: 2 | IG27: 2 | IH27: 0 | II27: -1 | IJ27: 2 | IK27: 2 | IL27: 2 | IM27: 0 | IN27: 2 | IO27: 1 | IP27: 2 | IQ27: 2 | IR27: 2 | IS27: 2 | IT27: 0 | IU27: 1 | IV27: -1 | IW27: 0 | IX27: 0 | IY27: 2 | IZ27: 2 | JA27: 0 | JB27: 2 | JC27: 2 | JD27: 2 | JE27: 0 | JF27: 2 | JG27: 2 | JH27: 0 | JI27: 2 | JJ27: 1 | JK27: 2 | JL27: 2 | JM27: 2 | JN27: 1 | JO27: 2 | JP27: 0 | JQ27: 2 | JR27: 0 | JS27: 2 | JT27: 2 | JU27: 2 | JV27: 1 | JW27: 0 | JX27: 2 | JY27: 0 | JZ27: 0 | KA27: 0 | KB27: -1 | KC27: 0 | KD27: -1 | KE27: -1 | KF27: -1 | KG27: 0 | KH27: 0 | KI27: 0 | KJ27: 0 | KK27: 0 | KL27: 0 | KM27: 0 | KN27: 0 | KO27: 0 | KP27: 0 | KQ27: 0 | KR27: 0 | KS27: 0 | KT27: 0 | KU27: 0 | KV27: 0 | KW27: 0 | KX27: 0 | KY27: 0 | KZ27: 0 | LA27: 0 | LB27: 0 | LC27: 0 | LD27: 0 | LE27: 0 | LF27: 0 | LG27: 0 | LH27: 0 | LI27: 0 | LJ27: -1 | LK27: 0 | LL27: 0 | LM27: 0 | LN27: 0 | LO27: 0 | LP27: 0 | LQ27: 0 | LR27: 0 | LS27: 0 | LT27: 0 | LU27: 0 | LV27: 0 | LW27: 0 | LX27: 0 | LY27: 0 | LZ27: 0 | MA27: 0 | MB27: 0 | MC27: 0 | MD27: 0 | ME27: 0 | MF27: 0 | MG27: 0 | MH27: 0 | MI27: 0 | MJ27: 0 | MK27: 0 | ML27: 0 | MM27: -1 | MN27: 0 | MO27: 2 | MP27: 2 | MQ27: 2 | MR27: 0 | MS27: 0 | MT27: 1 | MU27: 0 | MV27: 0 | MW27: 2 | MX27: 0 | MY27: -1 | MZ27: 0 | NA27: 0 | NB27: 0 | NC27: 0 | ND27: 0 | NE27: 2 | NF27: 0 | NG27: 0 | NH27: 0 | NI27: 0 | NJ27: -1 | NK27: 0 | NL27: 2 | NM27: 2 | NN27: 2 | NO27: 2 | NP27: 0 | NQ27: 2 | NR27: 2 | NS27: 0 | NT27: 0 | NU27: 0 | NV27: 0 | NW27: 0 | NX27: 0 | NY27: 0 | NZ27: 0 | OA27: 0 | OB27: 1 | OC27: 0 | OD27: 0 | OE27: 0 | OF27: 0 | OG27: 0 | OH27: 0 | OI27: 0 | OJ27: 0 | OK27: 0 | OL27: 0 | OM27: 0 | ON27: 0 | OO27: 0 | OP27: 0 | OQ27: 0 | OR27: 0 | OS27: 0 | OT27: 0
A28: S2_1474470217 | B28: AG/A | C28: chr1 | D28: 3474470217 | E28: 0 | F28: 0 | G28: 0 | H28: 0 | I28: 0 | J28: 0 | K28: 0 | L28: 0 | M28: 0 | N28: 0 | O28: 0 | P28: 1 | Q28: 0 | R28: 0 | S28: 0 | T28: 0 | U28: 0 | V28: 0 | W28: 0 | X28: 0 | Y28: 0 | Z28: -1 | AA28: 0 | AB28: 0 | AC28: 0 | AD28: 0 | AE28: 0 | AF28: 0 | AG28: 0 | AH28: 0 | AI28: 2 | AJ28: 0 | AK28: 0 | AL28: 0 | AM28: 0 | AN28: 0 | AO28: 0 | AP28: 0 | AQ28: 0 | AR28: 0 | AS28: 0 | AT28: 0 | AU28: 0 | AV28: 0 | AW28: 0 | AX28: 0 | AY28: 0 | AZ28: 0 | BA28: 0 | BB28: 0 | BC28: 0 | BD28: 0 | BE28: 0 | BF28: 0 | BG28: 0 | BH28: 0 | BI28: 0 | BJ28: 0 | BK28: 0 | BL28: 2 | BM28: 0 | BN28: 0 | BO28: 0 | BP28: 0 | BQ28: 0 | BR28: 0 | BS28: 0 | BT28: 0 | BU28: 0 | BV28: 0 | BW28: 0 | BX28: 0 | BY28: 0 | BZ28: 0 | CA28: 0 | CB28: 0 | CC28: 0 | CD28: 0 | CE28: 0 | CF28: 0 | CG28: 0 | CH28: 0 | CI28: 0 | CJ28: 0 | CK28: 0 | CL28: 0 | CM28: 0 | CN28: 0 | CO28: 0 | CP28: 0 | CQ28: 0 | CR28: 0 | CS28: 0 | CT28: 0 | CU28: 0 | CV28: 0 | CW28: 0 | CX28: 0 | CY28: 0 | CZ28: 0 | DA28: 0 | DB28: 2 | DC28: 0 | DD28: 0 | DE28: 0 | DF28: 0 | DG28: 0 | DH28: 0 | DI28: 0 | DJ28: 0 | DK28: 0 | DL28: 0 | DM28: 0 | DN28: 0 | DO28: 0 | DP28: 0 | DQ28: 0 | DR28: 0 | DS28: 0 | DT28: 0 | DU28: 0 | DV28: 0 | DW28: 0 | DX28: 0 | DY28: 0 | DZ28: 0 | EA28: 0 | EB28: 0 | EC28: 0 | ED28: 0 | EE28: 0 | EF28: 0 | EG28: 0 | EH28: 0 | EI28: 0 | EJ28: 0 | EK28: 0 | EL28: 0 | EM28: 0 | EN28: 0 | EO28: 0 | EP28: 0 | EQ28: 0 | ER28: 0 | ES28: 0 | ET28: 0 | EU28: 0 | EV28: 0 | EW28: 0 | EX28: 0 | EY28: 0 | EZ28: 0 | FA28: 0 | FB28: 0 | FC28: 0 | FD28: 0 | FE28: 0 | FF28: 0 | FG28: 0 | FH28: 0 | FI28: 0 | FJ28: 0 | FK28: 0 | FL28: 0 | FM28: 0 | FN28: 0 | FO28: 0 | FP28: 0 | FQ28: 0 | FR28: 0 | FS28: 0 | FT28: 0 | FU28: 0 | FV28: 0 | FW28: 0 | FX28: 0 | FY28: 0 | FZ28: 0 | GA28: 0 | GB28: 0 | GC28: 0 | GD28: 0 | GE28: 0 | GF28: 0 | GG28: 0 | GH28: 0 | GI28: 0 | GJ28: 0 | GK28: 0 | GL28: 0 | GM28: 0 | GN28: 0 | GO28: 0 | GP28: 0 | GQ28: 0 | GR28: 0 | GS28: 2 | GT28: -1 | GU28: 2 | GV28: 2 | GW28: 0 | GX28: -1 | GY28: 0 | GZ28: 0 | HA28: 0 | HB28: 0 | HC28: -1 | HD28: -1 | HE28: -1 | HF28: 2 | HG28: 1 | HH28: 1 | HI28: 1 | HJ28: 2 | HK28: -1 | HL28: 2 | HM28: 0 | HN28: 2 | HO28: 2 | HP28: 2 | HQ28: 2 | HR28: 2 | HS28: 0 | HT28: -1 | HU28: 2 | HV28: 2 | HW28: 2 | HX28: 0 | HY28: 2 | HZ28: 0 | IA28: 2 | IB28: 2 | IC28: 2 | ID28: 2 | IE28: -1 | IF28: 2 | IG28: 2 | IH28: 0 | II28: 0 | IJ28: 2 | IK28: 2 | IL28: 2 | IM28: 0 | IN28: -1 | IO28: -1 | IP28: -1 | IQ28: 2 | IR28: 2 | IS28: 2 | IT28: 0 | IU28: 1 | IV28: 2 | IW28: 0 | IX28: 0 | IY28: 2 | IZ28: 2 | JA28: 0 | JB28: -1 | JC28: 2 | JD28: 1 | JE28: 0 | JF28: 2 | JG28: 2 | JH28: 0 | JI28: 2 | JJ28: 0 | JK28: 2 | JL28: 2 | JM28: -1 | JN28: -1 | JO28: 2 | JP28: 0 | JQ28: 2 | JR28: 0 | JS28: 2 | JT28: 2 | JU28: 2 | JV28: 0 | JW28: 0 | JX28: -1 | JY28: 0 | JZ28: 0 | KA28: 0 | KB28: 0 | KC28: 0 | KD28: -1 | KE28: -1 | KF28: -1 | KG28: 0 | KH28: 0 | KI28: 0 | KJ28: 0 | KK28: 0 | KL28: 0 | KM28: 0 | KN28: 0 | KO28: 0 | KP28: 0 | KQ28: 0 | KR28: 0 | KS28: 0 | KT28: 0 | KU28: 0 | KV28: 0 | KW28: 0 | KX28: 0 | KY28: 0 | KZ28: 0 | LA28: 0 | LB28: 0 | LC28: 0 | LD28: 0 | LE28: 0 | LF28: 0 | LG28: 0 | LH28: 0 | LI28: 0 | LJ28: 0 | LK28: 0 | LL28: 0 | LM28: 0 | LN28: 0 | LO28: 0 | LP28: 0 | LQ28: 0 | LR28: 0 | LS28: 0 | LT28: 0 | LU28: 0 | LV28: 0 | LW28: 0 | LX28: 0 | LY28: 0 | LZ28: 0 | MA28: 0 | MB28: 0 | MC28: 0 | MD28: 0 | ME28: 0 | MF28: 0 | MG28: 0 | MH28: 0 | MI28: 0 | MJ28: 0 | MK28: 0 | ML28: 0 | MM28: 1 | MN28: 0 | MO28: 2 | MP28: 2 | MQ28: 1 | MR28: 0 | MS28: 0 | MT28: 1 | MU28: 0 | MV28: 0 | MW28: 2 | MX28: 0 | MY28: 0 | MZ28: 0 | NA28: 0 | NB28: 0 | NC28: 0 | ND28: 0 | NE28: 2 | NF28: 0 | NG28: 0 | NH28: 0 | NI28: 0 | NJ28: 1 | NK28: 0 | NL28: 2 | NM28: 2 | NN28: 2 | NO28: 2 | NP28: 0 | NQ28: 2 | NR28: 2 | NS28: 1 | NT28: 0 | NU28: 0 | NV28: 0 | NW28: 0 | NX28: 0 | NY28: 0 | NZ28: 0 | OA28: 0 | OB28: -1 | OC28: 0 | OD28: 0 | OE28: 0 | OF28: 0 | OG28: 0 | OH28: 0 | OI28: 0 | OJ28: -1 | OK28: 0 | OL28: 0 | OM28: 0 | ON28: 0 | OO28: 0 | OP28: 0 | OQ28: 0 | OR28: 0 | OS28: 0 | OT28: 0
A29: S2_1474634877 | B29: GC/G | C29: chr1 | D29: 3474634877 | E29: 0 | F29: 0 | G29: 0 | H29: 0 | I29: 0 | J29: 0 | K29: 0 | L29: 0 | M29: 0 | N29: 0 | O29: 0 | P29: 1 | Q29: 0 | R29: 0 | S29: 0 | T29: 0 | U29: 0 | V29: 0 | W29: 0 | X29: 0 | Y29: 0 | Z29: 0 | AA29: 0 | AB29: 0 | AC29: 0 | AD29: 0 | AE29: 0 | AF29: 0 | AG29: 0 | AH29: 0 | AI29: 1 | AJ29: 0 | AK29: 0 | AL29: 0 | AM29: 0 | AN29: 0 | AO29: 0 | AP29: 0 | AQ29: 0 | AR29: 0 | AS29: 0 | AT29: 0 | AU29: 0 | AV29: 0 | AW29: 0 | AX29: 0 | AY29: 0 | AZ29: 0 | BA29: 0 | BB29: 0 | BC29: 0 | BD29: 0 | BE29: 0 | BF29: 0 | BG29: 0 | BH29: 0 | BI29: 0 | BJ29: 0 | BK29: 0 | BL29: 2 | BM29: 0 | BN29: 0 | BO29: 0 | BP29: 0 | BQ29: 0 | BR29: 0 | BS29: 0 | BT29: 0 | BU29: 0 | BV29: 0 | BW29: 0 | BX29: 0 | BY29: 0 | BZ29: 0 | CA29: 0 | CB29: 0 | CC29: 0 | CD29: 0 | CE29: 0 | CF29: 0 | CG29: 0 | CH29: 0 | CI29: 0 | CJ29: 0 | CK29: 0 | CL29: 0 | CM29: 0 | CN29: 0 | CO29: 0 | CP29: 0 | CQ29: 0 | CR29: 0 | CS29: 0 | CT29: 0 | CU29: 0 | CV29: 0 | CW29: 0 | CX29: 0 | CY29: 0 | CZ29: 0 | DA29: 0 | DB29: 2 | DC29: 0 | DD29: 0 | DE29: 0 | DF29: 0 | DG29: 0 | DH29: 0 | DI29: 0 | DJ29: 0 | DK29: 0 | DL29: 0 | DM29: 0 | DN29: 0 | DO29: 0 | DP29: 0 | DQ29: 0 | DR29: 0 | DS29: 0 | DT29: 0 | DU29: 0 | DV29: 0 | DW29: 0 | DX29: 0 | DY29: 0 | DZ29: 0 | EA29: 0 | EB29: 0 | EC29: 0 | ED29: 0 | EE29: 0 | EF29: 0 | EG29: 0 | EH29: 0 | EI29: 0 | EJ29: 0 | EK29: 0 | EL29: 0 | EM29: 0 | EN29: 0 | EO29: 0 | EP29: 0 | EQ29: 0 | ER29: 0 | ES29: 0 | ET29: 0 | EU29: 0 | EV29: 0 | EW29: 0 | EX29: 0 | EY29: 0 | EZ29: 0 | FA29: 0 | FB29: 0 | FC29: 0 | FD29: 0 | FE29: 0 | FF29: 0 | FG29: 0 | FH29: 0 | FI29: 0 | FJ29: 0 | FK29: 0 | FL29: 0 | FM29: 0 | FN29: 0 | FO29: 0 | FP29: 0 | FQ29: 0 | FR29: 0 | FS29: 0 | FT29: 0 | FU29: 0 | FV29: 0 | FW29: 0 | FX29: 0 | FY29: 0 | FZ29: 0 | GA29: 0 | GB29: 0 | GC29: 0 | GD29: 0 | GE29: 0 | GF29: 0 | GG29: 0 | GH29: 0 | GI29: 0 | GJ29: 0 | GK29: 0 | GL29: 0 | GM29: 0 | GN29: 0 | GO29: 0 | GP29: 0 | GQ29: 0 | GR29: 0 | GS29: -1 | GT29: -1 | GU29: 2 | GV29: 2 | GW29: 1 | GX29: 1 | GY29: -1 | GZ29: 0 | HA29: 0 | HB29: 0 | HC29: 1 | HD29: 1 | HE29: -1 | HF29: 2 | HG29: -1 | HH29: 2 | HI29: 1 | HJ29: 2 | HK29: 2 | HL29: 1 | HM29: 0 | HN29: 2 | HO29: 2 | HP29: 2 | HQ29: 2 | HR29: 2 | HS29: 0 | HT29: 0 | HU29: 2 | HV29: 2 | HW29: 1 | HX29: 0 | HY29: 2 | HZ29: 1 | IA29: 1 | IB29: 1 | IC29: -1 | ID29: 2 | IE29: 2 | IF29: -1 | IG29: 2 | IH29: 1 | II29: 0 | IJ29: -1 | IK29: 2 | IL29: 2 | IM29: 0 | IN29: -1 | IO29: 1 | IP29: 2 | IQ29: -1 | IR29: 1 | IS29: 2 | IT29: 0 | IU29: 1 | IV29: 2 | IW29: 0 | IX29: 0 | IY29: 2 | IZ29: -1 | JA29: 0 | JB29: 2 | JC29: -1 | JD29: -1 | JE29: 0 | JF29: 2 | JG29: 2 | JH29: 0 | JI29: 2 | JJ29: 1 | JK29: 1 | JL29: -1 | JM29: 2 | JN29: 1 | JO29: 2 | JP29: 0 | JQ29: 2 | JR29: 0 | JS29: 2 | JT29: -1 | JU29: 2 | JV29: 1 | JW29: 0 | JX29: -1 | JY29: 0 | JZ29: 0 | KA29: 0 | KB29: 0 | KC29: 0 | KD29: 0 | KE29: 0 | KF29: 0 | KG29: 0 | KH29: 0 | KI29: 0 | KJ29: 0 | KK29: 0 | KL29: 0 | KM29: 0 | KN29: 0 | KO29: 0 | KP29: 0 | KQ29: 0 | KR29: 0 | KS29: 0 | KT29: 0 | KU29: 0 | KV29: 0 | KW29: 0 | KX29: 0 | KY29: 0 | KZ29: 0 | LA29: 0 | LB29: 0 | LC29: 0 | LD29: 0 | LE29: 0 | LF29: 0 | LG29: 0 | LH29: 0 | LI29: 0 | LJ29: 0 | LK29: 0 | LL29: 0 | LM29: 0 | LN29: 0 | LO29: 0 | LP29: 0 | LQ29: 0 | LR29: 0 | LS29: 0 | LT29: 0 | LU29: 0 | LV29: 0 | LW29: 0 | LX29: 0 | LY29: 0 | LZ29: 0 | MA29: 0 | MB29: 0 | MC29: 0 | MD29: 0 | ME29: 0 | MF29: 0 | MG29: 0 | MH29: 0 | MI29: 0 | MJ29: 0 | MK29: 0 | ML29: 0 | MM29: 2 | MN29: 0 | MO29: 2 | MP29: -1 | MQ29: 2 | MR29: 0 | MS29: 0 | MT29: 1 | MU29: 0 | MV29: 0 | MW29: 2 | MX29: 0 | MY29: 0 | MZ29: 0 | NA29: 0 | NB29: 0 | NC29: 0 | ND29: 0 | NE29: 2 | NF29: 0 | NG29: 0 | NH29: 0 | NI29: 0 | NJ29: 1 | NK29: 0 | NL29: -1 | NM29: 2 | NN29: 2 | NO29: 2 | NP29: 0 | NQ29: 2 | NR29: 2 | NS29: 1 | NT29: 0 | NU29: 0 | NV29: 0 | NW29: 0 | NX29: 0 | NY29: 0 | NZ29: 0 | OA29: 0 | OB29: 0 | OC29: 0 | OD29: 0 | OE29: 0 | OF29: 0 | OG29: 0 | OH29: 1 | OI29: 0 | OJ29: 0 | OK29: 0 | OL29: 0 | OM29: 0 | ON29: 0 | OO29: 0 | OP29: 0 | OQ29: 0 | OR29: 0 | OS29: 0 | OT29: 0
A30: S2_1474957248 | B30: TAAAAAAAAAA/TTAAAAAAAAAAA | C30: chr1 | D30: 3474957248 | E30: 0 | F30: 0 | G30: 0 | H30: 0 | I30: 0 | J30: 0 | K30: 0 | L30: 0 | M30: 0 | N30: 0 | O30: 0 | P30: 2 | Q30: 0 | R30: 0 | S30: 0 | T30: 0 | U30: 0 | V30: 0 | W30: -1 | X30: 0 | Y30: -1 | Z30: 0 | AA30: -1 | AB30: 0 | AC30: 0 | AD30: 0 | AE30: 0 | AF30: 0 | AG30: 0 | AH30: 0 | AI30: 2 | AJ30: 0 | AK30: 0 | AL30: 0 | AM30: 0 | AN30: 0 | AO30: 0 | AP30: 0 | AQ30: 0 | AR30: 0 | AS30: 0 | AT30: 0 | AU30: 0 | AV30: 0 | AW30: 0 | AX30: 0 | AY30: 0 | AZ30: 0 | BA30: 0 | BB30: 0 | BC30: 0 | BD30: 0 | BE30: 0 | BF30: 0 | BG30: 0 | BH30: 0 | BI30: 0 | BJ30: 0 | BK30: 0 | BL30: -1 | BM30: 0 | BN30: -1 | BO30: 0 | BP30: 0 | BQ30: 0 | BR30: 0 | BS30: 0 | BT30: 0 | BU30: 0 | BV30: 0 | BW30: 0 | BX30: 0 | BY30: 0 | BZ30: 0 | CA30: 0 | CB30: 0 | CC30: 0 | CD30: 0 | CE30: 0 | CF30: 0 | CG30: 0 | CH30: 0 | CI30: 0 | CJ30: 0 | CK30: 0 | CL30: 0 | CM30: 0 | CN30: 0 | CO30: 0 | CP30: 0 | CQ30: 0 | CR30: 0 | CS30: 0 | CT30: 0 | CU30: 0 | CV30: 0 | CW30: 0 | CX30: 0 | CY30: 0 | CZ30: 0 | DA30: 0 | DB30: 2 | DC30: 0 | DD30: 0 | DE30: 0 | DF30: 0 | DG30: 0 | DH30: 0 | DI30: 0 | DJ30: 0 | DK30: 0 | DL30: 0 | DM30: 0 | DN30: 0 | DO30: 0 | DP30: 0 | DQ30: -1 | DR30: 0 | DS30: 0 | DT30: 0 | DU30: 0 | DV30: 0 | DW30: 0 | DX30: 0 | DY30: 0 | DZ30: 0 | EA30: 0 | EB30: 0 | EC30: 0 | ED30: 0 | EE30: 0 | EF30: 0 | EG30: 0 | EH30: 0 | EI30: 0 | EJ30: 0 | EK30: 0 | EL30: 0 | EM30: 0 | EN30: 0 | EO30: 0 | EP30: 0 | EQ30: 0 | ER30: 0 | ES30: 0 | ET30: 0 | EU30: 0 | EV30: 0 | EW30: 0 | EX30: 0 | EY30: 0 | EZ30: 0 | FA30: 0 | FB30: 0 | FC30: 0 | FD30: 0 | FE30: 0 | FF30: 0 | FG30: 0 | FH30: 0 | FI30: 0 | FJ30: 0 | FK30: 0 | FL30: 0 | FM30: 0 | FN30: 0 | FO30: 0 | FP30: 0 | FQ30: 0 | FR30: 0 | FS30: 0 | FT30: 0 | FU30: 0 | FV30: 0 | FW30: 0 | FX30: 0 | FY30: 0 | FZ30: 0 | GA30: 0 | GB30: 0 | GC30: 0 | GD30: 0 | GE30: 0 | GF30: 0 | GG30: 0 | GH30: 0 | GI30: 0 | GJ30: 0 | GK30: 0 | GL30: 0 | GM30: 0 | GN30: 0 | GO30: 0 | GP30: 0 | GQ30: 0 | GR30: 0 | GS30: 2 | GT30: 2 | GU30: 2 | GV30: 2 | GW30: 1 | GX30: 1 | GY30: 1 | GZ30: 0 | HA30: 0 | HB30: 0 | HC30: 1 | HD30: 1 | HE30: 1 | HF30: 2 | HG30: 2 | HH30: 2 | HI30: 1 | HJ30: 2 | HK30: 2 | HL30: 2 | HM30: 0 | HN30: 2 | HO30: 2 | HP30: 2 | HQ30: 2 | HR30: 2 | HS30: 0 | HT30: -1 | HU30: 2 | HV30: 2 | HW30: 2 | HX30: 0 | HY30: 2 | HZ30: 1 | IA30: 2 | IB30: 2 | IC30: 2 | ID30: 2 | IE30: 2 | IF30: 2 | IG30: 2 | IH30: 1 | II30: 0 | IJ30: 2 | IK30: 2 | IL30: 2 | IM30: 0 | IN30: 2 | IO30: 1 | IP30: 2 | IQ30: -1 | IR30: 2 | IS30: 2 | IT30: 0 | IU30: 2 | IV30: 2 | IW30: 0 | IX30: 0 | IY30: 2 | IZ30: 2 | JA30: 0 | JB30: 2 | JC30: 2 | JD30: 2 | JE30: 0 | JF30: 2 | JG30: 2 | JH30: 0 | JI30: 2 | JJ30: -1 | JK30: 2 | JL30: 2 | JM30: 2 | JN30: 0 | JO30: 2 | JP30: 0 | JQ30: 2 | JR30: 0 | JS30: 2 | JT30: 2 | JU30: 2 | JV30: 0 | JW30: 0 | JX30: 2 | JY30: 0 | JZ30: 0 | KA30: 0 | KB30: 0 | KC30: 0 | KD30: 0 | KE30: 0 | KF30: 0 | KG30: 0 | KH30: 0 | KI30: 0 | KJ30: 0 | KK30: 0 | KL30: 0 | KM30: 0 | KN30: 0 | KO30: 0 | KP30: 0 | KQ30: 0 | KR30: 0 | KS30: 0 | KT30: 0 | KU30: 0 | KV30: 0 | KW30: 0 | KX30: 0 | KY30: 0 | KZ30: 0 | LA30: 0 | LB30: 0 | LC30: 0 | LD30: 0 | LE30: 0 | LF30: 0 | LG30: 0 | LH30: 0 | LI30: 0 | LJ30: 0 | LK30: 0 | LL30: 0 | LM30: 0 | LN30: 0 | LO30: 0 | LP30: 0 | LQ30: 0 | LR30: 0 | LS30: 0 | LT30: 0 | LU30: 0 | LV30: 0 | LW30: 0 | LX30: 0 | LY30: 0 | LZ30: 0 | MA30: 0 | MB30: 0 | MC30: 0 | MD30: 0 | ME30: 0 | MF30: 0 | MG30: 0 | MH30: 0 | MI30: 0 | MJ30: 0 | MK30: 0 | ML30: 0 | MM30: 2 | MN30: 0 | MO30: 2 | MP30: 2 | MQ30: 2 | MR30: 0 | MS30: 0 | MT30: -1 | MU30: 0 | MV30: 0 | MW30: 2 | MX30: 0 | MY30: 0 | MZ30: 0 | NA30: 0 | NB30: 0 | NC30: 0 | ND30: 0 | NE30: 2 | NF30: 0 | NG30: 0 | NH30: 0 | NI30: -1 | NJ30: 1 | NK30: 0 | NL30: 2 | NM30: 2 | NN30: 2 | NO30: 2 | NP30: 0 | NQ30: 2 | NR30: 2 | NS30: 2 | NT30: 0 | NU30: 0 | NV30: 0 | NW30: 0 | NX30: 0 | NY30: 0 | NZ30: 0 | OA30: 0 | OB30: 0 | OC30: 0 | OD30: 0 | OE30: 0 | OF30: 0 | OG30: 0 | OH30: 1 | OI30: 0 | OJ30: 0 | OK30: 0 | OL30: 0 | OM30: 0 | ON30: 0 | OO30: 0 | OP30: 0 | OQ30: 0 | OR30: 0 | OS30: 0 | OT30: 0
A31: S2_1474975993 | B31: TTCAAAGGTGAC/T | C31: chr1 | D31: 3474975993 | E31: 0 | F31: 0 | G31: 0 | H31: 0 | I31: 0 | J31: 0 | K31: 0 | L31: 0 | M31: 0 | N31: 0 | O31: 0 | P31: 0 | Q31: -1 | R31: 0 | S31: -1 | T31: 0 | U31: 0 | V31: 0 | W31: 0 | X31: 0 | Y31: 0 | Z31: 0 | AA31: 0 | AB31: 0 | AC31: 0 | AD31: 0 | AE31: 0 | AF31: -1 | AG31: 0 | AH31: -1 | AI31: -1 | AJ31: 0 | AK31: 0 | AL31: 0 | AM31: 0 | AN31: 0 | AO31: 0 | AP31: 0 | AQ31: 0 | AR31: 0 | AS31: -1 | AT31: 0 | AU31: 0 | AV31: 0 | AW31: 0 | AX31: 0 | AY31: 0 | AZ31: 0 | BA31: 0 | BB31: 0 | BC31: 0 | BD31: 0 | BE31: 0 | BF31: -1 | BG31: 0 | BH31: 0 | BI31: 0 | BJ31: 0 | BK31: 0 | BL31: 2 | BM31: 0 | BN31: 0 | BO31: 0 | BP31: 0 | BQ31: 0 | BR31: 0 | BS31: 0 | BT31: 0 | BU31: 0 | BV31: 0 | BW31: 0 | BX31: 0 | BY31: 0 | BZ31: 0 | CA31: 0 | CB31: 0 | CC31: -1 | CD31: 0 | CE31: 0 | CF31: 0 | CG31: 0 | CH31: -1 | CI31: 0 | CJ31: 0 | CK31: 0 | CL31: 0 | CM31: 0 | CN31: 0 | CO31: 0 | CP31: 0 | CQ31: 0 | CR31: 0 | CS31: 0 | CT31: 0 | CU31: 0 | CV31: 0 | CW31: 0 | CX31: 0 | CY31: 0 | CZ31: 0 | DA31: 0 | DB31: 1 | DC31: 0 | DD31: 0 | DE31: 0 | DF31: 0 | DG31: 0 | DH31: 0 | DI31: 0 | DJ31: 0 | DK31: -1 | DL31: 0 | DM31: 0 | DN31: 0 | DO31: 0 | DP31: -1 | DQ31: 0 | DR31: -1 | DS31: 0 | DT31: 0 | DU31: 0 | DV31: 0 | DW31: 0 | DX31: -1 | DY31: 0 | DZ31: 0 | EA31: 0 | EB31: 0 | EC31: 0 | ED31: 0 | EE31: 0 | EF31: 0 | EG31: 0 | EH31: 0 | EI31: 0 | EJ31: 0 | EK31: 0 | EL31: 0 | EM31: 0 | EN31: 0 | EO31: 0 | EP31: 0 | EQ31: 0 | ER31: 0 | ES31: 0 | ET31: -1 | EU31: 0 | EV31: 0 | EW31: 0 | EX31: 0 | EY31: 0 | EZ31: 0 | FA31: 0 | FB31: 0 | FC31: 0 | FD31: 0 | FE31: 0 | FF31: 0 | FG31: 0 | FH31: -1 | FI31: 0 | FJ31: 0 | FK31: 0 | FL31: 0 | FM31: 0 | FN31: 0 | FO31: 0 | FP31: 0 | FQ31: 0 | FR31: 0 | FS31: 0 | FT31: 0 | FU31: 0 | FV31: 0 | FW31: 0 | FX31: 0 | FY31: 0 | FZ31: -1 | GA31: 0 | GB31: 0 | GC31: 0 | GD31: 0 | GE31: 0 | GF31: 0 | GG31: 0 | GH31: 0 | GI31: 0 | GJ31: 0 | GK31: 0 | GL31: 0 | GM31: 0 | GN31: -1 | GO31: 0 | GP31: 0 | GQ31: 0 | GR31: 0 | GS31: 2 | GT31: -1 | GU31: 2 | GV31: 2 | GW31: 1 | GX31: 0 | GY31: 0 | GZ31: 0 | HA31: 0 | HB31: 0 | HC31: 1 | HD31: 1 | HE31: 1 | HF31: -1 | HG31: -1 | HH31: -1 | HI31: -1 | HJ31: 2 | HK31: 2 | HL31: 2 | HM31: 0 | HN31: 2 | HO31: 1 | HP31: 1 | HQ31: 2 | HR31: 2 | HS31: 0 | HT31: -1 | HU31: -1 | HV31: 1 | HW31: 2 | HX31: 0 | HY31: 1 | HZ31: 0 | IA31: 2 | IB31: -1 | IC31: 2 | ID31: 0 | IE31: 1 | IF31: -1 | IG31: -1 | IH31: 1 | II31: 0 | IJ31: 1 | IK31: 1 | IL31: 1 | IM31: 0 | IN31: 1 | IO31: 1 | IP31: 1 | IQ31: 1 | IR31: 2 | IS31: 1 | IT31: 0 | IU31: 0 | IV31: 1 | IW31: 0 | IX31: 0 | IY31: 1 | IZ31: -1 | JA31: 0 | JB31: 2 | JC31: 2 | JD31: 2 | JE31: 0 | JF31: -1 | JG31: 1 | JH31: 0 | JI31: 2 | JJ31: 0 | JK31: 1 | JL31: 2 | JM31: 1 | JN31: 1 | JO31: 2 | JP31: 0 | JQ31: -1 | JR31: 0 | JS31: -1 | JT31: 1 | JU31: -1 | JV31: 1 | JW31: 0 | JX31: 2 | JY31: 0 | JZ31: 0 | KA31: 0 | KB31: 0 | KC31: 0 | KD31: 0 | KE31: 0 | KF31: 0 | KG31: 0 | KH31: 0 | KI31: 0 | KJ31: 0 | KK31: 0 | KL31: 0 | KM31: 0 | KN31: 0 | KO31: 0 | KP31: 0 | KQ31: 0 | KR31: 0 | KS31: 0 | KT31: 0 | KU31: 0 | KV31: 0 | KW31: 0 | KX31: 0 | KY31: 0 | KZ31: 0 | LA31: 0 | LB31: 0 | LC31: 0 | LD31: 0 | LE31: 0 | LF31: 0 | LG31: 0 | LH31: -1 | LI31: 0 | LJ31: 0 | LK31: 0 | LL31: 0 | LM31: 0 | LN31: 0 | LO31: 0 | LP31: 0 | LQ31: 0 | LR31: 0 | LS31: 0 | LT31: 0 | LU31: 0 | LV31: 0 | LW31: 0 | LX31: 0 | LY31: 0 | LZ31: 0 | MA31: 0 | MB31: 0 | MC31: 0 | MD31: 0 | ME31: 0 | MF31: 0 | MG31: 0 | MH31: 0 | MI31: 0 | MJ31: 0 | MK31: 0 | ML31: 0 | MM31: 1 | MN31: 0 | MO31: 1 | MP31: 0 | MQ31: 1 | MR31: 0 | MS31: 0 | MT31: -1 | MU31: 0 | MV31: 0 | MW31: 1 | MX31: 0 | MY31: 0 | MZ31: 0 | NA31: 0 | NB31: 0 | NC31: 0 | ND31: 0 | NE31: 1 | NF31: 0 | NG31: 0 | NH31: 0 | NI31: 0 | NJ31: 1 | NK31: 0 | NL31: 1 | NM31: 2 | NN31: 1 | NO31: 2 | NP31: 0 | NQ31: -1 | NR31: 2 | NS31: -1 | NT31: 0 | NU31: 0 | NV31: 0 | NW31: 0 | NX31: 0 | NY31: 0 | NZ31: 0 | OA31: 0 | OB31: 0 | OC31: 0 | OD31: 0 | OE31: 0 | OF31: 0 | OG31: 0 | OH31: -1 | OI31: 0 | OJ31: 0 | OK31: 0 | OL31: 0 | OM31: 0 | ON31: 0 | OO31: -1 | OP31: 0 | OQ31: 0 | OR31: 0 | OS31: 0 | OT31: 0
A32: S2_1474977199 | B32: AT/A | C32: chr1 | D32: 3474977199 | E32: 0 | F32: 0 | G32: 2 | H32: 2 | I32: 0 | J32: 0 | K32: 0 | L32: 0 | M32: 0 | N32: 0 | O32: 0 | P32: 2 | Q32: 0 | R32: 0 | S32: 0 | T32: 0 | U32: 0 | V32: 0 | W32: 0 | X32: 0 | Y32: 0 | Z32: 2 | AA32: 0 | AB32: 2 | AC32: 0 | AD32: 0 | AE32: 0 | AF32: 0 | AG32: 0 | AH32: 0 | AI32: 2 | AJ32: 0 | AK32: 0 | AL32: 0 | AM32: 0 | AN32: 0 | AO32: 0 | AP32: 0 | AQ32: 0 | AR32: 0 | AS32: -1 | AT32: 0 | AU32: 0 | AV32: 2 | AW32: 2 | AX32: 0 | AY32: 0 | AZ32: 0 | BA32: 0 | BB32: 2 | BC32: -1 | BD32: 0 | BE32: 0 | BF32: 0 | BG32: 0 | BH32: 0 | BI32: 0 | BJ32: 0 | BK32: 0 | BL32: 2 | BM32: 0 | BN32: 0 | BO32: 1 | BP32: 0 | BQ32: -1 | BR32: 0 | BS32: 0 | BT32: 0 | BU32: 0 | BV32: 0 | BW32: 2 | BX32: 0 | BY32: 0 | BZ32: 0 | CA32: 0 | CB32: 0 | CC32: -1 | CD32: 0 | CE32: 2 | CF32: 2 | CG32: 0 | CH32: 0 | CI32: 0 | CJ32: 0 | CK32: 0 | CL32: 0 | CM32: 2 | CN32: 2 | CO32: 0 | CP32: 0 | CQ32: 2 | CR32: 0 | CS32: 2 | CT32: 0 | CU32: 0 | CV32: 0 | CW32: 0 | CX32: 0 | CY32: 0 | CZ32: 0 | DA32: 2 | DB32: 2 | DC32: 0 | DD32: 0 | DE32: 2 | DF32: 0 | DG32: 0 | DH32: 0 | DI32: 0 | DJ32: 0 | DK32: 0 | DL32: 0 | DM32: 0 | DN32: 0 | DO32: 0 | DP32: 0 | DQ32: 0 | DR32: 2 | DS32: 0 | DT32: 2 | DU32: 0 | DV32: 0 | DW32: 0 | DX32: 0 | DY32: 0 | DZ32: 0 | EA32: 0 | EB32: 2 | EC32: 0 | ED32: 0 | EE32: 0 | EF32: 0 | EG32: 0 | EH32: 2 | EI32: 0 | EJ32: 0 | EK32: 0 | EL32: 0 | EM32: 2 | EN32: 0 | EO32: 0 | EP32: 0 | EQ32: 0 | ER32: 0 | ES32: 0 | ET32: 0 | EU32: 0 | EV32: 0 | EW32: 0 | EX32: 0 | EY32: 0 | EZ32: 0 | FA32: 0 | FB32: 0 | FC32: 2 | FD32: 0 | FE32: -1 | FF32: 0 | FG32: 0 | FH32: 0 | FI32: 0 | FJ32: 0 | FK32: 0 | FL32: 0 | FM32: 2 | FN32: 0 | FO32: 0 | FP32: 0 | FQ32: 0 | FR32: 0 | FS32: 2 | FT32: 0 | FU32: 2 | FV32: 0 | FW32: 0 | FX32: 0 | FY32: 0 | FZ32: 0 | GA32: 0 | GB32: -1 | GC32: 2 | GD32: 0 | GE32: 0 | GF32: 0 | GG32: 0 | GH32: 2 | GI32: 0 | GJ32: 0 | GK32: -1 | GL32: 0 | GM32: 0 | GN32: 0 | GO32: 0 | GP32: 0 | GQ32: 2 | GR32: 0 | GS32: 2 | GT32: 2 | GU32: 2 | GV32: 2 | GW32: 0 | GX32: 0 | GY32: 1 | GZ32: 0 | HA32: 0 | HB32: 0 | HC32: 1 | HD32: -1 | HE32: 0 | HF32: -1 | HG32: -1 | HH32: 2 | HI32: -1 | HJ32: 2 | HK32: 2 | HL32: 2 | HM32: 0 | HN32: 2 | HO32: 2 | HP32: 2 | HQ32: -1 | HR32: 2 | HS32: 0 | HT32: 0 | HU32: 2 | HV32: -1 | HW32: 2 | HX32: 0 | HY32: 2 | HZ32: 1 | IA32: 2 | IB32: 2 | IC32: -1 | ID32: 2 | IE32: 2 | IF32: 2 | IG32: 2 | IH32: 1 | II32: 0 | IJ32: 2 | IK32: 2 | IL32: 1 | IM32: 0 | IN32: 2 | IO32: 0 | IP32: -1 | IQ32: 2 | IR32: -1 | IS32: 2 | IT32: 0 | IU32: -1 | IV32: 2 | IW32: 0 | IX32: 2 | IY32: 2 | IZ32: 1 | JA32: -1 | JB32: 2 | JC32: 2 | JD32: 2 | JE32: 0 | JF32: 2 | JG32: 2 | JH32: 2 | JI32: 2 | JJ32: -1 | JK32: 2 | JL32: 2 | JM32: 2 | JN32: 1 | JO32: 2 | JP32: 0 | JQ32: 1 | JR32: 0 | JS32: 2 | JT32: 2 | JU32: 2 | JV32: 1 | JW32: 0 | JX32: 2 | JY32: 0 | JZ32: 0 | KA32: 0 | KB32: 0 | KC32: 0 | KD32: 0 | KE32: 0 | KF32: 0 | KG32: 0 | KH32: 0 | KI32: 0 | KJ32: 0 | KK32: 0 | KL32: 0 | KM32: 0 | KN32: 0 | KO32: 0 | KP32: 0 | KQ32: 0 | KR32: 0 | KS32: 0 | KT32: 0 | KU32: 0 | KV32: 0 | KW32: 0 | KX32: 0 | KY32: 0 | KZ32: 0 | LA32: 0 | LB32: 0 | LC32: 0 | LD32: 0 | LE32: 0 | LF32: 0 | LG32: 0 | LH32: 0 | LI32: 0 | LJ32: 0 | LK32: 0 | LL32: 0 | LM32: 0 | LN32: 0 | LO32: 0 | LP32: 0 | LQ32: 0 | LR32: 0 | LS32: 0 | LT32: 0 | LU32: 0 | LV32: 0 | LW32: 0 | LX32: 0 | LY32: 0 | LZ32: 0 | MA32: 0 | MB32: 0 | MC32: 0 | MD32: 0 | ME32: 0 | MF32: 0 | MG32: 0 | MH32: 0 | MI32: 0 | MJ32: 0 | MK32: 0 | ML32: 0 | MM32: 2 | MN32: 0 | MO32: 2 | MP32: -1 | MQ32: -1 | MR32: 0 | MS32: 0 | MT32: -1 | MU32: 0 | MV32: 0 | MW32: 2 | MX32: 0 | MY32: 0 | MZ32: 0 | NA32: 0 | NB32: 0 | NC32: 0 | ND32: 0 | NE32: 2 | NF32: 2 | NG32: 0 | NH32: -1 | NI32: 0 | NJ32: 1 | NK32: 0 | NL32: -1 | NM32: 2 | NN32: 2 | NO32: 2 | NP32: 0 | NQ32: 2 | NR32: 2 | NS32: 1 | NT32: 0 | NU32: 0 | NV32: 0 | NW32: 0 | NX32: 0 | NY32: 0 | NZ32: 0 | OA32: 0 | OB32: 0 | OC32: 1 | OD32: 0 | OE32: 0 | OF32: 0 | OG32: 0 | OH32: 0 | OI32: 0 | OJ32: 2 | OK32: 1 | OL32: 1 | OM32: -1 | ON32: 1 | OO32: 0 | OP32: 0 | OQ32: 0 | OR32: 0 | OS32: 0 | OT32: 0
A33: S2_1475025813 | B33: TTTGTTGTT/TTTGTT | C33: chr1 | D33: 3475025813 | E33: 0 | F33: 0 | G33: 0 | H33: 2 | I33: 0 | J33: 0 | K33: 0 | L33: 0 | M33: 0 | N33: 0 | O33: 0 | P33: 0 | Q33: 0 | R33: 0 | S33: 0 | T33: 0 | U33: 0 | V33: 0 | W33: 0 | X33: 0 | Y33: 0 | Z33: 0 | AA33: 0 | AB33: 2 | AC33: 0 | AD33: 0 | AE33: 0 | AF33: 0 | AG33: 0 | AH33: 0 | AI33: 0 | AJ33: 0 | AK33: 0 | AL33: 0 | AM33: 0 | AN33: 0 | AO33: 0 | AP33: 0 | AQ33: 0 | AR33: 0 | AS33: 0 | AT33: 0 | AU33: 0 | AV33: 0 | AW33: 0 | AX33: 0 | AY33: 0 | AZ33: 0 | BA33: 0 | BB33: 0 | BC33: 2 | BD33: 0 | BE33: 0 | BF33: 0 | BG33: 0 | BH33: 0 | BI33: 0 | BJ33: 0 | BK33: 0 | BL33: 0 | BM33: 0 | BN33: 0 | BO33: 0 | BP33: 0 | BQ33: 0 | BR33: 0 | BS33: 0 | BT33: 0 | BU33: 0 | BV33: 0 | BW33: 0 | BX33: 0 | BY33: 0 | BZ33: 0 | CA33: 0 | CB33: 0 | CC33: 0 | CD33: 0 | CE33: 0 | CF33: 2 | CG33: 0 | CH33: 0 | CI33: 0 | CJ33: 0 | CK33: 0 | CL33: 0 | CM33: 0 | CN33: 0 | CO33: 0 | CP33: 0 | CQ33: 0 | CR33: 0 | CS33: 0 | CT33: 0 | CU33: 0 | CV33: 0 | CW33: 0 | CX33: 0 | CY33: 0 | CZ33: 0 | DA33: 2 | DB33: 0 | DC33: 0 | DD33: 0 | DE33: 0 | DF33: 0 | DG33: 0 | DH33: 0 | DI33: 0 | DJ33: 0 | DK33: 0 | DL33: 0 | DM33: 0 | DN33: 0 | DO33: 0 | DP33: 0 | DQ33: 0 | DR33: -1 | DS33: 0 | DT33: 0 | DU33: 0 | DV33: 0 | DW33: 0 | DX33: 0 | DY33: 0 | DZ33: 0 | EA33: 0 | EB33: 2 | EC33: 0 | ED33: 0 | EE33: 0 | EF33: 0 | EG33: 0 | EH33: 0 | EI33: 0 | EJ33: 0 | EK33: 0 | EL33: 0 | EM33: 0 | EN33: 0 | EO33: 0 | EP33: 0 | EQ33: 0 | ER33: 0 | ES33: 0 | ET33: 0 | EU33: 0 | EV33: 0 | EW33: 0 | EX33: 0 | EY33: 0 | EZ33: 0 | FA33: 0 | FB33: 0 | FC33: -1 | FD33: 0 | FE33: 0 | FF33: 0 | FG33: 0 | FH33: 0 | FI33: 0 | FJ33: 0 | FK33: 0 | FL33: 0 | FM33: 0 | FN33: 0 | FO33: 0 | FP33: 0 | FQ33: 0 | FR33: 0 | FS33: 2 | FT33: 0 | FU33: 0 | FV33: 0 | FW33: 0 | FX33: 0 | FY33: 0 | FZ33: 0 | GA33: 0 | GB33: 0 | GC33: -1 | GD33: 0 | GE33: 0 | GF33: 0 | GG33: 0 | GH33: 2 | GI33: 0 | GJ33: 0 | GK33: 0 | GL33: 0 | GM33: 0 | GN33: 0 | GO33: 0 | GP33: 0 | GQ33: 0 | GR33: 0 | GS33: 1 | GT33: 2 | GU33: 2 | GV33: 2 | GW33: 1 | GX33: -1 | GY33: 1 | GZ33: 0 | HA33: 0 | HB33: 0 | HC33: 1 | HD33: 0 | HE33: 1 | HF33: 2 | HG33: 2 | HH33: 2 | HI33: 1 | HJ33: 2 | HK33: 2 | HL33: 2 | HM33: 0 | HN33: 2 | HO33: 1 | HP33: 1 | HQ33: 2 | HR33: 2 | HS33: 0 | HT33: 0 | HU33: 2 | HV33: 2 | HW33: 2 | HX33: 0 | HY33: 2 | HZ33: 1 | IA33: 2 | IB33: 2 | IC33: 2 | ID33: 1 | IE33: 2 | IF33: 1 | IG33: 1 | IH33: 1 | II33: 0 | IJ33: 0 | IK33: 0 | IL33: 0 | IM33: 0 | IN33: 0 | IO33: 0 | IP33: 0 | IQ33: 0 | IR33: -1 | IS33: 0 | IT33: 0 | IU33: 0 | IV33: 0 | IW33: 0 | IX33: 0 | IY33: 2 | IZ33: -1 | JA33: 0 | JB33: 2 | JC33: 2 | JD33: 0 | JE33: 0 | JF33: 2 | JG33: 2 | JH33: 0 | JI33: 2 | JJ33: 1 | JK33: 0 | JL33: 0 | JM33: 0 | JN33: 0 | JO33: 0 | JP33: 0 | JQ33: 2 | JR33: 0 | JS33: 0 | JT33: 1 | JU33: 0 | JV33: 0 | JW33: 0 | JX33: 2 | JY33: 0 | JZ33: 0 | KA33: 0 | KB33: 0 | KC33: 0 | KD33: 0 | KE33: 0 | KF33: 0 | KG33: 0 | KH33: 0 | KI33: 0 | KJ33: 0 | KK33: 0 | KL33: 0 | KM33: 0 | KN33: 0 | KO33: 0 | KP33: 0 | KQ33: 0 | KR33: 0 | KS33: 0 | KT33: 2 | KU33: 0 | KV33: 0 | KW33: 0 | KX33: 0 | KY33: 0 | KZ33: 0 | LA33: 0 | LB33: 0 | LC33: 0 | LD33: 0 | LE33: 0 | LF33: 0 | LG33: 0 | LH33: 0 | LI33: 0 | LJ33: 0 | LK33: 0 | LL33: 0 | LM33: 0 | LN33: 0 | LO33: 0 | LP33: 0 | LQ33: 0 | LR33: 0 | LS33: 0 | LT33: 0 | LU33: 0 | LV33: 0 | LW33: 0 | LX33: 0 | LY33: 0 | LZ33: 0 | MA33: 0 | MB33: 0 | MC33: 0 | MD33: 0 | ME33: 0 | MF33: 0 | MG33: 0 | MH33: 0 | MI33: 0 | MJ33: 0 | MK33: 0 | ML33: 0 | MM33: 2 | MN33: 0 | MO33: 2 | MP33: 2 | MQ33: 0 | MR33: 0 | MS33: 0 | MT33: -1 | MU33: -1 | MV33: 0 | MW33: 1 | MX33: 0 | MY33: 0 | MZ33: 0 | NA33: 0 | NB33: 0 | NC33: 0 | ND33: 0 | NE33: -1 | NF33: 0 | NG33: 0 | NH33: 0 | NI33: 0 | NJ33: -1 | NK33: 0 | NL33: 2 | NM33: -1 | NN33: 2 | NO33: 2 | NP33: 0 | NQ33: 2 | NR33: 2 | NS33: 1 | NT33: 0 | NU33: 0 | NV33: 0 | NW33: 0 | NX33: 0 | NY33: 0 | NZ33: 0 | OA33: 0 | OB33: 0 | OC33: -1 | OD33: 0 | OE33: 0 | OF33: 0 | OG33: 0 | OH33: -1 | OI33: 0 | OJ33: 0 | OK33: 0 | OL33: 0 | OM33: 2 | ON33: 0 | OO33: 0 | OP33: 0 | OQ33: 0 | OR33: 0 | OS33: 0 | OT33: 0
A34: #0: Reference allele
A35: #1: Alternative allele
A36: #2: Heterozygous allele
A37: #-1: Missing

Sheet S. Table 16
A1: Supplementary Table 16. Statistics of 239 samples in Profaba panel.
A2: sample | B2: No. of GBS reads | C2: BioSample Identifier | D2: No.of SPET reads | E2: BioSample Identifier | F2: No. of clean reads (GBS+SPET) | G2: No. of mapped reads | H2: No. of Q20 reads | I2: Q20 rate | J2: Winter survival rate | K2: Late frost survival rate
A3: GPID_00001 | B3: 29110148 | C3: SAMEA116297173 | D3: =F3-B3 -> 17,240,426 | F3: 46,350,574 | G3: 46,004,510 | H3: 14,547,067 | I3: =H3/G3 -> 0.32 | J3: 38.88888889 | K3: 38.88888889
A4: GPID_00002 | B4: 33611580 | C4: SAMEA116297174 | D4: =F4-B4 -> 14,969,764 | F4: 48,581,344 | G4: 48,269,656 | H4: 16,724,074 | I4: =H4/G4 -> 0.35 | J4: 0 | K4: 0
A5: GPID_00003 | B5: 59244301 | C5: SAMEA116297175 | D5: 16,938,072 | F5: 76,182,373 | G5: 75,547,486 | H5: 29,733,315 | I5: 0.39 | J5: 6.666666667 | K5: 0
A6: GPID_00004 | B6: 38857784 | C6: SAMEA116297176 | D6: 19,043,614 | F6: 57,901,398 | G6: 57,515,888 | H6: 20,568,888 | I6: 0.36 | J6: 21.05263158 | K6: 0
A7: GPID_00005 | B7: 68369084 | C7: SAMEA116297177 | D7: 17,399,886 | F7: 85,768,970 | G7: 85,379,892 | H7: 31,845,781 | I7: 0.37 | J7: 94.44444444 | K7: 88.88888889
A8: GPID_00006 | B8: 73535783 | C8: SAMEA116297178 | D8: 13,792,262 | F8: 87,328,045 | G8: 86,985,388 | H8: 33,601,804 | I8: 0.39 | J8: 55.55555556 | K8: 33.33333333
A9: GPID_00007 | B9: 61625525 | C9: SAMEA116297179 | D9: 7,041,018 | F9: 68,666,543 | G9: 68,431,875 | H9: 25,117,377 | I9: 0.37 | J9: NA | K9: NA
A10: GPID_00008 | B10: NA | C10: NA | D10: =F10 -> 18,417,452 | F10: 18,417,452 | G10: 18,123,609 | H10: 5,019,725 | I10: 0.28 | J10: 0 | K10: 0
A11: GPID_00009 | B11: 63924224 | C11: SAMEA116297180 | D11: 16,889,510 | F11: 80,813,734 | G11: 80,415,970 | H11: 31,408,323 | I11: 0.39 | J11: 32 | K11: 8
A12: GPID_00010 | B12: 26892413 | C12: SAMEA116297181 | D12: 17,427,794 | F12: 44,320,207 | G12: 43,974,814 | H12: 14,882,914 | I12: 0.34 | J12: 105.8823529 | K12: 117.6470588
A13: GPID_00011 | B13: 29128985 | C13: SAMEA116297182 | D13: 7,877,096 | F13: 37,006,081 | G13: 36,799,025 | H13: 12,794,511 | I13: 0.35 | J13: 91.66666667 | K13: 87.5
A14: GPID_00012 | B14: 52483130 | C14: SAMEA116297183 | D14: 18,901,166 | F14: 71,384,296 | G14: 70,966,357 | H14: 25,930,608 | I14: 0.37 | J14: 111.1111111 | K14: 111.1111111
A15: GPID_00013 | B15: 36188089 | C15: SAMEA116297184 | D15: 12,832,476 | F15: 49,020,565 | G15: 48,176,325 | H15: 18,088,120 | I15: 0.38 | J15: 104.7619048 | K15: 95.23809524
A16: GPID_00014 | B16: 38734562 | C16: SAMEA116297185 | D16: 17,702,476 | F16: 56,437,038 | G16: 56,011,048 | H16: 18,704,346 | I16: 0.33 | J16: 95.83333333 | K16: 95.83333333
A17: GPID_00015 | B17: 37899492 | C17: SAMEA116297186 | D17: 17,591,624 | F17: 55,491,116 | G17: 54,811,770 | H17: 21,066,910 | I17: 0.38 | J17: 100 | K17: 90
A18: GPID_00016 | B18: 55471922 | C18: SAMEA116297187 | D18: 18,422,078 | F18: 73,894,000 | G18: 73,204,355 | H18: 25,566,945 | I18: 0.35 | J18: 95.23809524 | K18: 85.71428571
A19: GPID_00017 | B19: 90724845 | C19: SAMEA116297188 | D19: 15,152,678 | F19: 105,877,523 | G19: 105,419,093 | H19: 39,695,387 | I19: 0.38 | J19: 21.73913043 | K19: 0
A20: GPID_00018 | B20: 44499444 | C20: SAMEA116297189 | D20: 18,821,538 | F20: 63,320,982 | G20: 62,931,311 | H20: 23,651,216 | I20: 0.38 | J20: 17.39130435 | K20: 0
A21: GPID_00019 | B21: 41844706 | C21: SAMEA116297190 | D21: 17,436,368 | F21: 59,281,074 | G21: 58,880,991 | H21: 21,809,554 | I21: 0.37 | J21: 40 | K21: 10
A22: GPID_00020 | B22: 24353923 | C22: SAMEA116297191 | D22: 18,156,658 | F22: 42,510,581 | G22: 42,168,844 | H22: 14,120,465 | I22: 0.33 | J22: 0 | K22: 0
A23: GPID_00021 | B23: 37611246 | C23: SAMEA116297192 | D23: 17,334,720 | F23: 54,945,966 | G23: 54,589,320 | H23: 18,649,193 | I23: 0.34 | J23: 84.61538462 | K23: 61.53846154
A24: GPID_00022 | B24: 36722441 | C24: SAMEA116297193 | D24: 12,317,578 | F24: 49,040,019 | G24: 48,776,573 | H24: 18,350,648 | I24: 0.38 | J24: 20 | K24: 0
A25: GPID_00023 | B25: 48023182 | C25: SAMEA116297194 | D25: 17,376,876 | F25: 65,400,058 | G25: 65,003,441 | H25: 23,012,890 | I25: 0.35 | J25: NA | K25: NA
A26: GPID_00024 | B26: 53723972 | C26: SAMEA116297195 | D26: 14,827,828 | F26: 68,551,800 | G26: 68,194,098 | H26: 25,268,260 | I26: 0.37 | J26: NA | K26: NA
A27: GPID_00025 | B27: 43356456 | C27: SAMEA116297196 | D27: 18,824,796 | F27: 62,181,252 | G27: 61,511,837 | H27: 21,190,201 | I27: 0.34 | J27: 90 | K27: 85
A28: GPID_00026 | B28: 43403593 | C28: SAMEA116297197 | D28: 12,820,328 | F28: 56,223,921 | G28: 55,929,295 | H28: 20,067,503 | I28: 0.36 | J28: 21.42857143 | K28: 0
A29: GPID_00027 | B29: 61861256 | C29: SAMEA116297198 | D29: 16,959,902 | F29: 78,821,158 | G29: 78,438,786 | H29: 27,358,609 | I29: 0.35 | J29: 94.44444444 | K29: 77.77777778
A30: GPID_00028 | B30: 26189367 | C30: SAMEA116297199 | D30: 16,328,852 | F30: 42,518,219 | G30: 42,200,710 | H30: 13,737,432 | I30: 0.33 | J30: 47.36842105 | K30: 5.263157895
A31: GPID_00029 | B31: 63190158 | C31: SAMEA116297200 | D31: 15,841,004 | F31: 79,031,162 | G31: 78,644,787 | H31: 26,931,507 | I31: 0.34 | J31: 38.88888889 | K31: 22.22222222
A32: GPID_00030 | B32: 46901340 | C32: SAMEA116297201 | D32: 15,969,142 | F32: 62,870,482 | G32: 62,511,573 | H32: 20,947,144 | I32: 0.34 | J32: 13.63636364 | K32: 9.090909091
A33: GPID_00031 | B33: 43703697 | C33: SAMEA116297202 | D33: 12,671,430 | F33: 56,375,127 | G33: 55,891,860 | H33: 17,448,546 | I33: 0.31 | J33: 0 | K33: 0
A34: GPID_00032 | B34: 67955318 | C34: SAMEA116297203 | D34: 14,482,606 | F34: 82,437,924 | G34: 82,067,072 | H34: 28,980,200 | I34: 0.35 | J34: 0 | K34: 0
A35: GPID_00033 | B35: NA | C35: NA | D35: 17,617,908 | F35: 17,617,908 | G35: 17,330,508 | H35: 4,928,972 | I35: 0.28 | J35: NA | K35: NA
A36: GPID_00034 | B36: NA | C36: NA | D36: 17,334,128 | F36: 17,334,128 | G36: 17,061,569 | H36: 4,659,829 | I36: 0.27 | J36: NA | K36: NA
A37: GPID_00035 | B37: NA | C37: NA | D37: 12,226,918 | F37: 12,226,918 | G37: 12,019,395 | H37: 3,406,472 | I37: 0.28 | J37: NA | K37: NA
A38: GPID_00036 | B38: 86002894 | C38: SAMEA116297204 | D38: 15,645,280 | F38: 101,648,174 | G38: 101,264,225 | H38: 35,679,815 | I38: 0.35 | J38: 12.5 | K38: 6.25
A39: GPID_00037 | B39: 15751541 | C39: SAMEA116297205 | D39: 16,510,380 | F39: 32,261,921 | G39: 31,959,449 | H39: 9,870,650 | I39: 0.31 | J39: 33.33333333 | K39: 6.666666667
A40: GPID_00038 | B40: NA | C40: NA | D40: 16,524,552 | F40: 16,524,552 | G40: 16,277,288 | H40: 4,064,590 | I40: 0.25 | J40: NA | K40: NA
A41: GPID_00039 | B41: 59494863 | C41: SAMEA116297206 | D41: 14,302,898 | F41: 73,797,761 | G41: 73,361,857 | H41: 25,952,172 | I41: 0.35 | J41: 30 | K41: 0
A42: GPID_00040 | B42: 35237389 | C42: SAMEA116297207 | D42: 14,772,546 | F42: 50,009,935 | G42: 49,682,415 | H42: 16,585,843 | I42: 0.33 | J42: 40 | K42: 33.33333333
A43: GPID_00041 | B43: NA | C43: NA | D43: 13,547,194 | F43: 13,547,194 | G43: 13,316,174 | H43: 3,331,930 | I43: 0.25 | J43: NA | K43: NA
A44: GPID_00042 | B44: 37509447 | C44: SAMEA116297208 | D44: 12,951,916 | F44: 50,461,363 | G44: 50,160,820 | H44: 16,614,854 | I44: 0.33 | J44: 46.15384615 | K44: 38.46153846
A45: GPID_00043 | B45: NA | C45: NA | D45: 13,376,850 | F45: 13,376,850 | G45: 13,164,023 | H45: 3,702,488 | I45: 0.28 | J45: NA | K45: NA
A46: GPID_00044 | B46: NA | C46: NA | D46: 14,996,666 | F46: 14,996,666 | G46: 14,708,159 | H46: 4,305,573 | I46: 0.29 | J46: NA | K46: NA
A47: GPID_00045 | B47: 31405718 | C47: SAMEA116297209 | D47: 14,611,798 | F47: 46,017,516 | G47: 45,700,159 | H47: 15,356,191 | I47: 0.34 | J47: 17.64705882 | K47: 5.882352941
A48: GPID_00046 | B48: 66781271 | C48: SAMEA116297210 | D48: 18,697,690 | F48: 85,478,961 | G48: 84,994,299 | H48: 30,063,046 | I48: 0.35 | J48: 55 | K48: 30
A49: GPID_00047 | B49: 69128832 | C49: SAMEA116297211 | D49: 14,280,840 | F49: 83,409,672 | G49: 82,421,321 | H49: 31,044,325 | I49: 0.38 | J49: 0 | K49: 0
A50: GPID_00048 | B50: NA | C50: NA | D50: 10,816,784 | F50: 10,816,784 | G50: 10,647,744 | H50: 3,081,104 | I50: 0.29 | J50: NA | K50: NA
A51: GPID_00049 | B51: 97402281 | C51: SAMEA116297212 | D51: 21,116,916 | F51: 118,519,197 | G51: 116,250,325 | H51: 43,213,822 | I51: 0.37 | J51: 40.90909091 | K51: 0
A52: GPID_00050 | B52: 42167503 | C52: SAMEA116297213 | D52: 14,955,726 | F52: 57,123,229 | G52: 56,814,105 | H52: 17,892,614 | I52: 0.31 | J52: NA | K52: NA
A53: GPID_00051 | B53: 36691395 | C53: SAMEA116297214 | D53: 15,465,444 | F53: 52,156,839 | G53: 51,850,536 | H53: 16,140,563 | I53: 0.31 | J53: 90 | K53: 50
A54: GPID_00052 | B54: 12024065 | C54: SAMEA116297215 | D54: 10,167,334 | F54: 22,191,399 | G54: 22,008,285 | H54: 5,363,950 | I54: 0.24 | J54: 84.21052632 | K54: 78.94736842
A55: GPID_00053 | B55: 12820806 | C55: SAMEA116297216 | D55: 18,118,512 | F55: 30,939,318 | G55: 30,644,100 | H55: 9,778,848 | I55: 0.32 | J55: 73.68421053 | K55: 47.36842105
A56: GPID_00054 | B56: 36102551 | C56: SAMEA116297217 | D56: 15,261,980 | F56: 51,364,531 | G56: 50,879,670 | H56: 15,501,827 | I56: 0.30 | J56: NA | K56: NA
A57: GPID_00055 | B57: 37858797 | C57: SAMEA116297218 | D57: 13,395,098 | F57: 51,253,895 | G57: 50,956,974 | H57: 16,771,192 | I57: 0.33 | J57: NA | K57: NA
A58: GPID_00056 | B58: 28176761 | C58: SAMEA116297219 | D58: 14,584,948 | F58: 42,761,709 | G58: 42,478,948 | H58: 14,723,221 | I58: 0.35 | J58: NA | K58: NA
A59: GPID_00057 | B59: 28120538 | C59: SAMEA116297220 | D59: 21,111,106 | F59: 49,231,644 | G59: 48,861,903 | H59: 15,896,010 | I59: 0.33 | J59: 79.16666667 | K59: 62.5
A60: GPID_00058 | B60: 23526693 | C60: SAMEA116297221 | D60: 15,837,052 | F60: 39,363,745 | G60: 39,030,215 | H60: 11,191,048 | I60: 0.29 | J60: 91.30434783 | K60: 65.2173913
A61: GPID_00059 | B61: 32479850 | C61: SAMEA116297222 | D61: 18,678,064 | F61: 51,157,914 | G61: 50,784,709 | H61: 14,543,084 | I61: 0.29 | J61: 72 | K61: 56
A62: GPID_00060 | B62: 46062796 | C62: SAMEA116297223 | D62: 16,948,332 | F62: 63,011,128 | G62: 62,592,185 | H62: 20,646,969 | I62: 0.33 | J62: NA | K62: NA
A63: GPID_00061 | B63: 32609989 | C63: SAMEA116297224 | D63: 19,997,474 | F63: 52,607,463 | G63: 52,213,215 | H63: 17,133,016 | I63: 0.33 | J63: 73.91304348 | K63: 60.86956522
A64: GPID_00062 | B64: 27054712 | C64: SAMEA116297225 | D64: 15,295,776 | F64: 42,350,488 | G64: 42,039,052 | H64: 14,073,250 | I64: 0.33 | J64: 12.5 | K64: 0
A65: GPID_00063 | B65: 32580999 | C65: SAMEA116297226 | D65: 15,878,110 | F65: 48,459,109 | G65: 48,105,838 | H65: 16,833,931 | I65: 0.35 | J65: 61.11111111 | K65: 50
A66: GPID_00064 | B66: NA | C66: NA | D66: 17,244,630 | F66: 17,244,630 | G66: 16,974,172 | H66: 4,371,973 | I66: 0.26 | J66: 30 | K66: 0
A67: GPID_00065 | B67: 54874431 | C67: SAMEA116297227 | D67: 13,953,142 | F67: 68,827,573 | G67: 67,971,977 | H67: 25,767,437 | I67: 0.38 | J67: 58.82352941 | K67: 47.05882353
A68: GPID_00066 | B68: NA | C68: NA | D68: 14,065,068 | F68: 14,065,068 | G68: 13,804,796 | H68: 3,963,139 | I68: =H68/G68 -> 0.29 | J68: NA | K68: NA
A69: GPID_00067 | B69: NA | C69: NA | D69: 10,308,666 | F69: 10,308,666 | G69: 10,135,954 | H69: 2,925,181 | I69: 0.29 | J69: NA | K69: NA
A70: GPID_00068 | B70: 62546875 | C70: SAMEA116297228 | D70: =F70-B70 -> 13,719,536 | F70: 76,266,411 | G70: 75,913,161 | H70: 26,966,326 | I70: 0.36 | J70: 23.52941176 | K70: 5.882352941
A71: GPID_00069 | B71: 45006064 | C71: SAMEA116297229 | D71: 13,580,716 | F71: 58,586,780 | G71: 58,213,484 | H71: 20,543,336 | I71: 0.35 | J71: 60 | K71: 45
A72: GPID_00070 | B72: 65817555 | C72: SAMEA116297230 | D72: 9,719,686 | F72: 75,537,241 | G72: 75,222,654 | H72: 27,788,299 | I72: 0.37 | J72: 47.36842105 | K72: 36.84210526
A73: GPID_00071 | B73: NA | C73: NA | D73: 14,458,240 | F73: 14,458,240 | G73: 14,226,577 | H73: 4,080,247 | I73: 0.29 | J73: NA | K73: NA
A74: GPID_00072 | B74: 17154956 | C74: SAMEA116297231 | D74: 16,866,888 | F74: 34,021,844 | G74: 33,709,209 | H74: 11,326,072 | I74: 0.34 | J74: 18.75 | K74: 12.5
A75: GPID_00073 | B75: 38078355 | C75: SAMEA116297232 | D75: 17,219,674 | F75: 55,298,029 | G75: 54,942,418 | H75: 18,902,538 | I75: 0.34 | J75: 11.11111111 | K75: 0
A76: GPID_00074 | B76: 49504353 | C76: SAMEA116297233 | D76: 17,332,976 | F76: 66,837,329 | G76: 66,444,244 | H76: 23,314,060 | I76: 0.35 | J76: 31.57894737 | K76: 15.78947368
A77: GPID_00075 | B77: NA | C77: NA | D77: 14,178,668 | F77: 14,178,668 | G77: 13,948,946 | H77: 3,619,535 | I77: 0.26 | J77: NA | K77: NA
A78: GPID_00076 | B78: NA | C78: NA | D78: 18,685,498 | F78: 18,685,498 | G78: 18,392,212 | H78: 4,568,666 | I78: 0.25 | J78: 15.38461538 | K78: 0
A79: GPID_00077 | B79: 65720071 | C79: SAMEA116297234 | D79: 15,600,906 | F79: 81,320,977 | G79: 80,648,598 | H79: 29,712,775 | I79: 0.37 | J79: 71.42857143 | K79: 38.0952381
A80: GPID_00078 | B80: 55366085 | C80: SAMEA116297235 | D80: 16,579,042 | F80: 71,945,127 | G80: 71,561,381 | H80: 24,531,136 | I80: 0.34 | J80: 27.27272727 | K80: 9.090909091
A81: GPID_00079 | B81: NA | C81: NA | D81: 12,963,282 | F81: 12,963,282 | G81: 12,739,583 | H81: 3,698,459 | I81: 0.29 | J81: NA | K81: NA
A82: GPID_00080 | B82: 12928525 | C82: SAMEA116297236 | D82: 8,492,962 | F82: 21,421,487 | G82: 21,252,046 | H82: 7,108,713 | I82: 0.33 | J82: 35 | K82: 15
A83: GPID_00081 | B83: 38613851 | C83: SAMEA116297237 | D83: 12,846,798 | F83: 51,460,649 | G83: 51,157,499 | H83: 17,246,903 | I83: 0.34 | J83: 45.45454545 | K83: 18.18181818
A84: GPID_00082 | B84: 45132224 | C84: SAMEA116297238 | D84: 12,895,306 | F84: 58,027,530 | G84: 57,678,569 | H84: 19,744,036 | I84: 0.34 | J84: 13.33333333 | K84: 0
A85: GPID_00083 | B85: 36006304 | C85: SAMEA116297239 | D85: 19,307,548 | F85: 55,313,852 | G85: 54,939,075 | H85: 17,912,087 | I85: 0.33 | J85: 75 | K85: 56.25
A86: GPID_00084 | B86: 37098900 | C86: SAMEA116297240 | D86: 7,850,186 | F86: 44,949,086 | G86: 44,741,117 | H86: 15,296,440 | I86: 0.34 | J86: 88.88888889 | K86: 55.55555556
A87: GPID_00085 | B87: 46421513 | C87: SAMEA116297241 | D87: 15,250,662 | F87: 61,672,175 | G87: 61,342,812 | H87: 20,919,098 | I87: 0.34 | J87: 54.16666667 | K87: 37.5
A88: GPID_00086 | B88: 32229398 | C88: SAMEA116297242 | D88: 17,124,832 | F88: 49,354,230 | G88: 49,011,416 | H88: 15,632,165 | I88: 0.32 | J88: 30 | K88: 10
A89: GPID_00087 | B89: 48401704 | C89: SAMEA116297243 | D89: 13,934,188 | F89: 62,335,892 | G89: 62,024,027 | H89: 22,113,442 | I89: 0.36 | J89: 100 | K89: 88.23529412
A90: GPID_00088 | B90: 46668014 | C90: SAMEA116297244 | D90: 16,688,404 | F90: 63,356,418 | G90: 62,951,094 | H90: 21,683,364 | I90: 0.34 | J90: 70.58823529 | K90: 52.94117647
A91: GPID_00089 | B91: 32629271 | C91: SAMEA116297245 | D91: 15,570,050 | F91: 48,199,321 | G91: 47,873,845 | H91: 15,444,915 | I91: 0.32 | J91: 31.81818182 | K91: 13.63636364
A92: GPID_00090 | B92: 49306808 | C92: SAMEA116297246 | D92: 19,583,404 | F92: 68,890,212 | G92: 68,475,003 | H92: 23,627,253 | I92: 0.35 | J92: 80 | K92: 75
A93: GPID_00091 | B93: 40668648 | C93: SAMEA116297247 | D93: 17,695,434 | F93: 58,364,082 | G93: 57,997,346 | H93: 20,666,573 | I93: 0.36 | J93: 40 | K93: 15
A94: GPID_00092 | B94: 37781984 | C94: SAMEA116297248 | D94: 14,251,018 | F94: 52,033,002 | G94: 51,737,754 | H94: 17,203,013 | I94: 0.33 | J94: 79.16666667 | K94: 62.5
A95: GPID_00093 | B95: 24764389 | C95: SAMEA116297249 | D95: 16,798,960 | F95: 41,563,349 | G95: 41,235,107 | H95: 14,332,513 | I95: 0.35 | J95: 60 | K95: 40
A96: GPID_00094 | B96: 48784665 | C96: SAMEA116297250 | D96: 14,927,886 | F96: 63,712,551 | G96: 63,368,359 | H96: 21,547,160 | I96: 0.34 | J96: 114.2857143 | K96: 100
A97: GPID_00095 | B97: 51589613 | C97: SAMEA116297251 | D97: 17,167,584 | F97: 68,757,197 | G97: 68,359,677 | H97: 23,822,067 | I97: 0.35 | J97: 33.33333333 | K97: 11.11111111
A98: GPID_00096 | B98: 40692061 | C98: SAMEA116297252 | D98: 17,235,096 | F98: 57,927,157 | G98: 57,518,960 | H98: 18,629,335 | I98: 0.32 | J98: 73.68421053 | K98: 68.42105263
A99: GPID_00097 | B99: 33591133 | C99: SAMEA116297253 | D99: 15,938,576 | F99: 49,529,709 | G99: 48,898,981 | H99: 17,593,450 | I99: 0.36 | J99: 23.80952381 | K99: 0
A100: GPID_00098 | B100: 48661656 | C100: SAMEA116297254 | D100: 17,182,212 | F100: 65,843,868 | G100: 65,467,186 | H100: 22,598,988 | I100: 0.35 | J100: 61.9047619 | K100: 42.85714286
A101: GPID_00099 | B101: 35703567 | C101: SAMEA116297255 | D101: 18,085,024 | F101: 53,788,591 | G101: 53,413,769 | H101: 16,801,824 | I101: 0.31 | J101: 88.88888889 | K101: 72.22222222
A102: GPID_00100 | B102: 29488510 | C102: SAMEA116297256 | D102: 19,306,584 | F102: 48,795,094 | G102: 48,408,403 | H102: 16,200,888 | I102: 0.33 | J102: 75 | K102: 68.75
A103: GPID_00102 | B103: 31954109 | C103: SAMEA116297257 | D103: 16,747,020 | F103: 48,701,129 | G103: 48,350,990 | H103: 16,253,441 | I103: 0.34 | J103: 90 | K103: 30
A104: GPID_00103 | B104: 44706582 | C104: SAMEA116297258 | D104: 16,310,396 | F104: 61,016,978 | G104: 60,627,082 | H104: 19,826,394 | I104: 0.33 | J104: 50 | K104: 37.5
A105: GPID_00104 | B105: 25125898 | C105: SAMEA116297259 | D105: 17,131,832 | F105: 42,257,730 | G105: 41,891,085 | H105: 14,417,733 | I105: 0.34 | J105: 73.91304348 | K105: 65.2173913
A106: GPID_00105 | B106: 33822699 | C106: SAMEA116297260 | D106: 16,007,304 | F106: 49,830,003 | G106: 49,523,423 | H106: 16,675,941 | I106: 0.34 | J106: 19.04761905 | K106: 9.523809524
A107: GPID_00106 | B107: NA | C107: NA | D107: 14,528,478 | F107: 14,528,478 | G107: 14,275,931 | H107: 4,046,931 | I107: 0.28 | J107: NA | K107: NA
A108: GPID_00107 | B108: 24733304 | C108: SAMEA116297261 | D108: 17,960,774 | F108: 42,694,078 | G108: 42,330,273 | H108: 13,494,281 | I108: 0.32 | J108: 61.9047619 | K108: 38.0952381
A109: GPID_00108 | B109: 37965519 | C109: SAMEA116297262 | D109: 16,383,660 | F109: 54,349,179 | G109: 53,977,147 | H109: 17,529,296 | I109: 0.32 | J109: 15 | K109: 0
A110: GPID_00109 | B110: 44205546 | C110: SAMEA116297263 | D110: 16,453,586 | F110: 60,659,132 | G110: 60,308,570 | H110: 19,919,443 | I110: 0.33 | J110: 26.31578947 | K110: 0
A111: GPID_00110 | B111: 39710803 | C111: SAMEA116297264 | D111: 19,868,238 | F111: 59,579,041 | G111: 59,193,745 | H111: 19,504,328 | I111: 0.33 | J111: 95 | K111: 95
A112: GPID_00111 | B112: 28167837 | C112: SAMEA116297265 | D112: 19,304,060 | F112: 47,471,897 | G112: 47,107,030 | H112: 14,664,832 | I112: 0.31 | J112: 56 | K112: 32
A113: GPID_00112 | B113: 47152670 | C113: SAMEA116297266 | D113: 13,172,722 | F113: 60,325,392 | G113: 59,886,290 | H113: 21,867,666 | I113: 0.37 | J113: 60 | K113: 28
A114: GPID_00113 | B114: 37085655 | C114: SAMEA116297267 | D114: 14,507,948 | F114: 51,593,603 | G114: 51,274,400 | H114: 17,986,660 | I114: 0.35 | J114: 41.66666667 | K114: 8.333333333
A115: GPID_00114 | B115: 29339346 | C115: SAMEA116297268 | D115: 13,153,262 | F115: 42,492,608 | G115: 42,202,640 | H115: 13,863,935 | I115: 0.33 | J115: 65.2173913 | K115: 52.17391304
A116: GPID_00115 | B116: 33415786 | C116: SAMEA116297269 | D116: 17,926,588 | F116: 51,342,374 | G116: 50,971,750 | H116: 17,212,160 | I116: 0.34 | J116: 88 | K116: 88
A117: GPID_00116 | B117: 28488364 | C117: SAMEA116297270 | D117: 14,481,060 | F117: 42,969,424 | G117: 42,676,608 | H117: 14,896,638 | I117: 0.35 | J117: 45.45454545 | K117: 13.63636364
A118: GPID_00117 | B118: 22103216 | C118: SAMEA116297271 | D118: 15,582,050 | F118: 37,685,266 | G118: 37,393,654 | H118: 12,498,722 | I118: 0.33 | J118: 87.5 | K118: 20.83333333
A119: GPID_00118 | B119: 22727941 | C119: SAMEA116297272 | D119: 15,734,768 | F119: 38,462,709 | G119: 38,120,086 | H119: 12,108,139 | I119: 0.32 | J119: 66.66666667 | K119: 23.80952381
A120: GPID_00119 | B120: 21734956 | C120: SAMEA116297273 | D120: 16,302,756 | F120: 38,037,712 | G120: 37,724,341 | H120: 12,254,510 | I120: 0.32 | J120: 66.66666667 | K120: 28.57142857
A121: GPID_00120 | B121: 40793848 | C121: SAMEA116297274 | D121: 15,309,690 | F121: 56,103,538 | G121: 55,753,275 | H121: 19,604,418 | I121: 0.35 | J121: 42.85714286 | K121: 14.28571429
A122: GPID_00121 | B122: 32651352 | C122: SAMEA116297275 | D122: 13,105,522 | F122: 45,756,874 | G122: 45,479,658 | H122: 15,966,431 | I122: 0.35 | J122: 84.21052632 | K122: 47.36842105
A123: GPID_00122 | B123: 29945999 | C123: SAMEA116297276 | D123: 11,439,380 | F123: 41,385,379 | G123: 41,121,572 | H123: 14,771,325 | I123: 0.36 | J123: 63.15789474 | K123: 52.63157895
A124: GPID_00123 | B124: 24439197 | C124: SAMEA116297277 | D124: 15,317,376 | F124: 39,756,573 | G124: 39,465,925 | H124: 13,135,671 | I124: 0.33 | J124: 20 | K124: 0
A125: GPID_00124 | B125: 19193980 | C125: SAMEA116297278 | D125: 16,635,802 | F125: 35,829,782 | G125: 35,516,969 | H125: 11,908,113 | I125: 0.34 | J125: 61.9047619 | K125: 47.61904762
A126: GPID_00125 | B126: 24268005 | C126: SAMEA116297279 | D126: 11,784,658 | F126: 36,052,663 | G126: 35,810,150 | H126: 11,733,206 | I126: 0.33 | J126: 96 | K126: 92
A127: GPID_00126 | B127: 31806425 | C127: SAMEA116297280 | D127: 10,867,648 | F127: 42,674,073 | G127: 42,228,363 | H127: 14,331,731 | I127: 0.34 | J127: 100 | K127: 100
A128: GPID_00127 | B128: 45293640 | C128: SAMEA116297281 | D128: 16,154,750 | F128: 61,448,390 | G128: 60,745,833 | H128: 23,063,917 | I128: 0.38 | J128: 88.88888889 | K128: 88.88888889
A129: GPID_00128 | B129: 29306612 | C129: SAMEA116297282 | D129: 12,497,716 | F129: 41,804,328 | G129: 41,554,781 | H129: 13,961,216 | I129: 0.34 | J129: 100 | K129: 100
A130: GPID_00129 | B130: 33164820 | C130: SAMEA116297283 | D130: 12,497,376 | F130: 45,662,196 | G130: 45,395,301 | H130: 15,961,778 | I130: 0.35 | J130: 100 | K130: 91.66666667
A131: GPID_00130 | B131: NA | C131: NA | D131: 16,666,082 | F131: 16,666,082 | G131: 16,399,837 | H131: 4,125,845 | I131: 0.25 | J131: 75 | K131: 45.83333333
A132: GPID_00131 | B132: 16971267 | C132: SAMEA116297284 | D132: =F132-B132 -> 12,095,424 | F132: 29,066,691 | G132: 28,827,508 | H132: 7,804,678 | I132: =H132/G132 -> 0.27 | J132: 100 | K132: 78.26086957
A133: GPID_00132 | B133: 34473421 | C133: SAMEA116297285 | D133: 15,037,846 | F133: 49,511,267 | G133: 49,204,350 | H133: 16,194,589 | I133: 0.33 | J133: 47.05882353 | K133: 35.29411765
A134: GPID_00133 | B134: 22755787 | C134: SAMEA116297286 | D134: 14,305,248 | F134: 37,061,035 | G134: 36,776,234 | H134: 12,857,050 | I134: 0.35 | J134: 63.15789474 | K134: 47.36842105
A135: GPID_00134 | B135: 25128472 | C135: SAMEA116297287 | D135: 13,047,242 | F135: 38,175,714 | G135: 37,907,270 | H135: 13,183,843 | I135: 0.35 | J135: 60 | K135: 40
A136: GPID_00135 | B136: 9698665 | C136: SAMEA116297288 | D136: 10,608,144 | F136: 20,306,809 | G136: 20,118,215 | H136: 6,207,614 | I136: 0.31 | J136: 84 | K136: 16
A137: GPID_00136 | B137: 33243002 | C137: SAMEA116297289 | D137: 11,888,718 | F137: 45,131,720 | G137: 44,871,831 | H137: 15,055,790 | I137: 0.34 | J137: 9.090909091 | K137: 4.545454545
A138: GPID_00137 | B138: 46121908 | C138: SAMEA116297290 | D138: 14,441,502 | F138: 60,563,410 | G138: 60,208,268 | H138: 20,344,446 | I138: 0.34 | J138: 63.15789474 | K138: 42.10526316
A139: GPID_00138 | B139: 4386596 | C139: SAMEA116297291 | D139: 12,657,910 | F139: 17,044,506 | G139: 16,855,372 | H139: 3,031,497 | I139: 0.18 | J139: 31.81818182 | K139: 13.63636364
A140: GPID_00139 | B140: 22850207 | C140: SAMEA116297292 | D140: 13,145,968 | F140: 35,996,175 | G140: 35,751,159 | H140: 9,902,385 | I140: 0.28 | J140: 85.71428571 | K140: 66.66666667
A141: GPID_00140 | B141: 23871050 | C141: SAMEA116297293 | D141: 15,616,074 | F141: 39,487,124 | G141: 39,185,760 | H141: 13,393,799 | I141: 0.34 | J141: 104.7619048 | K141: 90.47619048
A142: GPID_00141 | B142: 17000424 | C142: SAMEA116297294 | D142: 6,973,266 | F142: 23,973,690 | G142: 23,836,568 | H142: 7,052,851 | I142: 0.30 | J142: 86.95652174 | K142: 69.56521739
A143: GPID_00142 | B143: 22852617 | C143: SAMEA116297295 | D143: 7,211,506 | F143: 30,064,123 | G143: 29,897,864 | H143: 9,645,326 | I143: 0.32 | J143: 43.47826087 | K143: 13.04347826
A144: GPID_00143 | B144: 51839515 | C144: SAMEA116297296 | D144: 12,239,878 | F144: 64,079,393 | G144: 63,788,040 | H144: 19,393,185 | I144: 0.30 | J144: 90.90909091 | K144: 72.72727273
A145: GPID_00144 | B145: NA | C145: NA | D145: 18,201,826 | F145: 18,201,826 | G145: 17,933,541 | H145: 5,055,933 | I145: 0.28 | J145: NA | K145: NA
A146: GPID_00145 | B146: NA | C146: NA | D146: 16,901,368 | F146: 16,901,368 | G146: 16,659,098 | H146: 4,219,945 | I146: 0.25 | J146: NA | K146: NA
A147: GPID_00146 | B147: 49951352 | C147: SAMEA116297297 | D147: 10,513,590 | F147: 60,464,942 | G147: 60,051,208 | H147: 20,858,485 | I147: 0.35 | J147: 4.761904762 | K147: 0
A148: GPID_00147 | B148: 27328423 | C148: SAMEA116297298 | D148: 15,187,038 | F148: 42,515,461 | G148: 42,208,193 | H148: 14,202,387 | I148: 0.34 | J148: 116.6666667 | K148: 105.5555556
A149: GPID_00148 | B149: 58324518 | C149: SAMEA116297299 | D149: 10,446,692 | F149: 68,771,210 | G149: 68,479,074 | H149: 26,569,114 | I149: 0.39 | J149: 50 | K149: 8.333333333
A150: GPID_00149 | B150: 16613235 | C150: SAMEA116297300 | D150: 16,757,132 | F150: 33,370,367 | G150: 33,076,229 | H150: 10,664,212 | I150: 0.32 | J150: 109.0909091 | K150: 90.90909091
A151: GPID_00150 | B151: 11603242 | C151: SAMEA116297301 | D151: 12,728,288 | F151: 24,331,530 | G151: 24,099,367 | H151: 5,971,268 | I151: 0.25 | J151: 0 | K151: 0
A152: GPID_00151 | B152: 41276454 | C152: SAMEA116297302 | D152: 6,180,866 | F152: 47,457,320 | G152: 47,241,033 | H152: 18,929,336 | I152: 0.40 | J152: 0 | K152: 0
A153: GPID_00152 | B153: 41028138 | C153: SAMEA116297303 | D153: 11,899,660 | F153: 52,927,798 | G153: 52,436,471 | H153: 18,054,852 | I153: 0.34 | J153: 9.090909091 | K153: 0
A154: GPID_00153 | B154: 32774181 | C154: SAMEA116297304 | D154: 22,672,566 | F154: 55,446,747 | G154: 55,033,154 | H154: 18,016,344 | I154: 0.33 | J154: 100 | K154: 100
A155: GPID_00154 | B155: 43703307 | C155: SAMEA116297305 | D155: 14,255,810 | F155: 57,959,117 | G155: 57,600,800 | H155: 20,329,034 | I155: 0.35 | J155: 4.166666667 | K155: 0
A156: GPID_00155 | B156: 47846613 | C156: SAMEA116297306 | D156: 14,929,368 | F156: 62,775,981 | G156: 62,462,603 | H156: 21,773,773 | I156: 0.35 | J156: 100 | K156: 91.66666667
A157: GPID_00156 | B157: 21372390 | C157: SAMEA116297307 | D157: 12,965,236 | F157: 34,337,626 | G157: 34,095,813 | H157: 9,984,017 | I157: 0.29 | J157: 59.09090909 | K157: 40.90909091
A158: GPID_00157 | B158: 26841396 | C158: SAMEA116297308 | D158: 19,988,258 | F158: 46,829,654 | G158: 46,446,976 | H158: 15,410,742 | I158: 0.33 | J158: 100 | K158: 95.83333333
A159: GPID_00158 | B159: 16805046 | C159: SAMEA116297309 | D159: 14,676,924 | F159: 31,481,970 | G159: 31,212,194 | H159: 10,569,770 | I159: 0.34 | J159: 45.45454545 | K159: 0
A160: GPID_00159 | B160: 24983860 | C160: SAMEA116297310 | D160: 15,940,318 | F160: 40,924,178 | G160: 40,595,797 | H160: 14,213,590 | I160: 0.35 | J160: 78.94736842 | K160: 63.15789474
A161: GPID_00160 | B161: 25004000 | C161: SAMEA116297311 | D161: 17,269,914 | F161: 42,273,914 | G161: 41,570,674 | H161: 11,509,683 | I161: 0.28 | J161: 96 | K161: 68
A162: GPID_00161 | B162: 44984954 | C162: SAMEA116297312 | D162: 6,761,650 | F162: 51,746,604 | G162: 51,542,231 | H162: 19,845,025 | I162: 0.39 | J162: 0 | K162: 0
A163: GPID_00162 | B163: 34613092 | C163: SAMEA116297313 | D163: 13,490,792 | F163: 48,103,884 | G163: 47,800,067 | H163: 18,415,307 | I163: 0.39 | J163: 0 | K163: 0
A164: GPID_00163 | B164: 54633092 | C164: SAMEA116297314 | D164: 17,108,016 | F164: 71,741,108 | G164: 71,307,571 | H164: 27,294,052 | I164: 0.38 | J164: 35.29411765 | K164: 11.76470588
A165: GPID_00164 | B165: 32408083 | C165: SAMEA116297315 | D165: 21,218,710 | F165: 53,626,793 | G165: 52,952,835 | H165: 18,175,273 | I165: 0.34 | J165: 54.54545455 | K165: 22.72727273
A166: GPID_00165 | B166: 30323148 | C166: SAMEA116297316 | D166: 13,557,242 | F166: 43,880,390 | G166: 43,603,739 | H166: 13,271,459 | I166: 0.30 | J166: 5.555555556 | K166: 0
A167: GPID_00166 | B167: 12972429 | C167: SAMEA116297317 | D167: 14,183,696 | F167: 27,156,125 | G167: 26,868,821 | H167: 9,616,858 | I167: 0.36 | J167: 52.63157895 | K167: 21.05263158
A168: GPID_00167 | B168: 16827297 | C168: SAMEA116297318 | D168: 17,620,922 | F168: 34,448,219 | G168: 34,140,863 | H168: 11,711,990 | I168: 0.34 | J168: 54.16666667 | K168: 33.33333333
A169: GPID_00168 | B169: 40032017 | C169: SAMEA116297319 | D169: 8,603,734 | F169: 48,635,751 | G169: 48,431,348 | H169: 16,233,625 | I169: 0.34 | J169: 100 | K169: 95
A170: GPID_00169 | B170: 26603580 | C170: SAMEA116297320 | D170: 14,182,290 | F170: 40,785,870 | G170: 40,486,006 | H170: 15,066,440 | I170: 0.37 | J170: 0 | K170: 0
A171: GPID_00170 | B171: 24979097 | C171: SAMEA116297321 | D171: 12,430,260 | F171: 37,409,357 | G171: 36,922,095 | H171: 10,360,850 | I171: 0.28 | J171: 33.33333333 | K171: 9.523809524
A172: GPID_00171 | B172: 18853106 | C172: SAMEA116297322 | D172: 14,678,248 | F172: 33,531,354 | G172: 33,232,895 | H172: 11,498,488 | I172: 0.35 | J172: 57.89473684 | K172: 26.31578947
A173: GPID_00172 | B173: 23729250 | C173: SAMEA116297323 | D173: 12,967,536 | F173: 36,696,786 | G173: 36,436,598 | H173: 13,359,396 | I173: 0.37 | J173: 0 | K173: 0
A174: GPID_00173 | B174: 25860044 | C174: SAMEA116297324 | D174: 9,922,512 | F174: 35,782,556 | G174: 35,576,644 | H174: 11,632,209 | I174: 0.33 | J174: 100 | K174: 100
A175: GPID_00174 | B175: 22524667 | C175: SAMEA116297325 | D175: 17,834,168 | F175: 40,358,835 | G175: 40,013,219 | H175: 13,382,788 | I175: 0.33 | J175: 60 | K175: 12
A176: GPID_00175 | B176: 23272632 | C176: SAMEA116297326 | D176: 12,949,814 | F176: 36,222,446 | G176: 35,948,308 | H176: 12,460,104 | I176: 0.35 | J176: 37.5 | K176: 12.5
A177: GPID_00176 | B177: 28503943 | C177: SAMEA116297327 | D177: 23,934,826 | F177: 52,438,769 | G177: 51,988,357 | H177: 17,292,201 | I177: 0.33 | J177: 5 | K177: 0
A178: GPID_00177 | B178: 26671273 | C178: SAMEA116297328 | D178: 12,304,410 | F178: 38,975,683 | G178: 38,620,698 | H178: 11,034,856 | I178: 0.29 | J178: 90 | K178: 75
A179: GPID_00178 | B179: 43621415 | C179: SAMEA116297329 | D179: 16,393,516 | F179: 60,014,931 | G179: 59,619,248 | H179: 18,623,423 | I179: 0.31 | J179: 22.72727273 | K179: 4.545454545
A180: GPID_00179 | B180: 23143448 | C180: SAMEA116297330 | D180: 11,589,568 | F180: 34,733,016 | G180: 34,460,347 | H180: 11,632,018 | I180: 0.34 | J180: 23.80952381 | K180: 0
A181: GPID_00180 | B181: 66495075 | C181: SAMEA116297331 | D181: 14,247,158 | F181: 80,742,233 | G181: 80,393,579 | H181: 28,539,836 | I181: 0.36 | J181: 52.17391304 | K181: 43.47826087
A182: GPID_00181 | B182: 67097172 | C182: SAMEA116297332 | D182: 18,407,658 | F182: 85,504,830 | G182: 85,043,247 | H182: 29,760,163 | I182: 0.35 | J182: 45.45454545 | K182: 22.72727273
A183: GPID_00182 | B183: 19594829 | C183: SAMEA116297333 | D183: 15,340,222 | F183: 34,935,051 | G183: 34,557,636 | H183: 9,789,660 | I183: 0.28 | J183: 57.14285714 | K183: 23.80952381
A184: GPID_00183 | B184: 17227617 | C184: SAMEA116297334 | D184: 9,002,728 | F184: 26,230,345 | G184: 26,055,933 | H184: 8,633,694 | I184: 0.33 | J184: 38.88888889 | K184: 27.77777778
A185: GPID_00184 | B185: 17091791 | C185: SAMEA116297335 | D185: 13,929,192 | F185: 31,020,983 | G185: 30,764,667 | H185: 7,871,595 | I185: 0.26 | J185: 100 | K185: 91.30434783
A186: GPID_00185 | B186: 40058775 | C186: SAMEA116297336 | D186: 19,515,196 | F186: 59,573,971 | G186: 59,171,837 | H186: 20,104,989 | I186: 0.34 | J186: 37.5 | K186: 18.75
A187: GPID_00186 | B187: 32224879 | C187: SAMEA116297337 | D187: 11,741,024 | F187: 43,965,903 | G187: 43,706,821 | H187: 13,238,635 | I187: 0.30 | J187: 95.83333333 | K187: 87.5
A188: GPID_00187 | B188: 15937355 | C188: SAMEA116297338 | D188: 7,729,818 | F188: 23,667,173 | G188: 23,497,445 | H188: 6,929,210 | I188: 0.29 | J188: 100 | K188: 95.83333333
A189: GPID_00188 | B189: 29585740 | C189: SAMEA116297339 | D189: 15,549,866 | F189: 45,135,606 | G189: 44,753,932 | H189: 15,455,520 | I189: 0.35 | J189: 0 | K189: 0
A190: GPID_00189 | B190: 38284436 | C190: SAMEA116297340 | D190: 17,277,312 | F190: 55,561,748 | G190: 55,188,945 | H190: 20,623,043 | I190: 0.37 | J190: 31.81818182 | K190: 4.545454545
A191: GPID_00190 | B191: 19903636 | C191: SAMEA116297341 | D191: 17,370,792 | F191: 37,274,428 | G191: 36,968,183 | H191: 11,973,159 | I191: 0.32 | J191: 0 | K191: 0
A192: GPID_00191 | B192: 17947881 | C192: SAMEA116297342 | D192: 17,075,042 | F192: 35,022,923 | G192: 34,725,349 | H192: 10,756,096 | I192: 0.31 | J192: 45 | K192: 20
A193: GPID_00192 | B193: 21441818 | C193: SAMEA116297343 | D193: 6,197,430 | F193: 27,639,248 | G193: 27,500,082 | H193: 9,302,643 | I193: 0.34 | J193: 0 | K193: 0
A194: GPID_00193 | B194: 21508434 | C194: SAMEA116297344 | D194: 13,687,304 | F194: 35,195,738 | G194: 34,890,522 | H194: 11,310,081 | I194: 0.32 | J194: 42.85714286 | K194: 28.57142857
A195: GPID_00194 | B195: 24411136 | C195: SAMEA116297345 | D195: 15,942,070 | F195: 40,353,206 | G195: 40,059,369 | H195: 10,508,487 | I195: 0.26 | J195: 95.65217391 | K195: 95.65217391
A196: GPID_00195 | B196: 48212629 | C196: SAMEA116297346 | D196: =F196-B196 -> 20,790,840 | F196: 69,003,469 | G196: 68,528,197 | H196: 24,794,686 | I196: =H196/G196 -> 0.36 | J196: 0 | K196: 0
A197: GPID_00196 | B197: 17223270 | C197: SAMEA116297347 | D197: 14,638,884 | F197: 31,862,154 | G197: 31,599,514 | H197: 10,244,348 | I197: 0.32 | J197: 27.27272727 | K197: 0
A198: GPID_00197 | B198: 22572314 | C198: SAMEA116297348 | D198: 13,716,976 | F198: 36,289,290 | G198: 36,029,997 | H198: 12,165,084 | I198: 0.34 | J198: 76.19047619 | K198: 23.80952381
A199: GPID_00198 | B199: 23671194 | C199: SAMEA116297349 | D199: 14,966,122 | F199: 38,637,316 | G199: 38,362,564 | H199: 13,248,447 | I199: 0.35 | J199: 52.17391304 | K199: 13.04347826
A200: GPID_00199 | B200: 28570835 | C200: SAMEA116297350 | D200: 18,948,006 | F200: 47,518,841 | G200: 47,154,549 | H200: 14,859,595 | I200: 0.32 | J200: 100 | K200: 81.81818182
... 41 more rows

Sheet S. Table 17
A1: Supplementary Table 17. Summary of winter survival rate and late-frost survival rate in ProFaba panel (n = 208 accessions)
C3: winter survival rate (%) | F3: late-frost survival rate (%)
A4: Type | B4: # accessions | C4: mean | D4: mean top 20 | E4: mean worst 20 | F4: mean | G4: mean top 20 | H4: mean worst 20
A5: spring | B5: 180 | C5: 45.22 | D5: 94.86 | E5: 0 | F5: 27.36 | G5: 81.96 | H5: 0
A6: winter | B6: 28 | C6: 95.69 | D6: 101.12 | E6: 92.42 | F6: 89.09 | G6: 96.21 | H6: 84.38

Sheet S. Table 18
A1: Supplementary Table 18. 187 SNP Markers designed for winter survival and late frost survival.
A2: rs# | B2: alleles | C2: chrom | D2: pos | E2: 29H_180804 | F2: Arrisot_1_EP1-1-1-1 | G2: Banner_1_EP1-1-1-4 | H2: Bourdon_1EP5-1-1-1-1 | I2: Bulldog_1-4_EP3-1-1-1-2 | J2: CoteD_Or_1-1-3-1-2-1-1-2-2-3-1 | K2: Hiverna_2-5_EP1-1-8-1-3-3-2 | L2: L79_79_1_EP4-1-1-3 | M2: L977_88_S1wn-10-2 | N2: L979_S1_1_1sn_EP10-1-1-1 | O2: S_002 | P2: S_004 | Q2: S_005 | R2: S_008 | S2: S_009 | T2: S_010 | U2: S_012 | V2: S_013 | W2: S_015 | X2: S_016 | Y2: S_019 | Z2: S_020 | AA2: S_021 | AB2: S_022 | AC2: S_025 | AD2: S_027 | AE2: S_028 | AF2: S_029 | AG2: S_030 | AH2: S_033 | AI2: S_034 | AJ2: S_035 | AK2: S_038 | AL2: S_039 | AM2: S_040 | AN2: S_043 | AO2: S_045 | AP2: S_046 | AQ2: S_048 | AR2: S_050 | AS2: S_052 | AT2: S_054 | AU2: S_055 | AV2: S_059 | AW2: S_060 | AX2: S_062 | AY2: S_064 | AZ2: S_065 | BA2: S_066 | BB2: S_067 | BC2: S_069 | BD2: S_070 | BE2: S_072 | BF2: S_076 | BG2: S_077 | BH2: S_079 | BI2: S_081 | BJ2: S_082 | BK2: S_083 | BL2: S_084 | BM2: S_085 | BN2: S_093 | BO2: S_097 | BP2: S_100 | BQ2: S_102 | BR2: S_104 | BS2: S_108 | BT2: S_111 | BU2: S_115 | BV2: S_116 | BW2: S_119 | BX2: S_120 | BY2: S_122 | BZ2: S_123 | CA2: S_125 | CB2: S_126 | CC2: S_129 | CD2: S_131 | CE2: S_132 | CF2: S_133 | CG2: S_134 | CH2: S_142 | CI2: S_145 | CJ2: S_147 | CK2: S_150 | CL2: S_151 | CM2: S_153 | CN2: S_158 | CO2: S_160 | CP2: S_163 | CQ2: S_165 | CR2: S_166 | CS2: S_167 | CT2: S_168 | CU2: S_169 | CV2: S_170 | CW2: S_172 | CX2: S_173 | CY2: S_174 | CZ2: S_175 | DA2: S_176 | DB2: S_177 | DC2: S_181 | DD2: S_182 | DE2: S_185 | DF2: S_186 | DG2: S_189 | DH2: S_190 | DI2: S_191 | DJ2: S_192 | DK2: S_194 | DL2: S_195 | DM2: S_196 | DN2: S_197 | DO2: S_198 | DP2: S_199 | DQ2: S_201 | DR2: S_202 | DS2: S_209 | DT2: S_210 | DU2: S_213 | DV2: S_217 | DW2: S_218 | DX2: S_220 | DY2: S_221 | DZ2: S_226 | EA2: S_227 | EB2: S_231 | EC2: S_232 | ED2: S_233 | EE2: S_235 | EF2: S_236 | EG2: S_238 | EH2: S_240 | EI2: S_241 | EJ2: S_242 | EK2: S_243 | EL2: S_245 | EM2: S_246 | EN2: S_249 | EO2: S_252 | EP2: S_253 | EQ2: S_254 | ER2: S_258 | ES2: S_259 | ET2: S_264 | EU2: S_265 | EV2: S_267 | EW2: S_268 | EX2: S_269 | EY2: S_271 | EZ2: S_272 | FA2: S_274 | FB2: S_275 | FC2: S_277 | FD2: S_279 | FE2: S_280 | FF2: S_281 | FG2: S_282 | FH2: S_284 | FI2: S_285 | FJ2: S_286 | FK2: S_287 | FL2: S_289 | FM2: S_290 | FN2: S_291 | FO2: S_295 | FP2: S_298 | FQ2: S_299 | FR2: S_300 | FS2: S_301 | FT2: S_302 | FU2: S_303 | FV2: S_304 | FW2: S_307 | FX2: S_308 | FY2: S_309 | FZ2: S_310 | GA2: S_312 | GB2: S_314 | GC2: S_315 | GD2: S_319 | GE2: S_322 | GF2: S_326 | GG2: S_328 | GH2: S_329 | GI2: S_330 | GJ2: S_331 | GK2: WAB-EP02-Fam_S1_157 | GL2: WAB-EP02-Fam_S1_159 | GM2: WAB98_98-4 | GN2: WAB_EP98_21 | GO2: WAB_EP98_267 | GP2: WAB_EP98_98-3 | GQ2: Webo_1-1-1 | GR2: Wibo_1_-42370 | GS2: JLU_22-1 | GT2: JLU_22-2 | GU2: JLU_22-3 | GV2: JLU_22-4 | GW2: JLU_22-5 | GX2: JLU_22-6 | GY2: JLU_22-7 | GZ2: JLU_22-8 | HA2: MP_22-1 | HB2: MP_22-10 | HC2: MP_22-100 | HD2: MP_22-101 | HE2: MP_22-102 | HF2: MP_22-103 | HG2: MP_22-104 | HH2: MP_22-105 | HI2: MP_22-106 | HJ2: MP_22-107 | HK2: MP_22-108 | HL2: MP_22-109 | HM2: MP_22-11 | HN2: MP_22-110 | HO2: MP_22-111 | HP2: MP_22-112 | HQ2: MP_22-113 | HR2: MP_22-114 | HS2: MP_22-115 | HT2: MP_22-116 | HU2: MP_22-117 | HV2: MP_22-118 | HW2: MP_22-119 | HX2: MP_22-12 | HY2: MP_22-120 | HZ2: MP_22-121 | IA2: MP_22-122 | IB2: MP_22-123 | IC2: MP_22-124 | ID2: MP_22-125 | IE2: MP_22-126 | IF2: MP_22-127 | IG2: MP_22-128 | IH2: MP_22-129 | II2: MP_22-13 | IJ2: MP_22-130 | IK2: MP_22-131 | IL2: MP_22-132 | IM2: MP_22-133 | IN2: MP_22-134 | IO2: MP_22-135 | IP2: MP_22-136 | IQ2: MP_22-137 | IR2: MP_22-138 | IS2: MP_22-139 | IT2: MP_22-14 | IU2: MP_22-140 | IV2: MP_22-141 | IW2: MP_22-142 | IX2: MP_22-143 | IY2: MP_22-144 | IZ2: MP_22-145 | JA2: MP_22-146 | JB2: MP_22-147 | JC2: MP_22-148 | JD2: MP_22-149 | JE2: MP_22-15 | JF2: MP_22-150 | JG2: MP_22-151 | JH2: MP_22-152 | JI2: MP_22-153 | JJ2: MP_22-154 | JK2: MP_22-155 | JL2: MP_22-156 | JM2: MP_22-157 | JN2: MP_22-158 | JO2: MP_22-159 | JP2: MP_22-16 | JQ2: MP_22-160 | JR2: MP_22-161 | JS2: MP_22-162 | JT2: MP_22-163 | JU2: MP_22-164 | JV2: MP_22-165 | JW2: MP_22-166 | JX2: MP_22-167 | JY2: MP_22-168 | JZ2: MP_22-169 | KA2: MP_22-17 | KB2: MP_22-18 | KC2: MP_22-19 | KD2: MP_22-2 | KE2: MP_22-20 | KF2: MP_22-21 | KG2: MP_22-22 | KH2: MP_22-23 | KI2: MP_22-24 | KJ2: MP_22-25 | KK2: MP_22-26 | KL2: MP_22-27 | KM2: MP_22-28 | KN2: MP_22-29 | KO2: MP_22-3 | KP2: MP_22-30 | KQ2: MP_22-31 | KR2: MP_22-32 | KS2: MP_22-33 | KT2: MP_22-34 | KU2: MP_22-35 | KV2: MP_22-36 | KW2: MP_22-37 | KX2: MP_22-38 | KY2: MP_22-39 | KZ2: MP_22-4 | LA2: MP_22-40 | LB2: MP_22-41 | LC2: MP_22-42 | LD2: MP_22-43 | LE2: MP_22-44 | LF2: MP_22-45 | LG2: MP_22-46 | LH2: MP_22-47 | LI2: MP_22-48 | LJ2: MP_22-49 | LK2: MP_22-5 | LL2: MP_22-50 | LM2: MP_22-51 | LN2: MP_22-52 | LO2: MP_22-53 | LP2: MP_22-54 | LQ2: MP_22-55 | LR2: MP_22-56 | LS2: MP_22-57 | LT2: MP_22-58 | LU2: MP_22-59 | LV2: MP_22-6 | LW2: MP_22-60 | LX2: MP_22-61 | LY2: MP_22-62 | LZ2: MP_22-63 | MA2: MP_22-64 | MB2: MP_22-65 | MC2: MP_22-66 | MD2: MP_22-67 | ME2: MP_22-68 | MF2: MP_22-69 | MG2: MP_22-7 | MH2: MP_22-70 | MI2: MP_22-71 | MJ2: MP_22-72 | MK2: MP_22-73 | ML2: MP_22-74 | MM2: MP_22-75 | MN2: MP_22-76 | MO2: MP_22-77 | MP2: MP_22-78 | MQ2: MP_22-79 | MR2: MP_22-8 | MS2: MP_22-80 | MT2: MP_22-81 | MU2: MP_22-82 | MV2: MP_22-83 | MW2: MP_22-84 | MX2: MP_22-85 | MY2: MP_22-86 | MZ2: MP_22-87 | NA2: MP_22-88 | NB2: MP_22-89 | NC2: MP_22-9 | ND2: MP_22-90 | NE2: MP_22-91 | NF2: MP_22-92 | NG2: MP_22-93 | NH2: MP_22-94 | NI2: MP_22-95 | NJ2: MP_22-96 | NK2: MP_22-97 | NL2: MP_22-98 | NM2: MP_22-99 | NN2: P_22-01 | NO2: P_22-02 | NP2: P_22-03 | NQ2: P_22-04 | NR2: P_22-05 | NS2: P_22-06 | NT2: P_22-07 | NU2: P_22-08 | NV2: P_22-09 | NW2: P_22-10 | NX2: P_22-11 | NY2: P_22-12 | NZ2: P_22-13 | OA2: USJ_22-1 | OB2: USJ_22-10 | OC2: USJ_22-11 | OD2: USJ_22-12 | OE2: USJ_22-13 | OF2: USJ_22-14 | OG2: USJ_22-15 | OH2: USJ_22-16 | OI2: USJ_22-17 | OJ2: USJ_22-18 | OK2: USJ_22-19 | OL2: USJ_22-2 | OM2: USJ_22-20 | ON2: USJ_22-3 | OO2: USJ_22-4 | OP2: USJ_22-5 | OQ2: USJ_22-6 | OR2: USJ_22-7 | OS2: USJ_22-8 | OT2: USJ_22-9
A3: S1_706996159 | B3: C/A | C3: chr1 | D3: 706996159 | E3: A | F3: C | G3: A | H3: A | I3: A | J3: A | K3: A | L3: A | M3: A | N3: A | O3: A | P3: A | Q3: A | R3: A | S3: A | T3: A | U3: A | V3: A | W3: A | X3: A | Y3: A | Z3: A | AA3: A | AB3: A | AC3: A | AD3: A | AE3: A | AF3: A | AG3: A | AH3: A | AI3: C | AJ3: A | AK3: A | AL3: A | AM3: A | AN3: A | AO3: A | AP3: A | AQ3: A | AR3: A | AS3: A | AT3: A | AU3: A | AV3: A | AW3: A | AX3: A | AY3: A | AZ3: A | BA3: A | BB3: A | BC3: A | BD3: A | BE3: A | BF3: A | BG3: A | BH3: A | BI3: A | BJ3: A | BK3: A | BL3: A | BM3: A | BN3: A | BO3: A | BP3: A | BQ3: A | BR3: A | BS3: A | BT3: A | BU3: A | BV3: A | BW3: A | BX3: A | BY3: A | BZ3: A | CA3: A | CB3: A | CC3: A | CD3: A | CE3: A | CF3: A | CG3: A | CH3: A | CI3: A | CJ3: A | CK3: A | CL3: A | CM3: A | CN3: A | CO3: A | CP3: A | CQ3: A | CR3: A | CS3: A | CT3: A | CU3: A | CV3: A | CW3: A | CX3: A | CY3: A | CZ3: A | DA3: A | DB3: A | DC3: A | DD3: A | DE3: A | DF3: A | DG3: A | DH3: A | DI3: A | DJ3: A | DK3: A | DL3: C | DM3: A | DN3: A | DO3: A | DP3: A | DQ3: A | DR3: A | DS3: A | DT3: A | DU3: A | DV3: A | DW3: A | DX3: A | DY3: A | DZ3: A | EA3: A | EB3: A | EC3: A | ED3: A | EE3: A | EF3: A | EG3: A | EH3: A | EI3: A | EJ3: A | EK3: A | EL3: A | EM3: A | EN3: A | EO3: A | EP3: A | EQ3: A | ER3: A | ES3: A | ET3: A | EU3: A | EV3: A | EW3: A | EX3: A | EY3: A | EZ3: C | FA3: A | FB3: A | FC3: A | FD3: A | FE3: A | FF3: A | FG3: A | FH3: A | FI3: A | FJ3: A | FK3: A | FL3: A | FM3: A | FN3: A | FO3: A | FP3: A | FQ3: A | FR3: A | FS3: A | FT3: A | FU3: A | FV3: A | FW3: A | FX3: A | FY3: A | FZ3: A | GA3: A | GB3: A | GC3: A | GD3: A | GE3: A | GF3: A | GG3: A | GH3: C | GI3: A | GJ3: A | GK3: A | GL3: A | GM3: A | GN3: A | GO3: A | GP3: A | GQ3: A | GR3: A | GS3: C | GT3: C | GU3: C | GV3: C | GW3: C | GX3: C | GY3: C | GZ3: C | HA3: C | HB3: C | HC3: C | HD3: C | HE3: C | HF3: C | HG3: C | HH3: C | HI3: C | HJ3: C | HK3: C | HL3: C | HM3: C | HN3: C | HO3: C | HP3: C | HQ3: C | HR3: C | HS3: C | HT3: C | HU3: C | HV3: C | HW3: C | HX3: C | HY3: C | HZ3: C | IA3: C | IB3: C | IC3: C | ID3: C | IE3: C | IF3: C | IG3: C | IH3: C | II3: C | IJ3: C | IK3: C | IL3: C | IM3: C | IN3: C | IO3: C | IP3: C | IQ3: C | IR3: C | IS3: C | IT3: C | IU3: C | IV3: C | IW3: C | IX3: C | IY3: C | IZ3: C | JA3: C | JB3: C | JC3: C | JD3: C | JE3: C | JF3: C | JG3: C | JH3: C | JI3: C | JJ3: C | JK3: C | JL3: C | JM3: C | JN3: C | JO3: C | JP3: C | JQ3: C | JR3: C | JS3: C | JT3: C | JU3: C | JV3: C | JW3: C | JX3: C | JY3: C | JZ3: C | KA3: C | KB3: C | KC3: C | KD3: C | KE3: C | KF3: C | KG3: C | KH3: C | KI3: C | KJ3: C | KK3: C | KL3: C | KM3: C | KN3: C | KO3: C | KP3: C | KQ3: C | KR3: C | KS3: C | KT3: C | KU3: C | KV3: C | KW3: C | KX3: C | KY3: C | KZ3: C | LA3: C | LB3: C | LC3: C | LD3: C | LE3: C | LF3: C | LG3: C | LH3: C | LI3: C | LJ3: C | LK3: C | LL3: C | LM3: C | LN3: C | LO3: C | LP3: C | LQ3: C | LR3: C | LS3: C | LT3: C | LU3: C | LV3: C | LW3: C | LX3: C | LY3: C | LZ3: C | MA3: C | MB3: C | MC3: C | MD3: C | ME3: C | MF3: C | MG3: C | MH3: C | MI3: C | MJ3: C | MK3: C | ML3: C | MM3: A | MN3: A | MO3: C | MP3: C | MQ3: C | MR3: C | MS3: C | MT3: C | MU3: C | MV3: C | MW3: C | MX3: C | MY3: C | MZ3: C | NA3: C | NB3: C | NC3: C | ND3: C | NE3: C | NF3: C | NG3: C | NH3: C | NI3: C | NJ3: C | NK3: C | NL3: C | NM3: C | NN3: C | NO3: C | NP3: C | NQ3: C | NR3: C | NS3: C | NT3: C | NU3: C | NV3: C | NW3: C | NX3: C | NY3: C | NZ3: C | OA3: C | OB3: A | OC3: A | OD3: A | OE3: C | OF3: C | OG3: C | OH3: C | OI3: C | OJ3: C | OK3: C | OL3: C | OM3: A | ON3: C | OO3: C | OP3: C | OQ3: C | OR3: C | OS3: C | OT3: C
A4: S1_706996496 | B4: C/T | C4: chr1 | D4: 706996496 | E4: T | F4: C | G4: T | H4: T | I4: T | J4: T | K4: T | L4: T | M4: T | N4: T | O4: T | P4: T | Q4: T | R4: T | S4: T | T4: T | U4: T | V4: T | W4: T | X4: T | Y4: T | Z4: T | AA4: T | AB4: T | AC4: T | AD4: T | AE4: T | AF4: T | AG4: T | AH4: T | AI4: C | AJ4: T | AK4: T | AL4: T | AM4: T | AN4: T | AO4: T | AP4: T | AQ4: T | AR4: T | AS4: T | AT4: T | AU4: T | AV4: T | AW4: T | AX4: T | AY4: T | AZ4: T | BA4: T | BB4: T | BC4: T | BD4: T | BE4: T | BF4: T | BG4: T | BH4: T | BI4: T | BJ4: T | BK4: T | BL4: T | BM4: T | BN4: T | BO4: T | BP4: T | BQ4: T | BR4: T | BS4: T | BT4: T | BU4: T | BV4: T | BW4: T | BX4: T | BY4: T | BZ4: T | CA4: T | CB4: T | CC4: T | CD4: T | CE4: T | CF4: T | CG4: T | CH4: T | CI4: T | CJ4: T | CK4: T | CL4: T | CM4: T | CN4: T | CO4: T | CP4: T | CQ4: T | CR4: T | CS4: T | CT4: T | CU4: T | CV4: T | CW4: T | CX4: T | CY4: T | CZ4: T | DA4: T | DB4: T | DC4: T | DD4: T | DE4: T | DF4: T | DG4: T | DH4: T | DI4: T | DJ4: T | DK4: T | DL4: C | DM4: T | DN4: T | DO4: T | DP4: T | DQ4: T | DR4: T | DS4: T | DT4: T | DU4: T | DV4: T | DW4: T | DX4: T | DY4: T | DZ4: T | EA4: T | EB4: T | EC4: T | ED4: T | EE4: T | EF4: T | EG4: T | EH4: T | EI4: T | EJ4: T | EK4: T | EL4: T | EM4: T | EN4: T | EO4: T | EP4: T | EQ4: T | ER4: T | ES4: T | ET4: T | EU4: T | EV4: T | EW4: T | EX4: T | EY4: T | EZ4: C | FA4: T | FB4: T | FC4: T | FD4: T | FE4: T | FF4: T | FG4: T | FH4: T | FI4: T | FJ4: T | FK4: T | FL4: T | FM4: T | FN4: T | FO4: T | FP4: T | FQ4: T | FR4: T | FS4: T | FT4: T | FU4: T | FV4: T | FW4: T | FX4: T | FY4: T | FZ4: T | GA4: T | GB4: T | GC4: T | GD4: T | GE4: T | GF4: T | GG4: T | GH4: C | GI4: T | GJ4: T | GK4: T | GL4: T | GM4: T | GN4: T | GO4: T | GP4: T | GQ4: T | GR4: T | GS4: C | GT4: C | GU4: C | GV4: C | GW4: C | GX4: C | GY4: C | GZ4: C | HA4: C | HB4: C | HC4: C | HD4: C | HE4: C | HF4: C | HG4: C | HH4: C | HI4: C | HJ4: C | HK4: C | HL4: C | HM4: C | HN4: C | HO4: C | HP4: C | HQ4: C | HR4: C | HS4: C | HT4: C | HU4: C | HV4: C | HW4: C | HX4: C | HY4: C | HZ4: C | IA4: C | IB4: C | IC4: C | ID4: C | IE4: C | IF4: C | IG4: C | IH4: C | II4: C | IJ4: C | IK4: C | IL4: C | IM4: C | IN4: C | IO4: C | IP4: C | IQ4: C | IR4: C | IS4: C | IT4: C | IU4: C | IV4: C | IW4: C | IX4: C | IY4: C | IZ4: C | JA4: C | JB4: C | JC4: C | JD4: C | JE4: C | JF4: C | JG4: C | JH4: C | JI4: C | JJ4: C | JK4: C | JL4: C | JM4: C | JN4: C | JO4: C | JP4: C | JQ4: C | JR4: C | JS4: C | JT4: C | JU4: C | JV4: C | JW4: C | JX4: C | JY4: C | JZ4: C | KA4: C | KB4: C | KC4: C | KD4: C | KE4: C | KF4: C | KG4: C | KH4: C | KI4: C | KJ4: C | KK4: C | KL4: C | KM4: C | KN4: C | KO4: C | KP4: C | KQ4: C | KR4: C | KS4: C | KT4: C | KU4: C | KV4: C | KW4: C | KX4: C | KY4: C | KZ4: C | LA4: C | LB4: C | LC4: C | LD4: C | LE4: C | LF4: C | LG4: C | LH4: C | LI4: C | LJ4: C | LK4: C | LL4: C | LM4: C | LN4: C | LO4: C | LP4: C | LQ4: C | LR4: C | LS4: C | LT4: C | LU4: C | LV4: C | LW4: C | LX4: C | LY4: C | LZ4: C | MA4: C | MB4: C | MC4: C | MD4: C | ME4: C | MF4: C | MG4: C | MH4: C | MI4: C | MJ4: C | MK4: C | ML4: C | MM4: T | MN4: T | MO4: C | MP4: C | MQ4: C | MR4: C | MS4: C | MT4: C | MU4: C | MV4: C | MW4: C | MX4: C | MY4: C | MZ4: C | NA4: C | NB4: C | NC4: C | ND4: C | NE4: C | NF4: C | NG4: C | NH4: C | NI4: C | NJ4: C | NK4: C | NL4: C | NM4: C | NN4: C | NO4: C | NP4: C | NQ4: C | NR4: C | NS4: C | NT4: C | NU4: C | NV4: C | NW4: C | NX4: C | NY4: C | NZ4: C | OA4: C | OB4: T | OC4: T | OD4: T | OE4: C | OF4: C | OG4: C | OH4: C | OI4: C | OJ4: C | OK4: C | OL4: C | OM4: T | ON4: C | OO4: C | OP4: C | OQ4: C | OR4: C | OS4: C | OT4: C
A5: S1_706996506 | B5: T/G | C5: chr1 | D5: 706996506 | E5: G | F5: T | G5: G | H5: G | I5: G | J5: G | K5: G | L5: G | M5: G | N5: G | O5: G | P5: G | Q5: G | R5: G | S5: G | T5: G | U5: G | V5: G | W5: G | X5: G | Y5: G | Z5: G | AA5: G | AB5: G | AC5: G | AD5: G | AE5: G | AF5: G | AG5: G | AH5: G | AI5: T | AJ5: G | AK5: G | AL5: G | AM5: G | AN5: G | AO5: G | AP5: G | AQ5: G | AR5: G | AS5: G | AT5: G | AU5: G | AV5: G | AW5: G | AX5: G | AY5: G | AZ5: G | BA5: G | BB5: G | BC5: G | BD5: G | BE5: G | BF5: G | BG5: G | BH5: G | BI5: G | BJ5: G | BK5: G | BL5: G | BM5: G | BN5: G | BO5: G | BP5: G | BQ5: G | BR5: G | BS5: G | BT5: G | BU5: G | BV5: G | BW5: G | BX5: G | BY5: G | BZ5: G | CA5: G | CB5: G | CC5: G | CD5: G | CE5: G | CF5: G | CG5: G | CH5: G | CI5: G | CJ5: G | CK5: G | CL5: G | CM5: G | CN5: G | CO5: G | CP5: G | CQ5: G | CR5: G | CS5: G | CT5: G | CU5: G | CV5: G | CW5: G | CX5: G | CY5: G | CZ5: G | DA5: G | DB5: G | DC5: G | DD5: G | DE5: G | DF5: G | DG5: G | DH5: G | DI5: G | DJ5: G | DK5: G | DL5: T | DM5: G | DN5: G | DO5: G | DP5: G | DQ5: G | DR5: G | DS5: G | DT5: G | DU5: G | DV5: G | DW5: G | DX5: G | DY5: G | DZ5: G | EA5: G | EB5: G | EC5: G | ED5: G | EE5: G | EF5: G | EG5: G | EH5: G | EI5: G | EJ5: G | EK5: G | EL5: G | EM5: G | EN5: G | EO5: G | EP5: G | EQ5: G | ER5: G | ES5: G | ET5: G | EU5: G | EV5: G | EW5: G | EX5: G | EY5: G | EZ5: T | FA5: G | FB5: G | FC5: G | FD5: G | FE5: G | FF5: G | FG5: G | FH5: G | FI5: G | FJ5: G | FK5: G | FL5: G | FM5: G | FN5: G | FO5: G | FP5: G | FQ5: G | FR5: G | FS5: G | FT5: G | FU5: G | FV5: G | FW5: G | FX5: G | FY5: G | FZ5: G | GA5: G | GB5: G | GC5: G | GD5: G | GE5: G | GF5: G | GG5: G | GH5: T | GI5: G | GJ5: G | GK5: G | GL5: G | GM5: G | GN5: G | GO5: G | GP5: G | GQ5: G | GR5: G | GS5: T | GT5: T | GU5: T | GV5: T | GW5: T | GX5: T | GY5: T | GZ5: T | HA5: T | HB5: T | HC5: T | HD5: T | HE5: T | HF5: T | HG5: T | HH5: T | HI5: T | HJ5: T | HK5: T | HL5: T | HM5: T | HN5: T | HO5: T | HP5: T | HQ5: T | HR5: T | HS5: T | HT5: T | HU5: T | HV5: T | HW5: T | HX5: T | HY5: T | HZ5: T | IA5: T | IB5: T | IC5: T | ID5: T | IE5: T | IF5: T | IG5: T | IH5: T | II5: T | IJ5: T | IK5: T | IL5: T | IM5: T | IN5: T | IO5: T | IP5: T | IQ5: T | IR5: T | IS5: T | IT5: T | IU5: T | IV5: T | IW5: T | IX5: T | IY5: T | IZ5: T | JA5: T | JB5: T | JC5: T | JD5: T | JE5: T | JF5: T | JG5: T | JH5: T | JI5: T | JJ5: T | JK5: T | JL5: T | JM5: T | JN5: T | JO5: T | JP5: T | JQ5: T | JR5: T | JS5: T | JT5: T | JU5: T | JV5: T | JW5: T | JX5: T | JY5: T | JZ5: T | KA5: T | KB5: T | KC5: T | KD5: T | KE5: T | KF5: T | KG5: T | KH5: T | KI5: T | KJ5: T | KK5: T | KL5: T | KM5: T | KN5: T | KO5: T | KP5: T | KQ5: T | KR5: T | KS5: T | KT5: T | KU5: T | KV5: T | KW5: T | KX5: T | KY5: T | KZ5: T | LA5: T | LB5: T | LC5: T | LD5: T | LE5: T | LF5: T | LG5: T | LH5: T | LI5: T | LJ5: T | LK5: T | LL5: T | LM5: T | LN5: T | LO5: T | LP5: T | LQ5: T | LR5: T | LS5: T | LT5: T | LU5: T | LV5: T | LW5: T | LX5: T | LY5: T | LZ5: T | MA5: T | MB5: T | MC5: T | MD5: T | ME5: T | MF5: T | MG5: T | MH5: T | MI5: T | MJ5: T | MK5: T | ML5: T | MM5: G | MN5: G | MO5: T | MP5: T | MQ5: T | MR5: T | MS5: T | MT5: T | MU5: T | MV5: T | MW5: T | MX5: T | MY5: T | MZ5: T | NA5: T | NB5: T | NC5: T | ND5: T | NE5: T | NF5: T | NG5: T | NH5: T | NI5: T | NJ5: T | NK5: T | NL5: T | NM5: T | NN5: T | NO5: T | NP5: T | NQ5: T | NR5: T | NS5: T | NT5: T | NU5: T | NV5: T | NW5: T | NX5: T | NY5: T | NZ5: T | OA5: T | OB5: G | OC5: G | OD5: G | OE5: T | OF5: T | OG5: T | OH5: T | OI5: T | OJ5: T | OK5: T | OL5: T | OM5: G | ON5: T | OO5: T | OP5: T | OQ5: T | OR5: T | OS5: T | OT5: T
A6: S1_706996580 | B6: T/C | C6: chr1 | D6: 706996580 | E6: C | F6: T | G6: C | H6: C | I6: C | J6: C | K6: C | L6: C | M6: C | N6: C | O6: C | P6: C | Q6: C | R6: C | S6: C | T6: C | U6: C | V6: C | W6: C | X6: C | Y6: C | Z6: C | AA6: C | AB6: C | AC6: C | AD6: C | AE6: C | AF6: C | AG6: C | AH6: C | AI6: T | AJ6: C | AK6: C | AL6: C | AM6: C | AN6: C | AO6: C | AP6: C | AQ6: C | AR6: C | AS6: C | AT6: C | AU6: C | AV6: C | AW6: C | AX6: C | AY6: C | AZ6: C | BA6: C | BB6: C | BC6: C | BD6: C | BE6: C | BF6: C | BG6: C | BH6: C | BI6: C | BJ6: C | BK6: C | BL6: C | BM6: C | BN6: C | BO6: C | BP6: C | BQ6: C | BR6: C | BS6: C | BT6: C | BU6: C | BV6: C | BW6: C | BX6: C | BY6: C | BZ6: C | CA6: C | CB6: C | CC6: C | CD6: C | CE6: C | CF6: C | CG6: C | CH6: C | CI6: C | CJ6: C | CK6: C | CL6: C | CM6: C | CN6: C | CO6: C | CP6: C | CQ6: C | CR6: C | CS6: C | CT6: C | CU6: C | CV6: C | CW6: C | CX6: C | CY6: C | CZ6: C | DA6: C | DB6: C | DC6: C | DD6: C | DE6: C | DF6: C | DG6: C | DH6: C | DI6: C | DJ6: C | DK6: C | DL6: T | DM6: C | DN6: C | DO6: C | DP6: C | DQ6: C | DR6: C | DS6: C | DT6: C | DU6: C | DV6: C | DW6: C | DX6: C | DY6: C | DZ6: C | EA6: C | EB6: C | EC6: C | ED6: C | EE6: C | EF6: C | EG6: C | EH6: C | EI6: C | EJ6: C | EK6: C | EL6: C | EM6: C | EN6: C | EO6: C | EP6: C | EQ6: C | ER6: C | ES6: C | ET6: C | EU6: C | EV6: C | EW6: C | EX6: C | EY6: C | EZ6: T | FA6: C | FB6: C | FC6: C | FD6: C | FE6: C | FF6: C | FG6: C | FH6: C | FI6: C | FJ6: C | FK6: C | FL6: C | FM6: C | FN6: C | FO6: C | FP6: C | FQ6: C | FR6: C | FS6: C | FT6: C | FU6: C | FV6: C | FW6: C | FX6: C | FY6: C | FZ6: C | GA6: C | GB6: C | GC6: C | GD6: C | GE6: C | GF6: C | GG6: C | GH6: T | GI6: C | GJ6: C | GK6: C | GL6: C | GM6: C | GN6: C | GO6: C | GP6: C | GQ6: C | GR6: C | GS6: T | GT6: T | GU6: T | GV6: T | GW6: T | GX6: T | GY6: T | GZ6: T | HA6: T | HB6: T | HC6: T | HD6: T | HE6: T | HF6: T | HG6: T | HH6: T | HI6: T | HJ6: T | HK6: T | HL6: T | HM6: T | HN6: T | HO6: T | HP6: T | HQ6: T | HR6: T | HS6: T | HT6: T | HU6: T | HV6: T | HW6: T | HX6: T | HY6: T | HZ6: T | IA6: T | IB6: T | IC6: T | ID6: T | IE6: T | IF6: T | IG6: T | IH6: T | II6: T | IJ6: T | IK6: T | IL6: T | IM6: T | IN6: T | IO6: T | IP6: T | IQ6: T | IR6: T | IS6: T | IT6: T | IU6: T | IV6: T | IW6: T | IX6: T | IY6: T | IZ6: T | JA6: T | JB6: T | JC6: T | JD6: T | JE6: T | JF6: T | JG6: T | JH6: T | JI6: T | JJ6: T | JK6: T | JL6: T | JM6: T | JN6: T | JO6: T | JP6: T | JQ6: T | JR6: T | JS6: T | JT6: T | JU6: T | JV6: T | JW6: T | JX6: T | JY6: T | JZ6: T | KA6: T | KB6: T | KC6: T | KD6: T | KE6: T | KF6: T | KG6: T | KH6: T | KI6: T | KJ6: T | KK6: T | KL6: T | KM6: T | KN6: T | KO6: T | KP6: T | KQ6: T | KR6: T | KS6: T | KT6: T | KU6: T | KV6: T | KW6: T | KX6: T | KY6: T | KZ6: T | LA6: T | LB6: T | LC6: T | LD6: T | LE6: T | LF6: T | LG6: T | LH6: T | LI6: T | LJ6: T | LK6: T | LL6: T | LM6: T | LN6: T | LO6: T | LP6: T | LQ6: T | LR6: T | LS6: T | LT6: T | LU6: T | LV6: T | LW6: T | LX6: T | LY6: T | LZ6: T | MA6: T | MB6: T | MC6: T | MD6: T | ME6: T | MF6: T | MG6: T | MH6: T | MI6: T | MJ6: T | MK6: T | ML6: T | MM6: C | MN6: C | MO6: T | MP6: T | MQ6: T | MR6: T | MS6: T | MT6: T | MU6: T | MV6: T | MW6: T | MX6: T | MY6: T | MZ6: T | NA6: T | NB6: T | NC6: T | ND6: T | NE6: T | NF6: T | NG6: T | NH6: T | NI6: T | NJ6: T | NK6: T | NL6: T | NM6: T | NN6: T | NO6: T | NP6: T | NQ6: T | NR6: T | NS6: T | NT6: T | NU6: T | NV6: T | NW6: T | NX6: T | NY6: T | NZ6: T | OA6: T | OB6: C | OC6: C | OD6: C | OE6: T | OF6: T | OG6: T | OH6: T | OI6: T | OJ6: T | OK6: T | OL6: T | OM6: C | ON6: T | OO6: T | OP6: T | OQ6: T | OR6: T | OS6: T | OT6: T
